Workbook

Sheet Pool Entry
A1: formula cells | J1: Pool Load Worksheet
M2: Date:
A3: INPUTS | M3: =NOW() -> 2022-01-18T09:54:04.340
A4: DESC | B4: VALUE | E4: Project: | F4: Enter Pool Name | M4: Rev #:
A5: Software Units | B5: =INPUT!B8 -> S | E5: Tag: | F5: Enter Tag # | M5: 2022-01A
A6: Revision | B6: =INPUT!B10 -> 2019_08A Rev3
A7: Pool 1 Unoccupied Load (lb/hr) | B7: =ROUND(PoolCalc!B28,1) -> 232.3 | E7: Pool Room Design Details | K7: Weather Design Details
L9: State Lookup:
A10: Pool 1 Occupied Load (lb/hr) | B10: =ROUND(PoolCalc!B29,1) -> 358.4 | G10: Pool #1
A11: Pool 2 Unoccupied Load (lb/hr) | B11: =ROUND(PoolCalc!B30,1) -> 0 | E11: Public (School/YMCA) | G11: 9075 | H11: =IF(B5="S","sq ft","m²") -> sq ft | L11: Selected City:
A12: Pool 2 Occupied Load (lb/hr) | B12: =ROUND(PoolCalc!B31,1) -> 0 | F12: Water Temp #1 | G12: 82 | H12: =IF(B5="S","°F","°C") -> °F
A13: Pool 3 Unoccupied Load (lb/hr) | B13: =ROUND(PoolCalc!B32,1) -> 0 | G13: Pool #2 | L13: 0.4% Summer Cooling | M13: =City_Pulldown!I4 -> 89.6 | N13: =IF(B5="S","°Fdb","°Cdb") -> °Fdb
A14: Pool 3 Occupied Load (lb/hr) | B14: =ROUND(PoolCalc!B33,1) -> 0 | E14: Public (School/YMCA) | G14: 0 | H14: =IF(B5="S","sq ft","m²") -> sq ft | L14: 0.4% Summer Cooling | M14: =City_Pulldown!J4 -> 74.4 | N14: =IF(B5="S","°Fwb","°Cwb") -> °Fwb
A15: Pool and Deck Outdoor Air Ventilation | B15: ='ASHRAE OA Calc'!B16 -> 5782.2 | F15: Water Temp #2 | G15: 82 | H15: =IF(B5="S","°F","°C") -> °F | L15: 0.4% Summer Cooling | M15: =IF(B5="S",WBtoGrL(VALUE(B69),VALUE(B70),VALUE(B75)),(SI_WBtoGrL(VALUE(M13),VALUE(M14),VALUE(M21)))) -> 107.374463 | N15: =IF(B5="S","gr/lb","g/kg") -> gr/lb
A16: Spectator Outdoor Air Ventilation | B16: ='ASHRAE OA Calc'!B17 -> 6522 | G16: Pool #3 | L16: 1% Dehum | M16: =City_Pulldown!L4 -> 80.4 | N16: MCDB
E17: Spa/Whirlpool | G17: 0 | H17: =IF(B5="S","sq ft","m²") -> sq ft | L17: 1% Dehum | M17: =City_Pulldown!M4 -> 74.10030365 | N17: WB
A18: Pool Design 1 Activity | B18: =+PoolCalc!B25 -> 1 | F18: Water Temp #3 | G18: 104 | H18: =IF(B5="S","°F","°C") -> °F | L18: 1% Dehum | M18: =IF(B5="S",WBtoGrL(VALUE(B71),VALUE(B72),VALUE(B75)),(SI_WBtoGrL(VALUE(M16),VALUE(M17),VALUE(M24)))) -> 120.6000318 | N18: gr/lb
A19: Pool Design 2 Activity | B19: =+PoolCalc!B26 -> 1 | T19: ROC INFO: | V19: Outdoor Cond. Design Temp. (°F) | W19: 95
A20: Pool Design 3 Activity | B20: =+PoolCalc!B27 -> 1 | F20: Pool Room Volume | G20: 1000000 | H20: =IF(B5="S","cu ft","m³") -> cu ft | L20: Heating | M20: =City_Pulldown!O4 -> -1 | N20: =IF(B5="S","°Fdb","°Cdb") -> °Fdb
L21: Elevation | M21: =City_Pulldown!P4 -> 670 | N21: =IF(B5="S","ft","m") -> ft
A22: Pool and Deck Outdoor Air (Occ) | B22: =G35 -> 5782 | E22: Indoor Air Design Details | K22: Unoccupied Pool Evaporation Calculation | T22: Pull Down List
A23: Spectator Outdoor Air (Occ) | B23: =G36 -> 0 | T23: None
F24: Room Design Temp. | G24: 84 | H24: =IF(B5="S","°F","°C") -> °F | L24: 1st Pool: | M24: =B7 -> 232.3 | N24: lb/hr | T24: Condo
F25: RH Design Unocc. | G25: 50 | L25: 2nd Pool: | M25: =B11 -> 0 | N25: lb/hr | T25: Hotel
F26: RH Design Occ. | G26: 60 | L26: 3rd Pool: | M26: =B13 -> 0 | N26: lb/hr | T26: Public (School/YMCA)
F27: Occupied Hours/Day | G27: 15 | H27: hrs | L27: Pool & Deck Outside Air: | M27: =VALUE(G40)*(WBtoGrL(VALUE(B71),VALUE(B72),VALUE(B75))-RHtoGRL(VALUE(B66),VALUE(B68)/100,VALUE(B75)))/1555 -> 0 | N27: lb/hr | T27: Residential
E28: Outside Air Design Details | T28: Spa/Whirlpool
E29: Enter Values Below for Program to Calculate the Suggested ASHRAE Amount | K29: Total @ | L29: =VALUE(B68) -> 50 | M29: =SUM(M24:M28) -> 232.3 | N29: lb/hr | T29: Therapy
F30: Gross Room Area | G30: 27125 | H30: =IF(B5="S","sq ft","m²") -> sq ft | T30: Waterpark
F31: Pool & Wet Deck Area | G31: 11135 | H31: =IF(B5="S","sq ft","m²") -> sq ft | K31: Occupied Pool Evaporation Calculation
F32: Spectator/Bleacher Area | G32: 8700 | H32: =IF(B5="S","sq ft","m²") -> sq ft
F33: Number of Spectators | G33: 800 | H33: people | L33: 1st Pool: | M33: =B10 -> 358.4 | N33: lb/hr
E34: Enter ASHRAE Calculated CFM Values Below or Your Own Values | L34: 2nd Pool: | M34: =B12 -> 0 | N34: lb/hr | T34: Unocc Outside Air
F35: Design Pool & Deck | G35: 5782 | H35: CFM | L35: 3rd Pool: | M35: =B14 -> 0 | N35: lb/hr | T35: No OSA | U35: N
F36: Design Spectator | G36: 0 | H36: CFM | L36: Pool & Deck Outside Air: | M36: =G35*(WBtoGrL(VALUE(B71),VALUE(B72),VALUE(B75))-RHtoGRL(VALUE(B66),VALUE(B67)/100,VALUE(B75)))/1555 -> 45.93865592 | N36: lb/hr | T36: Outside Air | U36: Y
F37: Outside Air is Providing | G37: =IF((G35+G36)<=0,0,60/(G20/(G35+G36))) -> 0.34692 | H37: A/C per Hour | L37: Spectator Outside Air: | M37: =B16*4.5*(WBtoGrL(VALUE(B71),VALUE(B72),VALUE(B75))-RHtoGRL(VALUE(B66),VALUE(B67)/100,VALUE(B75)))/7000 -> 51.7995347 | N37: lb/hr
L38: Spectator Latent: | M38: =SUM(VALUE(G33)*250)/1060 -> 188.6792453 | N38: lb/hr
F39: Unoccupied Outside Air Volume | K39: Total @ | L39: =VALUE(B67) -> 60 | M39: =SUM(M33:M38) -> 644.8174359 | N39: lb/hr | T39: unocc grns | U39: =RHtoGRL(G24,T42,M21) -> 89.8322439
F40: Outside Air | G40: 0 | T40: occup grns | U40: =RHtoGRL(G24,T43,M21) -> 108.2453777
A41: OUTPUTS | T41: Average | U41: =RHtoGRL(G24,T44,M21) -> 99.01977582
A42: DESC | B42: VALUE | F42: ASHRAE 62.1 Calculated Min Code Ventilation Air | T42: =G25/100 -> 0.5
A43: Pool #1 Type | B43: =+E11 -> Public (School/YMCA) | F43: Design Pool & Deck | G43: ='ASHRAE OA Calc'!B16 -> 5782.2 | H43: CFM | T43: =G26/100 -> 0.6
A44: Pool #1 Temp (°F) | B44: =+G11 -> 9075 | F44: Design Spectator | G44: ='ASHRAE OA Calc'!B17 -> 6522 | H44: CFM | T44: =SUM(T42+T43)/2 -> 0.55 | U44: average RH
A45: Pool #1 Area (sq. ft.) | B45: =+G12 -> 82
A46: Pool #2 Type | B46: =+E14 -> Public (School/YMCA)
A47: Pool #2 Temp (°F) | B47: =+G14 -> 0
A48: Pool #2 Area (sq. ft.) | B48: =+G15 -> 82
A49: Pool #3 Type | B49: =+E17 -> Spa/Whirlpool
A50: Pool #3 Temp (°F) | B50: =+G17 -> 0
A51: Pool #3 Area (sq. ft.) | B51: =+G18 -> 104
A52: Room Volume (cu ft) | B52: =+G20 -> 1000000
A53: Gross Room Floor and Pool Area (sq. ft.) | B53: =+G30 -> 27125
A54: Total Pool & Wet Deck Area (sq. ft.) | B54: =+G31 -> 11135
A55: Spectator / Bleacher Area (sq. ft.) | B55: =+G32 -> 8700
A56: Total # of Spectators | B56: =+G33 -> 800
A58: Total Ventilation Rate | B58: =G37 -> 0.34692
A59: Outdoor Air Humidity Ratio (gr/lbs.) | B59: =M15 -> 107.374463
A60: Pool and Deck Outdoor Air (Unocc) | B60: =M27 -> 0
A62: Spectator Latent Load (Occ) | B62: =M38 -> 188.6792453
A63: Total Latent Load (Unocc) | B63: =M29 -> 232.3
A64: Total Latent Load (Occ) | B64: =M39 -> 644.8174359
A66: Zone Air Design Dry Bulb Temperature (°F) | B66: =+G24 -> 84
A67: Zone Air Design Occupied RH (%) | B67: =+G26 -> 60
A68: Zone Air Design Unoccupied RH (%) | B68: =+G25 -> 50
A69: Sensible Cooling Dry Bulb (°F) | B69: =+M13 -> 89.6
A70: Sensible Cooling Wet Bulb (°F) | B70: =+M14 -> 74.4
A71: Dehum Dry Bulb (°F) | B71: =M16 -> 80.4
A72: Dehum Wet Bulb (°F) | B72: =M17 -> 74.10030365
A73: Condenser Ambient Temperature (°F) | B73: =+W19 -> 95
A74: Heating Dry Bulb (°F) | B74: =+M20 -> -1
A75: Altitude (ft.) | B75: =+M21 -> 670
A76: Unoccupied OA Option | B76: =+VLOOKUP(F40,T35:U36,2,FALSE) -> Y
A77: Unoccupied OA CFM | B77: =+G40 -> 0

Sheet EntryData
H2: Enerlyzer Data Entry | CA2: =SelectAire!GC22 -> 3 | CB2: Indicates Auto or manual fan motor HP for the Selectaire Units
CA3: =SAPlus!FR33 -> 2 | CB3: Indicates Auto or manual fan motor HP for the SAPlus Units
D4: Project Name: | BI4: Fuels by State 2019 | CA4: =Standard!CJ38 -> 1 | CB4: Indicates Auto or manual fan motor HP for the Standard Units
D5: ='Pool Entry'!F4 -> Enter Pool Name | N5: This Section Must Be Completed for All Units | V5: This Section Must Be Completed for All Units | AC5: Complete This Section if a Source Capture or Evacuator System is to be Included | AL5: =IF(CG24="Selected","Complete This Section","This Information is Not Required for the Units Your Have Selected") -> Complete This Section | CA5: ='Dehum with Exchanger'!DV231 -> 2 | CB5: Indicates Auto or manual fan motor HP for the Dehum with Exchanger Units
E6: Indoor Pool Design Information | CP6: =CC9 -> TRUE | CQ6: SA Plus
CP7: =CA9 -> FALSE | CQ7: SelectAire No Exhaust
C8: Indoor Air Design Details | I8: Unoccupied Pool Evaporation | O8: Fuel Type & Costs for Space Auxiliary Heating | W8: Sensible Cooling Load | AD8: RecoverAire Low Exhaust | AM8: Estimated Push Pull CFM Required | CA8: Basic | CB8: SelectAire | CC8: SA/Plus | CD8: Two Fan | CE8: Basic/ Energy | CF8: CC/PP | CG8: CC/Energy | CH8: Variable PP | CI8: VPP/ Energy | CP8: =CB9 -> TRUE | CQ8: SelectAire with Exhaust
C9: Room Design Temp. | D9: =+'Pool Entry'!B66 -> 84 | E9: °F | I9: 1st Pool: | J9: =+'Pool Entry'!B7 -> 232.3 | K9: lb/hr | BR9: 1 | BS9: cell link for Aux Heat | BW9: Aux Heat Values | CA9: FALSE | CB9: TRUE | CC9: TRUE | CD9: FALSE | CE9: FALSE | CF9: FALSE | CG9: FALSE | CH9: FALSE | CI9: TRUE | CP9: TRUE | CQ9: Dehum. w/ Heat Pipe | CT9: Not available
C10: RH Design Unoccupied | D10: =+'Pool Entry'!B68 -> 50 | E10: % | I10: 2nd Pool: | J10: =+'Pool Entry'!B11 -> 0 | K10: lb/hr | P10: =+CONCATENATE(BR12, " Auxilary Heat fuel source") -> Nat Gas Auxilary Heat fuel source | Q10: 1 | R10: =+BT12 -> $/therm | BR10: 1 | BS10: Cell Link for Pool Heater | BW10: Cost/BTU - Output | CA10: =IF(CA9=TRUE,1,2) -> 2 | CB10: 1 | CC10: 1 | CD10: 2 | CE10: 2 | CF10: =IF(CF9=TRUE,1,2) -> 2 | CG10: =IF(CG9=TRUE,1,2) -> 2 | CH10: =IF(CH9=TRUE,1,2) -> 2 | CI10: =IF(CI9=TRUE,1,2) -> 1 | CP10: FALSE | CQ10: Dehum w/glycol exch
C11: RH Design Occupied | D11: =+'Pool Entry'!B67 -> 60 | E11: % | I11: 3rd Pool: | J11: =+'Pool Entry'!B13 -> 0 | K11: lb/hr | P11: Fuel Efficiency (If Electric Enter 100%) | Q11: 0.8 | AF11: ASHRAE 62.1 Min. OSA w/Spector Load: | AG11: =D19+D21 -> 5782 | AN11: Outdoor DB | AO11: 76 | BQ11: Selected Pool Heating Fuel | BR11: =VLOOKUP($BR$10,$BQ$15:$BU$19,2) -> Nat Gas | BS11: =VLOOKUP($BR$10,$BQ$15:$BU$19,3) -> 1 | BT11: =VLOOKUP($BR$10,$BQ$15:$BU$19,4) -> $/therm | BU11: =VLOOKUP($BR$10,$BQ$15:$BU$19,5) -> 100000 | BW11: =VLOOKUP(BR10,$BV24:BW28,2)/Q16 -> 1.25e-05 | CB11: 1= System Selected | CD11: Column Number | CP11: =CD9 -> FALSE | CQ11: Two Fan Economizer Dehumidifier
C12: Occupied Hours per Day | D12: =+'Pool Entry'!G27 -> 15 | E12: hrs | I12: Pool & Deck Outside Air: | J12: =+'Pool Entry'!B60 -> 0 | K12: lb/hr | P12: Compressor & Fan Operation | Q12: 0.1 | R12: $ / kw | W12: 300000 | X12: Natatorium Sensible Gain in BTUH | AF12: Max Recommended Low Exhaust for SA Unit: | AG12: =J42*0.3 -> 15840 | AN12: Outdoor %RH | AO12: 0.68 | BQ12: Selected Auxiliary Heat Fuel | BR12: =VLOOKUP($BR$9,$BQ$15:$BU$19,2) -> Nat Gas | BS12: =VLOOKUP($BR$9,$BQ$15:$BU$19,3) -> 1 | BT12: =VLOOKUP($BR$9,$BQ$15:$BU$19,4) -> $/therm | BU12: =VLOOKUP($BR$9,$BQ$15:$BU$19,5) -> 100000 | BW12: =VLOOKUP($BR$9,BQ15:BW19,7)/Q11 -> 1.25e-05 | CB12: Column1 | CC12: Column2 | CD12: Column3 | CF12: Column 1# | CG12: =IF(CB13=1,CD13,0) -> 9 | CH12: =IF(OR(OR(CG12=4,CG12=6,CG12=11)),1,2) -> 2 | CI12: Used for IF statement in Comparison Table | CP12: =CF9 -> FALSE | CQ12: Push Pull
C13: Outside Air Design Details | I13: Total Unoccupied Load | J13: =SUM(J9:J12) -> 232.3 | K13: lb/hr | O13: Fuel Type & Costs for Auxiliary Pool Heating | W13: 300000 | X13: Natatorium Heat Loss in BTUH | AF13: Max Recommended Low Exhaust for SAPlus Unit: | AG13: =P42*0.3*O33 -> 18000 | AN13: Outdoor WB | AO13: =WETBULBL(AO11,AO14,CityData_Total!A10) -> 68.24473572 | BS13: Conv to | BU13: Input | BW13: Cost/BTU - Input | CB13: =IF(CC$9=TRUE,1,0) -> 1 | CC13: SA Plus | CD13: 9 | CF13: Column 2# | CG13: =IF(CB14=1,CD14,0) -> 8 | CH13: =IF(OR(OR(CG13=4,CG13=6,CG13=11)),1,2) -> 2 | CI13: Used for IF statement in Comparison Table | CP13: FALSE | CQ13: Cont Push Pull w/Glycol Exch | DA13: Manual Entry for Push Pull Exchanger Efficiency | DF13: 0.5
C14: =City_Pulldown!T4 -> Milwaukee, WISCONSIN | I14: Occupied Pool Evaporation | W14: =BuildingLoad!B121 -> 1426762.5 | X14: Program Estimated Sensible Cooling | AF14: Largest Pool Heat Required: | AG14: ='RecoverAire Data'!B44 -> 460.511744 | AN14: Outdoor Grains | AO14: =RHtoGRL(AO11,AO12,CityData_Total!A10) -> 94.12455448 | BR14: Aux Heat Table | BS14: $/therm | BU14: BTUH | CB14: =IF(CB$9=TRUE,1,0) -> 1 | CC14: Selectaire | CD14: 8 | CF14: Column 3# | CG14: =IF(CB15=1,CD15,0) -> 6 | CH14: 1 | CI14: Used for IF statement in Comparison Table | CP14: TRUE | CQ14: Cont Push Pull w/Air Exch | DA14: Program Automatic Calculation Values
C15: 1% Dehum Summer Dry Bulb | D15: =+'Pool Entry'!B71 -> 80.4 | E15: °F | I15: 1st Pool: | J15: =+'Pool Entry'!B10 -> 358.4 | K15: lb/hr | P15: =+CONCATENATE(BR11, " Pool Heater fuel source") -> Nat Gas Pool Heater fuel source | Q15: 1 | R15: =+BT11 -> $/therm | W15: =BuildingLoad!B111 -> 1555555.556 | X15: Program Estimated Heat Loss | AE15: Selected Option: | AF15: =BR68 -> Evacuator Not In Design | AN15: Indoor RH Average | AO15: =SUM((D10+D11)/100)/2 -> 0.55 | BQ15: 1 | BR15: Nat Gas | BS15: 1 | BT15: $/therm | BU15: 100000 | BV15: 1 | BW15: =IF($BR$9=1,Q10/BU15,"Not Selected") -> 1e-05 | CB15: =IF(CI$9=TRUE,1,0) -> 1 | CC15: VPP W/ER | CD15: 6 | CF15: Column 4# | CG15: =IF(CB16=1,CD16,0) -> 0 | CH15: 2 | CI15: Used for IF statement in Comparison Table | CP15: =CH9 -> FALSE | CQ15: VarPush Pull | DA15: % Recovered for Contant Volume Push Pull | DF15: =PushPull!Q9 -> 0.4986760677
C16: 1% Dehum Summer Wet Bulb | D16: =+'Pool Entry'!B72 -> 74.10030365 | E16: °F | I16: 2nd Pool: | J16: =+'Pool Entry'!B12 -> 0 | K16: lb/hr | P16: Fuel Efficiency (If Electric Enter 100%) | Q16: 0.8 | W16: =+'Pool Entry'!M13 -> 89.6 | X16: Outside Design Temp Cooling | AF16: 1 | AG16: Number of Units | AN16: Indoor Grains | AO16: =RHtoGRL(D9,AO15,CityData_Total!A10) -> 99.01977582 | BQ16: 2 | BR16: Electric | BS16: 23.4 | BT16: $/kW | BU16: 3412 | BV16: 2 | BW16: =IF($BR$9=2,Q10/BU16,"Not Selected") -> Not Selected | CB16: =IF($CA$9=TRUE,1,0) -> 0 | CC16: Basic Dehumidifier | CD16: 7 | CP16: FALSE | CQ16: VarPush Pull w/Air Exch | DA16: % Recovered for Variable Volume Push Pull | DF16: =PushPull!AE9 -> 0.5032159115
C17: Heating Dry Bulb | D17: =+'Pool Entry'!B74 -> -1 | E17: °F | I17: 3rd Pool: | J17: =+'Pool Entry'!B14 -> 0 | K17: lb/hr | P17: Makeup Water Entering Temperature | Q17: 55 | W17: =+'Pool Entry'!M20 -> -1 | X17: Outside Design Temp Heating | AN17: Estimate CFM | AO17: =SUM((J21*1555)/(AO16-AO14)) -> 204830.5978 | BQ17: 3 | BR17: Propane | BS17: 1.09 | BT17: $/gal | BU17: 91600 | BV17: 3 | BW17: =IF($BR$9=3,$Q$10/BU17,"Not Selected") -> Not Selected | CB17: =IF(CE$9=TRUE,1,0) -> 0 | CC17: Basic W/ER | CD17: 11 | CP17: =CP13 -> FALSE | CQ17: Varpush pull w/glycol exch | CV17: =IF(CP22="Select Only One","<<< Select Only One >>>","") ->  | DA17: % Recovered for HeatPipe | DF17: =Energy_Calcs!S211 -> 0
C18: Elevation | D18: =+'Pool Entry'!B75 -> 670 | E18: ft | I18: Pool & Deck Outside Air: | J18: =+'Pool Entry'!M36 -> 45.93865592 | K18: lb/hr | W18: =+'Pool Entry'!G30 -> 27125 | X18: Room Square Feet | AE18: Selected Model: | AF18: ='RecoverAire Data'!B54 -> None | AN18: Desired Room Air Recirculations | AO18: 6 | AP18: =SUM((AO18*'Pool Entry'!G20)/60) -> 100000 | AQ18: cfm req'd | BQ18: 4 | BR18: #2 Oil | BS18: 0.714 | BT18: $/gal | BU18: 139000 | BV18: 4 | BW18: =IF($BR$9=4,$Q$10/BU18,"Not Selected") -> Not Selected | CB18: =IF(CF$9=TRUE,1,0) -> 0 | CC18: CCPP | CD18: 3
C19: Code Ventilation - Occupied | D19: =+'Pool Entry'!B22 -> 5782 | E19: cfm | I19: Spectator Outside Air: | J19: =+'Pool Entry'!M37 -> 51.7995347 | K19: lb/hr | N19: ='Fuel Price by State'!E9 -> Based on the Selected Auxiliary Heat Fuel of Nat Gas the SA Heat Pump Operation cost is is LESS than fossil fuel | AF19: ='RecoverAire Data'!B55 -> 0 | AG19: THR MBH | BQ19: 5 | BR19: #6 Oil | BS19: 0.66 | BT19: $/gal | BU19: 152000 | BV19: 5 | BW19: =IF($BR$9=5,$Q$10/BU19,"Not Selected") -> Not Selected | CB19: =IF(CG$9=TRUE,1,0) -> 0 | CC19: CCPP W/ER | CD19: 4 | CV19: =IF(CP24="Select Only One","<<< Select Only One >>>","") -> 
C20: Code Ventilation - Unoccupied | D20: =+'Pool Entry'!B77 -> 0 | E20: cfm | I20: Spectator Latent: | J20: =+'Pool Entry'!M38 -> 188.6792453 | K20: lb/hr | AF20: ='RecoverAire Data'!B57 -> 0 | AG20: Low CFM | AM20: Note: It is recommended that the system CFM | CB20: =IF(CD$9=TRUE,1,0) -> 0 | CC20: Two Fan | CD20: 10
C21: Code Ventilation Spectator Area | D21: =+'Pool Entry'!G36 -> 0 | E21: cfm | I21: Total Occupied Load | J21: =SUM(J15:J20) -> 644.8174359 | K21: lb/hr | N21: =IF(O33=0,"",'Fuel Price by State'!E10) -> Based on the Selected Auxiliary Heat Fuel of Nat Gas the SAPlus Heat Pump Operation cost is is LESS than fossil fuel | AF21: ='RecoverAire Data'!B58 -> 0 | AG21: High CFM | AM21: Should Not Exceed 12 Room Air Recirculations | BS21: 1 | BW21: Pool Heat Values | CB21: =IF(CH$9=TRUE,1,0) -> 0 | CC21: VPP | CD21: 5 | CQ21: Error Combination Alerts
BS22: Conversion Value for Calculation | BW22: Cost/BTU - Input | CP22: =IF(AND(CP14=TRUE,CP13=TRUE),"Select Only One") -> FALSE | CQ22: Cont. Push Pull Error Calc
B23: Select Up To Three (3) System Types to Compare Operational Costs | CB23: =SUM(CB13:CB21) -> 3 | CC23: =IF(CB23>3,"To Many Push Pull System Types Selected","") ->  | CP23: =IF(AND(CP16=TRUE,CP17=TRUE),"Select Only One") -> FALSE | CQ23: Var. Push Pull Error Calc
B24: Click On the Sort Button After Your Have Made Your Three (3) Selections | V24: Select Only ONE Push Pull System | AN24: Continuous Push Pull: | AO24: =O26 -> Not Selected | BV24: 1 | BW24: =IF($BR$10=1,$Q$15/BU15,"Not Selected") -> 1e-05 | CG24: =IF(OR(OR(OR(CF9=TRUE,CG9=TRUE,CH9=TRUE,CI9=TRUE))),"Selected","Not Selected") -> Selected | CP24: =IF(AND(CP9=TRUE,CP10=TRUE),"Select Only One") -> FALSE | CQ24: Dehum glycol/HP Error Calc
V25: =CC23 ->  | AN25: Continuous Push Pull System w/Exchanger: | AO25: =Q26 -> Not Selected | BV25: 2 | BW25: =IF($BR$10=2,$Q$15/BU16,"Not Selected") -> Not Selected | CB25: Sensible Cooling Links | CG25: Used for Conditional Format cells AK29 to AO29
B26: =IF(CA9=TRUE,"Selected","Not Selected") -> Not Selected | D26: =IF(CB9=TRUE,"Selected","Not Selected") -> Selected | G26: =IF(CC9=TRUE,"Selected","Not Selected") -> Selected | I26: =IF(CD9=TRUE,"Selected","Not Selected") -> Not Selected | K26: =IF(CE9=TRUE,"Selected","Not Selected") -> Not Selected | O26: =IF(CF9=TRUE,"Selected","Not Selected") -> Not Selected | Q26: =IF(CG9=TRUE,"Selected","Not Selected") -> Not Selected | V26: =IF(CH9=TRUE,"Selected","Not Selected") -> Not Selected | X26: =IF(CI9=TRUE,"Selected","Not Selected") -> Selected | AN26: Variable Push Pull: | AO26: =V26 -> Not Selected | BV26: 3 | BW26: =IF($BR$10=3,$Q$15/BU17,"Not Selected") -> Not Selected | CB26: 2 | CC26: Selected Option | CP26: TRUE | CQ26: ADD Sensible Cooling Costs to DX Systems
AN27: Variable Push Pull System w/Exchanger: | AO27: =X26 -> Selected | BV27: 4 | BW27: =IF($BR$10=4,$Q$15/BU18,"Not Selected") -> Not Selected | CB27: Enter Engineer Supplied Values
C28: =IF(B26="Selected","","Dehumidifier w/Remote Exhaust") -> Dehumidifier w/Remote Exhaust | I28: =IF(D26="Selected","","Standard SA Series w/Exhaust") ->  | O28: =IF(G26="Selected"," ","Desert Aire SAPlus Series") ->  | V28: =IF(I26="Selected","","Two Fan Economizer Unit(s)") -> Two Fan Economizer Unit(s) | AA28: =IF(K26="Selected","","Dehumidifier with Heat Pipe or Glycol OSA Exhaust Energy Recovery") -> Dehumidifier with Heat Pipe or Glycol OSA Exhaust Energy Recovery | AK28: =IF(OR(OR(OR(O26="Selected",Q26="Selected",V26="Selected",X26="Selected"))),"","100% Outside Air Push Pull Systems") ->  | BV28: 5 | BW28: =IF($BR$10=5,$Q$15/BU19,"Not Selected") -> Not Selected | CB28: Use Program Estimated Values
C29: =IF(B26="Selected","Dehumidifier w/Remote Exhaust","This Equipment Type Not Selected") -> This Equipment Type Not Selected | I29: =IF(D26="Selected","Standard SA Series w/Exhaust","This Equipment Type Not Selected") -> Standard SA Series w/Exhaust | O29: =IF(G26="Selected"," Desert Aire SAPlus Series"," This Equipment Type Not Selected") -> Desert Aire SAPlus Series | V29: =IF(I26="Selected","Two Fan Economizer Unit(s)","This Equipment Type Not Selected") -> This Equipment Type Not Selected | AB29: =IF(K26="Selected","Dehumidifier with Heat Pipe or Glycol OSA Exhaust Energy Recovery","This Equipment Type Not Selected") -> This Equipment Type Not Selected | AK29: =IF(OR(OR(OR(O26="Selected",Q26="Selected",V26="Selected",X26="Selected"))),"100% Outside Air Push Pull Systems","This Equipment Type Not Selected") -> 100% Outside Air Push Pull Systems
BP30: Standard Dehum | BR30: No Pool Water Condenser
AJ31: 2 | AK31: Number of Units | BR31: With Pool Water Condenser Circuit A
C32: =+'Performance TBL_(Reheat)'!B240 -> 60 Ton | D32: Selected Unit | I32: =+'Performance TBL_(Reheat)'!E240 -> SA60 | J32: Selected Unit | O32: =+'Performance TBL_(Reheat)'!H240 -> SAPlus70 | P32: Selected Unit | V32: ='Two Fan Econo'!DE52 -> 60 | W32: Selected Unit | AM32: =IF(OR(CQ57=1,CQ57=2),"","Standard Unit CFM Each") -> Standard Unit CFM Each | AN32: =IF(OR(CQ57=1,CQ57=2),"",'PushPull w Compr'!DL11) -> 32000 | AO32: =IF(OR(CQ57=1,CQ57=2),"",SUM(AN32*AJ31*60)/'Pool Entry'!G20) -> 3.84 | AP32: =IF(OR(CQ57=1,CQ57=2),"","Air Circ's") -> Air Circ's | BR32: With Pool Water Condenser Circuit B | CQ32: Two Fan Econo Motor Type
C33: 1 | D33: Number of Units | I33: 2 | J33: Number of Units | O33: 2 | P33: Number of Units | V33: 1 | W33: Number of Units | AM33: =IF(OR(CQ57=3,CQ57=4),"","Manually Enter Unit CFM Each") ->  | AN33: 12500 | AO33: =IF(OR(CQ57=1,CQ57=2),SUM(AN33*AJ31*60)/'Pool Entry'!G20,"") ->  | AP33: =IF(OR(CQ57=1,CQ57=2),"Air Circ's","") ->  | BR33: With Pool Water Condenser Circuit A & B | CQ33: 1 | CR33: Selected Option
C34: =+IF(C33>1,"Total of Dehumidifiers Performance Data","Dehumidifier Performance Data") -> Dehumidifier Performance Data | I34: =+IF(I33>1,"Total of Dehumidifiers Performance Data","Dehumidifier Performance Data") -> Total of Dehumidifiers Performance Data | O34: =+IF(O33>1,"Total of Dehumidifiers Performance Data","Dehumidifier Performance Data") -> Total of Dehumidifiers Performance Data | V34: =+IF(V33>1,"Total of Dehumidifiers Performance Data","Dehumidifier Performance Data") -> Dehumidifier Performance Data | AC34: ='Dehum with Exchanger'!B10 -> 80 | AD34: Selected Unit | AM34: Automatic Selction | AN34: HP | AO34: kW | BR34: 2 | CQ34: Use Standard Fan HP
C35: Total Capacity | D35: =+'Performance TBL_(Reheat)'!B244*C33 -> 770.3 | E35: MBH | I35: Total Capacity | J35: =+'Performance TBL_(Reheat)'!E244*I33 -> 1540.5376 | K35: MBH | O35: Total Capacity | P35: =+'Performance TBL_(Reheat)'!H244*O33 -> 1661.6 | Q35: MBH | W35: Unit CFM Each: | X35: ='Two Fan Econo'!DJ52 -> 24000 | AC35: 2 | AD35: Number of Units | AM35: System Supply Fan | AN35: =CM49 -> 40 | AO35: =AN35*0.746 -> 29.84 | BQ35: Selected Option | BR35: =IF(BR34=1,BR30,IF(BR34=2,BR31,IF(BR34=3,BF32,BR33))) -> With Pool Water Condenser Circuit A | CH35: 2 | CI35: Link | CQ35: Use Custom Entered Fan HP
C36: Sensible Capacity | D36: =+'Performance TBL_(Reheat)'!B245*C33 -> 396.5 | E36: MBH | I36: Sensible Capacity | J36: =+'Performance TBL_(Reheat)'!E245*I33 -> 793.0131238 | K36: MBH | O36: Sensible Capacity | P36: =+'Performance TBL_(Reheat)'!H245*O33 -> 785.6 | Q36: MBH | W36: Total BTUH Cooling Each Unit: | X36: ='Two Fan Econo'!DH52 -> 719000 | AM36: System Exhaust Fan | AN36: =CM50 -> 20 | AO36: =AN36*0.746 -> 14.92 | BR36: Pool Heater SA
W37: Sensible BTUH Cooling Each Unit: | X37: ='Two Fan Econo'!DI52 -> 369200 | AB37: =+IF(AC35>1,"Total of Dehumidifiers Performance Data","Dehumidifier Performance Data") -> Total of Dehumidifiers Performance Data | BR37: No Pool Water Condenser | CH37: Design Eff Exchanger
C38: THR / Water Htg Capacity | D38: =+'Performance TBL_(Reheat)'!B249*C33 -> 972.1 | E38: MBH Total | I38: THR / Water Htg Capacity | J38: =+'Performance TBL_(Reheat)'!E249*I33 -> 1944.12124 | K38: MBH Total | O38: THR / Water Htg Capacity | P38: =+'Performance TBL_(Reheat)'!H249*O33 -> 1971.6 | Q38: MBH Total | AC38: Total Capacity | AD38: ='Dehum with Exchanger'!DM11*AC35/1000 -> 2132.58 | AE38: MBH | BR38: With Pool Water Condenser Circuit A | CH38: 1 | CI38: 0.4
C39: Cir A Water Htg Capacity | D39: =+'Performance TBL_(Reheat)'!B250*C33 -> 486 | E39: MBH Total | I39: Cir A Water Htg Capacity | J39: =+'Performance TBL_(Reheat)'!E250*I33 -> 972.06062 | K39: MBH Total | O39: Cir A Water Htg Capacity | P39: =+'Performance TBL_(Reheat)'!H250*O33 -> 1009.6 | Q39: MBH Total | AC39: Sensible Capacity | AD39: ='Dehum with Exchanger'!DK11*AC35/1000 -> 1149.78 | AE39: MBH | AM39: =IF(CP13=TRUE,"Glycol Exchanger Loop Pump","") ->  | AN39: =IF(CP13=FALSE,"",+VLOOKUP($AN$33,$CH$66:$CM$82,6)) ->  | AO39: =IF(CP13=FALSE,"",AN39*0.746) ->  | BR39: With Pool Water Condenser Circuit B | CH39: 2 | CI39: 0.5
C40: Cir BWater Htg Capacity | D40: =+'Performance TBL_(Reheat)'!B251*C33 -> 486 | E40: MBH Total | I40: Cir BWater Htg Capacity | J40: =+'Performance TBL_(Reheat)'!E251*I33 -> 972.06062 | K40: MBH Total | O40: Cir BWater Htg Capacity | P40: =+'Performance TBL_(Reheat)'!H251*O33 -> 1069 | Q40: MBH Total | AC40: THR / Water Htg Capacity | AD40: =SUM(AD41+AD42)*AC35/1000 -> 5.08048 | AE40: MBH Total | AN40: HP | AO40: kW | BR40: With Pool Water Condenser Circuit A & B | CH40: 3 | CI40: 0.6
V41: =IF(CQ33=1,"Supply Fan","") -> Supply Fan | W41: =IF(CQ33=1,'Two Fan Econo'!DN52,"") -> 25 | X41: =IF(CQ33=1,'Two Fan Econo'!DO52,"") -> 18.65 | AC41: Cir A Water Htg Capacity | AD41: ='Dehum with Exchanger'!DO11*AC35/1000 -> 1270.12 | AE41: MBH Total | AM41: System Supply Fan | AN41: 40 | AO41: =AN41*0.746 -> 29.84 | BR41: 2 | CH41: 4 | CI41: 0.7 | CQ41: Economizer Option for the SAPlus Series
C42: =+IF(C33>1,"Total S/A Volume","Unit Air Volume") -> Unit Air Volume | D42: =+'Performance TBL_(Reheat)'!B253*C33 -> 26400 | E42: cfm | I42: =+IF(I33>1,"Total S/A Volume","Unit Air Volume") -> Total S/A Volume | J42: =+'Performance TBL_(Reheat)'!E253*I33 -> 52800 | K42: cfm | O42: =+IF(O33>1,"Total S/A Volume","Unit Air Volume") -> Total S/A Volume | P42: 30000 | Q42: cfm | V42: =IF(CQ33=1,"Exhaust/Return Fan","") -> Exhaust/Return Fan | W42: =IF(CQ33=1,'Two Fan Econo'!DP52,"") -> 30 | X42: =IF(CQ33=1,'Two Fan Econo'!DQ52,"") -> 22.38 | AC42: Cir BWater Htg Capacity | AD42: ='Dehum with Exchanger'!DP11*AC35/1000 -> 1270.12 | AE42: MBH Total | AM42: System Exhaust Fan | AN42: 20 | AO42: =AN42*0.746 -> 14.92 | BQ42: Selected Option | BR42: =IF(BR41=1,BR37,IF(BR41=2,BR38,IF(BR41=3,BF39,BR40))) -> With Pool Water Condenser Circuit A | CQ42: Standard SAPlus Operation
C43: =+IF(C33>1,"Maximum Total OSA","Maximum Unit OSA") -> Maximum Unit OSA | D43: =+'Performance TBL_(Reheat)'!B254*C33 -> 13200 | E43: cfm | I43: =+IF(I33>1,"Maximum Total OSA","Maximum Unit OSA") -> Maximum Total OSA | J43: =+'Performance TBL_(Reheat)'!E254*I33 -> 26400 | K43: cfm | O43: =+IF(O33>1,"Maximum Total OSA","Maximum Unit OSA") -> Maximum Total OSA | P43: =+P42*0.5 -> 15000 | Q43: cfm | AC43: =+IF(AC35>1,"Total S/A Volume","Unit Air Volume") -> Total S/A Volume | AD43: ='Dehum with Exchanger'!DQ11*AC35 -> 64000 | AE43: CFM | BR43: Pool Heater SAPlus | CH43: Eff Selected: | CI43: =VLOOKUP(CH35,CH38:CI41,2) -> 0.5 | CQ43: SA Operation with 50% OSA Economizer
C44: Air Rotations | D44: =SUM(D42*60/'Pool Entry'!$G$20) -> 1.584 | I44: Air Rotations | J44: =SUM(J42*60/'Pool Entry'!$G$20) -> 3.168 | O44: Air Rotations | P44: =SUM(P42*60/'Pool Entry'!$G$20) -> 1.8 | AC44: =+IF(AC35>1,"Maximum Total OSA","Maximum Unit OSA") -> Maximum Total OSA | AD44: ='Dehum with Exchanger'!DR11*AC35 -> 25600 | AE44: CFM | BR44: No Pool Water Condenser | CQ44: SA Operation with Code OSA Economizer
C45: Moisture Removal Capacity (MRC) | I45: Moisture Removal Capacity (MRC) | O45: Moisture Removal Capacity (MRC) | V45: Manual Entry of Fan HP | AC45: =IF(AN35+AN38>AD44,"Code Vent CFM is More Than Unit Can Supply","") ->  | BR45: With Pool Water Condenser Circuit A | CK45: Transfer to Energy Calc tab | CQ45: Selected Option: | CR45: 1
C46: Unoccupied | D46: =+'Performance TBL_(Reheat)'!B241*C33 -> 281 | E46: LB/HR | I46: Unoccupied | J46: =+'Performance TBL_(Reheat)'!E241*I33 -> 562 | K46: LB/HR | O46: Unoccupied | P46: =+'Performance TBL_(Reheat)'!H241*O33 -> 638.5302591 | Q46: LB/HR | V46: Supply Fan | W46: 35 | X46: ='Two Fan Econo'!DS52 -> 26.11 | AC46: Moisture Removal Capacity (MRC) | BR46: With Pool Water Condenser Circuit B | CK46: Manual | CL46: w/compr | CM46: Selected CFM | CR46: =IF(CR45=1,"No Econo",IF(CR45=2,"50% Econo",IF(CR45=3,"Code OSA Econo"))) -> No Econo
C47: Occupied | D47: =+'Performance TBL_(Reheat)'!B242*C33 -> 353.9 | E47: LB/HR | I47: Occupied | J47: =+'Performance TBL_(Reheat)'!E242*I33 -> 707.8830267 | K47: LB/HR | O47: Occupied | P47: =+'Performance TBL_(Reheat)'!H242*O33 -> 826.381767 | Q47: LB/HR | V47: Exhaust/Return Fan | W47: 31.3 | X47: ='Two Fan Econo'!DU52 -> 23.3498 | AC47: Unoccupied | AD47: ='Dehum with Exchanger'!DJ11*AC35 -> 780 | AE47: LB/HR | AJ47: Select the Design Effectiveness of Heat Exchanger | BR47: With Pool Water Condenser Circuit A & B | CJ47: PUSHPull CFM | CK47: =AN33 -> 12500 | CL47: ='PushPull w Compr'!DL11 -> 32000 | CM47: =IF(OR(CQ57=1,CQ57=2),CK47,CL47) -> 32000 | CQ47: Economizer Option for the SA Series
AC48: Occupied | AD48: ='Dehum with Exchanger'!DI11*AC35 -> 936 | AE48: LB/HR | BR48: 3 | CQ48: Standard SA Operation
D49: =IF(Standard!$CJ$38=1,"HP","") -> HP | E49: =IF(Standard!$CJ$38=1,"kW","") -> kW | J49: =IF(OR(SelectAire!GC22=2,SelectAire!$GC$22=1),SelectAire!FY17,"") ->  | K49: =IF(OR(CA2=2,CA2=1),SelectAire!FZ17,"") ->  | P49: =IF(SAPlus!$FR$33=1,"BHP","") ->  | Q49: =IF(SAPlus!$FR$33=1,"kW","") ->  | AM49: Selection: | AN49: =+CI43 -> 0.5 | BQ49: Selected Option | BR49: =IF(BR48=1,BR44,IF(BR48=2,BR45,IF(BR48=3,BF46,BR47))) -> 0 | CJ49: Supply | CK49: =AN41 -> 40 | CL49: ='PushPull w Compr'!DS11 -> 40 | CM49: =IF(OR($CQ$57=3,$CQ$57=4),$CL49,$CK49) -> 40 | CQ49: SA Operation with 50% OSA Economizer
C50: =IF(Standard!$CJ$38=1,"Supply Blower Each Unit","") -> Supply Blower Each Unit | D50: =IF(Standard!$CJ$38=1,Standard!CJ9,"") -> 25 | E50: =IF(Standard!$CJ$38=1,D50*0.746,"") -> 18.65 | I50: =IF(OR(CA2=2,CA2=1),"SA Supply Blower Each","") ->  | J50: =IF(OR(CA2=2,CA2=1),SelectAire!FY18,"") ->  | K50: =IF(OR(CA2=2,CA2=1),J50*0.746,"") ->  | O50: =IF(SAPlus!$FR$33=1,"SAPlus Supply Blower Each Unit","") ->  | P50: =IF(SAPlus!$FR$33=1,SAPlus!FW18,"") ->  | Q50: =IF(SAPlus!$FR$33=1,P50*0.746,"") ->  | CJ50: Exhaust | CK50: =AN42 -> 20 | CL50: ='PushPull w Compr'!DT11 -> 20 | CM50: =IF(OR($CQ$57=3,$CQ$57=4),$CL50,$CK50) -> 20 | CQ50: SA Operation with Code OSA Economizer
C51: =IF(Standard!$CJ$38=1,"Remote Exhaust Blower Each Unit","") -> Remote Exhaust Blower Each Unit | D51: =IF(Standard!$CJ$38=1,Standard!CL9,"HP") -> 7.5 | E51: =IF(Standard!$CJ38=1,D51*0.746,"kW") -> 5.595 | I51: =IF(OR(CA2=2,$CA$2=1),"SA Exhaust Blower Each","") ->  | J51: =IF(OR(CA2=2,CA2=1),SelectAire!GB18,"HP") -> HP | K51: =IF(OR(CA2=2,CA2=1),J51*0.746,"kW") -> kW | O51: =IF(SAPlus!$FR$33=1,"SAPlus Exhaust Blower Each Unit","") ->  | P51: =IF(SAPlus!$FR$33=1,SAPlus!FZ18,"BHP") -> BHP | Q51: =IF(SAPlus!$FR$33=1,P51*0.746,"kW") -> kW | CQ51: Selected Option: | CR51: 1
C52: =IF(Standard!$CJ$38=2,"Supply Blower Each Unit","") ->  | D52: 15 | E52: =IF(Standard!$CJ38=2,D52*0.746,"") ->  | I52: =IF(CA2=3,"SA Supply Blower Each","") -> SA Supply Blower Each | J52: 25 | K52: =IF($CA$2=3,J52*0.746,"") -> 18.65 | O52: =IF(SAPlus!$FR$33=2,"SAPlus Supply Blower Each Unit","") -> SAPlus Supply Blower Each Unit | P52: 23.9 | Q52: =IF(SAPlus!$FR$33=2,P52*0.746,"") -> 17.8294 | AD52: =IF('Dehum with Exchanger'!$DV231=1,"HP","") ->  | AE52: =IF('Dehum with Exchanger'!$DV$231=1,"kW","") ->  | AJ52: =+IF(AL51>1,"Total of Dehumidifiers Performance Data","Dehumidifier Performance Data") -> Dehumidifier Performance Data | BR52: =IF(AND(BR34=1,BR41=1,BR48=1),1,2) -> 2 | CR52: =IF(CR51=1,"No Econo",IF(CR51=2,"50% Econo",IF(CR51=3,"Code OSA Econo"))) -> No Econo | CU52: 12
C53: =IF(Standard!$CJ$38=2,"Remote Exhaust Blower Each Unit","") ->  | D53: 2 | E53: =IF(Standard!$CJ38=2,D53*0.746,"") ->  | I53: =IF(CA2=3,"SA Exhaust Blower Each","") -> SA Exhaust Blower Each | J53: 10 | K53: =IF($CA$2=3,J53*0.746,"") -> 7.46 | O53: =IF(SAPlus!$FR$33=2,"SAPlus Exhaust Blower Each Unit","") -> SAPlus Exhaust Blower Each Unit | P53: 9 | Q53: =IF(SAPlus!$FR$33=2,P53*0.746,"") -> 6.714 | AC53: =IF('Dehum with Exchanger'!$DV$231=1,"Supply Blower Each Unit","") ->  | AD53: =IF('Dehum with Exchanger'!$DV$231=1,'Dehum with Exchanger'!DW228,"") ->  | AE53: =IF('Dehum with Exchanger'!$DV$231=1,AD53*0.746,"") ->  | AL53: =+'PushPull w Compr'!ED213 -> 80 | AM53: Selected Unit | BR53: If all selected 1 else 2 | CJ53: Glycol Exchanger Loop Pump | CK53: =IF($CQ$58=1,AN39,AN45) -> 0 | CL53: --- | CM53: ---
AC54: =IF('Dehum with Exchanger'!$DV$231=1,"Exhaust Blower Each Unit","") ->  | AD54: =IF('Dehum with Exchanger'!$DV$231=1,'Dehum with Exchanger'!DY228,"HP") -> HP | AE54: =IF('Dehum with Exchanger'!$DV231=1,AD54*0.746,"kW") -> kW
C55: Remote Condenser Ambient | D55: 95 | I55: Remote Condenser Ambient | J55: 95 | O55: Remote Condenser Ambient | P55: 95 | AC55: =IF('Dehum with Exchanger'!$DV$231=2,"Supply Blower Each Unit","") -> Supply Blower Each Unit | AD55: 40 | AE55: =IF('Dehum with Exchanger'!$DV$231=2,AD55*0.746,"") -> 29.84 | AM55: Unit CFM Each: | AN55: =+'PushPull w Compr'!DH228 -> 32000 | CQ55: Manually Entered CFM For All Types of Push Pull Systems
AC56: =IF('Dehum with Exchanger'!$DV$231=2,"Exhaust Blower Each Unit","") -> Exhaust Blower Each Unit | AD56: 20 | AE56: =IF('Dehum with Exchanger'!$DV$231=2,AD56*0.746,"") -> 14.92 | AM56: Total Project CFM | AN56: =AN55*AJ31 -> 64000 | CJ56: Variable Push Pull w/compr
I57: Desert Aire Economizer Sequence Activation | O57: Desert Aire Economizer Sequence Activation | AM57: Total MBH Cooling Each Unit: | AN57: =+'PushPull w Compr'!DI228/1000 -> 1066.29 | BR57: 1 | BS57: cell link | CJ57: System Intake Fan with Exchanger | CQ57: 4 | CR57: CFM & Motor HP Selection
C58: Pool Water Heating Condenser | I58: Select if the SA Ecomomizer Sequence is utilized | O58: Select if the SAPlus Ecomomizer Sequence is utilized | AM58: Sensible MBH Cooling Each Unit: | AN58: =+'PushPull w Compr'!DF228/1000 -> 574.89 | BR58: No Evacuator for Push Pull | CJ58: System Exhaust Fan with Exchanger | CQ58: 12 | CR58: With Compressor Selection
C59: Select if Dehumidifier's include Water Condenser | AC59: Fluid Cooler or Air Cooled | AM59: Total Unit(s) MBH | AN59: =AN57*AJ31 -> 2132.58 | BR59: Evacuator for Push Pull | CP59: 1 | CQ59: Manually Enter CFM-Standard Motor HP For All Types w/o Compr
C60: Select from Pulldown Below | AM60: Total Unit(s) Sensible MBH | AN60: =AN58*AJ31 -> 1149.78 | CP60: 2 | CQ60: Manually Enter CFM & Mtr HP For All Types w/o Compressor
J61: Calculated Economizer Low Temp CutOff: | K61: =SelectAire!B36 -> 47 | L61: °F | P61: Calculated Economizer Low Temp CutOff: | Q61: =SAPlus!B36 -> 47 | R61: °F | AC61: =IF('Dehum with Exchanger'!DQ231=1,"","Fluid cooler Pump HP") ->  | AD61: 1.5 | AE61: =IF('Dehum with Exchanger'!DQ231=1,"",AD61*0.746) ->  | BR61: 1 | BS61: cell link | CP61: 3 | CQ61: Standard CFM & Standard Mtr HP For Units w/Exchgr & Compr
BR62: No Evacuator for Economizer | CH62: Push Pull Ventilation System Fan HP Lookujp | CP62: 4 | CQ62: Standard CFM & Manual Mtr HP Entry For Units w/Exchgr & Compr
I63: Pool Water Heating Condenser | O63: Pool Water Heating Condenser | BR63: Evacuator for Economizer | CP63: 1 | CQ63: No Variable Push Pull with Compressor Selected
I64: Select if Dehumidifier's include Pool Water Heat Condenser | O64: Select if Dehumidifier's include Pool Water Heat Condenser | CK64: w/ Echanger | CM64: Glycol Pump | CP64: 2 | CQ64: =IF(OR(CQ57=2,CQ57=1),"Compressor Option Not Selected",'PushPull w Compr'!EB214) -> 12 Ton Unocc lb/hr: 49.5 Occ lb/hr: 59.4
I65: Select from Pulldown Below | O65: Select from Pulldown Below | AD65: Exchanger Efficiency | AE65: 0.5 | BR65: =IF(BR67=1,BR68,IF(BR67>1,CONCATENATE(BR68," Model:",BR66))) -> Evacuator Not In Design | CH65: Cfm | CI65: SA HP | CJ65: Ex HP | CK65: SA HP | CL65: Ex HP | CP65: 3 | CQ65: ='PushPull w Compr'!EB215 -> 15 Ton Unocc lb/hr: 78 Occ lb/hr: 93.6
BQ66: Model Selected | BR66: ='RecoverAire Data'!B54 -> None | CH66: 0 | CI66: 0 | CJ66: 0 | CK66: 0 | CL66: 0 | CM66: 0 | CP66: 4 | CQ66: ='PushPull w Compr'!EB216 -> 20 Ton Unocc lb/hr: 100.5 Occ lb/hr: 120.6
BR67: 1 | CH67: 0.1 | CI67: 0.25 | CJ67: 0.25 | CK67: 1 | CL67: 0.25 | CM67: 0.5 | CP67: 5 | CQ67: ='PushPull w Compr'!EB217 -> 25 Ton Unocc lb/hr: 124.5 Occ lb/hr: 149.4
C68: =IF(B26="Selected","","This Equipment Type Not Selected") -> This Equipment Type Not Selected | I68: =IF(D26="Selected","","This Equipment Type Not Selected") ->  | O68: =IF(G26="Selected",""," This Equipment Type Not Selected") ->  | V68: =IF(I26="Selected","","This Equipment Type Not Selected") -> This Equipment Type Not Selected | AB68: =IF(K26="Selected","","This Equipment Type Not Selected") -> This Equipment Type Not Selected | AK68: =IF(OR(OR(OR(O26="Selected",Q26="Selected",V26="Selected",X26="Selected"))),"","This Equipment Type Not Selected") ->  | BQ68: Pull down lookup | BR68: =VLOOKUP(BR67,BR69:BS71,2) -> Evacuator Not In Design | CH68: 600 | CI68: 0.5 | CJ68: 0.5 | CK68: 1 | CL68: 0.75 | CM68: 0.5 | CP68: 6 | CQ68: ='PushPull w Compr'!EB218 -> 30 Ton Unocc lb/hr: 150 Occ lb/hr: 180
BQ69: Evacuator Not In Design | BR69: 1 | BS69: Evacuator Not In Design | CH69: 2000 | CI69: 1 | CJ69: 0.5 | CK69: 2 | CL69: 1.5 | CM69: 0.5 | CP69: 7 | CQ69: ='PushPull w Compr'!EB219 -> 35 Ton Unocc lb/hr: 172.5 Occ lb/hr: 207
F70: =IF(OR(BR67=1,BR67=2),"",IF(OR(BR34>1,BR41>1,BR48>1),"RecoverAire Unit Selected - Unselect Pool Water Option on Unit(s)","")) ->  | BQ70: Evacuator - with No Recovery | BR70: 2 | BS70: Evacuator - with No Recovery | CH70: 3000 | CI70: 1.5 | CJ70: 0.75 | CK70: 3 | CL70: 3 | CM70: 0.5 | CP70: 8 | CQ70: ='PushPull w Compr'!EB220 -> 40 Ton Unocc lb/hr: 195 Occ lb/hr: 234
BQ71: Evacuator - with Recovery to Pool | BR71: 3 | BS71: Evacuator - with Recovery to Pool | CH71: 4000 | CI71: 3 | CJ71: 1.5 | CK71: 5 | CL71: 5 | CM71: 0.5 | CP71: 9 | CQ71: ='PushPull w Compr'!EB221 -> 45 Ton Unocc lb/hr: 217.5 Occ lb/hr: 261
CH72: 5400 | CI72: 4 | CJ72: 3 | CK72: 7.5 | CL72: 7.5 | CM72: 0.75 | CP72: 10 | CQ72: ='PushPull w Compr'!EB222 -> 50 Ton Unocc lb/hr: 240 Occ lb/hr: 288
CH73: 8000 | CI73: 7.5 | CJ73: 5 | CK73: 10 | CL73: 10 | CM73: 0.75 | CP73: 11 | CQ73: ='PushPull w Compr'!EB223 -> 60 Ton Unocc lb/hr: 292.5 Occ lb/hr: 351
CH74: 10900 | CI74: 10 | CJ74: 5 | CK74: 15 | CL74: 15 | CM74: 1 | CP74: 12 | CQ74: ='PushPull w Compr'!EB224 -> 80 Ton Unocc lb/hr: 390 Occ lb/hr: 468
CH75: 14500 | CI75: 15 | CJ75: 7.5 | CK75: 20 | CL75: 20 | CM75: 2 | CP75: 13 | CQ75: ='PushPull w Compr'!EB225 -> 100 Ton Unocc lb/hr: 480 Occ lb/hr: 576
CH76: 20000 | CI76: 20 | CJ76: 10 | CK76: 25 | CL76: 25 | CM76: 2
CH77: 30000 | CI77: 25 | CJ77: 10 | CK77: 25 | CL77: 25 | CM77: 2
CH78: 40000 | CI78: 30 | CJ78: 15 | CK78: 30 | CL78: 30 | CM78: 2
CH79: 50000 | CI79: 30 | CJ79: 15 | CK79: 30 | CL79: 30 | CM79: 2
CH80: 65000 | CI80: 40 | CJ80: 20 | CK80: 40 | CL80: 40 | CM80: 3
CH81: 85000 | CI81: 50 | CJ81: 30 | CK81: 50 | CL81: 50 | CM81: 5
CH82: 100000 | CI82: 60 | CJ82: 30 | CK82: 60 | CL82: 60 | CM82: 5
CI85: =+'PushPull w Compr'!EB212 -> 11 | CJ85: Push Pull w/ Compr Selection
CI86: 1 thru 12 tonnage
CI87: 13 = No compressor selected
AC132: 1

Sheet Comparison
C2: Project Name: | D2: ='Pool Entry'!F4 -> Enter Pool Name | F2: Date:
C3: Weather Data Location: | D3: =City_Pulldown!T4 -> Milwaukee, WISCONSIN | F3: ='Pool Entry'!M3 -> 2022-01-18T09:54:04.340 | CY3: =EntryData!BR67 -> 1 | CZ3: Used for conditional format for the evacuator below
F4: Rev #:
C5: Unit Tag Number: | D5: ='Pool Entry'!F5 -> Enter Tag # | F5: ='Pool Entry'!M5 -> 2022-01A
A7: 1 | C7: Type of System | D7: =INDEX(Energy_Calcs!$B$7:$N$68,A7,EntryData!CG12) -> SAPlus Standard Operation, Exhaust Energy Recovery, with Code OSA | E7: =IF(EntryData!CB14=1,INDEX(Energy_Calcs!$B$7:$N$68,A7,EntryData!CG13),"") -> SelectAire, Standard Operation, Exhaust Energy Recovery, with Code OSA | F7: =IF(EntryData!CB15=1,INDEX(Energy_Calcs!$B$7:$N$68,A7,EntryData!CG14),"") -> VarPush Pull w/ Exch & Compr
A8: =A7+1 -> 2 | C8: =Energy_Calcs!C8 -> Model # / tons: | D8: =INDEX(Energy_Calcs!$B$7:$L$68,$A8,EntryData!$CG$12) -> SAPlus70 | E8: =IF(EntryData!CB14=1,INDEX(Energy_Calcs!$B$7:$L$68,$A8,EntryData!$CG$13),"") -> SA60 | F8: =IF(EntryData!CB15=1,INDEX(Energy_Calcs!$B$7:$L$68,$A8,EntryData!$CG$14),"") -> 80 ton
A9: =A8+1 -> 3 | C9: =Energy_Calcs!C9 -> Total System(s) CFM | D9: =INDEX(Energy_Calcs!$B$7:$L$68,$A9,EntryData!$CG$12) -> 30000 | E9: =IF(EntryData!CB14=1,INDEX(Energy_Calcs!$B$7:$L$68,$A9,EntryData!$CG$13),"") -> 52800 | F9: =IF(EntryData!CB15=1,INDEX(Energy_Calcs!$B$7:$L$68,$A9,EntryData!$CG$14),"") -> 64000
A10: 4 | D10: % Space Under Control | DC10: =EntryData!CG15 -> 0 | DD10: column 4 (f)
A11: 5 | C11: =Energy_Calcs!C11 -> Unocc. | D11: =INDEX(Energy_Calcs!$B$7:$L$68,$A11,EntryData!$CG$12) -> 1 | E11: =IF(EntryData!CB14=1,INDEX(Energy_Calcs!$B$7:$L$68,$A11,EntryData!$CG$13),"") -> 1 | F11: =IF(EntryData!CB15=1,INDEX(Energy_Calcs!$B$7:$L$68,$A11,EntryData!$CG$14),"") -> 1
A12: 6 | C12: =Energy_Calcs!C12 -> Occ | D12: =INDEX(Energy_Calcs!$B$7:$L$68,$A12,EntryData!$CG$12) -> 1 | E12: =IF(EntryData!CB14=1,INDEX(Energy_Calcs!$B$7:$L$68,$A12,EntryData!$CG$13),"") -> 1 | F12: =IF(EntryData!CB15=1,INDEX(Energy_Calcs!$B$7:$L$68,$A12,EntryData!$CG$14),"") -> 1
A13: 7
A14: 8 | C14: =Energy_Calcs!C14 -> # of Units | D14: =INDEX(Energy_Calcs!$B$7:$L$68,$A14,EntryData!$CG$12) -> 2 | E14: =IF(EntryData!CB14=1,INDEX(Energy_Calcs!$B$7:$L$68,$A14,EntryData!$CG$13),"") -> 2 | F14: =IF(EntryData!CB15=1,INDEX(Energy_Calcs!$B$7:$L$68,$A14,EntryData!$CG$14),"") -> 2
A15: 9 | C15: =Energy_Calcs!C15 -> Room Air Recirculations / hr | D15: =INDEX(Energy_Calcs!$B$7:$L$68,$A15,EntryData!$CG$12) -> 1.8 | E15: =IF(EntryData!$CB$14=1,INDEX(Energy_Calcs!$B$7:$L$68,$A15,EntryData!$CG$13),"") -> 3.168 | F15: =IF(EntryData!CB15=1,INDEX(Energy_Calcs!$B$7:$L$68,$A15,EntryData!$CG$14),"") -> 3.84 | CX15: Utility Rates for Auxiliary Heat | DB15: Notes: | DC15: SA Series | DD15: SAPlus Series | DG15: Selectaire Series Bin Operating Hour Breakdown
A16: 10 | C16: Project Gross Energy Required Based on Equipment Selection & Project Loads | CX16: =+EntryData!Q10 -> 1 | CY16: =+EntryData!R10 -> $/therm | DB16: =+SelectAire!A52 -> F Heating Lower Temp cutoff: | DC16: =EntryData!K61 -> 47 | DD16: =EntryData!Q61 -> 47 | DG16: =Energy_Calcs!Q10 -> SelectAire, Standard Operation, Exhaust Energy Recovery, with Code OSA
A17: 11 | C17: =Energy_Calcs!C17 -> Code Ventilation Air Sensible Cooling (MBTU) | D17: =INDEX(Energy_Calcs!$B$7:$L$68,$A17,EntryData!$CG$12) -> 757.5233411 | E17: =IF(EntryData!$CB$14=1,INDEX(Energy_Calcs!$B$7:$L$68,$A17,EntryData!$CG$13),"") -> 757.5233411 | F17: =IF(EntryData!CB15=1,INDEX(Energy_Calcs!$B$7:$L$68,$A17,EntryData!$CG$14),"") -> 757.5233411 | CX17: =+EntryData!Q11 -> 0.8 | CY17: Fuel Efficiency | DB17: SelectAire/SAPlus Economizer: | DC17: =+EntryData!CR52 -> No Econo | DD17: =EntryData!CR46 -> No Econo | DG17: SA Heat Pump | DH17: =IF(Energy_Calcs!P94<2,"Economizer Not Selected","Economizer") -> Economizer Not Selected | DI17: Dehum-HeatB OSA Assist | DJ17: Dehum-HeatA | DK17: Cool-Dehum | DL17: Cool | DM17: Total Hours | DQ17: Type of Heat Source | DR17: Net Fuel Cost 100,000 BTU
A18: 12 | C18: =Energy_Calcs!C18 -> Outside Air Heating (MBTU) - Based on Min Code + Equipment Requirement | D18: =INDEX(Energy_Calcs!$B$7:$L$68,$A18,EntryData!$CG$12) -> 1224236.303 | E18: =IF(EntryData!$CB$14=1,INDEX(Energy_Calcs!$B$7:$L$68,$A18,EntryData!$CG$13),"") -> 1224236.303 | F18: =IF(EntryData!CB15=1,INDEX(Energy_Calcs!$B$7:$L$68,$A18,EntryData!$CG$14),"") -> 3630714.444 | CX18: =+EntryData!Q12 -> 0.1 | CY18: =+EntryData!R12 -> $ / kw | DB18: Basic Dehumidifier | DC18: SA Series | DD18: SAPlus Series
A19: 13 | C19: =Energy_Calcs!C19 -> Water Heating (MBTU) - Based on Evaporation Loss + Make-up Water Heat Required | D19: =INDEX(Energy_Calcs!$B$7:$L$68,$A19,EntryData!$CG$12) -> 3501823.686 | E19: =IF(EntryData!$CB$14=1,INDEX(Energy_Calcs!$B$7:$L$68,$A19,EntryData!$CG$13),"") -> 3501823.686 | F19: =IF(EntryData!CB15=1,INDEX(Energy_Calcs!$B$7:$L$68,$A19,EntryData!$CG$14),"") -> 3501823.686 | DB19: =+EntryData!BR35 -> With Pool Water Condenser Circuit A | DC19: =+EntryData!BR42 -> With Pool Water Condenser Circuit A | DD19: =+EntryData!BR49 -> 0 | DJ19: 5475 Total Occupied Hours
A20: 14 | C20: =Energy_Calcs!C20 -> S/A Blower Electrical(kWh) - Based on Equipment Requirement | D20: =INDEX(Energy_Calcs!$B$7:$L$68,$A20,EntryData!$CG$12) -> 312371.088 | E20: =IF(EntryData!$CB$14=1,INDEX(Energy_Calcs!$B$7:$L$68,$A20,EntryData!$CG$13),"") -> 326748 | F20: =IF(EntryData!CB15=1,INDEX(Energy_Calcs!$B$7:$L$68,$A20,EntryData!$CG$14),"") -> 522796.8 | CX20: Utility Rates for Pool Water Heat | DG20: =SelectAire!BU19 -> 2647 | DH20: =IF(Energy_Calcs!P94=1,0,SelectAire!CL19+SelectAire!BB4) -> 0 | DI20: =IF(Energy_Calcs!P94=1,SelectAire!BW19+SelectAire!CL19,SelectAire!BW19) -> 2486 | DJ20: =SelectAire!BV19 -> 236 | DK20: =+SelectAire!BY19 -> 85 | DL20: =+SelectAire!BX19 -> 21 | DM20: =SUM(DG20:DL20) -> 5475 | DQ20: =IF(EntryData!CB10=1,"SelectAire Heat Pump","") -> SelectAire Heat Pump | DR20: =IF(EntryData!CB10=1,SelectAire!BQ17,"") -> 0.5551865032
A21: 15 | C21: =Energy_Calcs!C21 -> E/A Blower Electrical (kWh) - Based on Equipment Requirement | D21: =INDEX(Energy_Calcs!$B$7:$L$68,$A21,EntryData!$CG$12) -> 16367.37688 | E21: =IF(EntryData!$CB$14=1,INDEX(Energy_Calcs!$B$7:$L$68,$A21,EntryData!$CG$13),"") -> 81687 | F21: =IF(EntryData!CB15=1,INDEX(Energy_Calcs!$B$7:$L$68,$A21,EntryData!$CG$14),"") -> 261398.4 | CX21: =+EntryData!Q15 -> 1 | CY21: =+EntryData!R15 -> $/therm | DB21: Pool Heating Requirements | DG21: =DG20/5475 -> 0.4834703196 | DH21: =IF(Energy_Calcs!P94=1,"",DH20/5475) ->  | DI21: 0.4540639269 | DJ21: 0.04310502283 | DK21: 0.01552511416 | DL21: 0.003835616438 | DQ21: =IF(EntryData!CC10=1,"SAPlus Heat Pump","") -> SAPlus Heat Pump | DR21: =IF(EntryData!CC10=1,SAPlus!BS17,"") -> 0.417727669
A22: 16 | C22: =Energy_Calcs!C22 ->  | D22: =IF(C22="","",INDEX(Energy_Calcs!$B$7:$L$68,$A22,EntryData!$CG$12)) ->  | E22: =IF(EntryData!CB14=1,IF(C22="","",INDEX(Energy_Calcs!$B$7:$L$68,$A22,EntryData!$CG$13)),"") ->  | F22: =IF(EntryData!CB15=1,IF(C22="","",INDEX(Energy_Calcs!$B$7:$L$68,$A22,EntryData!$CG$14)),"") ->  | CX22: =+EntryData!Q16 -> 0.8 | CY22: Fuel Efficiency | DB22: Yearly Makeup Water Heat Required | DC22: ='RecoverAire Data'!B67/1000 -> 612957.4564 | DD22: MBTU | DJ22: 3285 Total Unoccupied Hours | DQ22: Electric | DR22: =SelectAire!BR17 -> 2.930832356
A23: 17 | DB23: Yearly Heat Loss Due to Evaporation | DC23: ='RecoverAire Data'!B68/1000 -> 2888866.23 | DD23: MBTU | DG23: =SelectAire!DR18 -> 1126.916474 | DH23: =IF(EntryData!CR51=1,0,SelectAire!EH19+SelectAire!DR4) -> 0 | DI23: =IF(Energy_Calcs!P94=1,SelectAire!DT19+SelectAire!EH19,SelectAire!DT19) -> 2048.384472 | DJ23: =+SelectAire!DS19 -> 103.6990537 | DK23: =+SelectAire!DV19 -> 5 | DL23: =+SelectAire!DU19 -> 1 | DM23: =SUM(DG23:DL23) -> 3285 | DQ23: Selected Auxiliary Fuel | DR23: =SelectAire!BS17 -> 1.25
A24: 18 | CX24: =IF(EntryData!BR67=1,"Evacuator Not Included",IF(EntryData!BR67=2,"Evacuator Exhaust System Include","Evacuator Exhaust w/Energy Recovery")) -> Evacuator Not Included | DB24: Yearly Total Pool Heat Required | DC24: ='RecoverAire Data'!B69/1000 -> 3501823.686 | DD24: MBTU | DG24: =DG23/3285 -> 0.343049155 | DH24: =IF(Energy_Calcs!P94=1,"",DH23/3285) ->  | DI24: 0.623556917 | DJ24: 0.03156744405 | DK24: 0.001522070015 | DL24: 0.000304414003
A25: 19 | CX25: =IF(CY3=1,"",'RecoverAire Data'!B3) ->  | CY25: =IF(CY3>1,"RecoverAire Model","") ->  | DB25: Design Outside Ventilation Air Included | DJ25: 8760 Total Yearly Hours
A26: 20 | CX26: =IF(OR(CY3=1,CY3=2),"",+'RecoverAire Data'!B64/1000) ->  | CY26: =IF(CX26="","","MBTU Energy Recovered") ->  | DC26: Occupied Ventilation Outside Air: | DD26: ='Pool Entry'!G35 -> 5782 | DG26: =+DG20+DG23 -> 3773.916474 | DH26: =IF(Energy_Calcs!P94=1,0,+DH20+DH23) -> 0 | DI26: =+DI20+DI23 -> 4534.384472 | DJ26: =+DJ20+DJ23 -> 339.6990537 | DK26: =+DK20+DK23 -> 90 | DL26: =+DL20+DL23 -> 22 | DM26: =SUM(DG26:DL26) -> 8760
A27: 21 | CX27: =IF(OR(CY3=1,CY3=2),"",+CX26/(100000*Energy_Calcs!P112)) ->  | CY27: =IF(CX27="","",+CONCATENATE("Therms @ ",Energy_Calcs!P112*100,"% Gas Eff")) ->  | DC27: Unoccupied Ventilation Outside Air: | DD27: ='Pool Entry'!G40 -> 0 | DG27: =DG26/8760 -> 0.4308123829 | DH27: =IF(Energy_Calcs!P94=1,"",DH26/8760) ->  | DI27: =DI26/8760 -> 0.5176237982 | DJ27: =DJ26/8760 -> 0.03877843079 | DK27: =DK26/8760 -> 0.0102739726 | DL27: =DL26/8760 -> 0.002511415525
A28: 22 | C28: System Operating Dollar Summary | CX28: =IF(CX26="","",+'RecoverAire Data'!B37) ->  | CY28: =IF(CX28="","","COP") -> 
A29: 25 | C29: =Energy_Calcs!C31 -> Total compressor hours | D29: =INDEX(Energy_Calcs!$B$7:$L$68,$A29,EntryData!$CG$12) -> 14545.70154 | E29: =IF(EntryData!$CB$14=1,INDEX(Energy_Calcs!$B$7:$L$68,$A29,EntryData!$CG$13),"") -> 15159.87156 | F29: =IF(EntryData!CB15=1,INDEX(Energy_Calcs!$B$7:$L$68,$A29,EntryData!$CG$14),"") -> 4832.895888
A30: 26 | C30: =Energy_Calcs!C32 -> Code Ventilation Air Sensible Cooling | D30: =INDEX(Energy_Calcs!$B$7:$L$68,$A30,EntryData!$CG$12) -> 22.20173919 | E30: =IF(EntryData!$CB$14=1,INDEX(Energy_Calcs!$B$7:$L$68,$A30,EntryData!$CG$13),"") -> 22.20173919 | F30: =IF(EntryData!CB15=1,INDEX(Energy_Calcs!$B$7:$L$68,$A30,EntryData!$CG$14),"") -> 22.20173919
A31: 28 | C31: =Energy_Calcs!C34 -> Outside Air Heating with Auxiliary Fuel | D31: =INDEX(Energy_Calcs!$B$7:$L$69,$A31,EntryData!$CG$12) -> 15302.95379 | E31: =IF(EntryData!$CB$14=1,INDEX(Energy_Calcs!$B$7:$L$68,$A31,EntryData!$CG$13),"") -> 15302.95379 | F31: =IF(EntryData!CB15=1,INDEX(Energy_Calcs!$B$7:$L$68,A31,EntryData!$CG$14),"") -> 45383.93054
A32: 29 | C32: =Energy_Calcs!C35 -> Water Heating | D32: =INDEX(Energy_Calcs!$B$7:$L$68,$A32,EntryData!$CG$12) -> 43772.79608 | E32: =IF(EntryData!$CB$14=1,INDEX(Energy_Calcs!$B$7:$L$68,$A32,EntryData!$CG$13),"") -> 43772.79608 | F32: =IF(EntryData!CB15=1,INDEX(Energy_Calcs!$B$7:$L$68,$A32,EntryData!$CG$14),"") -> 43772.79608
A33: 30 | C33: =Energy_Calcs!C36 -> S/A Blower Electrical | D33: =INDEX(Energy_Calcs!$B$7:$L$68,$A33,EntryData!$CG$12) -> 31237.1088 | E33: =IF(EntryData!$CB$14=1,INDEX(Energy_Calcs!$B$7:$L$68,$A33,EntryData!$CG$13),"") -> 32674.8 | F33: =IF(EntryData!CB15=1,INDEX(Energy_Calcs!$B$7:$L$68,$A33,EntryData!$CG$14),"") -> 52279.68
A34: 31 | C34: =Energy_Calcs!C37 -> E/A Blower Electrical | D34: =INDEX(Energy_Calcs!$B$7:$L$68,$A34,EntryData!$CG$12) -> 1636.737688 | E34: =IF(EntryData!$CB$14=1,INDEX(Energy_Calcs!$B$7:$L$68,$A34,EntryData!$CG$13),"") -> 8168.7 | F34: =IF(EntryData!CB15=1,INDEX(Energy_Calcs!$B$7:$L$68,$A34,EntryData!$CG$14),"") -> 26139.84
A35: 32 | C35: =Energy_Calcs!C38 ->  | D35: =IF(C35="","",INDEX(Energy_Calcs!$B$7:$L$68,$A35,EntryData!$CG$12)) ->  | E35: =IF(EntryData!CB14=1,IF(C35="","",INDEX(Energy_Calcs!$B$7:$L$68,$A35,EntryData!$CG$13)),"") ->  | F35: =IF(CB15=0,"",IF(C35="","",INDEX(Energy_Calcs!$B$7:$L$68,$A35,EntryData!$CG$14))) -> 
A36: 33 | C36: =Energy_Calcs!C39 ->  | D36: =IF(C36="","",INDEX(Energy_Calcs!$B$7:$L$68,$A36,EntryData!$CG$12)) ->  | E36: =IF(EntryData!CB15=1,IF(C36="","",INDEX(Energy_Calcs!$B$7:$L$68,$A36,EntryData!$CG$13)),"") ->  | F36: =IF(C36="","",INDEX(Energy_Calcs!$B$7:$L$68,$A36,EntryData!$CG$14)) -> 
A37: 34 | C37: =Energy_Calcs!C40 -> Compressor Dehumidification Electrical | D37: =INDEX(Energy_Calcs!$B$7:$L$68,$A37,EntryData!$CG$12) -> 22818.72065 | E37: =IF(EntryData!$CB$14=1,INDEX(Energy_Calcs!$B$7:$L$68,$A37,EntryData!$CG$13),"") -> 33441.15824 | F37: =IF(EntryData!CB15=1,INDEX(Energy_Calcs!$B$7:$L$68,$A37,EntryData!$CG$14),"") -> 17569.52011
A38: 35 | C38: =Energy_Calcs!C41 -> Building Sensible Cooling Compressor Electrical | D38: =INDEX(Energy_Calcs!$B$7:$L$68,$A38,EntryData!$CG$12) -> 730.2729115 | E38: =IF(EntryData!$CB$14=1,INDEX(Energy_Calcs!$B$7:$L$68,$A38,EntryData!$CG$13),"") -> 783.3807294 | F38: =INDEX(Energy_Calcs!$B$7:$L$68,$A38,EntryData!$CG$14) -> 977.0133091
A39: 36 | C39: =Energy_Calcs!C42 -> Building Auxiliary Space Heating | D39: =INDEX(Energy_Calcs!$B$7:$L$68,$A39,EntryData!$CG$12) -> 74986.47059 | E39: =IF(EntryData!$CB$14=1,INDEX(Energy_Calcs!$B$7:$L$68,$A39,EntryData!$CG$13),"") -> 74986.47059 | F39: =IF(EntryData!CB15=1,INDEX(Energy_Calcs!$B$7:$L$68,$A39,EntryData!$CG$14),"") -> 74986.47059
A40: 37 | C40: =Energy_Calcs!C43 -> Gross System Operating Cost | D40: =INDEX(Energy_Calcs!$B$7:$L$68,$A40,EntryData!$CG$12) -> 193012.7737 | E40: =IF(EntryData!$CB$14=1,INDEX(Energy_Calcs!$B$7:$L$68,$A40,EntryData!$CG$13),"") -> 215755.8915 | F40: =IF(EntryData!CB15=1,INDEX(Energy_Calcs!$B$7:$L$68,$A40,EntryData!$CG$14),"") -> 261131.4524
A41: 36 | C41: Potential Energy Savings
A42: 44 | C42: =Energy_Calcs!C50 -> Refg. Energy Recovered for Building Heat Loss | D42: =INDEX(Energy_Calcs!$B$7:$L$68,$A42,EntryData!$CG$12) -> -3860.65055 | E42: =IF(EntryData!CB$14=1,INDEX(Energy_Calcs!$B$7:$L$68,$A42,EntryData!$CG$13),"") -> 0 | F42: =IF(EntryData!CB$15=1,INDEX(Energy_Calcs!$B$7:$L$68,$A42,EntryData!$CG$14),"") -> -11999.7151
A43: 45 | C43: =Energy_Calcs!C51 -> Building Space Energy Savings Using Desert Aire Heatpump Operation | D43: =INDEX(Energy_Calcs!$B$7:$L$68,$A43,EntryData!$CG$12) -> -11083.46213 | E43: =IF(EntryData!$CB$14=1,INDEX(Energy_Calcs!$B$7:$L$68,$A43,EntryData!$CG$13),"") -> -34617.72911 | F43: =IF(EntryData!CB$15=1,INDEX(Energy_Calcs!$B$7:$L$68,$A43,EntryData!$CG$14),"") -> ---
A44: 46 | C44: =Energy_Calcs!C52 -> Refg. Energy Recovered for OSA Heating | D44: =INDEX(Energy_Calcs!$B$7:$L$68,$A44,EntryData!$CG$12) -> -20137.08147 | E44: =IF(EntryData!$CB$14=1,INDEX(Energy_Calcs!$B$7:$L$68,$A44,EntryData!$CG$13),"") -> -18234.27897 | F44: =IF(EntryData!CB$15=1,INDEX(Energy_Calcs!$B$7:$L$68,$A44,EntryData!$CG$14),"") -> ---
A45: 47 | C45: =Energy_Calcs!C53 -> OSA Energy Cost Savings Using Desert Aire Heatpump Operation | D45: =INDEX(Energy_Calcs!$B$7:$L$68,$A45,EntryData!$CG$12) -> -5773.671429 | E45: =IF(EntryData!$CB$14=1,INDEX(Energy_Calcs!$B$7:$L$68,$A45,EntryData!$CG$13),"") -> -10311.50923 | F45: =IF(EntryData!CB$15=1,INDEX(Energy_Calcs!$B$7:$L$68,$A45,EntryData!$CG$14),"") -> ---
A46: 48 | C46: =Energy_Calcs!C54 -> Additional Refrigerant Recovered Energy Available for Pool Heat | D46: =INDEX(Energy_Calcs!$B$7:$L$68,$A46,EntryData!$CG$12) -> -677.1942372 | E46: =IF(EntryData!$CB$14=1,INDEX(Energy_Calcs!$B$7:$L$68,$A46,EntryData!$CG$13),"") -> -608.2457326 | F46: =IF(EntryData!CB$15=1,INDEX(Energy_Calcs!$B$7:$L$68,$A46,EntryData!$CG$14),"") -> ---
A47: 49 | C47: =IF(AND(D47="",E47="",F47=""),"",Energy_Calcs!C55) -> Energy Recovered from Air Exchanger or Glycol Exchanger | D47: =IF(EntryData!CH12=2,"---",INDEX(Energy_Calcs!$B$7:$L$68,$A47,EntryData!$CG$12)) -> --- | E47: =IF(EntryData!$CB$14=1,INDEX(Energy_Calcs!$B$7:$L$68,$A47,EntryData!$CG$13),"") -> --- | F47: =IF(EntryData!CB$15=1,INDEX(Energy_Calcs!$B$7:$L$68,$A47,EntryData!$CG$14),"") -> -8094.76816
A48: 50 | C48: Subtotal Recovery | D48: =SUM(D42:D47) -> -41532.05982 | E48: =SUM(E42:E47) -> -63771.76304 | F48: =SUM(F42:F47) -> -20094.48326
A49: 51 | C49: =Energy_Calcs!C57 -> Net Operational Cost for Temperature & Humidity Control Equipment | D49: =INDEX(Energy_Calcs!$B$7:$L$68,$A49,EntryData!$CG$12) -> 151480.7139 | E49: =IF(EntryData!$CB$14=1,INDEX(Energy_Calcs!$B$7:$L$68,$A49,EntryData!$CG$13),"") -> 151984.1285 | F49: =IF(EntryData!CB$15=1,INDEX(Energy_Calcs!$B$7:$L$68,$A49,EntryData!$CG$14),"") -> 241036.9691
A50: 52
A51: 53 | C51: =EntryData!BR65 -> Evacuator Not In Design
A52: 54 | D52: =IF(EntryData!BR67=1,"",INDEX(Energy_Calcs!$B$7:$L$74,$A52,EntryData!$CG$12)) ->  | E52: =IF(EntryData!BR67=1,"",IF(EntryData!$CB$14=1,INDEX(Energy_Calcs!$B$7:$L$68,$A52,EntryData!$CG$13),"")) ->  | F52: =IF(EntryData!BR67=1,"",IF(EntryData!CB15=1,INDEX(Energy_Calcs!$B$7:$L$68,$A52,EntryData!$CG$14),"")) -> 
A53: 55 | C53: =Energy_Calcs!C61 -> Evacuator Blower Electrical | D53: =IF(EntryData!BR67=1,"",INDEX(Energy_Calcs!$B$7:$L$68,$A53,EntryData!$CG$12)) ->  | E53: =IF(EntryData!BR67=1,"",IF(EntryData!$CB$14=1,INDEX(Energy_Calcs!$B$7:$L$68,$A53,EntryData!$CG$13),"")) ->  | F53: =IF(EntryData!BR67=1,"",IF(EntryData!CB15=1,INDEX(Energy_Calcs!$B$7:$L$68,$A53,EntryData!$CG$14),"")) -> 
A54: 56 | C54: =Energy_Calcs!C62 ->  | D54: =IF(C54="","",INDEX(Energy_Calcs!$B$7:$L$68,$A54,EntryData!$CG$12)) ->  | E54: =IF(EntryData!CB14=1,IF(C54="","",INDEX(Energy_Calcs!$B$7:$L$68,$A54,EntryData!$CG$13)),"") ->  | F54: =IF(EntryData!CB15=1,IF(C54="","",INDEX(Energy_Calcs!$B$7:$L$68,$A54,EntryData!$CG$14)),"") -> 
A55: 57 | C55: =Energy_Calcs!C63 -> Evacuator Gross Operational Cost | D55: =IF(EntryData!BR67=1,"",INDEX(Energy_Calcs!$B$7:$L$68,$A55,EntryData!$CG$12)) ->  | E55: =IF(EntryData!BR67=1,"",IF(EntryData!$CB$14=1,INDEX(Energy_Calcs!$B$7:$L$68,$A55,EntryData!$CG$13),"")) ->  | F55: =IF(EntryData!BR67=1,"",IF(EntryData!CB15=1,INDEX(Energy_Calcs!$B$7:$L$68,$A55,EntryData!$CG$14),"")) -> 
A56: 58 | C56: =Energy_Calcs!C64 ->  | D56: =IF(C56="","",INDEX(Energy_Calcs!$B$7:$L$68,$A56,EntryData!$CG$12)) ->  | E56: =IF(C56="","",INDEX(Energy_Calcs!$B$7:$L$68,$A56,EntryData!$CG$13)) ->  | F56: =IF(C56="","",IF(EntryData!CB15=1,INDEX(Energy_Calcs!$B$7:$L$68,$A56,EntryData!$CG$14),"")) -> 
A57: 59 | C57: =Energy_Calcs!C65 -> Net Evacuator Operating Cost | D57: =IF(EntryData!BR67=1,"",INDEX(Energy_Calcs!$B$7:$L$68,$A57,EntryData!$CG$12)) ->  | E57: =IF(EntryData!BR67=1,"",IF(EntryData!$CB$14=1,INDEX(Energy_Calcs!$B$7:$L$68,$A57,EntryData!$CG$13),"")) ->  | F57: =IF(EntryData!BR67=1,"",IF(EntryData!CB15=1,INDEX(Energy_Calcs!$B$7:$L$68,$A57,EntryData!$CG$14),"")) -> 
A58: 60 | C58: Estimated Environmental Control Net Operating Cost
A59: 61 | C59: =Energy_Calcs!C67 -> System & Evacuator Net Oper. Cost | D59: =IF(EntryData!BR67=1,"",INDEX(Energy_Calcs!$B$7:$L$68,$A59,EntryData!$CG$12)) ->  | E59: =IF(EntryData!BR67=1,"",IF(EntryData!CB14=1,INDEX(Energy_Calcs!$B$7:$L$68,$A59,EntryData!$CG$13),"")) ->  | F59: =IF(EntryData!BR67=1,"",IF(EntryData!CB15=1,INDEX(Energy_Calcs!$B$7:$L$68,$A59,EntryData!$CG$14),"")) -> 
A60: 63
A61: 64 | C61: Potential Gallons of Condensate to Return to the Pool | D61: =INDEX(Energy_Calcs!$B$7:$L$73,$A61,EntryData!$CG$12) -> 352574.2661 | E61: =IF(EntryData!CB14=1,INDEX(Energy_Calcs!$B$7:$L$73,$A61,EntryData!$CG$13),"") -> 223896.2682 | F61: =IF(EntryData!CB15=1,INDEX(Energy_Calcs!$B$7:$L$70,$A61,EntryData!$CG$14),"") -> 64625.30717
A62: 65
F80: Date
C81: Project Name: | D81: =D2 -> Enter Pool Name | F81: =F3 -> 2022-01-18T09:54:04.340
C82: Location: | D82: =D3 -> Milwaukee, WISCONSIN | F82: Rev #:
F83: =F5 -> 2022-01A
C84: Unit Tag Number: | D84: =D5 -> Enter Tag #

Sheet Energy_Calcs (hidden)
E3: Enerlyzer Total Cost of Operation | I3: Date: | J3: =NOW() -> 2022-01-18T09:54:04.340
I4: REV: | J4: ='Pool Entry'!M5 -> 2022-01A
B5: Project: | C5: =+EntryData!D5 -> Enter Pool Name
B6: City: | C6: =CONCATENATE(SelectAire!B23,", ",SelectAire!B22) -> Milwaukee, WISCONSIN | D6: 3 | E6: 4 | F6: 5 | G6: 6 | H6: 7 | I6: 8 | J6: 9 | K6: 10 | L6: 11
A7: 1 | D7: =+IF(P34="No Display","","Cont Push Pull") -> Cont Push Pull | E7: =+IF(AND(P35="No Display",P44="No Display"),"",AE48) -> Cont Push Pull w/Air Exch | F7: =+IF(P36="No Display","","VarPush Pull") -> VarPush Pull | G7: =+IF(AND(P37="No Display",P45="No Display"),"",AE50) -> VarPush Pull w/ Exch & Compr | H7: =+IF(P38="No Display","","Dehumidifier w/Remote Exhaust") -> Dehumidifier w/Remote Exhaust | I7: =+IF(P39="No Display","",Q10) -> SelectAire, Standard Operation, Exhaust Energy Recovery, with Code OSA | J7: =+IF(P42="No Display","",Q18) -> SAPlus Standard Operation, Exhaust Energy Recovery, with Code OSA | K7: =+IF(P40="No Display","","Two Fan Economizer Dehumidifier") -> Two Fan Economizer Dehumidifier | L7: =+IF(AND(P41="No Display",P43="No Display"),"",AE56) -> Dehum. w/ Heat Pipe OSA & Exh Recovery
A8: =A7+1 -> 2 | C8: Model # / tons: | D8: No Refrigeration System | E8: No Refrigeration System | F8: No Refrigeration System | G8: =+IF(EntryData!CI85=13,"No Refrigeration System",CONCATENATE(EntryData!AL53," ton")) -> 80 ton | H8: =+IF(P38="No Display","",EntryData!C32) -> 60 Ton | I8: =+IF(P39="No Display","",EntryData!I32) -> SA60 | J8: =+IF(P42="No Display","",EntryData!O32) -> SAPlus70 | K8: =+IF(P40="No Display","",EntryData!V32) -> 60 | L8: =IF(AND(P41="No Display",P43="No Display"),"",'Dehum with Exchanger'!B10) -> 80
A9: =A8+1 -> 3 | C9: Total System(s) CFM | D9: =+IF(P34="No Display","",EntryData!CM47*D14) -> 64000 | E9: =+IF(AND(P35="No Display",P44="No Display"),"",EntryData!CM47*E14) -> 64000 | F9: =+IF(P36="No Display","",EntryData!CM47*F14) -> 64000 | G9: =EntryData!CM47*G14 -> 64000 | H9: =+IF(P38="No Display","",EntryData!D42) -> 26400 | I9: =+IF(P39="No Display","",EntryData!J42) -> 52800 | J9: =+IF(P42="No Display","",EntryData!P42) -> 30000 | K9: =+IF(P40="No Display","",EntryData!X35*K14) -> 24000 | L9: =IF(AND(P41="No Display",P43="No Display"),"",'Dehum with Exchanger'!B103*L14) -> 64000 | Q9: =EntryData!CR51 -> 1
A10: 4 | C10: % Time Under Control | Q10: =VLOOKUP(Q9,P12:Q14,2) -> SelectAire, Standard Operation, Exhaust Energy Recovery, with Code OSA
A11: 5 | C11: Unocc. | D11: =+IF(P34="No Display","",PushPull!$AN$11) -> 0.9315068493 | E11: =+IF(AND($P$35="No Display",$P$44="No Display"),"",PushPull!$AN$11) -> 0.9315068493 | F11: =+IF(P36="No Display","",PushPull!$AN$11) -> 0.9315068493 | G11: =+IF(AND(P37="No Display",P45="No Display"),"",IF(EntryData!CI85=13,PushPull!$AN$11,'PushPull w Compr'!CU11)) -> 1 | H11: =+IF(P38="No Display","",Standard!$CC$3) -> 1 | I11: =+IF(P39="No Display","",SelectAire!$FP$18) -> 1 | J11: =+IF(P42="No Display","",SAPlus!FO18) -> 1 | K11: =+IF(P40="No Display","",'Two Fan Econo'!CX19) -> 0.9274885845 | L11: =IF(AND(P41="No Display",P43="No Display"),"",'Dehum with Exchanger'!CP11) -> 1
A12: 6 | C12: Occ | D12: =+IF(P34="No Display","",PushPull!$AM$11) -> 0.8982648402 | E12: =+IF(AND($P$35="No Display",$P$44="No Display"),"",PushPull!$AM$11) -> 0.8982648402 | F12: =+IF(P36="No Display","",PushPull!$AM$11) -> 0.8982648402 | G12: =+IF(AND(P37="No Display",P45="No Display"),"",IF(EntryData!CI85=13,PushPull!$AM$11,'PushPull w Compr'!CT11)) -> 1 | H12: =+IF(P38="No Display","",Standard!$CB$3) -> 0.9711415525 | I12: =+IF(P39="No Display","",SelectAire!$FO$18) -> 1 | J12: =+IF(P42="No Display","",SAPlus!FN18) -> 1 | K12: =+IF(P40="No Display","",'Two Fan Econo'!CY19) -> 1 | L12: =IF(AND(P41="No Display",P43="No Display"),"",'Dehum with Exchanger'!CO11) -> 1 | P12: 1 | Q12: SelectAire, Standard Operation, Exhaust Energy Recovery, with Code OSA
A13: 7 | P13: 2 | Q13: SelectAir, Exhaust Energy Recovery, with 50% Supply CFM Economizer
A14: 8 | C14: # of Units | D14: =+IF(P34="No Display","",S104) -> 2 | E14: =+IF(AND($P$35="No Display",$P$44="No Display"),"",T104) -> 2 | F14: =+IF(P36="No Display","",U104) -> 2 | G14: =+IF(AND(P37="No Display",P45="No Display"),"",V104) -> 2 | H14: =+IF(P38="No Display","",W104) -> 1 | I14: =+IF(P39="No Display","",X104) -> 2 | J14: =+IF(P42="No Display","",Y104) -> 2 | K14: =+IF(P40="No Display","",Z104) -> 1 | L14: =IF(AND(P41="No Display",P43="No display"),"",'Dehum with Exchanger'!B47) -> 2 | P14: 3 | Q14: SelectAire, Exhaust Energy Recovery, with Code OSA CFM Economizer
A15: 9 | C15: Room Air Recirculations / hr | D15: =IF(P34="No Display","",SUM((D9*60)/'Pool Entry'!$G$20)) -> 3.84 | E15: =IF(AND(P35="No Display",P44="No Display"),"",SUM((E9*60)/'Pool Entry'!$G$20)) -> 3.84 | F15: =IF(P36="No Display","",SUM((F9*60)/'Pool Entry'!$G$20)) -> 3.84 | G15: =IF(AND(P37="No Display",P45="No Display"),"",SUM((G9*60)/'Pool Entry'!$G$20)) -> 3.84 | H15: =IF(P38="No Display","",SUM((H9*60)/'Pool Entry'!$G$20)) -> 1.584 | I15: =IF(P39="No Display","",SUM((I9*60)/'Pool Entry'!$G$20)) -> 3.168 | J15: =IF(P42="No Display","",SUM((J9*60)/'Pool Entry'!$G$20)) -> 1.8 | K15: =IF(P40="No Display","",SUM((K9*60)/'Pool Entry'!$G$20)) -> 1.44 | L15: =IF(AND(P41="No Display",P43="No Display"),"",SUM(L9*60)/'Pool Entry'!$G$20) -> 3.84
A16: 10 | B16: Project Gross Energy Based on Equipment Type & Project Loads
A17: 11 | C17: Code Ventilation Air Sensible Cooling (MBTU) | G17: =+IF(EntryData!CI85=13,"No Refrigeration System",PushPull!BJ11+PushPull!BK11) -> 757.5233411 | H17: =+IF(P38="No Display","",PushPull!BJ11+PushPull!BK11) -> 757.5233411 | I17: =+IF(P39="No Display","",PushPull!BJ11+PushPull!BK11) -> 757.5233411 | J17: =+IF(P42="No Display","",PushPull!BJ11+PushPull!BK11) -> 757.5233411 | K17: =+IF(P40="No Display","",PushPull!BK11+PushPull!BJ11) -> 757.5233411 | L17: =+IF(P48="No Display","",PushPull!BK11+PushPull!BJ11) -> 757.5233411 | Q17: =EntryData!CR45 -> 1
A18: 12 | C18: Outside Air Heating (MBTU) - Based on Min Code + Equipment Requirement | D18: =+IF(P34="No Display","",S106*D14) -> 45524586.24 | E18: =+IF(AND($P$35="No Display",$P$44="No Display"),"",T106*E14) -> 45524586.24 | F18: =+IF(P36="No Display","",U106*F14) -> 5147543.534 | G18: =+IF(AND(P37="No Display",P45="No Display"),"",V106*G14) -> 3630714.444 | H18: =+IF(P38="No Display","",W107) -> 1222078.229 | I18: =+IF(P39="No Display","",X107) -> 1224236.303 | J18: =+IF(P42="No Display","",Y107) -> 1224236.303 | K18: =+IF(P40="No Display","",Z106) -> 2712239.281 | L18: =+IF(P48="No Display","",AA106) -> 1222078.229 | Q18: =VLOOKUP(Q17,P20:Q22,2) -> SAPlus Standard Operation, Exhaust Energy Recovery, with Code OSA
A19: 13 | C19: Water Heating (MBTU) - Based on Evaporation Loss + Make-up Water Heat Required | D19: =+IF(P34="No Display","",$S$120) -> 3501823.686 | E19: =+IF(AND(P35="No Display",P44="no Display"),"",$S$120) -> 3501823.686 | F19: =+IF(P36="No Display","",$S$120) -> 3501823.686 | G19: =+IF(AND(P37="No Display",P45="No Display"),"",$S$120) -> 3501823.686 | H19: =+IF(P38="No Display","",$S$120) -> 3501823.686 | I19: =+IF(P39="No Display","",$S$120) -> 3501823.686 | J19: =+IF($P$42="No Display","",$S$120) -> 3501823.686 | K19: =+IF(P40="No Display","",$S$120) -> 3501823.686 | L19: =+IF(P48="No Display","",$S$120) -> 3501823.686
A20: 14 | C20: S/A Blower Electrical(kWh) - Based on Equipment Requirement | D20: =+IF(P34="No Display","",P131*8760*D14) -> 522796.8 | E20: =+IF(AND(P35="No Display",P44="No Display"),"",P131*8760*E14) -> 522796.8 | F20: =+IF(P36="No Display","",P131*8760*F14) -> 522796.8 | G20: =+IF(AND(P37="No Display",P45="No Display"),"",P131*8760*G14) -> 522796.8 | H20: =+IF(P38="No Display","",P138*8760*H14) -> 163374 | I20: =+IF(P39="No Display","",SUM(P142*8760*I14)) -> 326748 | J20: =+IF($P$42="No Display","",SUM(P146*8760*J14)) -> 312371.088 | K20: =+IF(P40="No Display","",P150*8760*K14) -> 228723.6 | L20: =+IF(P48="No Display","",P153*8760*L14) -> 522796.8 | P20: 1 | Q20: SAPlus Standard Operation, Exhaust Energy Recovery, with Code OSA
A21: 15 | C21: E/A Blower Electrical (kWh) - Based on Equipment Requirement | D21: =+IF(P34="No Display","",P132*8760*D14) -> 261398.4 | E21: =+IF(AND(P35="No Display",P44="No Display"),"",P132*8760*E14) -> 261398.4 | F21: =+IF(P36="No Display","",P132*8760*F14) -> 261398.4 | G21: =+IF(AND(P37="No Display",P45="No Display"),"",P132*8760*G14) -> 261398.4 | H21: =+IF(P38="No Display","",IF($P$127=0,P139*($P$120)*H14,P139*($P$119+$P$120)*H14)) -> 30632.625 | I21: =IF($P$39="No Display","",SelectAire!CM6*I14) -> 81687 | J21: =IF($P$42="No Display","",SAPlus!CJ6*J14) -> 16367.37688 | K21: =+IF(P40="No Display","",IF($P$127=0,P151*($P$120)*K14,P151*($P$119+$P$120)*K14)) -> 127840.155 | L21: =+IF(P48="No Display","",IF($P$127=0,P154*($P$120)*L14,P154*($P$119+$P$120)*L14)) -> 163374 | P21: 2 | Q21: SAPlus Exhaust Energy Recovery with 50% Supply CFM Economizer
A22: 16 | C22: =IF(AND(Q135=0,Q155=0),"","Glycol Exchanger Loop Pump (kWh) - Based on Equipment Requirement") ->  | D22: --- | E22: =+IF(Q135="","---",P135*8760*E14) -> 0 | F22: --- | G22: --- | H22: --- | I22: --- | J22: --- | K22: --- | L22: =IF(EntryData!CP10=FALSE,"---",P155*8760*L14) -> --- | P22: 3 | Q22: SAPlus Exhaust Energy Recovery with Code OSA CFM Economizer
A23: 17 | C23: Compressor Dehumidification Electrical (kW) - Based on Evaporation Load | D23: --- | E23: --- | F23: --- | G23: =+IF(AND(P37="No Display",P45="No Display"),"",IF(EntryData!CI85=13,"---",'Project Energy Required'!F53)) -> 803781.3482 | H23: =+IF(P38="No Display","",'Project Energy Required'!F53) -> 803781.3482 | I23: =+IF(P39="No Display","",'Project Energy Required'!F53) -> 803781.3482 | J23: =+IF(P42="No Display","",'Project Energy Required'!F53) -> 803781.3482 | K23: =+IF(P40="No Display","",'Project Energy Required'!F53) -> 803781.3482 | L23: =+IF(P48="No Display","",'Project Energy Required'!F53) -> 803781.3482
A24: 18 | C24: =IF(P58=FALSE,"","Building Sensible Cooling Compressor Electrical (kWh)") -> Building Sensible Cooling Compressor Electrical (kWh) | D24: --- | E24: --- | F24: --- | G24: =IF(OR(P37="No Display",P58=FALSE),"0",'Project Energy Required'!$F$30) -> 9847.596717 | H24: =IF(OR(P38="No Display",P58=FALSE),"0",'Project Energy Required'!$F$30) -> 9847.596717 | I24: =IF(OR(P39="No Display",P58=FALSE),"0",'Project Energy Required'!$F$30) -> 9847.596717 | J24: =IF(OR(P42="No Display",P58=FALSE),"0",'Project Energy Required'!$F$30) -> 9847.596717 | K24: =+IF(OR(P40="No Display",P58=FALSE),"0",'Project Energy Required'!$F$30) -> 9847.596717 | L24: =+IF(OR(P48="No Display",P58=FALSE),"0",'Project Energy Required'!$F$30) -> 9847.596717
A25: 19 | C25: Building Auxiliary Space Heating (MBTU) | D25: =IF(P34="no display","",'Project Energy Required'!$E$33/1000) -> 5998917.647 | E25: =IF(AND(P35="No Display",P44="No Display"),"",'Project Energy Required'!$E$33/1000) -> 5998917.647 | F25: =+IF(P36="No Display","",'Project Energy Required'!$E$33/1000) -> 5998917.647 | G25: =+IF(AND(P37="No Display",P45="No Display"),"",'Project Energy Required'!$E$33/1000) -> 5998917.647 | H25: =+IF(P38="No Display","",'Project Energy Required'!$E$33/1000) -> 5998917.647 | I25: =+IF(P39="No Display","",'Project Energy Required'!$E$33/1000) -> 5998917.647 | J25: =+IF(P42="No Display","",'Project Energy Required'!$E$33/1000) -> 5998917.647 | K25: =+IF(P40="No Display","",'Project Energy Required'!$E$33/1000) -> 5998917.647 | L25: =+IF(P48="No Display","",'Project Energy Required'!$E$33/1000) -> 5998917.647
A26: 20 | C26: Project Total MBTU Required | D26: =IF(P34="No Display","",SUM(D18+D19+D25)) -> 55025327.57 | E26: =IF(AND(P35="No Display",P44="No Display"),"",SUM(E18+E19+E25)) -> 55025327.57 | F26: =IF(P36="No Display","",SUM(F18+F19+F25)) -> 14648284.87 | G26: =IF(AND(P37="No Display",P45="No Display"),"",SUM(G18+G19+G25)) -> 13131455.78 | H26: =IF(P38="No Display","",IF(P58=FALSE,SUM(H18+H19+H25),SUM(H18+H19+H25))) -> 10722819.56 | I26: =IF(P39="No Display","",IF(P58=FALSE,SUM(I18+I19+I25),SUM(I18+I17+I19+I25))) -> 10725735.16 | J26: =IF(P42="No Display","",IF(P58=FALSE,SUM(J18+J19+J25),SUM(J18+J17+J19+J25))) -> 10725735.16 | K26: =IF(P40="No Display","",IF(P58=FALSE,SUM(K18+K19+K25),SUM(K18+K17+K19+K25))) -> 12213738.14 | L26: =IF(P48="No Display","",IF(P58=FALSE,SUM(L18,L19,L25),SUM(L18+L17+L19+L25))) -> 10723577.09
A27: 21 | C27: Project Total kWh Required | D27: =IF(P34="No Display","",SUM(D20:D24)) -> 784195.2 | E27: =IF(AND(P35="No Display",P44="No Display"),"",SUM(E20:E24)) -> 784195.2 | F27: =IF(P36="No Display","",SUM(F20:F24)) -> 784195.2 | G27: =IF(AND(P37="No Display",P45="No Display"),"",SUM(G20:G24)) -> 1597824.145 | H27: =IF(P38="No Display","",IF(P58=FALSE,SUM(H20+H21+H24+W130+W131),SUM(H17+H20+H21+W130+W131+H24))) -> 471007.4377 | I27: =IF(P39="No Display","",IF(P58=FALSE,SUM(I20+I21+X130+X131+I24),SUM(I17+I20+I21+X130+X131+I24))) -> 753451.7024 | J27: =IF(P42="No Display","",IF(P58=FALSE,SUM(J20+J21+Y130+Y131+J24),SUM(J17+J20+J21+Y130+Y131+J24))) -> 567530.7915 | K27: =IF(P40="No Display","",IF(P58=FALSE,SUM(K20+K21+Z130+Z131+K24),SUM(K17+K20+K21+Z130+Z131+K24))) -> 395078.371 | L27: =IF(P48="No Display","",IF(EntryData!CP10=FALSE,SUM(L17+L20+L21+AA130+AA131+L24),SUM(L17+L20+L21+L22+AA130+AA131+L24))) -> 1296083.995
A28: 22 | C28: Total Theoretical Project MBH required | D28: =IF(P34="No Display","",SUM(D18+D19+D25)) -> 55025327.57 | E28: =IF(AND(P35="No Display",P44="No Display"),"",SUM(E18+E19+E25)) -> 55025327.57 | F28: =IF(P36="No Display","",SUM(F18+F19+F25)) -> 14648284.87 | G28: =IF(AND(P37="No Display",P45="No Display"),"",SUM(G18+G19+G25)) -> 13131455.78 | H28: =IF(P38="No Display","",SUM(H18+H19+H25)) -> 10722819.56 | I28: =IF(P39="No Display","",SUM(I18+I19+I25)) -> 10724977.64 | J28: =IF(P42="NO Display","",SUM(J18+J19+J25)) -> 10724977.64 | K28: =IF(P40="No Display","",SUM(K18+K19+K25)) -> 12212980.61 | L28: =IF(AND(P41="No Display",P43="No Display"),"",SUM(L18+L19+L25)) -> 10722819.56
A29: 23 | C29: Total Theoretical Project kW Required | D29: =IF(P34="No Display","",SUM(+D20+D21)) -> 784195.2 | E29: =IF(AND(P35="No Display",P44="No Display"),"",IF(AD35=TRUE,SUM(E20+E21),SUM(E20+E21+E22))) -> 784195.2 | F29: =IF(P36="No Display","",SUM(+F20+F21)) -> 784195.2 | G29: =IF(AND(P37="No Display",P45="No Display"),"",IF(AD37=TRUE,SUM(G20+G21),SUM(G20+G21+G22))) -> 784195.2 | H29: =IF(P38="No Display","",SUM(H17+H20+H21+H23+H24)) -> 1008393.093 | I29: =IF(P39="No Display","",SUM(I17+I20+I21+I23+I24)) -> 1222821.468 | J29: =IF(P42="No Display","",SUM(J17+J20+J21+J23+J24)) -> 1143124.933 | K29: =IF(P40="No Display","",SUM(K17+K20+K21+K23+K24)) -> 1170950.223 | L29: =IF(AND(P41="No Display",P43="No Display"),"",IF(EntryData!CP10=FALSE,SUM(L17+L20+L21+L23+L24),SUM(L17+L20+L21+L22+L23+L24))) -> 1500557.268
A30: 24 | B30: System Operating Dollars Summary | P30: Connects to Check Box Selections on Entry Data Worksheet | AD30: Connects to System Selection check box on Entry Data Worksheet
A31: 25 | C31: Total compressor hours | D31: --- | E31: --- | F31: --- | G31: =+V129 -> 4832.895888 | H31: =+W129 -> 9185.242099 | I31: 15159.87156 | J31: 14545.70154 | K31: 853.5014058 | L31: 13745.59804
A32: 26 | C32: Code Ventilation Air Sensible Cooling | D32: --- | E32: --- | F32: --- | G32: =SUM((G17/3.412)*$P$110) -> 22.20173919 | H32: =SUM((H17/3.412)*$P$110) -> 22.20173919 | I32: =SUM((I17/3.412)*$P$110) -> 22.20173919 | J32: =IF(P42="No Display","",SUM((J17/3.412)*$P$110)) -> 22.20173919 | K32: =SUM((K17/3.412)*$P$110) -> 22.20173919 | L32: =+IF(P48="No Display","",SUM((L17/3.412)*$P$110)) -> 22.20173919
A33: 27 | C33: Outside Air Heating Based on SA or SAPlus Heat Pump Operation | D33: --- | E33: --- | F33: --- | G33: --- | H33: --- | I33: =+IF(P39="No Display","",X108) -> 6603.430339 | J33: =+IF(R38="No Display","",Y108) -> 2505.511425 | K33: --- | L33: ---
A34: 28 | C34: Outside Air Heating with Auxiliary Fuel | D34: =+IF(P34="No Display","",S109) -> 569057.328 | E34: =+IF(AND(P35="No Display",P44="No Display"),"",T109) -> 569057.328 | F34: =+IF(P36="No Display","",U109) -> 64344.29417 | G34: =+IF(AND($P$37="No Display",$P$45="No Display"),"",$V$109) -> 45383.93054 | H34: =+IF(P38="No Display","",W109) -> 15275.97787 | I34: =+IF(P39="No Display","",X109) -> 15302.95379 | J34: =+IF(P42="No Display","",Y109) -> 15302.95379 | K34: =+IF(P40="No Display","",Z109) -> 33902.99102 | L34: =+IF(P48="No Display","",AA109) -> 15275.97787 | P34: =IF(AD34=TRUE,"Display","No Display") -> Display | Q34: Push Pull | AD34: TRUE | AE34: Push Pull
A35: 29 | C35: Water Heating | D35: =+IF(P34="No Display","",$S$123) -> 43772.79608 | E35: =+IF(AND(P35="No Display",P44="No Display"),"",$S$123) -> 43772.79608 | F35: =+IF(P36="No Display","",$S$123) -> 43772.79608 | G35: =+IF(AND($P$37="No Display",$P$45="No Display"),"",$S$123) -> 43772.79608 | H35: =+IF(P38="No Display","",$S$123) -> 43772.79608 | I35: =+IF(P39="No Display","",$S$123) -> 43772.79608 | J35: =+IF(P42="No Display","",$S$123) -> 43772.79608 | K35: =+IF(P40="No Display","",$S$123) -> 43772.79608 | L35: =+IF(P48="No Display","",S123) -> 43772.79608 | P35: =IF(AD35=TRUE,"Display","No Display") -> Display | Q35: Cont Push Pull w/Air Exch | AD35: TRUE | AE35: Cont Push Pull w/Air Exch
A36: 30 | C36: S/A Blower Electrical | D36: =+IF($P34="No Display","",D20*$P$110) -> 52279.68 | E36: =+IF($P35="No Display","",E20*$P$110) -> 52279.68 | F36: =+IF($P36="No Display","",F20*$P$110) -> 52279.68 | G36: =+IF($P37="No Display","",G20*$P$110) -> 52279.68 | H36: =+IF($P38="No Display","",H20*$P$110) -> 16337.4 | I36: =+IF($P39="No Display","",I20*$P$110) -> 32674.8 | J36: =+IF($P42="No Display","",J20*$P$110) -> 31237.1088 | K36: =+IF($P40="No Display","",K20*$P$110) -> 22872.36 | L36: =+IF($P48="No Display","",L20*$P$110) -> 52279.68 | P36: =IF(AD36=TRUE,"Display","No Display") -> Display | Q36: VarPush Pull | AD36: TRUE | AE36: VarPush Pull
A37: 31 | C37: E/A Blower Electrical | D37: =IF($P34="No Display","",D21*$P$110) -> 26139.84 | E37: =IF($P35="No Display","",E21*$P$110) -> 26139.84 | F37: =IF($P36="No Display","",F21*$P$110) -> 26139.84 | G37: =IF($P37="No Display","",G21*$P$110) -> 26139.84 | H37: =IF($P38="No Display","",H21*$P$110) -> 3063.2625 | I37: =IF($P39="No Display","",I21*$P$110) -> 8168.7 | J37: =IF($P42="No Display","",J21*$P$110) -> 1636.737688 | K37: =IF($P40="No Display","",K21*$P$110) -> 12784.0155 | L37: =IF($P48="No Display","",L21*$P$110) -> 16337.4 | P37: =IF(AD35=TRUE,"Display","No Display") -> Display | Q37: VarPush Pull w/Air Exch | AD37: TRUE | AE37: =+V98 -> VarPush Pull w/ Exch & Compr
A38: 32 | C38: =IF(EntryData!CP10=FALSE,"","Glycol Exchanger Loop Pump") ->  | D38: --- | E38: =+IF(Q135=0,"---",P135*($P$119+$P$120)*$P$110*E14) -> --- | F38: --- | G38: =+IF(Q135=0,"---",P135*($P$119+$P$120)*$P$110*G14) -> --- | H38: --- | I38: --- | J38: --- | K38: --- | L38: =+IF(OR(OR(P48="No Display",Q155=0,EntryData!CE9=FALSE)),"---",IF($P$127=0,P155*($P$120)*$P$110*AA104,P155*($P$119+$P$120)*$P$110*AA104)) -> --- | P38: =IF(AD38=TRUE,"Display","No Display") -> Display | Q38: SelectAire No Exhaust | AD38: TRUE | AE38: SelectAire No Exhaust
A39: 33 | C39: =IF('Dehum with Exchanger'!DQ231=1,"","Glycol Fluid Cooler Pump") ->  | D39: --- | E39: --- | F39: --- | G39: --- | H39: --- | I39: --- | J39: --- | K39: --- | L39: =+IF(OR(OR(P48="No Display",'Dehum with Exchanger'!DQ231=1)),"---",P158*(8760-SAPlus!O19-SAPlus!W19)*$P$110*AA104) -> --- | P39: Display | Q39: SelectAire with Exhaust | AD39: TRUE | AE39: SelectAire with Exhaust
A40: 34 | C40: Compressor Dehumidification Electrical | D40: --- | E40: --- | F40: --- | G40: =+IF(EntryData!CI85=13,0,V135) -> 17569.52011 | H40: =IF(P38="No Display","",+W135) -> 26639.56926 | I40: =IF(P39="No Display","",X135) -> 33441.15824 | J40: =IF(P42="No Display","",Y135) -> 22818.72065 | K40: =IF(P40="No Display","",+Z135) -> 2790.949597 | L40: =IF(P48="No Display","",+AA135) -> 59930.80747 | P40: Display | Q40: Two Fan Economizer Dehumidifier | AD40: TRUE | AE40: Two Fan Economizer Dehumidifier
A41: 35 | C41: =IF(P58=FALSE,"","Building Sensible Cooling Compressor Electrical") -> Building Sensible Cooling Compressor Electrical | G41: =IF(P37="No Display","",+$V$153*G14) -> 977.0133091 | H41: =IF(P38="No Display","",+$W$153*H14) -> 458.9294098 | I41: =IF(OR(P39="No Display",P58=FALSE),"",+BuildingLoad!AZ10*I14) -> 783.3807294 | J41: =IF(OR(P42="No Display",P58=FALSE),"",+BuildingLoad!CK10*J14) -> 730.2729115 | K41: =IF(OR(P40="No Display",P58=FALSE),"",+$Z$153) -> 458.9294098 | L41: =IF(OR(P48="No Display",P58=FALSE),"",+$AA$153) -> 917.8588196 | P41: Display | Q41: Dehum. w/ Heat Pipe OSA & Exh Recovery | AD41: TRUE | AE41: Dehum. w/ Heat Pipe OSA & Exh Recovery
A42: 36 | C42: Building Auxiliary Space Heating | D42: =+IF(P34="No Display","",$S$145) -> 74986.47059 | E42: =+IF(AND(P35="No Display",P44="No Display"),"",$S$145) -> 74986.47059 | F42: =+IF(P36="No Display","",$S$145) -> 74986.47059 | G42: =+IF(AND($P$37="No Display",$P$45="No Display"),"",$S$145) -> 74986.47059 | H42: =IF(P38="NO Display","",+$S$145) -> 74986.47059 | I42: =IF(P39="NO Display","",+$S$145) -> 74986.47059 | J42: =IF(P42="NO Display","",+$S$145) -> 74986.47059 | K42: =IF(P40="NO Display","",+$S$145) -> 74986.47059 | L42: =IF(P48="NO Display","",+$S$145) -> 74986.47059 | P42: Display | Q42: SA Plus | AD42: TRUE | AE42: SA Plus
A43: 37 | C43: Gross System Operating Cost | D43: =IF(P34="No Display","",SUM(D32:D42)) -> 766236.1147 | E43: =IF(AND(P35="No Display",P44="No Display"),"",SUM(E32:E42)) -> 766236.1147 | F43: =IF(P36="No Display","",SUM(F32:F42)) -> 261523.0808 | G43: =IF(AND(P37="No Display",P45="No Display"),"",SUM(G32:G42)) -> 261131.4524 | H43: =IF(P38="No Display","",SUM(H32:H42)) -> 180556.6074 | I43: =IF(P39="No Display","",SUM(I32:I42)) -> 215755.8915 | J43: =IF(P42="No Display","",SUM(J32:J42)) -> 193012.7737 | K43: =IF(P40="No Display","",SUM(K32:K42)) -> 191590.7139 | L43: =IF(AND(P41="No Display",P43="No Display"),"",SUM(L32:L42)) -> 263523.1926 | P43: Display | Q43: Dehum w/Glycol OSA & Exh Recovery | AD43: TRUE | AE43: Dehum w/Glycol OSA & Exh Recovery
A44: 38 | B44: Gross System MBTU Energy Required --- Potential MBTU Energy Recovered That is Available | P44: =IF(AD35=TRUE,"Display","No Display") -> Display | Q44: Cont Push Pull w/Glycol Exch | AD44: TRUE | AE44: Cont Push Pull w/Glycol Exch
A45: 39 | C45: Total MBTU Required | D45: =IF(P34="No Display","",D26) -> 55025327.57 | E45: =IF(AND(P35="No Display",P44="No Display"),"",E26) -> 55025327.57 | F45: =IF(P36="No Display","",F26) -> 14648284.87 | G45: =IF(AND(P37="No Display",P45="No Display"),"",G26) -> 13131455.78 | H45: =IF(P38="No Display","",H26) -> 10722819.56 | I45: =IF(P39="No Display","",I26) -> 10725735.16 | J45: =IF(P42="No Display","",J26) -> 10725735.16 | K45: =IF(P40="No Display","",K26) -> 12213738.14 | L45: =IF(P48="No Display","",L26) -> 10723577.09 | P45: =IF(AD35=TRUE,"Display","No Display") -> Display | Q45: Var push pull w/glycol exch | AD45: TRUE | AE45: Var Push Pull w/Glycol Exch
A46: 40
A47: 41 | C47: Potential Recovered Energy - MBTU | D47: =IF(S200=0,"",S200) ->  | E47: =IF(AND(P35="No Display",P44="No Display"),"",T200) -> 11351010.82 | F47: =IF(U200=0,"",U200) ->  | G47: =+IF(AND($P$37="No Display",$P$45="No Display"),"",$V$200) -> 1607558.66 | H47: =IF(P38="No Display","",W200) -> 2580055.924 | I47: =IF(P39="No Display","",X200) -> 4795112.614 | J47: =IF(P42="No Display","",Y200) -> 4671135.47 | K47: =IF(P40="No Display","",Z200) -> 384075.6326 | L47: =IF(P48="No Display","",AA200) -> 5419469.317
A48: 42 | C48: System Gross Operational Cost | D48: =+IF(P34="No Display","",SUM(D34:D42)) -> 766236.1147 | E48: =+IF(AND(P35="No Display",P44="No Display"),"",SUM(E34:E42)) -> 766236.1147 | F48: =+IF(P36="No Display","",SUM(F34:F42)) -> 261523.0808 | G48: =+IF(AND(P37="No Display",P45="No Display"),"",SUM(G32:G42)) -> 261131.4524 | H48: =+IF(P38="No Display","",SUM(H32:H42)) -> 180556.6074 | I48: =+IF(P39="No Display","",SUM(I32:I42)) -> 215755.8915 | J48: =+IF(P42="No Display","",SUM(J32:J42)) -> 193012.7737 | K48: =+IF(P40="No Display","",SUM(K32:K42)) -> 191590.7139 | L48: =+IF(P48="No Display","",SUM(L32:L42)) -> 263523.1926 | P48: =IF(OR(P41="Display",P43="Display"),"Display","No Display") -> Display | Q48: Display or No Display for Dehum (Heat Pipe or Glycol) | AE48: =IF(EntryData!CP13=TRUE,AE44,IF(AD44=TRUE,AE35,"error")) -> Cont Push Pull w/Air Exch
A49: 43 | C49: Total Potential Energy Recoverd from Refrigeration System | D49: --- | E49: --- | F49: --- | G49: =IF(O38="No Display","",V209) -> -20094.48326 | H49: =IF(P38="No Display","",W209) -> -32931.09905 | I49: =IF(P39="No Display","",X209) -> -63771.76304 | J49: =IF(P42="No Display","",Y209) -> -58389.19338 | K49: =IF(P40="No Display","",Z209) -> -4800.945408 | L49: =IF(P48="No Display","",AA203) -> -67743.36646
A50: 44 | C50: Refg. Energy Recovered for Building Heat Loss | D50: --- | E50: --- | F50: --- | G50: =IF(O38="No Display","",V203) -> -11999.7151 | H50: =IF(P38="No Display","",W203) -> -32250.69905 | I50: =IF(X203>0,0,X203) -> 0 | J50: =IF(Y203>0,0,Y203) -> -3860.65055 | K50: =IF(P40="No Display","",Z209) -> -4800.945408 | L50: =IF(P48="No Display","",AA203) -> -67743.36646 | P50: =IF(OR(P35="Display",P44="Display"),"Display","No Display") -> Display | Q50: Display or No Display for Cont Push Pull w/air or glycol | AE50: =IF(EntryData!CP13=TRUE,AE45,IF(AD45=TRUE,AE37,"error")) -> VarPush Pull w/ Exch & Compr
A51: 45 | C51: Building Space Energy Savings Using Desert Aire Heatpump Operation | G51: --- | I51: =X204 -> -34617.72911 | J51: =-SAHeat!H66 -> -11083.46213
A52: 46 | C52: Refg. Energy Recovered for OSA Heating | D52: --- | E52: --- | F52: --- | G52: --- | H52: =-IF(P38="No Display","",-W205) -> 0 | I52: =IF(P40="No Display","",X205) -> -18234.27897 | J52: =IF(P43="No Display","",Y205) -> -20137.08147 | K52: =IF(P41="No Display","",Z210) -> 0 | L52: =IF(P49="No Display","",AA205) -> 0
A53: 47 | C53: OSA Energy Cost Savings Using Desert Aire Heatpump Operation | G53: --- | I53: =X206 -> -10311.50923 | J53: =-SAHeat!H65 -> -5773.671429
A54: 48 | C54: Additional Refrigerant Recovered Energy Available for Pool Heat | D54: --- | E54: --- | F54: --- | G54: --- | H54: =IF(EntryData!BR67=3,"RecoverAire Selected",IF(P38="No Display","",W207)) -> -680.4 | I54: =IF(EntryData!BR67=3,"RecoverAire Selected",IF(Q38="No Display","",X207)) -> -608.2457326 | J54: =IF(EntryData!BR67=3,"RecoverAire Selected",IF(R38="No Display","",Y207)) -> -677.1942372 | K54: =IF(EntryData!BR67=3,"RecoverAire Selected",IF(S38="No Display","",IF(K49-K50-K52<0,K49-K50-K52,0))) -> 0 | L54: =IF(EntryData!BR67=3,"RecoverAire Selected",IF(T38="No Display","",IF(L49-L50-L52<0,L49-L50-L52,0))) -> 0
A55: 49 | C55: Energy Recovered from Air Exchanger or Glycol Exchanger | D55: --- | E55: =IF(AND(P35="No Display",P44="No Display"),"",T209) -> -141887.6353 | F55: --- | G55: =V208 -> -8094.76816 | H55: --- | I55: --- | J55: --- | K55: --- | L55: =IF(P48="No Display","",AA208) -> -4366.01831
A56: 50 | P56: =IF(OR(P37="Display",P45="Display"),"Display","No Display") -> Display | Q56: Display or No Display for Var Push Pull w/air or Glycol | AE56: =IF(Q156=TRUE,AE43,AE41) -> Dehum. w/ Heat Pipe OSA & Exh Recovery
A57: 51 | C57: Net Operational Cost for Temperature & Humidity Control Equipment | D57: =+IF(AND(M37="No Display",M45="No Display"),"",D48+SUM(D50:D55)) -> 766236.1147 | E57: 624348.4794 | F57: 261523.0808 | G57: 241036.9691 | H57: 147625.5084 | I57: =+IF(AND(R37="No Display",R45="No Display"),"",I48+SUM(I50:I55)) -> 151984.1285 | J57: =+IF(AND(S37="No Display",S45="No Display"),"",J48+SUM(J50:J55)) -> 151480.7139 | K57: 186789.7685 | L57: 191413.8078
A58: 52 | P58: =EntryData!CP26 -> TRUE | Q58: Add Sensible Cooling Costs
A59: 53 | B59: =EntryData!BR68 -> Evacuator Not In Design
A60: 54 | D60: Evacuator System | E60: Evacuator System | F60: Evacuator System | G60: Evacuator System | H60: Desert Aire RecoverAire | I60: Desert Aire RecoverAire | J60: Desert Aire RecoverAire | K60: Evacuator System | L60: Evacuator System
A61: 55 | C61: Evacuator Blower Electrical | D61: =+IF($P$34="No Display","",'RecoverAire Data'!$B61) -> 0 | E61: =+IF(AND($P$35="No Display",P44="No Display"),"",'RecoverAire Data'!$B61) -> 0 | F61: =+IF($P$36="No Display","",'RecoverAire Data'!$B61) -> 0 | G61: =+IF(AND($P$37="No Display",$P$45="No Display"),"",'RecoverAire Data'!$B61) -> 0 | H61: =+IF($P$38="No Display","",'RecoverAire Data'!$B61) -> 0 | I61: =+IF($P$39="No Display","",'RecoverAire Data'!$B61) -> 0 | J61: =+IF($P$42="No Display","",'RecoverAire Data'!$B61) -> 0 | K61: =+IF($P$40="No Display","",'RecoverAire Data'!$B61) -> 0 | L61: =+IF($P$48="No Display","",'RecoverAire Data'!$B61) -> 0
A62: 56 | C62: =IF(EntryData!BR67=3,"Compressor Electrical - Low Exh Recovery","") ->  | H62: =+IF($P$38="No Display","",IF(EntryData!BR67=3,'RecoverAire Data'!$B62,"")) ->  | I62: =+IF($P$39="No Display","",IF(EntryData!BR67=3,'RecoverAire Data'!$B62,"")) ->  | J62: =+IF($P$42="No Display","",IF(EntryData!BR67=3,'RecoverAire Data'!$B62,"")) -> 
A63: 57 | C63: Evacuator Gross Operational Cost | D63: =+IF($P$34="No Display","",D61) -> 0 | E63: =+IF(AND($P$35="No Display",P44="No Display"),"",E61) -> 0 | F63: =+IF($P$36="No Display","",F61) -> 0 | G63: =+IF(AND($P$37="No Display",$P$45="No Display"),"",G61) -> 0 | H63: =+IF($P$38="No Display","",IF(EntryData!BR67=3,H61+H62,H61)) -> 0 | I63: =+IF($P$39="No Display","",IF(EntryData!BR67=3,I61+I62,I61)) -> 0 | J63: =+IF($P$42="No Display","",IF(EntryData!BR67=3,J61+J62,J61)) -> 0 | K63: =+IF($P$40="No Display","",K61) -> 0 | L63: =+IF($P$48="No Display","",L61) -> 0
A64: 58 | C64: =IF(EntryData!BR67=3,"Gross Low Exh. Energy Recovery","") ->  | H64: =+IF($P$38="No Display","",IF(EntryData!BR67=3,-'RecoverAire Data'!B65,"")) ->  | I64: =+IF($P$39="No Display","",IF(EntryData!BR67=3,-'RecoverAire Data'!B65,"")) ->  | J64: =+IF($P$42="No Display","",IF(EntryData!BR67=3,-'RecoverAire Data'!B65,"")) -> 
A65: 59 | C65: Net Evacuator Operating Cost | D65: =+IF($P$34="No Display","",D63) -> 0 | E65: =+IF(AND($P$35="No Display",P44="No Display"),"",E63) -> 0 | F65: =+IF($P$36="No Display","",F63) -> 0 | G65: =+IF(AND($P$37="No Display",$P$45="No Display"),"",G63) -> 0 | H65: =+IF($P$38="No Display","",IF(EntryData!BR67=3,SUM(H63+H64),H63)) -> 0 | I65: =+IF($P$39="No Display","",IF(EntryData!BR67=3,SUM(I63+I64),I63)) -> 0 | J65: =+IF($P$42="No Display","",IF(EntryData!BR67=3,SUM(J63+J64),J63)) -> 0 | K65: =IF(P40="No Display","",K63) -> 0 | L65: =IF(AND(P41="No Display",P43="No Display"),"",K63) -> 0
A66: 60
A67: 61 | C67: System & Evacuator Net Oper. Cost | D67: =IF(D57="","",+D57+D65) -> 766236.1147 | E67: =IF(E57="","",+E57+E65) -> 624348.4794 | F67: 261523.0808 | G67: 241036.9691 | H67: 147625.5084 | I67: 151984.1285 | J67: 151480.7139 | K67: 186789.7685 | L67: 191413.8078
A68: 62 | C68: % of INCREASE as compared to the Select Aire unit with Evacuator System | D68: =+IF(OR(P34="No Display",P39="No Display"),"",SUM((D67-$I67)/$I67)) -> 4.041553499 | E68: =+IF(AND(P35="No Display",P44="No Display"),"",SUM((E67-$I67)/$I67)) -> 3.107984733 | F68: =+IF(OR(P36="No Display",P39="No Display"),"",SUM((F67-$I67)/$I67)) -> 0.7207262593 | G68: =+IF(OR(P56="no display",P39="No Display"),"",SUM((G67-$I67)/$I67)) -> 0.5859351339 | H68: =+IF(OR(P38="No Display",P39="No Display"),"",SUM((H67-$I67)/$I67)) -> -0.02867812653 | I68: =+IF(OR(P39="no Display",P42="No Display"),"",SUM((I67-$I67)/$I67)) -> 0 | J68: =+IF(OR(P42="No Display",P39="No Display"),"",SUM((J67-$I67)/$I67)) -> -0.003312284058 | K68: =+IF(OR(P39="no Display",P40="No Display"),"",SUM((K67-$I67)/$I67)) -> 0.2290083867 | L68: =+IF(OR(P48="no display",P39="No Display"),"",SUM((L67-$I67)/$I67)) -> 0.2594328745
A69: 63
A70: 64 | C70: Potential Condensate to Pool | D70: --- | E70: --- | F70: --- | G70: =IF(OR(EntryData!CQ57=1,CQ59=2),0,+SUM('PushPull w Compr'!AY11+'PushPull w Compr'!CH11)*G14) -> 64625.30717 | H70: =IF(P38="No Display","",SUM(Standard!BQ2+Standard!AN2)*H14) -> 185744.8354 | I70: =IF(P39="No Display","",+SUM(SelectAire!CK18+SelectAire!EE17)*I14) -> 223896.2682 | J70: =IF(P42="No Display","",SUM(SAPlus!CJ18+SAPlus!EC17)*J14) -> 352574.2661 | K70: =IF(P40="No Display","",SUM(+'Two Fan Econo'!CD19+'Two Fan Econo'!CV19)*K14) -> 15413.98162 | L70: =IF(AND(P41="No Display",P43="No Display"),"",SUM(+'Dehum with Exchanger'!CC11+'Dehum with Exchanger'!AY11)*L14) -> 183805.6346
A71: 65
A72: 66
O91: Electrical Cost / BTUH | P91: =P110/3412 -> 2.930832356e-05
V93: Is Compr Selected
O94: SA Econo Option | P94: =EntryData!CR51 -> 1 | V94: =+IF(EntryData!CI85=13,"no Compr"," & Compr") -> & Compr
O95: SAPlus Econ Selection | P95: =EntryData!CR45 -> 1
Q96: =SUM(2657848*1000)*P107 -> 33223.1
Q97: =SUM((224005*1000)*P105) -> 1208.264621
P98: Inputs | S98: Cont Push Pull | T98: Cont Push Pull w/ Exch | U98: VarPush Pull | V98: =+CONCATENATE("VarPush Pull w/ Exch",V94) -> VarPush Pull w/ Exch & Compr | W98: Dehum w/remote exhaust | X98: SelectAire w/Exhaust | Y98: SAPlus | Z98: 2 Fan Economizer Dehumidifier | AA98: Dehum w/HP or Glycol Loop
O99: # Of SA Plus Units | P99: =+EntryData!O33 -> 2 | Q99: =SUM(2631023*1000*P107) -> 32887.7875
O100: # of Dehumidifier Units | P100: =+EntryData!C33 -> 1
O101: # of SA Units | P101: =+EntryData!I33 -> 2 | R101: Outside Air Heating Cost Calcs | AD101: Outside Air Heating Cost Calcs
O102: # of Economizer Units | P102: =+EntryData!V33 -> 1 | R102: Occ OSA Heat Load | S102: =+PushPull!N10 -> 13550868.8 | T102: =+PushPull!N10 -> 13550868.8 | U102: =+PushPull!AB10 -> 2069025.713 | V102: =+IF(EntryData!$CI$85<13,'PushPull w Compr'!AG13,PushPull!AB10) -> 1183630.285 | W102: =+Standard!AP4 -> 1222078.229 | X102: =+SelectAire!BN19 -> 612118.1516 | Y102: =+SAPlus!BN19 -> 612118.1516 | Z102: ='Two Fan Econo'!BP20 -> 1841436.711 | AA102: =+'Dehum with Exchanger'!AG13 -> 611039.1147 | AD102: Occ OSA Heat Load
O103: # of PushPull Units | P103: =+EntryData!AJ31 -> 2 | R103: UnOcc OSA Heat Load | S103: =+PushPull!O10 -> 9211424.32 | T103: =+PushPull!O10 -> 9211424.32 | U103: =+PushPull!AF10 -> 504746.0539 | V103: =+IF(EntryData!$CI$85<13,'PushPull w Compr'!BP13,PushPull!AF10) -> 631726.9372 | W103: =+Standard!BS4 -> 0 | X103: =+SelectAire!DK19 -> 0 | Y103: =+SAPlus!DI19 -> 0 | Z103: ='Two Fan Econo'!CH20 -> 870802.5708 | AA103: =+'Dehum with Exchanger'!BK13 -> 0 | AD103: UnOcc OSA Heat Load
O104: # of Dehum w/HP or Glycol Loop | P104: =+EntryData!H126 -> 0 | R104: # of Units | S104: =+P103 -> 2 | T104: =+P103 -> 2 | U104: =+P103 -> 2 | V104: =+P103 -> 2 | W104: =+P100 -> 1 | X104: =+P101 -> 2 | Y104: =P99 -> 2 | Z104: =+P102 -> 1 | AA104: ='Dehum with Exchanger'!B47 -> 2 | AD104: # of Units
O105: Selected SA Aux Heat Cost | P105: ='Fuel Price by State'!G7 -> 5.393918088e-06 | Q105: /btu
O106: Selected SAPlus Aux Heat Cost | P106: ='Fuel Price by State'!G8 -> 2.046591347e-06 | Q106: /btu | R106: Total Heat Load (MBH)/unit | S106: =+(S102+S103) -> 22762293.12 | T106: =+(T102+T103) -> 22762293.12 | U106: 2573771.767 | V106: 1815357.222 | W106: 1222078.229 | X106: 612118.1516 | Y106: 612118.1516 | Z106: =+Z102+Z103 -> 2712239.281 | AA106: =+(AA102+AA103)*AA104 -> 1222078.229 | AD106: Total Heat Load (MBH)/unit
O107: Aux Heat energy cost at rated effiency | P107: =+EntryData!BW12 -> 1.25e-05 | Q107: /btu | R107: Total of all units and hours | S107: =+S106*S104 -> 45524586.24 | T107: 45524586.24 | U107: 5147543.534 | V107: 3630714.444 | W107: =+W106*W104 -> 1222078.229 | X107: =+X106*X104 -> 1224236.303 | Y107: 1224236.303 | Z107: 2712239.281 | AA107: =+AA106 -> 1222078.229 | AD107: Total of all units and hours
R108: OSA Heating Cost with SA Series Heat Pump | X108: =X107*1000*$P$105 -> 6603.430339 | Y108: =Y107*1000*$P$106 -> 2505.511425 | AD108: OSA Heating Cost with SA Series Heat Pump
O109: Dehum Hgt Gas Eff | P109: =+EntryData!Q11 -> 0.8 | R109: OSA Heating Cost with selected aux heat fuel | S109: =S107*1000*$P$107 -> 569057.328 | T109: =T107*1000*$P$107 -> 569057.328 | U109: 64344.29417 | V109: 45383.93054 | W109: =W107*1000*$P$107 -> 15275.97787 | X109: =X107*1000*$P$107 -> 15302.95379 | Y109: =Y107*1000*$P$107 -> 15302.95379 | Z109: =Z107*1000*$P$107 -> 33902.99102 | AA109: 15275.97787 | AD109: OSA Heating Cost with selected aux heat fuel
O110: Elec Cost/kW | P110: =+EntryData!Q12 -> 0.1 | Q110: /kW | R110: Exchanger Efficiency & Rcvrd Heat | V110: =PushPull!AE9 -> 0.5032159115 | AA110: =EntryData!AE65 -> 0.5 | AD110: Exchanger Efficiency
O111: Aux Pool heater energy cost at rated effiency | P111: =+EntryData!BW11 -> 1.25e-05 | Q111: /btu | R111: Occ Recovery MBH | T111: =-PushPull!U2*T104 -> -6766213.148 | V111: =-PushPull!AI2 -> -520427.4806 | AA111: =-'Dehum with Exchanger'!CY10 -> -349281.4648 | AD111: Occ Recovery MBH
O112: Pool Hgt Gas Eff | P112: =+EntryData!Q16 -> 0.8 | R112: Unocc Recovery MBH | T112: =-PushPull!U3*T104 -> -4584797.676 | V112: =-PushPull!AI3 -> -127153.9722 | AA112: =-'Dehum with Exchanger'!CZ10 -> 0 | AD112: Unocc Recovery MBH
O113: Selected Aux Heat Net BTUH | P113: =+EntryData!BU12 -> 100000 | V113: Totals of all units
O114: Economizer Compr kW | P114: =+P122+P123 -> 65.4 | R114: Total Occ Recovery | T114: =+T111 -> -6766213.148 | V114: =+V111 -> -520427.4806 | AA114: =+AA111 -> -349281.4648 | AD114: Total Occ Recovery
R115: Total Unocc Recovery | T115: =+T112 -> -4584797.676 | V115: =+V112 -> -127153.9722 | AA115: =+AA112 -> 0 | AD115: Total Unocc Recovery
O116: From SelectAire Tab | Q116: Single Pool Evap for Pool Heating | T116: =+T114+T115 -> -11351010.82 | V116: =+V114+V115 -> -647581.4528 | AA116: =+AA114+AA115 -> -349281.4648
O117: UnOcc Evap Loss Total lb/hr | P117: =+SelectAire!B42 -> 116.15 | Q117: =EntryData!J9 -> 232.3 | R117: Pool Water Heating Cost Calculation | AD117: Pool Water Heating Cost Calculation
O118: Occ Evap Loss Total lb/hr | P118: =+SelectAire!B43 -> 179.2 | Q118: =EntryData!J15 -> 358.4 | R118: Unocc Total BTU | S118: ='RecoverAire Data'!B46*1000 -> 980521888 | T118: Unocc Hours: | U118: =8760-U119 -> 3285 | V118: =+S118/U118/1060 -> 281.5892387 | W118: lb/hr equiv | AD118: Unocc Total BTU
O119: UnOcc Total Bin Hours | P119: =+SelectAire!K19 -> 3285 | R119: Occ Total BTU | S119: ='RecoverAire Data'!B47*1000 -> 2521301798 | T119: Occ Hours: | U119: =SUM(EntryData!D12*365) -> 5475 | V119: =+S119/U119/1060 -> 434.4450415 | AD119: Occ Total BTU
O120: Occ Total Bin Hours | P120: =+SelectAire!J19 -> 5475 | R120: Total Water Heat Required (MBH) | S120: =(S118+S119)/1000 -> 3501823.686 | AD120: Total Water Heat Required (MBH)
Q121: Standard Dehum | R121: UnOcc Cost | S121: =+S118*P111 -> 12256.5236 | AD121: UnOcc Cost
O122: Cir A kW UnOcc | P122: =+SelectAire!B111 -> 32.7 | Q122: =+Standard!B95 -> 32.7 | R122: Occ Cost | S122: =S119*P111 -> 31516.27248 | AD122: Occ Cost
O123: Cir B kW UnOcc | P123: =+SelectAire!B112 -> 32.7 | Q123: =+Standard!B96 -> 32.7 | R123: Total Pool Water Heating Cost | S123: =+S121+S122 -> 43772.79608 | W123: Dehum | X123: SA | Y123: SA Plus | Z123: Econ | AA123: Dehum Glycol | AD123: Total Pool Water Heating Cost
O124: Cir A kW Occ | P124: =+SelectAire!B91 -> 32.7 | Q124: =Standard!B75 -> 32.7 | R124: Compressor Electrical Costs for Dehum Operation | V124: Compr hous for all units | W124: Compr hous for all units | AD124: Compressor Electrical Costs for Dehum Operation
O125: Cir B kW Occ | P125: =+SelectAire!B92 -> 32.7 | Q125: =Standard!B76 -> 32.7 | R125: Unocc Compr Hours Cir A | V125: =+IF(EntryData!$CI$85<13,'PushPull w Compr'!BY12*V104,0) -> 3451.353709 | W125: =+Standard!BH4*W104 -> 3285 | X125: =+SelectAire!BL10*X104 -> 0 | Y125: =+SAPlus!BL11*Y104 -> 0 | Z125: =+'Two Fan Econo'!CT20*Z104 -> 146.0080328 | AA125: ='Dehum with Exchanger'!BT12*AA104 -> 6522.269231 | AD125: Unocc Compr Hours Cir A
R126: Unocc Compr Hours Cir B | V126: =+IF(EntryData!$CI$85<13,'PushPull w Compr'!BZ12*V104,0) -> 0 | W126: =+Standard!BI4*W104 -> 513.9433354 | X126: =+SelectAire!BL11*X104 -> 4304.167052 | Y126: =+SAPlus!BL12*Y104 -> 3778.188598 | Z126: =+'Two Fan Econo'!CU20*Z104 -> 36.09323093 | AA126: ='Dehum with Exchanger'!BU12*AA104 -> 0 | AD126: Unocc Compr Hours Cir B
O127: UnOcc Code Vent cfm | P127: =+SelectAire!B50 -> 0 | R127: Occ Compr Hours Cir A | V127: =+IF(EntryData!$CI$85<13,'PushPull w Compr'!AP12*V104,0) -> 1381.542179 | W127: =+Standard!AE4*W104 -> 4776.58332 | X127: =+SelectAire!BK10*X104 -> 10738 | Y127: =SAPlus!BK11*Y104 -> 10738 | Z127: =+'Two Fan Econo'!CB20*Z104 -> 488.9767618 | AA127: ='Dehum with Exchanger'!AP12*AA104 -> 7211.213232 | AD127: Occ Compr Hours Cir A
R128: Occ Compr Hours Cir B | V128: =+IF(EntryData!$CI$85<13,'PushPull w Compr'!AQ12*V104,0) -> 0 | W128: =+Standard!AF4*W104 -> 609.7154433 | X128: =+SelectAire!BK11*X104 -> 117.7045106 | Y128: =+SAPlus!BK12*Y104 -> 29.5129388 | Z128: =+'Two Fan Econo'!CC20*Z104 -> 182.4233803 | AA128: ='Dehum with Exchanger'!AQ12*AA104 -> 12.11558059 | AD128: Occ Compr Hours Cir B
O129: From EntryData Tab | R129: Total Compressor Hours | V129: =SUM(V125:V128) -> 4832.895888 | W129: =SUM(W125:W128)*W104 -> 9185.242099 | X129: =SUM(X125:X128) -> 15159.87156 | Y129: =SUM(Y125:Y128) -> 14545.70154 | Z129: =SUM(Z125:Z128) -> 853.5014058 | AA129: =SUM(AA125:AA128) -> 13745.59804 | AD129: Total Compressor Hours
O130: Push Pull Blower | P130: kW | Q130: HP | R130: Cir A kW Total | V130: =+IF(EntryData!$CI$85<13,'PushPull w Compr'!AZ2*V104,0) -> 175695.2011 | W130: =+(Standard!AD2)*W104 -> 233141.0245 | X130: =SUM(SelectAire!BR10)*X104 -> 189423.9823 | Y130: =SUM(SAPlus!BR11)*Y104 -> 110922.3693 | Z130: =('Two Fan Econo'!BW20+'Two Fan Econo'!CO20)*Z104 -> 20764.00278 | AA130: =+'Dehum with Exchanger'!AZ2*AA104 -> 598779.8354 | AD130: Cir A kW Total
O131: kW S/A | P131: =Q131*0.746 -> 29.84 | Q131: =EntryData!CM49 -> 40 | R131: Cir B kW Total | V131: =+IF(EntryData!$CI$85<13,'PushPull w Compr'!AZ3*V104,0) -> 0 | W131: =+(Standard!AE2)*W104 -> 33254.66812 | X131: =SUM(SelectAire!BR11)*X104 -> 144987.6001 | Y131: =SUM(SAPlus!BR12)*Y104 -> 117264.8372 | Z131: =('Two Fan Econo'!BY20+'Two Fan Econo'!CQ20)*Z104 -> 7145.493188 | AA131: =+'Dehum with Exchanger'!AZ3*AA104 -> 528.2393137 | AD131: Cir B kW Total
O132: kW E/A | P132: =Q132*0.746 -> 14.92 | Q132: =EntryData!CM50 -> 20 | R132: Total Comp kW | V132: =+V130+V131 -> 175695.2011 | W132: 266395.6926 | X132: 334411.5824 | Y132: 228187.2065 | Z132: 27909.49597 | AA132: 599308.0747 | AD132: Total Comp kW
R133: Cir A kW Total Elec Cost | V133: =+$P$110*V130 -> 17569.52011 | W133: =+$P$110*W130 -> 23314.10245 | X133: =+$P$110*X130 -> 18942.39823 | Y133: =+$P$110*Y130 -> 11092.23693 | Z133: 2076.400278 | AA133: 59877.98354 | AD133: Cir A kW Total Elec Cost
R134: Cir B kW Total Elec Cost | V134: =+$P$110*V131 -> 0 | W134: 3325.466812 | X134: 14498.76001 | Y134: 11726.48372 | Z134: 714.5493188 | AA134: 52.82393137 | AD134: Cir B kW Total Elec Cost
O135: Push Pull Glycol Pump kW | P135: 0 | Q135: =EntryData!CK53 -> 0 | R135: Total Compressor Electrical | V135: =+V133+V134 -> 17569.52011 | W135: 26639.56926 | X135: 33441.15824 | Y135: 22818.72065 | Z135: 2790.949597 | AA135: 59930.80747 | AD135: Total Compressor Electrical
R136: Refrigerant Recoverd Energy
O137: Option 1 Standard Dehum Fan HP's | P137: kW | Q137: HP | R137: MBH Recovered Unocc | T137: =-T114 -> 6766213.148 | V137: =+IF(EntryData!$CI$85<13,'PushPull w Compr'!BX12*V104,0) -> 273998.9924 | W137: =+Standard!BG4*W104 -> 1103268.132 | X137: =SAHeat!T21*X104 -> 2703156.967 | Y137: =SAHeat!T50*Y104 -> 2763905.866 | Z137: =+'Two Fan Econo'!CS19*Z104 -> 81945.56866 | AA137: ='Dehum with Exchanger'!BS12*AA104 -> 2649794.279 | AD137: MBH Recovered Unocc
O138: Dehumidifier Supply Fan kW | P138: =Q138*0.746 -> 18.65 | Q138: =Standard!CK4 -> 25 | R138: MBH Recovered Occ (Dehum-A&B, Compr A&B) | T138: =-T115 -> 4584797.676 | V138: =+IF(EntryData!$CI$85<13,'PushPull w Compr'!AO12*V104,0) -> 685978.2152 | W138: =+Standard!AD4*W104 -> 1476787.792 | X138: =SAHeat!T22*X104 -> 2091955.647 | Y138: =SAHeat!T51*Y104 -> 1907229.604 | Z138: =+'Two Fan Econo'!CC19*Z104 -> 302130.064 | AA138: ='Dehum with Exchanger'!AO12*AA104 -> 2769675.038 | AD138: MBH Recovered Occ
O139: Dehumidifier Exhaust Fan kW | P139: =Q139*0.746 -> 5.595 | Q139: =Standard!CL4 -> 7.5 | R139: Total Recovered MBH | T139: =+T137+T138 -> 11351010.82 | V139: =+V137+V138 -> 959977.2076 | W139: =+(W137+W138) -> 2580055.924 | X139: =X137+X138 -> 4795112.614 | Y139: =Y137+Y138 -> 4671135.47 | Z139: =+(Z137+Z138) -> 384075.6326 | AA139: =+(AA137+AA138) -> 5419469.317 | AD139: Total Recovered MBH
R140: Recovered Energy $ | S140: =+S139*1000*$P$107 -> 0 | T140: 141887.6353 | U140: 0 | V140: 11999.7151 | W140: 32250.69905 | X140: 59938.90767 | Y140: 58389.19338 | Z140: 4800.945408 | AA140: 67743.36646 | AD140: Recovered Energy $
O141: Option 2 Standard SA Fan HP's | P141: kW | Q141: HP/BHP
O142: Dehumidifier Supply Fan kW | P142: =Q142*0.746 -> 18.65 | Q142: =SelectAire!FY18 -> 25 | R142: Building Heat Gain / Loss Calculations
O143: Dehumidifier Exhaust Fan kW | P143: =Q143*0.746 -> 7.46 | Q143: =SelectAire!GB18 -> 10 | R143: Total Heat Loss (MBH) | S143: =+BuildingLoad!P11/1000 -> 5998917.647 | U143: Total Heat Gain (MBH) | V143: =BuildingLoad!T9/1000 -> 141957.7467
R144: Total # of Therms | S144: =+S143/(P113*P109)*1000 -> 74986.47059
O145: Option 3 SAPlus Dehum Fan HP's | P145: kW | Q145: HP | R145: Total Heating Cost | S145: =SUM(+S143*1000)*P107 -> 74986.47059
O146: Dehumidifier Supply Fan kW | P146: =Q146*0.746 -> 17.8294 | Q146: =SAPlus!FW18 -> 23.9
O147: Dehumidifier Exhaust Fan kW | P147: =Q147*0.746 -> 6.714 | Q147: =SAPlus!FZ18 -> 9
R148: Sensible Cooling "A" kW Occupied | V148: =BuildingLoad!FD6 -> 3764.941237 | W148: =BuildingLoad!DT6 -> 3466.2 | X148: =BuildingLoad!AY6 -> 2971.561994 | Y148: =BuildingLoad!CJ6 -> 2755.299238
O149: Economizer Blower | P149: kW | Q149: HP | R149: Sensible Cooling "A" kW Unoccupied | V149: =BuildingLoad!FD7 -> 130.8 | W149: =BuildingLoad!DT7 -> 175.1940981 | X149: =BuildingLoad!AY7 -> 98.1 | Y149: =BuildingLoad!CJ7 -> 111.4488939
O150: kW S/A | P150: =Q150*0.746 -> 26.11 | Q150: ='Two Fan Econo'!DN55 -> 35 | R150: Sensible Cooling "B" kW Occupied | V150: =BuildingLoad!FD8 -> 751.3780589 | W150: =BuildingLoad!DT8 -> 751.7 | X150: =BuildingLoad!AY8 -> 661.5478974 | Y150: =BuildingLoad!CJ8 -> 631.0857259
O151: kW E/A | P151: =Q151*0.746 -> 23.3498 | Q151: ='Two Fan Econo'!DP55 -> 31.3 | R151: Sensible Cooling "B" kW Unoccupied | V151: =BuildingLoad!FD9 -> 237.9472501 | W151: =BuildingLoad!DT9 -> 196.2 | X151: =BuildingLoad!AY9 -> 185.6937554 | Y151: =BuildingLoad!CJ9 -> 153.5307
O152: Dehum Blowers w/heat pipe/ glycol | P152: kW | Q152: HP | R152: Total kW | V152: =SUM(V148:V151) -> 4885.066546 | W152: =SUM(W148:W151) -> 4589.294098 | X152: =SUM(X148:X151) -> 3916.903647 | Y152: =SUM(Y148:Y151) -> 3651.364558
O153: kW S/A | P153: =Q153*0.746 -> 29.84 | Q153: ='Dehum with Exchanger'!DX11 -> 40 | R153: Sensible Cooling Cost Per Unit | V153: =V152*P110 -> 488.5066546 | W153: =W152*P110 -> 458.9294098 | X153: =X152*P110 -> 391.6903647 | Y153: =Y152*P110 -> 365.1364558 | Z153: =W153*Z104 -> 458.9294098 | AA153: =W153*AA104 -> 917.8588196
O154: kW E/A | P154: =Q154*0.746 -> 14.92 | Q154: ='Dehum with Exchanger'!DY11 -> 20 | R154: Potential THR for Pool Heat/unit | V154: =BuildingLoad!FF10 -> 86529.36407 | W154: =BuildingLoad!DV10 -> 83279.80219 | X154: =BuildingLoad!BB10 -> 24631.38822 | Y154: =BuildingLoad!CL10 -> 175311.6746
O155: Glycol Pump k/W | P155: =Q155*0.746 -> 0 | Q155: =IF(Q156=FALSE,0,EntryData!AD66) -> 0 | R155: Total Project Available for Pool | V155: =V154 -> 86529.36407 | W155: =W154 -> 83279.80219 | X155: =X154 -> 24631.38822 | Y155: =Y154 -> 175311.6746
O156: Compressor "A" kW | P156: ='Dehum with Exchanger'!B89 -> 43.6 | Q156: =EntryData!CP10 -> FALSE | R156: Pool Heat Required (MBH) | V156: =S120 -> 3501823.686 | W156: =S120 -> 3501823.686 | X156: =S120 -> 3501823.686 | Y156: =S120 -> 3501823.686
O157: Compressor "B" kW | P157: ='Dehum with Exchanger'!B90 -> 43.6 | R157: Amount Available to Heat Pool (MBH) | V157: =IF(V156>V155,V155,V156) -> 86529.36407 | W157: =IF(W156>W155,W155,W156) -> 83279.80219 | X157: =IF(X156>X155,X155,X156) -> 24631.38822 | Y157: =IF(Y156>Y155,Y155,Y156) -> 175311.6746
O158: Glycol Pump k/W | P158: =Q158*0.746 -> 0 | Q158: =IF('Dehum with Exchanger'!DQ231=1,0,EntryData!AD61) -> 0
O159: Operating Hours for Exh Fan
O160: Occupied | P160: 5475
O161: Unoccupied | P161: =IF(EntryData!G46>0,3285,0) -> 0
O162: Total Hrs of Exh Fan Operation | P162: =P160+P161 -> 5475
S166: Cont Push Pull | T166: Cont Push Pull w/ Exch | U166: VarPush Pull | V166: =+V98 -> VarPush Pull w/ Exch & Compr | W166: Dehum w/remote exhaust | X166: SelectAire w/Exhaust | Y166: SAPlus | Z166: Economizer Dehumidifier | AA166: Dehumidifier w/exhaust + Heat Pipe OSA Recovery
R168: Energy Summary
R169: OSA Heating MBH | S169: =+S106 -> 22762293.12 | T169: 22762293.12 | U169: 2573771.767 | V169: =+V107 -> 3630714.444 | W169: =+W106 -> 1222078.229 | X169: =+X106 -> 612118.1516 | Y169: =+Y106 -> 612118.1516 | Z169: =+Z106 -> 2712239.281 | AA169: =+AA106 -> 1222078.229
R170: Makeup Pool Water Heating MBH | S170: =+($S$118+$S$119)/1000 -> 3501823.686 | T170: 3501823.686 | U170: 3501823.686 | V170: 3501823.686 | W170: 3501823.686 | X170: 3501823.686 | Y170: 3501823.686 | Z170: 3501823.686 | AA170: 3501823.686
R171: Sensible Cooling MBH | S171: =$V$143 -> 141957.7467 | T171: 141957.7467 | U171: 141957.7467 | V171: 141957.7467 | W171: 141957.7467 | X171: 141957.7467 | Y171: 141957.7467 | Z171: 141957.7467 | AA171: 141957.7467
R172: Heat Loss to Structure MBH | S172: =+$S$143 -> 5998917.647 | T172: 5998917.647 | U172: 5998917.647 | V172: 5998917.647 | W172: 5998917.647 | X172: 5998917.647 | Y172: 5998917.647 | Z172: 5998917.647 | AA172: 5998917.647
R173: Gross Energy Required MBH | S173: =SUM(S169:S172) -> 32404992.2 | T173: =SUM(T169:T172) -> 32404992.2 | U173: 12216470.85 | V173: 13273413.52 | W173: 10864777.31 | X173: 10254817.23 | Y173: =SUM(Y169:Y172) -> 10254817.23 | Z173: 12354938.36 | AA173: 10864777.31
R174: Gross Energy Required kW | S174: =S173/3.412 -> 9497359.965 | T174: =T173/3.412 -> 9497359.965 | U174: 3580442.804 | V174: 3890214.983 | W174: 3184284.088 | X174: 3005515.015 | Y174: =Y173/3.412 -> 3005515.015 | Z174: 3621025.311 | AA174: 3184284.088
R176: Gross Operating Energy
R177: Compressor kW for Dehum Operation | S177: =+S130+S131 -> 0 | T177: 0 | U177: 0 | V177: 175695.2011 | W177: 266395.6926 | X177: 334411.5824 | Y177: 228187.2065 | Z177: 27909.49597 | AA177: 599308.0747
R178: SA Blower kW | S178: =$P131*($P$119+$P$120)*S104 -> 522796.8 | T178: =$P131*($P$119+$P$120)*T104 -> 522796.8 | U178: =$P131*($P$119+$P$120)*U104 -> 522796.8 | V178: =$P131*($P$119+$P$120)*V104 -> 522796.8 | W178: =$P138*($P$119+$P$120)*W104 -> 163374 | X178: =$P142*($P$119+$P$120)*X104 -> 326748 | Y178: =$P146*($P$119+$P$120)*Y104 -> 312371.088 | Z178: =$P150*($P$119+$P$120)*Z104 -> 228723.6 | AA178: =$P138*($P$119+$P$120)*AA104 -> 326748
R179: EA Blower kW | S179: =$P132*($P$119+$P$120)*S104 -> 261398.4 | T179: =$P132*($P$119+$P$120)*T104 -> 261398.4 | U179: =$P132*($P$119+$P$120)*U104 -> 261398.4 | V179: =$P132*($P$119+$P$120)*V104 -> 261398.4 | W179: =$P139*P162*W104 -> 30632.625 | X179: =SUM(SelectAire!AX19+SelectAire!CT19)*X104 -> 11841.7183 | Y179: =SUM(SAPlus!AX19+SAPlus!CS19)*Y104 -> 16367.37688 | Z179: =$P151*($P$119+$P$120)*Z104 -> 204544.248 | AA179: =$P139*($P$119+$P$120)*AA104 -> 98024.4
R180: Total kW of Operating Energy | S180: =SUM(S175:S179) -> 784195.2 | T180: =SUM(T175:T179) -> 784195.2 | U180: 784195.2 | V180: 959890.4011 | W180: 460402.3176 | X180: 673001.3006 | Y180: =SUM(Y175:Y179) -> 556925.6714 | Z180: 461177.344 | AA180: =SUM(AA175:AA179) -> 1024080.475
U186: Var PP | V186: Var PP w/ exch | W186: Dehum | X186: SA | Y186: SAPlus | Z186: Econo | AA186: Heat Pipe recv
R187: Total Potential Condenser Energy Recovered (MBH) | S187: 0 | T187: 0 | U187: 0 | V187: =V139 -> 959977.2076 | W187: 2580055.924 | X187: 4795112.614 | Y187: 4671135.47 | Z187: 384075.6326 | AA187: 5419469.317
R188: Energy Recovered for Building Heat (MBH) | S188: =IF($S$143<S187,$S$143,S187) -> 0 | T188: 0 | U188: 0 | V188: 959977.2076 | W188: 2580055.924 | X188: =SAHeat!G31*X104 -> 2769418.328 | Y188: =SAHeat!G60*Y104 -> 1773353.941 | Z188: =IF($S$143<Z187,$S$143,Z187) -> 384075.6326 | AA188: 5419469.317
R189: Balance for other heat sinks | S189: =+S187-S188 -> 0 | T189: 0 | U189: 0 | V189: 0 | W189: 0 | X189: =+X187-X188 -> 2025694.286 | Y189: =+Y187-Y188 -> 2897781.529 | Z189: 0 | AA189: 0
R191: Net Refg. recovery to the outside air | S191: =IF(S169<S189,S169,S189) -> 0 | T191: 0 | U191: 0 | V191: 0 | W191: 0 | X191: 612118.1516 | Y191: 612118.1516 | Z191: 0 | AA191: 0
R193: Balance for other heat sinks | S193: =+S189-S191 -> 0 | T193: 0 | U193: 0 | V193: 0 | W193: 0 | X193: 1413576.134 | Y193: 2285663.378 | Z193: 0 | AA193: =+AA189-AA191 -> 0
R195: Energy Recovered to the Pool (MBH) | S195: =IF($S120<S193,$S120,S193) -> 0 | T195: 0 | U195: 0 | V195: 0 | W195: =IF(EntryData!BR34=1,0,IF(EntryData!BR34=2,Standard!M1,IF(EntryData!BR34=3,Standard!M2,Standard!M3))) -> 54432 | X195: =IF(EntryData!BR41=1,0,IF(EntryData!BR41=2,SelectAire!BM14,IF(EntryData!BR41=3,SelectAire!BM16,SelectAire!BM14+SelectAire!BM16))) -> 48659.65861 | Y195: =IF(EntryData!BR48=1,0,IF(EntryData!BR48=2,SAPlus!BM15,IF(EntryData!BR48=3,SAPlus!BM17,SAPlus!BM15+SAPlus!BM17))) -> 54175.53898 | Z195: 0 | AA195: 0
R196: Balance for other heat sinks | S196: =+S193-S195 -> 0 | T196: 0 | U196: 0 | V196: 0 | Z196: =+Z193-Z195 -> 0 | AA196: 0
R198: Recovered Energy OSA Heat Pipe (50% EFF)(MBH) | T198: =-T116 -> 11351010.82 | V198: =-V116 -> 647581.4528 | AA198: =-AA116 -> 349281.4648
R200: Total MBH Recovered all units | S200: =+S188+S191+S198+S195 -> 0 | T200: 11351010.82 | U200: 0 | V200: 1607558.66 | W200: =W187 -> 2580055.924 | X200: =X187 -> 4795112.614 | Y200: 4671135.47 | Z200: 384075.6326 | AA200: 5419469.317
R202: Total Recvr'd Energy | W202: =-W200*1000*$P$107 -> -32250.69905 | X202: =-X200*1000*$P$107 -> -59938.90767 | Y202: =-Y200*1000*$P$107 -> -58389.19338
R203: Refrigerant Energy (THR) Recovered to the Building($'s) | S203: =-SUM(S188*1000*$P$107) -> 0 | T203: 0 | U203: 0 | V203: -11999.7151 | W203: -32250.69905 | X203: =IF(X202-X204-X205-X206-X207>0,0,X202-X204-X205-X206-X207) -> 0 | Y203: =IF(Y202-Y204-Y205-Y206-Y207>0,0,Y202-Y204-Y205-Y206-Y207) -> -3860.65055 | Z203: -4800.945408 | AA203: -67743.36646
R204: Savings In Building Heat with Desert Aire Heatpump Operation | X204: =-SAHeat!H37*X104 -> -34617.72911 | Y204: =-SAHeat!H66*Y104 -> -22166.92426
R205: Refrigerant Energy (THR) Recovered to the Air ($'s) | S205: =-SUM(S191*1000*$P$107) -> 0 | T205: 0 | U205: 0 | V205: 0 | W205: 0 | X205: =SUM(-SAHeat!J31+-SAHeat!K31)*X104 -> -18234.27897 | Y205: =(-SAHeat!K60+-SAHeat!J60)*Y104 -> -20137.08147 | Z205: =-SUM(Z191*1000*$P$107) -> 0 | AA205: 0
R206: Savings iIn OSA Heat with Desert Aire Heat Pump Operation | W206: 0 | X206: =-SAHeat!H36*X104 -> -10311.50923 | Y206: =-SAHeat!H65*Y104 -> -11547.34286
R207: Energy Recovered to the Pool ($'s) | W207: =-SUM(W195*1000*$P$111) -> -680.4 | X207: =-SUM(X195*1000*$P$111) -> -608.2457326 | Y207: =-SUM(Y195*1000*$P$111) -> -677.1942372 | Z207: =-SUM(Z195*1000*$P$111) -> 0 | AA207: =-SUM(AA195*1000*$P$111) -> 0
R208: Recovered Energy OSA Heat Pipe (50% EFF)($'s) | T208: =-$P$107*T198*1000 -> -141887.6353 | V208: =-$P$107*V198*1000 -> -8094.76816 | AA208: =-$P$107*(AA198*1000) -> -4366.01831
R209: Total Recovered Energy ($'s) | S209: =SUM(S203:S208) -> 0 | T209: -141887.6353 | U209: 0 | V209: -20094.48326 | W209: -32931.09905 | X209: -63771.76304 | Y209: -58389.19338 | Z209: -4800.945408 | AA209: =SUM(AA203:AA208) -> -72109.38477
AM284: Data Link for camera shot
AM287: Utility Rates for Auxiliary Heat | AQ287: Notes: | AR287: SA Series | AS287: SAPlus Series
AM288: =+EntryData!Q10 -> 1 | AN288: =+EntryData!E70 -> 0 | AQ288: =+SelectAire!A52 -> F Heating Lower Temp cutoff: | AR288: =EntryData!K61 -> 47 | AS288: =EntryData!Q61 -> 47
AM289: =+EntryData!Q11 -> 0.8 | AN289: Fuel Efficiency | AQ289: SelectAire/SAPlus Economizer: | AR289: =+EntryData!CR52 -> No Econo | AS289: =EntryData!CR46 -> No Econo
AM290: =+EntryData!Q12 -> 0.1 | AN290: =+EntryData!E72 -> 0 | AQ290: Std Dehum Unit | AR290: SA Series | AS290: SAPlus Series
AQ291: =+EntryData!BR35 -> With Pool Water Condenser Circuit A | AR291: =+EntryData!BR42 -> With Pool Water Condenser Circuit A | AS291: =+EntryData!BR49 -> 0
AM293: Utility Rates for Pool Water Heat
AM294: =+EntryData!Q15 -> 1 | AN294: =+EntryData!#REF! ->  | AQ294: Low Exhaust Option: | AR294: =+EntryData!I82 -> 0
AM295: =+EntryData!Q16 -> 0.8 | AN295: Fuel Efficiency | AQ295: > All recovered energy created by the refrigeration system is credited
AM296: Fuel Efficiency (If Electric Value is 100%) | AQ296: to the fuel used to heat the air or the pool water
AQ298: Design Outside Ventilation Air Included
AM299: =IF(EntryData!BR68=1,"Evacuator Not Included","Evacuator Exhaust Energy Recovery") -> Evacuator Exhaust Energy Recovery | AR299: Occupied Ventilation Outside Air: | AS299: ='Pool Entry'!G35 -> 5782
AM300: =IF(AM299="Evacuator Not Included","",+'RecoverAire Data'!B64/1000) -> 0 | AN300: =IF(AM300="","","MBTU Energy Recovered to Main Pool") -> MBTU Energy Recovered to Main Pool | AR300: Unoccupied Ventilation Outside Air: | AS300: ='Pool Entry'!G40 -> 0
AM301: =IF(AM299="Evacuator Not Included","",+AM300/(100000*P112)) -> 0 | AN301: =IF(AM301="","",+CONCATENATE("Therms @ ",P112*100,"% Gas Eff")) -> Therms @ 80% Gas Eff
AM302: =IF(AM300="","",+'RecoverAire Data'!B37) ->  | AN302: =IF(AM302="","","COP") -> 

Sheet SAPlus Perform (hidden)
A1: This page was update to Rev R8 on August 15, 2018 by HM | H1: OPTIONAL CFM SELECTION | L1: REFERENCE ONLY -- STANDARD SELECTIONS
A2: IF NEEDED ONLY, ENTER DATA IN THIS COLOR CELL » OR "INPUTS" (BELOW) WILL CARRY OVER FROM "INPUT" SHEET AND "OPTIONAL CFM" (RIGHT) WILL REMAIN AS DEFAULT VALUES. | H2: UNIT | I2: TOTAL CFM | J2: TOTAL CFM Per Circuit | K2: EVAP AIR CFM per Circuit | L2: TOTAL AIR CFM | M2: TOTAL AIR CFM | N2: EVAP AIR CFM | O2: BYPASS CFM | P2: MAX OA CFM | Q2: Total Max Unit OSA | R2: Total Max Unit Evap CFM
A3: INPUTS | H3: SP70A | I3: =EntryData!P42 -> 30000 | J3: =0.42858*$I$3 -> 12857.4 | K3: 6290 | L3: 35000 | M3: 15000 | N3: 6290 | O3: =M3-N3 -> 8710 | P3: =0.5*M3 -> 7500 | Q3: =+I3*0.5 -> 15000 | R3: =+K3+K4 -> 15890
A4: DESC | B4: VALUE | H4: SP70B | J4: =0.57142*I3 -> 17142.6 | K4: 9600 | M4: 20000 | N4: 9600 | O4: =M4-N4 -> 10400 | P4: =0.5*M4 -> 10000 | BM4: SP70B - UNOCCUPIED | CG4: Off Evap Conditions @ different Altitudes
A5: Circuit A Zone Air Design Dry Bulb Temperature (°F) | B5: ='Pool Entry'!G24 -> 84 | E5: BTU/lb used for constant | F5: 1060 | H5: SP80A | I5: =EntryData!P42 -> 30000 | J5: =0.42858*I5 -> 12857.4 | K5: 6290 | L5: 40000 | M5: 17143 | N5: 6290 | O5: =M5-N5 -> 10853 | P5: =0.5*M5 -> 8571.5 | Q5: =+I5*0.5 -> 15000 | R5: =+K5+K6 -> 15890 | BM5: EVAPORATOR | BS5: HEATPIPE (HP) | BV5: LOOKUP TABLES
A6: Circuit A Zone Air Design Occupied RH (%) | B6: ='Pool Entry'!G26 -> 60 | E6: ROC SCT | F6: 118 | H6: SP80B | J6: =0.57142*I5 -> 17142.6 | K6: 9600 | M6: 22857 | N6: 9600 | O6: =M6-N6 -> 13257 | P6: =0.5*M6 -> 11428.5 | BM6: Final IN db | BN6: Final IN wb | BO6: Final IN RH | BQ6: Final OUT db | BR6: Final OUT wb | BS6: Final OUT db | BT6: Precool Eff | BU6: Reheat Eff | CG6: F db | CH6: % RH | CI6: Btu/lb | CJ6: ft³/lb | CK6: Dewpoint | CL6: gr/lb | CM6: Altitude | CN6: Density | CO6: Inverse
A7: Circuit A Zone Air Design Unoccupied RH (%) | B7: ='Pool Entry'!G25 -> 50 | BM7: =IF(VLOOKUP($E$10,$BY$10:$CB$59,4)="CF","Consult Factory",VLOOKUP($E$10,$BY$10:$CB$59,2)) -> 70.512096 | BN7: =IF(VLOOKUP($E$10,$BY$10:$CB$59,4)="CF","Consult Factory",VLOOKUP($E$10,$BY$10:$CB$59,3)) -> 65 | BO7: =RHL($BM$7,$E$21,$B$9) -> 75.06428569 | BQ7: =VLOOKUP($E$10,$BY$9:$CD$58,6) -> 50.5 | BR7: =BQ7 -> 50.5 | BS7: =IF(VLOOKUP($E$10,$BY$9:$CC$58,4)="CF","Consult Factory",VLOOKUP($E$10,$BY$9:$CC$58,5)) -> 64.215235 | BT7: =(0.00000004*(($J$17)^2))-(0.0019*$J$17)+54.816 -> 40.2624 | BU7: =(0.00000005*(($J$17)^2))-(0.0021*$J$17)+56.493 -> 40.941 | CG7: 50 | CH7: 99 | CI7: 20.21 | CJ7: 13.01 | CK7: 49.7 | CL7: 53.1 | CM7: 0 | CN7: =DensityL(CG7,CL7,CM7) -> 0.07683799212 | CO7: =1/CN7 -> 13.01439526
A8: Condenser Ambient Temperature (°F) | B8: =EntryData!P55 -> 95 | D8: CIRCUIT A | BM8: EVAPORATOR IN | BS8: EVAPORATOR OUT | BZ8: Evap Coil Inlet | CC8: Final HP OUT | CD8: Final DB Evap OUT | CG8: 50 | CH8: 99 | CI8: 20.51 | CJ8: 13.5 | CK8: 49.7 | CL8: 55 | CM8: 1000 | CN8: 0.07408412884 | CO8: 13.49816777
A9: Altitude (ft.) | B9: ='Pool Entry'!M21 -> 670 | E9: Unocc | F9: Occ | BM9: WB | BN9: WB to Grain (REF) | BO9: Enthalpy (H) | BP9: Suction Temp | BQ9: Capacity | BR9: D/X ∆H | BS9: Enthalpy (H) | BT9: Dpt | BU9: DB | BV9: Heat Pipe | BW9: EVAPORATOR IN | BZ9: Final db coil | CA9: Final WB Coil | CG9: 50 | CH9: 99 | CI9: 20.83 | CJ9: 14 | CK9: 49.7 | CL9: 57.1 | CM9: 2000 | CN9: 0.07140343775 | CO9: 14.00492794
D10: R/A Grain | E10: =RHtoGRL(VALUE(B5),(VALUE(B7)/100),VALUE(B9)) -> 89.8322439 | F10: =RHtoGRL(VALUE($B$5),VALUE($B$6)/100,VALUE($B$9)) -> 108.2453777 | BV10: Final DB Out | BX10: DB in | BY10: Grains in | CB10: =BY11 -> 32.08262788 | CG10: 50 | CH10: 99 | CI10: 21.17 | CJ10: 14.53 | CK10: 49.7 | CL10: 59.3 | CM10: 3000 | CN10: 0.06879658248 | CO10: 14.53560575
A11: OUTPUTS DESC | D11: R/A WB | E11: =WETBULBL(VALUE($B$5),$E$10,VALUE($B$9)) -> 69.83947754 | F11: =WETBULBL(VALUE($B$5),$F$10,VALUE($B$9)) -> 73.03647614 | H11: COMPRESSOR & EVAPORATOR BASE CALCULATIONS | BM11: 50 | BN11: =WBtoGrL(BM11,BM11,$B$9) -> 54.94201268 | BO11: =EnthalpyL(BM11,BN11) -> 20.50188446 | BP11: =($BE$17*VALUE(BM11)^2 +$BF$17*VALUE(BM11)+$BG$17)+((0.069*118)-8.32) -> 29.77988127 | BQ11: =(VLOOKUP($N$17,CompCoef1,5,FALSE))+(VLOOKUP($N$17,CompCoef1,6,FALSE)*BP11)+(VLOOKUP($N$17,CompCoef1,7,FALSE)*118)+(VLOOKUP($N$17,CompCoef1,8,FALSE)*(BP11^2))+(VLOOKUP($N$17,CompCoef1,9,FALSE)*BP11*118)+(VLOOKUP($N$17,CompCoef1,10,FALSE)*(118^2))+(VLOOKUP($N$17,CompCoef1,11,FALSE)*(BP11^3))+(VLOOKUP($N$17,CompCoef1,12,FALSE)*118*(BP11^2))+(VLOOKUP($N$17,CompCoef1,13,FALSE)*BP11*(118^2))+(VLOOKUP($N$17,CompCoef1,14,FALSE)*(118^3))*$BK$16 -> 303217.9438 | BR11: =BQ11/(60/$F$17)/$J$17 -> 7.199848154 | BS11: =BO11-BR11 -> 13.30203631 | BT11: =VLOOKUP(BS11,$CG$26:$CK$713,5) -> 35.25000763 | BU11: =VLOOKUP(BS11,$CG$26:$CK$713,2) -> 35.25 | BV11: =BU11+(($B$5-BU11)*($BU$7/100)) -> 55.2087375 | BX11: =$B$5-(($BT$7/100)*($B$5-BU11)) -> 64.37208 | BY11: =IF(WBtoGrL(BX11, BM11, $B$9)="N/A","CF",WBtoGrL(BX11, BM11, $B$9)) -> 32.08262788 | BZ11: =BX11 -> 64.37208 | CA11: =BM11 -> 50 | CB11: 35.11028348 | CC11: =BV11 -> 55.2087375 | CD11: =BU11 -> 35.25 | CG11: 50 | CH11: 99 | CI11: 21.51 | CJ11: 15.09 | CK11: 49.7 | CL11: 61.5 | CM11: 4000 | CN11: 0.06626399094 | CO11: 15.09115261
A12: SP70A Unocc MRC in Reheat Mode | B12: =IF(BA81="N/A","N/A",Z81) -> 127.3431746 | D12: R/A Enthalpy | E12: =EnthalpyL(VALUE($B$5),$E$10) -> 34.25462723 | F12: =EnthalpyL(VALUE($B$5),$F$10) -> 37.14363861 | H12: UNIT | I12: TOTAL AIR FLOW (CFM) | J12: EVAP AIR FLOW (CFM) | K12: EVAPORATOR INFO | N12: COMPRESSOR INFO | Q12: EVAPORATOR FLOW RATE (CFM) | U12: ENTERING WET BULB (OF) @ 60%RH | Y12: CALCULATED SUCTION TEMP POINTS | AO12: SUCTION TEMP LINE EQUATION (y = m2^2 + m1x1 + b) | BA12: SUCTION TEMP SPECIFIED CONDITIONS (y = m2^2 + m1x1 + b) | BH12: UNIT | BM12: 51 | BN12: =WBtoGrL(BM12,BM12,$B$9) -> 57.04835487 | BO12: 21.07144356 | BP12: 30.71357624 | BQ12: 309101.2573 | BR12: 7.339546233 | BS12: 13.73189732 | BT12: 36.25000763 | BU12: 36.25 | BV12: 55.7993275 | BX12: 64.774704 | BY12: =IF(WBtoGrL(BX12, BM12, $B$9)="N/A","CF",WBtoGrL(BX12, BM12, $B$9)) -> 35.11028348 | BZ12: 64.774704 | CA12: 51 | CB12: 38.21203793 | CC12: 55.7993275 | CD12: 36.25 | CG12: 50 | CH12: 99 | CI12: 21.88 | CJ12: 15.68 | CK12: 49.7 | CL12: 63.9 | CM12: 5000 | CN12: 0.0638015095 | CO12: 15.67361036
A13: SP70A Unocc MRC in ROC Mode | B13: =IF(BA81="N/A","N/A",V35) -> 137.755431 | K13: ITEM # | L13: QTY | M13: VENDOR # | N13: ITEM # | O13: QTY | P13: VENDOR # | Q13: HIGH | R13: MED HIGH | S13: MED LOW | T13: LOW | U13: HIGH | V13: MED HIGH | W13: MED LOW | X13: LOW | Y13: HIGH INLET AIR WET BULB | AC13: MEDIUM HIGH INLET AIR WET BULB | AG13: MEDIUM LOW INLET AIR WET BULB | AK13: LOW INLET AIR WET BULB | AO13: HIGH INLET AIR WET BULB | AR13: MEDIUM HIGH INLET AIR WET BULB | AU13: MEDIUM LOW INLET AIR WET BULB | AX13: LOW INLET AIR WET BULB | BA13: HIGH WB | BB13: MED HIGH WB | BC13: MED LOW WB | BD13: LOW WB | BE13: Line for specified WB at all CFM VALUES | BK13: MULTIPLE TO ADJ (10° SubCool) | BM13: 52 | BN13: =WBtoGrL(BM13,BM13,$B$9) -> 59.22673119 | BO13: 21.65242767 | BP13: 31.64883525 | BQ13: 315066.7106 | BR13: 7.481194704 | BS13: 14.17123297 | BT13: 37.25000381 | BU13: 37.25 | BV13: 56.3899175 | BX13: 65.177328 | BY13: =IF(WBtoGrL(BX13, BM13, $B$9)="N/A","CF",WBtoGrL(BX13, BM13, $B$9)) -> 38.21203793 | BZ13: 65.177328 | CA13: 52 | CB13: 41.3901381 | CC13: 56.3899175 | CD13: 37.25 | CG13: 50 | CH13: 99 | CI13: 22.26 | CJ13: 16.29 | CK13: 49.7 | CL13: 66.3 | CM13: 6000 | CN13: 0.06141100341 | CO13: 16.28372677
A14: SP70A Occ MRC in Reheat Mode | B14: =IF(BA81="N/A","N/A",AS81) -> 163.5223752 | Y14: HIGH CFM | Z14: MED HIGH CFM | AA14: MED LOW CFM | AB14: LOW CFM | AC14: HIGH CFM | AD14: MED HIGH CFM | AE14: MED LOW CFM | AF14: LOW CFM | AG14: HIGH CFM | AH14: MED HIGH CFM | AI14: MED LOW CFM | AJ14: LOW CFM | AK14: HIGH CFM | AL14: MED HIGH CFM | AM14: MED LOW CFM | AN14: LOW CFM | BM14: 53 | BN14: =WBtoGrL(BM14,BM14,$B$9) -> 61.47932944 | BO14: 22.24518585 | BP14: 32.58565828 | BQ14: 321115.1638 | BR14: 7.62481399 | BS14: 14.62037186 | BT14: 38.25000381 | BU14: 38.25 | BV14: 56.9805075 | BX14: 65.579952 | BY14: =IF(WBtoGrL(BX14, BM14, $B$9)="N/A","CF",WBtoGrL(BX14, BM14, $B$9)) -> 41.3901381 | BZ14: 65.579952 | CA14: 53 | CB14: 44.64685709 | CC14: 56.9805075 | CD14: 38.25 | CG14: 50 | CH14: 99 | CI14: 22.66 | CJ14: 16.93 | CK14: 49.7 | CL14: 68.9 | CM14: 7000 | CN14: 0.05908853061 | CO14: 16.92375813
A15: SP70A Occ MRC in ROC Mode | B15: =IF(BA81="N/A","N/A",AL35) -> 180.048333 | E15: Density R/A (Unocc) | F15: =DensityL(VALUE($B$5),$E$10,VALUE($B$9)) -> 0.06973690604 | AO15: m2 | AP15: m1 | AQ15: b | AR15: m2 | AS15: m1 | AT15: b | AU15: m2 | AV15: m1 | AW15: b | AX15: m2 | AY15: m1 | AZ15: b | BE15: m2 | BF15: m1 | BG15: b | BM15: 54 | BN15: =WBtoGrL(BM15,BM15,$B$9) -> 63.80839801 | BO15: 22.8500824 | BP15: 33.52404535 | BQ15: 327247.4827 | BR15: 7.770424648 | BS15: 15.07965775 | BT15: 39.25000381 | BU15: 39.25 | BV15: 57.5710975 | BX15: 65.982576 | BY15: =IF(WBtoGrL(BX15, BM15, $B$9)="N/A","CF",WBtoGrL(BX15, BM15, $B$9)) -> 44.64685709 | BZ15: 65.982576 | CA15: 54 | CB15: 47.98456871 | CC15: 57.5710975 | CD15: 39.25 | CG15: 50 | CH15: 99 | CI15: 23.08 | CJ15: 17.6 | CK15: 49.7 | CL15: 71.6 | CM15: 8000 | CN15: 0.05683443323 | CO15: 17.5949674
A16: SP70B Unocc MRC in Reheat Mode | B16: =IF(BA82="N/A","N/A",Z82) -> 184.7310089 | E16: 1/Density of R/A | F16: =1/$F$15 -> 14.33960949 | H16: SP70A | I16: =$J$3 -> 12857.4 | J16: =$K$3 -> 6290 | K16: 610-056 | L16: 1 | M16: 15x22-6R | N16: 530-123 | O16: 1 | P16: ZP385KCE-TED | Q16: =$L$24*$I$24 -> 7380 | R16: =$L$24*$I$25 -> 6150 | S16: =$L$24*$I$26 -> 4920 | T16: =$L$24*$I$27 -> 3690 | U16: 80 | V16: 70 | W16: 60 | X16: 50 | Y16: 53 | Z16: 50.6 | AA16: 47.1 | AB16: 41.5 | AC16: 43.2 | AD16: 40.7 | AE16: 37.1 | AF16: 31.5 | AG16: 34.4 | AH16: 31.3 | AI16: 27.7 | AJ16: 22.2 | AK16: 24.7 | AL16: 22.3 | AM16: 19 | AN16: 13.8 | AO16: =LINEST(Y16:AB16,((Q16:T16)/(L16))^ROW($1:$2)) -> -5.287857757e-07 | AP16: 0.008943089431 | AQ16: 15.75 | AR16: =LINEST(AC16:AF16,((Q16:T16)/(L16))^ROW($1:$2)) -> -5.122612202e-07 | AS16: 0.008817073171 | AT16: 5.985 | AU16: =LINEST(AG16:AJ16,((Q16:T16)/(L16))^ROW($1:$2)) -> -3.965893317e-07 | AV16: 0.007658536585 | AW16: -0.59 | AX16: =LINEST(AK16:AN16,((Q16:T16)/(L16))^ROW($1:$2)) -> -4.626875537e-07 | AY16: 0.008048780488 | AZ16: -9.55 | BA16: =IF(L16=1,AO16*VALUE($J16)^2 + AP16*VALUE($J16) + AQ16,AO16*(VALUE($J16)/2)^2 + AP16*(VALUE($J16)/2) + AQ16) -> 51.08109921 | BB16: =IF(L16=1,AR16*VALUE($J16)^2 + AS16*VALUE($J16) + AT16,AR16*(VALUE($J16)/2)^2 + AS16*(VALUE($J16)/2) + AT16) -> 41.1772361 | BC16: =IF(L16=1,AU16*VALUE($J16)^2 + AV16*VALUE($J16) + AW16,AU16*(VALUE($J16)/2)^2 + AV16*(VALUE($J16)/2) + AW16) -> 31.89149514 | BD16: =IF(L16=1,AX16*VALUE($J16)^2 +AY16*VALUE($J16) + AZ16,AX16*(VALUE($J16)/2)^2 +AY16*(VALUE($J16)/2) + AZ16) -> 22.77101262 | BE16: =LINEST(BA16:BD16,U16:X16^ROW($1:$2)) -> 0.001958451484 | BF16: 0.6875613144 | BG16: -16.48053862 | BH16: SP70A | BK16: 1 | BM16: 55 | BN16: =WBtoGrL(BM16,BM16,$B$9) -> 66.21624755 | BO16: 23.46749115 | BP16: 34.46399644 | BQ16: 333464.5385 | BR16: 7.918047369 | BS16: 15.54944378 | BT16: 40.25 | BU16: 40.25 | BV16: 58.1616875 | BX16: 66.3852 | BY16: =IF(WBtoGrL(BX16, BM16, $B$9)="N/A","CF",WBtoGrL(BX16, BM16, $B$9)) -> 47.98456871 | BZ16: 66.3852 | CA16: 55 | CB16: 51.40570089 | CC16: 58.1616875 | CD16: 40.25
A17: SP70B Unocc MRC in ROC Mode | B17: =IF(BA82="N/A","N/A",V36) -> 181.5096985 | E17: Sp. Vol | F17: =SUM($F$16+CH18)/2 -> 13.67700238 | H17: SP70B | I17: =$J$4 -> 17142.6 | J17: =$K$4 -> 9600 | K17: 610-056 | L17: 1 | M17: 15x22-6R | N17: 530-123 | O17: 1 | P17: ZP385KCE-TED | Q17: =$L$25*$I$24 -> 14820 | R17: =$L$25*$I$25 -> 12350 | S17: =$L$25*$I$26 -> 9880 | T17: =$L$25*$I$27 -> 7410 | U17: 80 | V17: 70 | W17: 60 | X17: 50 | Y17: 62.1 | Z17: 60.9 | AA17: 59 | AB17: 55.9 | AC17: 52.7 | AD17: 51.4 | AE17: 49.4 | AF17: 46 | AG17: 43.1 | AH17: 41.7 | AI17: 39.8 | AJ17: 36.3 | AK17: 33.6 | AL17: 32.3 | AM17: 30.4 | AN17: 27.1 | AO17: =LINEST(Y17:AB17,((Q17:T17)/(L17))^ROW($1:$2)) -> -7.785736531e-08 | AP17: 0.002560728745 | AQ17: 41.225 | AR17: =LINEST(AC17:AF17,((Q17:T17)/(L17))^ROW($1:$2)) -> -8.605287744e-08 | AS17: 0.002807692308 | AT17: 29.955 | AU17: =LINEST(AG17:AJ17,((Q17:T17)/(L17))^ROW($1:$2)) -> -8.605287744e-08 | AV17: 0.002815789474 | AW17: 20.215 | AX17: =LINEST(AK17:AN17,((Q17:T17)/(L17))^ROW($1:$2)) -> -8.195512138e-08 | AY17: 0.002688259109 | AZ17: 11.72 | BA17: =IF(L17=1,AO17*VALUE($J17)^2 + AP17*VALUE($J17) + AQ17,AO17*(VALUE($J17)/2)^2 + AP17*(VALUE($J17)/2) + AQ17) -> 58.63266116 | BB17: =IF(L17=1,AR17*VALUE($J17)^2 + AS17*VALUE($J17) + AT17,AR17*(VALUE($J17)/2)^2 + AS17*(VALUE($J17)/2) + AT17) -> 48.97821297 | BC17: =IF(L17=1,AU17*VALUE($J17)^2 + AV17*VALUE($J17) + AW17,AU17*(VALUE($J17)/2)^2 + AV17*(VALUE($J17)/2) + AW17) -> 39.31594576 | BD17: =IF(L17=1,AX17*VALUE($J17)^2 +AY17*VALUE($J17) + AZ17,AX17*(VALUE($J17)/2)^2 +AY17*(VALUE($J17)/2) + AZ17) -> 29.97430346 | BE17: =LINEST(BA17:BD17,U17:X17^ROW($1:$2)) -> 0.0007820147437 | BF17: 0.8547114864 | BG17: -14.73272991 | BH17: SP70B | BM17: 56 | BN17: =WBtoGrL(BM17,BM17,$B$9) -> 68.70525277 | BO17: 24.09779358 | BP17: 35.40551156 | BQ17: 339767.2082 | BR17: 8.067702975 | BS17: 16.0300906 | BT17: 41.24999619 | BU17: 41.25 | BV17: 58.7522775 | BX17: 66.787824 | BY17: =IF(WBtoGrL(BX17, BM17, $B$9)="N/A","CF",WBtoGrL(BX17, BM17, $B$9)) -> 51.40570089 | BZ17: 66.787824 | CA17: 56 | CB17: 54.91276192 | CC17: 58.7522775 | CD17: 41.25 | CG17: Altitude | CH17: =VALUE($B$9) -> 670
A18: SP70B Occ MRC in Reheat Mode | B18: =IF(BA82="N/A","N/A",AS82) -> 236.8554024 | H18: SP80A | I18: =$J$5 -> 12857.4 | J18: =$K$5 -> 6290 | K18: 610-057 | L18: 1 | M18: 15x36-6R | N18: 530-123 | O18: 1 | P18: ZP385KCE-TED | Q18: =$L$24*$I$24 -> 7380 | R18: =$L$24*$I$25 -> 6150 | S18: =$L$24*$I$26 -> 4920 | T18: =$L$24*$I$27 -> 3690 | U18: 80 | V18: 70 | W18: 60 | X18: 50 | Y18: 53.6 | Z18: 50.6 | AA18: 47.1 | AB18: 41.5 | AC18: 43.2 | AD18: 40.7 | AE18: 37.1 | AF18: 31.5 | AG18: 34.4 | AH18: 31.3 | AI18: 27.7 | AJ18: 22.2 | AK18: 24.7 | AL18: 22.3 | AM18: 19 | AN18: 13.8 | AO18: =LINEST(Y18:AB18,((Q18:T18)/(L18))^ROW($1:$2)) -> -4.296384427e-07 | AP18: 0.007991869919 | AQ18: 17.94 | AR18: =LINEST(AC18:AF18,((Q18:T18)/(L18))^ROW($1:$2)) -> -5.122612202e-07 | AS18: 0.008817073171 | AT18: 5.985 | AU18: =LINEST(AG18:AJ18,((Q18:T18)/(L18))^ROW($1:$2)) -> -3.965893317e-07 | AV18: 0.007658536585 | AW18: -0.59 | AX18: =LINEST(AK18:AN18,((Q18:T18)/(L18))^ROW($1:$2)) -> -4.626875537e-07 | AY18: 0.008048780488 | AZ18: -9.55 | BA18: =IF(L18=1,AO18*VALUE($J18)^2 + AP18*VALUE($J18) + AQ18,AO18*(VALUE($J18)/2)^2 + AP18*(VALUE($J18)/2) + AQ18) -> 51.21060348 | BB18: =IF(L18=1,AR18*VALUE($J18)^2 + AS18*VALUE($J18) + AT18,AR18*(VALUE($J18)/2)^2 + AS18*(VALUE($J18)/2) + AT18) -> 41.1772361 | BC18: =IF(L18=1,AU18*VALUE($J18)^2 + AV18*VALUE($J18) + AW18,AU18*(VALUE($J18)/2)^2 + AV18*(VALUE($J18)/2) + AW18) -> 31.89149514 | BD18: =IF(L18=1,AX18*VALUE($J18)^2 +AY18*VALUE($J18) + AZ18,AX18*(VALUE($J18)/2)^2 +AY18*(VALUE($J18)/2) + AZ18) -> 22.77101262 | BE18: =LINEST(BA18:BD18,U18:X18^ROW($1:$2)) -> 0.002282212142 | BF18: 0.6493575567 | BG18: -15.37327717 | BH18: SP80A | BM18: 57 | BN18: =WBtoGrL(BM18,BM18,$B$9) -> 71.2778543 | BO18: 24.74138641 | BP18: 36.34859072 | BQ18: 346156.3746 | BR18: 8.219412426 | BS18: 16.52197399 | BT18: 42.25000763 | BU18: 42.25 | BV18: 59.3428675 | BX18: 67.190448 | BY18: =IF(WBtoGrL(BX18, BM18, $B$9)="N/A","CF",WBtoGrL(BX18, BM18, $B$9)) -> 54.91276192 | BZ18: 67.190448 | CA18: 57 | CB18: 58.50829364 | CC18: 59.3428675 | CD18: 42.25 | CG18: Off Evap Density (Inverse) | CH18: =VLOOKUP(CH17,$CM$7:$CO$15,3) -> 13.01439526
A19: SP70B Occ MRC in ROC Mode | B19: =IF(BA82="N/A","N/A",AL36) -> 233.1425505 | D19: CIRCUIT 70B Off-Precool | H19: SP80B | I19: =$J$6 -> 17142.6 | J19: =$K$6 -> 9600 | K19: 610-057 | L19: 1 | M19: 15x36-6R | N19: 530-456 | O19: 1 | P19: ZP485KCE-TED | Q19: =$L$25*$I$24 -> 14820 | R19: =$L$25*$I$25 -> 12350 | S19: =$L$25*$I$26 -> 9880 | T19: =$L$25*$I$27 -> 7410 | U19: 80 | V19: 70 | W19: 60 | X19: 50 | Y19: 58.5 | Z19: 57.1 | AA19: 54.85 | AB19: 51.2 | AC19: 49.4 | AD19: 47.8 | AE19: 45.5 | AF19: 42.7 | AG19: 40.1 | AH19: 38.4 | AI19: 36.1 | AJ19: 33.4 | AK19: 30.7 | AL19: 29.2 | AM19: 26.9 | AN19: 24.3 | AO19: =LINEST(Y19:AB19,((Q19:T19)/(L19))^ROW($1:$2)) -> -9.219951155e-08 | AP19: 0.003027327935 | AQ19: 33.8575 | AR19: =LINEST(AC19:AF19,((Q19:T19)/(L19))^ROW($1:$2)) -> -4.917307283e-08 | AS19: 0.002 | AT19: 30.57 | AU19: =LINEST(AG19:AJ19,((Q19:T19)/(L19))^ROW($1:$2)) -> -4.097756069e-08 | AV19: 0.001817813765 | AW19: 22.17 | AX19: =LINEST(AK19:AN19,((Q19:T19)/(L19))^ROW($1:$2)) -> -4.507531676e-08 | AY19: 0.001872469636 | AZ19: 12.875 | BA19: =IF(L19=1,AO19*VALUE($J19)^2 + AP19*VALUE($J19) + AQ19,AO19*(VALUE($J19)/2)^2 + AP19*(VALUE($J19)/2) + AQ19) -> 54.42274119 | BB19: =IF(L19=1,AR19*VALUE($J19)^2 + AS19*VALUE($J19) + AT19,AR19*(VALUE($J19)/2)^2 + AS19*(VALUE($J19)/2) + AT19) -> 45.23820961 | BC19: =IF(L19=1,AU19*VALUE($J19)^2 + AV19*VALUE($J19) + AW19,AU19*(VALUE($J19)/2)^2 + AV19*(VALUE($J19)/2) + AW19) -> 35.84452015 | BD19: =IF(L19=1,AX19*VALUE($J19)^2 +AY19*VALUE($J19) + AZ19,AX19*(VALUE($J19)/2)^2 +AY19*(VALUE($J19)/2) + AZ19) -> 26.69656731 | BE19: =LINEST(BA19:BD19,U19:X19^ROW($1:$2)) -> 9.14468562e-05 | BF19: 0.9138340198 | BG19: -19.24649554 | BH19: SP80B | BM19: 58 | BN19: =WBtoGrL(BM19,BM19,$B$9) -> 73.93656057 | BO19: =EnthalpyL(BM19,BN19) -> 25.3986721 | BP19: 37.2932339 | BQ19: =(VLOOKUP($N$17,CompCoef1,5,FALSE))+(VLOOKUP($N$17,CompCoef1,6,FALSE)*BP19)+(VLOOKUP($N$17,CompCoef1,7,FALSE)*118)+(VLOOKUP($N$17,CompCoef1,8,FALSE)*(BP19^2))+(VLOOKUP($N$17,CompCoef1,9,FALSE)*BP19*118)+(VLOOKUP($N$17,CompCoef1,10,FALSE)*(118^2))+(VLOOKUP($N$17,CompCoef1,11,FALSE)*(BP19^3))+(VLOOKUP($N$17,CompCoef1,12,FALSE)*118*(BP19^2))+(VLOOKUP($N$17,CompCoef1,13,FALSE)*BP19*(118^2))+(VLOOKUP($N$17,CompCoef1,14,FALSE)*(118^3))*$BK$16 -> 352632.9259 | BR19: 8.373196814 | BS19: 17.02547529 | BT19: 43.25000381 | BU19: 43.25 | BV19: 59.9334575 | BX19: 67.593072 | BY19: =IF(WBtoGrL(BX19, BM19, $B$9)="N/A","CF",WBtoGrL(BX19, BM19, $B$9)) -> 58.50829364 | BZ19: 67.593072 | CA19: 58 | CB19: 62.19494667 | CC19: 59.9334575 | CD19: 43.25
A20: SP80A Unocc MRC in Reheat Mode | B20: =IF(BA83="N/A","N/A",Z83) -> 127.3431746 | E20: Unocc | F20: Occ | BM20: 59 | BN20: 76.68394982 | BO20: 26.07007027 | BP20: 38.23944111 | BQ20: 359197.7562 | BR20: 8.529077368 | BS20: 17.5409929 | BT20: 44.25 | BU20: 44.25 | BV20: 60.5240475 | BX20: 67.995696 | BY20: 62.19494667 | BZ20: 67.995696 | CA20: 59 | CB20: 65.97543383 | CC20: 60.5240475 | CD20: 44.25
A21: SP80A Unocc MRC in ROC Mode | B21: =IF(BA83="N/A","N/A",V37) -> 137.755431 | D21: R/A Grain | E21: =WBtoGrL($BM$7,$BN$7,$B$9) -> 86.2225708 | F21: =WBtoGrL($BM$66,$BN$66,$B$9) -> 104.3807144 | BM21: 60 | BN21: 79.52267214 | BO21: 26.75600624 | BP21: 39.18721235 | BQ21: 365851.7651 | BR21: 8.687075452 | BS21: 18.06893079 | BT21: 45.24999619 | BU21: 45.25 | BV21: 61.1146375 | BX21: 68.39832 | BY21: 65.97543383 | BZ21: 68.39832 | CA21: 60 | CB21: 69.69046778 | CC21: 61.1146375 | CD21: 45.25
A22: SP80A Occ MRC in Reheat Mode | B22: =IF(BA83="N/A","N/A",AS83) -> 163.5223752 | D22: R/A WB | E22: =$BN$7 -> 65 | F22: =$BN$66 -> 69 | BM22: 61 | BN22: 82.4554516 | BO22: 27.45692253 | BP22: 40.13654762 | BQ22: 372595.8583 | BR22: 8.847212567 | BS22: 18.60970996 | BT22: 46.49999237 | BU22: 46.5 | BV22: 61.852875 | BX22: 68.9016 | BY22: 69.69046778 | BZ22: 68.9016 | CA22: 61 | CB22: 73.66678984 | CC22: 61.852875 | CD22: 46.5
A23: SP80A Occ MRC in ROC Mode | B23: =IF(BA83="N/A","N/A",AL37) -> 180.048333 | D23: R/A Enthalpy | E23: =EnthalpyL(VALUE($BM$7),$E$21) -> 30.37740898 | F23: =EnthalpyL(VALUE($BM$66),$F$21) -> 33.63288498 | H23: EVAP. FACE VELOCITY | K23: EVAP SURFACE AREA | BM23: 62 | BN23: 85.48508849 | BO23: 28.17327309 | BP23: 41.08744692 | BQ23: 379430.9469 | BR23: 9.00951035 | BS23: 19.16376274 | BT23: 47.49998856 | BU23: 47.5 | BV23: 62.443465 | BX23: 69.304224 | BY23: 73.66678984 | BZ23: 69.304224 | CA23: 62 | CB23: 77.74553626 | CC23: 62.443465 | CD23: 47.5 | CG23: AIR
A24: SP80B Unocc MRC in Reheat Mode | B24: =IF(BA84="N/A","N/A",Z84) -> 229.5835268 | H24: HIGH | I24: 600 | K24: CIRC A | L24: 12.3 | BM24: 63 | BN24: 88.61446161 | BO24: 28.90552521 | BP24: 42.03991025 | BQ24: 386357.9479 | BR24: 9.173990576 | BS24: 19.73153463 | BT24: 48.49998474 | BU24: 48.5 | BV24: 63.034055 | BX24: 69.706848 | BY24: 77.74553626 | BZ24: 69.706848 | CA24: 63 | CB24: 81.92975257 | CC24: 63.034055 | CD24: 48.5 | CG24: Enth_DewPt | CI24: Enthalpy to Dewpoint Lookup TABLE
A25: SP80B Unocc MRC in ROC Mode | B25: =IF(BA84="N/A","N/A",V38) -> 226.6459501 | H25: MED HIGH | I25: 500 | K25: CIRC B | L25: 24.7 | BM25: 64 | BN25: 91.84653065 | BO25: 29.65415382 | BP25: 42.99393761 | BQ25: 393377.7843 | BR25: 9.340675157 | BS25: 20.31347867 | BT25: 49.49998474 | BU25: 49.5 | BV25: 63.624645 | BX25: 70.109472 | BY25: 81.92975257 | BZ25: 70.109472 | CA25: 64 | CB25: 86.2225708 | CC25: 63.624645 | CD25: 49.5 | CG25: H | CH25: DB | CI25: RH | CJ25: Gr | CK25: Dp
A26: SP80B Occ MRC in Reheat Mode | B26: =IF(BA84="N/A","N/A",AS84) -> 287.0144812 | E26: Density R/A (Unocc) | F26: =DensityL(VALUE($BM$7),$E$21,VALUE($B$9)) -> 0.07156805605 | H26: MED LOW | I26: 400 | BM26: 65 | BN26: 95.18433869 | BO26: 30.41965866 | BP26: 43.949529 | BQ26: 400491.3847 | BR26: 9.509586145 | BS26: 20.91007252 | BT26: 50.49998093 | BU26: 50.5 | BV26: 64.215235 | BX26: 70.512096 | BY26: 86.2225708 | BZ26: 70.512096 | CA26: 65 | CB26: 90.46359927 | CC26: 64.215235 | CD26: 50.5 | CG26: =EnthalpyL(CH26,CJ26) -> 1.503348351 | CH26: 2.25 | CI26: 1 | CJ26: =RHtoGRL(CH26,CI26,VALUE($B$9)) -> 6.349759362 | CK26: =DewpointL(CJ26,VALUE($B$9)) -> 2.250021935
A27: SP80B Occ MRC in ROC Mode | B27: =IF(BA84="N/A","N/A",AL38) -> 283.6238017 | E27: 1/Density of R/A | F27: =1/$F$26 -> 13.9727143 | H27: LOW | I27: 300 | BM27: 66 | BN27: 98.6310148 | BO27: 31.20254135 | BP27: 44.90668441 | BQ27: 407699.6836 | BR27: 9.68074573 | BS27: 21.52179562 | BT27: 51.74998856 | BU27: 51.75 | BV27: 64.9534725 | BX27: 71.015376 | BY27: 90.46359927 | BZ27: 71.015376 | CA27: 66 | CB27: 94.98298439 | CC27: 64.9534725 | CD27: 51.75 | CG27: 1.576033831 | CH27: 2.5 | CI27: 1 | CJ27: 6.432702201 | CK27: 2.500020742
E28: Sp. Vol | F28: =SUM($F$27+$CH$18)/2 -> 13.49355478 | BM28: 67 | BN28: 102.1897767 | BO28: 32.00332642 | BP28: 45.86540386 | BQ28: 415003.6213 | BR28: 9.85417624 | BS28: 22.14915018 | BT28: 52.74997711 | BU28: 52.75 | BV28: 65.5440625 | BX28: 71.418 | BY28: 94.98298439 | BZ28: 71.418 | CA28: 67 | CB28: 99.62085837 | CC28: 65.5440625 | CD28: 52.75 | CG28: 1.648872852 | CH28: 2.75 | CI28: 1 | CJ28: 6.516638337 | CK28: 2.750020981
A29: SP70A Occ TOT CAP in Reheat Mode | B29: =IF(BA81="N/A","N/A",AQ81) -> 369.6235908 | BM29: 68 | BN29: 105.8639337 | BO29: 32.82255554 | BP29: 46.82568734 | BQ29: 422404.1442 | BR29: 10.02990015 | BS29: 22.7926554 | BT29: 53.74998856 | BU29: 53.75 | BV29: 66.1346525 | BX29: 71.820624 | BY29: 99.62085837 | BZ29: 71.820624 | CA29: 68 | CB29: 104.3807144 | CC29: 66.1346525 | CD29: 53.75 | CG29: 1.721866846 | CH29: 3 | CI29: 1 | CJ29: 6.601578559 | CK29: 3.000021458
A30: SP70B Occ TOT CAP in Reheat Mode | B30: =IF(BA82="N/A","N/A",AQ82) -> 411.1226982 | BM30: 69 | BN30: 109.6568892 | BO30: 33.66077423 | BP30: 47.78753485 | BQ30: 429902.2045 | BR30: 10.20794006 | BS30: 23.45283418 | BT30: 54.74998474 | BU30: 54.75 | BV30: 66.7252425 | BX30: 72.223248 | BY30: 104.3807144 | BZ30: 72.223248 | CA30: 69 | CB30: 109.1012918 | CC30: 66.7252425 | CD30: 54.75 | CG30: 1.7950176 | CH30: 3.25 | CI30: 1 | CJ30: 6.687533759 | CK30: 3.250021219
A31: SP80A Occ TOT CAP in Reheat Mode | B31: =IF(BA83="N/A","N/A",AQ83) -> 371.4423947 | H31: ROC MODE TABLE | BM31: 70 | BN31: 113.5721445 | BO31: 34.51855087 | BP31: 48.75094638 | BQ31: 437498.7602 | BR31: 10.38831872 | BS31: 24.13023215 | BT31: 55.9999733 | BU31: 56 | BV31: 67.46348 | BX31: 72.726528 | BY31: 109.1012918 | BZ31: 72.726528 | CA31: 70 | CB31: 114.1156578 | CC31: 67.46348 | CD31: 56 | CG31: 1.868326902 | CH31: 3.5 | CI31: 1 | CJ31: 6.774514935 | CK31: 3.500021219
A32: SP80B Occ TOT CAP in Reheat Mode | B32: =IF(BA84="N/A","N/A",AQ84) -> 454.9442573 | D32: CIRCUIT 80B Off-Precool | H32: UNIT | I32: UNOCC | Y32: OCC | BM32: 71 | BN32: 117.6133011 | BO32: 35.39648056 | BP32: 49.71592195 | BQ32: 445194.7755 | BR32: 10.57105903 | BS32: 24.82542153 | BT32: 56.99998093 | BU32: 57 | BV32: 68.05407 | BX32: 73.129152 | BY32: 114.1156578 | BZ32: 73.129152 | CA32: 71 | CB32: 119.2630987 | CC32: 68.05407 | CD32: 57 | CG32: 1.941796303 | CH32: 3.75 | CI32: 1 | CJ32: 6.862533194 | CK32: 3.750020266
E33: Unocc | F33: Occ | I33: Act. Suction | J33: BTU | K33: WATTS | L33: THR | M33: Est. Mixed Air Temp | N33: Evap In D/X ∆H | O33: Air Enthalpy Evap Out | P33: Dpt Evap Out | Q33: DB Evap Out | R33: Grain Evap Out | S33: WB Evap Out | T33: Total Cap. (MBH) | U33: Total Latent (MBH) | V33: MRC (lb/hr) | W33: MRE | X33: Sensible | Y33: Act. Suction | Z33: BTU | AA33: WATTS | AB33: THR | AC33: Mixed Air Temp | AD33: Evap In D/X ∆H | AE33: Air Enthalpy Evap Out | AF33: Dpt Evap Out | AG33: DB Evap Out | AH33: Grain Evap Out | AI33: WB Evap Out | AJ33: Total Cap. (MBH) | AK33: Total Latent (MBH) | AL33: MRC (lb/hr) | AM33: MRE | AN33: Sensible | BM33: 72 | BN33: 121.7840645 | BO33: 36.29515457 | BP33: 50.68246154 | BQ33: 452991.2204 | BR33: 10.75618402 | BS33: 25.53897055 | BT33: 57.99997711 | BU33: 58 | BV33: 68.64466 | BX33: 73.531776 | BY33: 119.2630987 | BZ33: 73.531776 | CA33: 72 | CB33: 124.3816372 | CC33: 68.64466 | CD33: 58 | CG33: 2.015427589 | CH33: 4 | CI33: 1 | CJ33: 6.951599749 | CK33: 4.000020027
A34: TOTALS OUTPUTS DESC | D34: R/A Grain | E34: =WBtoGrL($BM$125,$BN$125,$B$9) -> 88.01939901 | F34: =WBtoGrL($BM$184,$BN$184,$B$9) -> 106.1915148 | BM34: 73 | BN34: 126.0882477 | BO34: 37.21520233 | BP34: 51.65056517 | BQ34: 460889.0709 | BR34: 10.94371687 | BS34: 26.27148546 | BT34: 59.24996948 | BU34: 59.25 | BV34: 69.3828975 | BX34: 74.035056 | BY34: 124.3816372 | BZ34: 74.035056 | CA34: 73 | CB34: 129.8067353 | CC34: 69.3828975 | CD34: 59.25 | CG34: 2.08922267 | CH34: 4.25 | CI34: 1 | CJ34: 7.041725921 | CK34: 4.250020981
A35: SP70 Unocc MRC in Reheat Mode | B35: =$B$12+$B$16 -> 312.0741836 | D35: R/A WB | E35: =$BN$125 -> 65 | F35: =$BN$184 -> 69 | H35: SP70A | I35: =(BE16*VALUE($E$11)^2 + BF16*VALUE($E$11) + BG16)+(0.069*$F$6-8.32) -> 40.91283453 | J35: =(VLOOKUP(N16,CompCoef1,5,FALSE)+(VLOOKUP(N16,CompCoef1,6,FALSE)*I35)+(VLOOKUP(N16,CompCoef1,7,FALSE)*VALUE($F$6))+(VLOOKUP(N16,CompCoef1,8,FALSE)*(I35^2))+(VLOOKUP(N16,CompCoef1,9,FALSE)*I35*VALUE($F$6))+(VLOOKUP(N16,CompCoef1,10,FALSE)*(VALUE($F$6)^2))+(VLOOKUP(N16,CompCoef1,11,FALSE)*(I35^3))+(VLOOKUP(N16,CompCoef1,12,FALSE)*VALUE($F$6)*(I35^2))+(VLOOKUP(N16,CompCoef1,13,FALSE)*I35*(VALUE($F$6)^2))+(VLOOKUP(N16,CompCoef1,14,FALSE)*(VALUE($F$6)^3)))*$BK$16 -> 378169.8122 | K35: =VLOOKUP(N16,CompCoef1,15,FALSE)+(VLOOKUP(N16,CompCoef1,16,FALSE)*I35)+(VLOOKUP(N16,CompCoef1,17,FALSE)*VALUE($F$6))+(VLOOKUP(N16,CompCoef1,18,FALSE)*(I35^2))+(VLOOKUP(N16,CompCoef1,19,FALSE)*I35*VALUE($F$6))+(VLOOKUP(N16,CompCoef1,20,FALSE)*(VALUE($F$6)^2))+(VLOOKUP(N16,CompCoef1,21,FALSE)*(I35^3))+(VLOOKUP(N16,CompCoef1,22,FALSE)*VALUE($F$6)*(I35^2))+(VLOOKUP(N16,CompCoef1,23,FALSE)*I35*(VALUE($F$6)^2))+(VLOOKUP(N16,CompCoef1,24,FALSE)*(VALUE($F$6)^3)) -> 30264.05058 | L35: =(J35+(K35*3.412))/1000 -> 481.4307528 | M35: =(($I$17*((($I$17-$J$17)*$B$5)+($BS$7*$J$17))/$I$17)+($I$16*((($I$16-$J$16)*$B$5)+(($I$35+9.5)*$J$16))/$I$16))/($I$16+$I$17) -> 70.62676617 | N35: =J35/(60/$F$17)/J16 -> 13.70490042 | O35: =$E$12-N35 -> 20.5497268 | P35: =VLOOKUP(O35,CG26:CK713,5) -> 49.99998093 | Q35: =VLOOKUP(O35,CG26:CK713,2) -> 50 | R35: =RHtoGRL(Q35,0.999,VALUE($B$9)) -> 54.88637877 | S35: =WETBULBL(Q35,R35,VALUE($B$9)) -> 49.98484421 | T35: =($E$12-O35)*(60/$F$17)*J16/1000 -> 378.1698122 | U35: =V35*$F$5/1000 -> 146.0207569 | V35: =IF((($E$10-R35)*J16)/($F$17*7000/60)<0,0,(($E$10-R35)*J16)/($F$17*7000/60)) -> 137.755431 | W35: =V35/K35*1000 -> 4.551784324 | X35: =VALUE($K$3)*(F15*60*0.2449)*(VALUE($B$5)-VALUE(Q35))/1000 -> 219.1453569 | Y35: =(BE16*VALUE($F$11)^2 + BF16*VALUE($F$11) + BG16)+(0.069*$F$6-8.32) -> 44.00553724 | Z35: =(VLOOKUP(N16,CompCoef1,5,FALSE)+VLOOKUP(N16,CompCoef1,6,FALSE)*Y35+VLOOKUP(N16,CompCoef1,7,FALSE)*VALUE($F$6)+VLOOKUP(N16,CompCoef1,8,FALSE)*(Y35^2)+VLOOKUP(N16,CompCoef1,9,FALSE)*Y35*VALUE($F$6)+VLOOKUP(N16,CompCoef1,10,FALSE)*(VALUE($F$6)^2)+VLOOKUP(N16,CompCoef1,11,FALSE)*(Y35^3)+VLOOKUP(N16,CompCoef1,12,FALSE)*VALUE($F$6)*(Y35^2)+VLOOKUP(N16,CompCoef1,13,FALSE)*Y35*(VALUE($F$6)^2)+VLOOKUP(N16,CompCoef1,14,FALSE)*(VALUE($F$6)^3))*$BK$16 -> 400910.8856 | AA35: =VLOOKUP(N16,CompCoef1,15,FALSE)+VLOOKUP(N16,CompCoef1,16,FALSE)*Y35+VLOOKUP(N16,CompCoef1,17,FALSE)*VALUE($F$6)+VLOOKUP(N16,CompCoef1,18,FALSE)*(Y35^2)+VLOOKUP(N16,CompCoef1,19,FALSE)*Y35*VALUE($F$6)+VLOOKUP(N16,CompCoef1,20,FALSE)*(VALUE($F$6)^2)+VLOOKUP(N16,CompCoef1,21,FALSE)*(Y35^3)+VLOOKUP(N16,CompCoef1,22,FALSE)*VALUE($F$6)*(Y35^2)+VLOOKUP(N16,CompCoef1,23,FALSE)*Y35*(VALUE($F$6)^2)+VLOOKUP(N16,CompCoef1,24,FALSE)*(VALUE($F$6)^3) -> 30433.75831 | AB35: =(Z35+AA35*3.412)/1000 -> 504.750869 | AC35: =(($I$17*((($I$17-$J$17)*$B$5)+($BS$7*$J$17))/$I$17)+($I$16*((($I$16-$J$16)*$B$5)+(($Y$35+9.5)*$J$16))/$I$16))/($I$16+$I$17) -> 71.27520284 | AD35: =Z35/(60/$F$17)/J16 -> 14.52903851 | AE35: =$F$12-AD35 -> 22.6146001 | AF35: =VLOOKUP(AE35,CG26:CK713,5) -> 53.49997711 | AG35: =VLOOKUP(AE35,CG26:CK713,2) -> 53.5 | AH35: =RHtoGRL(AG35,0.999,VALUE($B$9)) -> 62.57062852 | AI35: =WETBULBL(AG35,AH35,VALUE($B$9)) -> 53.48385239 | AJ35: =($F$12-AE35)*(60/$F$17)*J16/1000 -> 400.9108856 | AK35: =AL35*$F$5/1000 -> 190.851233 | AL35: =IF((($F$10-AH35)*J16)/($F$17*7000/60)<0,0,(($F$10-AH35)*J16)/($F$17*7000/60)) -> 180.048333 | AM35: =AL35/AA35*1000 -> 5.916072908 | AN35: =VALUE($K$3)*(F26*60*0.2449)*(VALUE($B$5)-VALUE(AG35))/1000 -> 201.7482337 | BM35: 74 | BN35: 130.5297745 | BO35: 38.15725327 | BP35: 52.62023282 | BQ35: 468889.3091 | BR35: 11.13368089 | BS35: 27.02357237 | BT35: 60.24996567 | BU35: 60.25 | BV35: 69.9734875 | BX35: 74.43768 | BY35: 129.8067353 | BZ35: 74.43768 | CA35: 74 | CB35: CF | CC35: 69.9734875 | CD35: 60.25 | CG35: 2.163183212 | CH35: 4.5 | CI35: 1 | CJ35: 7.132923143 | CK35: 4.500020504
A36: SP70 Unocc MRC in ROC Mode | B36: =$B$13+$B$17 -> 319.2651295 | D36: R/A Enthalpy | E36: =EnthalpyL(VALUE($BM$125),$E$34) -> 30.38587952 | F36: =EnthalpyL(VALUE($BM$184),$F$34) -> 33.64245605 | H36: SP70B | I36: =(BE17*VALUE($E$22)^2 + BF17*VALUE($E$22) + BG17)+(0.069*$F$6-8.32) -> 43.949529 | J36: =(VLOOKUP(N17,CompCoef1,5,FALSE)+(VLOOKUP(N17,CompCoef1,6,FALSE)*I36)+(VLOOKUP(N17,CompCoef1,7,FALSE)*VALUE($F$6))+(VLOOKUP(N17,CompCoef1,8,FALSE)*(I36^2))+(VLOOKUP(N17,CompCoef1,9,FALSE)*I36*VALUE($F$6))+(VLOOKUP(N17,CompCoef1,10,FALSE)*(VALUE($F$6)^2))+(VLOOKUP(N17,CompCoef1,11,FALSE)*(I36^3))+(VLOOKUP(N17,CompCoef1,12,FALSE)*VALUE($F$6)*(I36^2))+(VLOOKUP(N17,CompCoef1,13,FALSE)*I36*(VALUE($F$6)^2))+(VLOOKUP(N17,CompCoef1,14,FALSE)*(VALUE($F$6)^3)))*$BK$16 -> 400491.3847 | K36: =VLOOKUP(N17,CompCoef1,15,FALSE)+(VLOOKUP(N17,CompCoef1,16,FALSE)*I36)+(VLOOKUP(N17,CompCoef1,17,FALSE)*VALUE($F$6))+(VLOOKUP(N17,CompCoef1,18,FALSE)*(I36^2))+(VLOOKUP(N17,CompCoef1,19,FALSE)*I36*VALUE($F$6))+(VLOOKUP(N17,CompCoef1,20,FALSE)*(VALUE($F$6)^2))+(VLOOKUP(N17,CompCoef1,21,FALSE)*(I36^3))+(VLOOKUP(N17,CompCoef1,22,FALSE)*VALUE($F$6)*(I36^2))+(VLOOKUP(N17,CompCoef1,23,FALSE)*I36*(VALUE($F$6)^2))+(VLOOKUP(N17,CompCoef1,24,FALSE)*(VALUE($F$6)^3)) -> 30430.52374 | L36: =(J36+(K36*3.412))/1000 -> 504.3203317 | M36: =(($I$17*((($I$17-$J$17)*$B$5)+($BS$7*$J$17))/$I$17)+($I$16*((($I$16-$J$16)*$B$5)+(($I$35+9.5)*$J$16))/$I$16))/($I$16+$I$17) -> 70.62676617 | N36: =J36/(60/$F$28)/J17 -> 9.382035481 | O36: =$E$23-N36 -> 20.9953735 | P36: =VLOOKUP(O36,CG26:CK713,5) -> 50.74998093 | Q36: =VLOOKUP(O36,CG26:CK713,2) -> 50.75 | R36: =RHtoGRL(Q36,0.999,VALUE($B$9)) -> 56.45785307 | S36: =WETBULBL(Q36,R36,VALUE($B$9)) -> 50.73463058 | T36: =($E$23-O36)*(60/$F$28)*J17/1000 -> 400.4913847 | U36: =V36*$F$5/1000 -> 192.4002804 | V36: =IF((($E$21-R36)*J17)/($F$28*7000/60)<0,0,(($E$21-R36)*J17)/($F$28*7000/60)) -> 181.5096985 | W36: =V36/K36*1000 -> 5.964724763 | X36: =VALUE($K$3)*(F15*60*0.2449)*(VALUE($B$5)-VALUE($BS$7))/1000 -> 127.5217467 | Y36: =(BE17*VALUE($F$22)^2 + BF17*VALUE($F$22) + BG17)+(0.069*$F$6-8.32) -> 47.78753485 | Z36: =(VLOOKUP(N17,CompCoef1,5,FALSE)+VLOOKUP(N17,CompCoef1,6,FALSE)*Y36+VLOOKUP(N17,CompCoef1,7,FALSE)*VALUE($F$6)+VLOOKUP(N17,CompCoef1,8,FALSE)*(Y36^2)+VLOOKUP(N17,CompCoef1,9,FALSE)*Y36*VALUE($F$6)+VLOOKUP(N17,CompCoef1,10,FALSE)*(VALUE($F$6)^2)+VLOOKUP(N17,CompCoef1,11,FALSE)*(Y36^3)+VLOOKUP(N17,CompCoef1,12,FALSE)*VALUE($F$6)*(Y36^2)+VLOOKUP(N17,CompCoef1,13,FALSE)*Y36*(VALUE($F$6)^2)+VLOOKUP(N17,CompCoef1,14,FALSE)*(VALUE($F$6)^3))*$BK$16 -> 429902.2045 | AA36: =VLOOKUP(N17,CompCoef1,15,FALSE)+VLOOKUP(N17,CompCoef1,16,FALSE)*Y36+VLOOKUP(N17,CompCoef1,17,FALSE)*VALUE($F$6)+VLOOKUP(N17,CompCoef1,18,FALSE)*(Y36^2)+VLOOKUP(N17,CompCoef1,19,FALSE)*Y36*VALUE($F$6)+VLOOKUP(N17,CompCoef1,20,FALSE)*(VALUE($F$6)^2)+VLOOKUP(N17,CompCoef1,21,FALSE)*(Y36^3)+VLOOKUP(N17,CompCoef1,22,FALSE)*VALUE($F$6)*(Y36^2)+VLOOKUP(N17,CompCoef1,23,FALSE)*Y36*(VALUE($F$6)^2)+VLOOKUP(N17,CompCoef1,24,FALSE)*(VALUE($F$6)^3) -> 30666.98007 | AB36: =(Z36+AA36*3.412)/1000 -> 534.5379405 | AC36: =(($I$17*((($I$17-$J$17)*$B$5)+($BS$7*$J$17))/$I$17)+($I$16*((($I$16-$J$16)*$B$5)+(($Y$35+9.5)*$J$16))/$I$16))/($I$16+$I$17) -> 71.27520284 | AD36: =Z36/(60/$F$28)/J17 -> 10.07102247 | AE36: =$F$23-AD36 -> 23.56186251 | AF36: =VLOOKUP(AE36,CG26:CK713,5) -> 54.99998093 | AG36: =VLOOKUP(AE36,CG26:CK713,2) -> 55 | AH36: =RHtoGRL(AG36,0.999,VALUE($B$9)) -> 66.14902613 | AI36: =WETBULBL(AG36,AH36,VALUE($B$9)) -> 54.98342896 | AJ36: =($F$23-AE36)*(60/$F$28)*J17/1000 -> 429.9022045 | AK36: =AL36*$F$5/1000 -> 247.1311035 | AL36: =IF((($F$21-AH36)*J17)/($F$28*7000/60)<0,0,(($F$21-AH36)*J17)/($F$28*7000/60)) -> 233.1425505 | AM36: =AL36/AA36*1000 -> 7.602396778 | AN36: =VALUE($K$4)*(F26*60*0.2449)*(VALUE($B$5)-VALUE($BS$66))/1000 -> 174.398381 | BM36: 75 | BN36: 135.1126836 | BO36: 39.12197495 | BP36: 53.5914645 | BQ36: 476992.9232 | BR36: 11.32609955 | BS36: 27.79587539 | BT36: 61.2499733 | BU36: 61.25 | BV36: 70.5640775 | BX36: 74.840304 | BY36: CF | BZ36: 74.840304 | CA36: 75 | CB36: CF | CC36: 70.5640775 | CD36: 61.25 | CG36: 2.237311125 | CH36: 4.75 | CI36: 1 | CJ36: 7.225202956 | CK36: 4.750020504
A37: SP70 Occ MRC in Reheat Mode | B37: =$B$14+$B$18 -> 400.3777776 | H37: SP80A | I37: =(BE18*VALUE($E$11)^2 + BF18*VALUE($E$11) + BG18)+(0.069*$F$6-8.32) -> 40.93112515 | J37: =(VLOOKUP(N18,CompCoef1,5,FALSE)+(VLOOKUP(N18,CompCoef1,6,FALSE)*I37)+(VLOOKUP(N18,CompCoef1,7,FALSE)*VALUE($F$6))+(VLOOKUP(N18,CompCoef1,8,FALSE)*(I37^2))+(VLOOKUP(N18,CompCoef1,9,FALSE)*I37*VALUE($F$6))+(VLOOKUP(N18,CompCoef1,10,FALSE)*(VALUE($F$6)^2))+(VLOOKUP(N18,CompCoef1,11,FALSE)*(I37^3))+(VLOOKUP(N18,CompCoef1,12,FALSE)*VALUE($F$6)*(I37^2))+(VLOOKUP(N18,CompCoef1,13,FALSE)*I37*(VALUE($F$6)^2))+(VLOOKUP(N18,CompCoef1,14,FALSE)*(VALUE($F$6)^3)))*$BK$16 -> 378301.7888 | K37: =VLOOKUP(N18,CompCoef1,15,FALSE)+(VLOOKUP(N18,CompCoef1,16,FALSE)*I37)+(VLOOKUP(N18,CompCoef1,17,FALSE)*VALUE($F$6))+(VLOOKUP(N18,CompCoef1,18,FALSE)*(I37^2))+(VLOOKUP(N18,CompCoef1,19,FALSE)*I37*VALUE($F$6))+(VLOOKUP(N18,CompCoef1,20,FALSE)*(VALUE($F$6)^2))+(VLOOKUP(N18,CompCoef1,21,FALSE)*(I37^3))+(VLOOKUP(N18,CompCoef1,22,FALSE)*VALUE($F$6)*(I37^2))+(VLOOKUP(N18,CompCoef1,23,FALSE)*I37*(VALUE($F$6)^2))+(VLOOKUP(N18,CompCoef1,24,FALSE)*(VALUE($F$6)^3)) -> 30265.00274 | L37: =(J37+(K37*3.412))/1000 -> 481.5659781 | M37: =(($I$19*((($I$19-$J$19)*$B$5)+(($BS$125)*$J$19))/$I$19)+($I$18*((($I$18-$J$18)*$B$5)+(($I$37+9.5)*$J$18))/$I$18))/($I$18+$I$19) -> 70.11088191 | N37: =J37/(60/$F$17)/J18 -> 13.70968326 | O37: =$E$12-N37 -> 20.54494397 | P37: =VLOOKUP(O37,CG26:CK713,5) -> 49.99998093 | Q37: =VLOOKUP(O37,CG26:CK713,2) -> 50 | R37: =RHtoGRL(Q37,0.999,VALUE($B$9)) -> 54.88637877 | S37: =WETBULBL(Q37,R37,VALUE($B$9)) -> 49.98484421 | T37: =($E$12-O37)*(60/$F$17)*J18/1000 -> 378.3017888 | U37: =V37*$F$5/1000 -> 146.0207569 | V37: =IF((($E$10-R37)*J18)/($F$17*7000/60)<0,0,(($E$10-R37)*J18)/($F$17*7000/60)) -> 137.755431 | W37: =V37/K37*1000 -> 4.551641121 | X37: =VALUE($K$5)*(F15*60*0.2449)*(VALUE($B$5)-VALUE(Q37))/1000 -> 219.1453569 | Y37: =(BE18*VALUE($F$11)^2 + BF18*VALUE($F$11) + BG18)+(0.069*$F$6-8.32) -> 44.04957602 | Z37: =(VLOOKUP(N18,CompCoef1,5,FALSE)+VLOOKUP(N18,CompCoef1,6,FALSE)*Y37+VLOOKUP(N18,CompCoef1,7,FALSE)*VALUE($F$6)+VLOOKUP(N18,CompCoef1,8,FALSE)*(Y37^2)+VLOOKUP(N18,CompCoef1,9,FALSE)*Y37*VALUE($F$6)+VLOOKUP(N18,CompCoef1,10,FALSE)*(VALUE($F$6)^2)+VLOOKUP(N18,CompCoef1,11,FALSE)*(Y37^3)+VLOOKUP(N18,CompCoef1,12,FALSE)*VALUE($F$6)*(Y37^2)+VLOOKUP(N18,CompCoef1,13,FALSE)*Y37*(VALUE($F$6)^2)+VLOOKUP(N18,CompCoef1,14,FALSE)*(VALUE($F$6)^3))*$BK$16 -> 401240.9355 | AA37: =VLOOKUP(N18,CompCoef1,15,FALSE)+VLOOKUP(N18,CompCoef1,16,FALSE)*Y37+VLOOKUP(N18,CompCoef1,17,FALSE)*VALUE($F$6)+VLOOKUP(N18,CompCoef1,18,FALSE)*(Y37^2)+VLOOKUP(N18,CompCoef1,19,FALSE)*Y37*VALUE($F$6)+VLOOKUP(N18,CompCoef1,20,FALSE)*(VALUE($F$6)^2)+VLOOKUP(N18,CompCoef1,21,FALSE)*(Y37^3)+VLOOKUP(N18,CompCoef1,22,FALSE)*VALUE($F$6)*(Y37^2)+VLOOKUP(N18,CompCoef1,23,FALSE)*Y37*(VALUE($F$6)^2)+VLOOKUP(N18,CompCoef1,24,FALSE)*(VALUE($F$6)^3) -> 30436.30594 | AB37: =(Z37+AA37*3.412)/1000 -> 505.0896114 | AC37: =(($I$19*((($I$19-$J$19)*$B$5)+(($BS$125)*$J$19))/$I$19)+($I$18*((($I$18-$J$18)*$B$5)+(($Y$37+9.5)*$J$18))/$I$18))/($I$18+$I$19) -> 70.76471711 | AD37: =Z37/(60/$F$17)/J18 -> 14.54099954 | AE37: =$F$12-AD37 -> 22.60263907 | AF37: =VLOOKUP(AE37,CG26:CK713,5) -> 53.49997711 | AG37: =VLOOKUP(AE37,CG26:CK713,2) -> 53.5 | AH37: =RHtoGRL(AG37,0.999,VALUE($B$9)) -> 62.57062852 | AI37: =WETBULBL(AG37,AH37,VALUE($B$9)) -> 53.48385239 | AJ37: =($F$12-AE37)*(60/$F$17)*J18/1000 -> 401.2409355 | AK37: =AL37*$F$5/1000 -> 190.851233 | AL37: =IF((($F$10-AH37)*J18)/($F$17*7000/60)<0,0,(($F$10-AH37)*J18)/($F$17*7000/60)) -> 180.048333 | AM37: =AL37/AA37*1000 -> 5.915577711 | AN37: =VALUE($K$5)*(F26*60*0.2449)*(VALUE($B$5)-VALUE(AG37))/1000 -> 201.7482337 | BM37: 76 | BN37: 139.8411319 | BO37: 40.11003494 | BP37: 54.56426021 | BQ37: 485200.9072 | BR37: 11.52099646 | BS37: 28.58903848 | BT37: 62.49996567 | BU37: 62.5 | BV37: 71.302315 | BX37: 75.343584 | BY37: CF | BZ37: 75.343584 | CA37: 76 | CB37: CF | CC37: 71.302315 | CD37: 62.5 | CG37: 2.311608076 | CH37: 5 | CI37: 1 | CJ37: 7.318577014 | CK37: 5.00001955
A38: SP70 Occ MRC in ROC Mode | B38: =$B$15+$B$19 -> 413.1908835 | H38: SP80B | I38: =(BE19*VALUE($E$35)^2 + BF19*VALUE($E$35) + BG19)+(0.069*$F$6-8.32) -> 40.36107871 | J38: =(VLOOKUP(N19,CompCoef1,5,FALSE)+(VLOOKUP(N19,CompCoef1,6,FALSE)*I38)+(VLOOKUP(N19,CompCoef1,7,FALSE)*VALUE($F$6))+(VLOOKUP(N19,CompCoef1,8,FALSE)*(I38^2))+(VLOOKUP(N19,CompCoef1,9,FALSE)*I38*VALUE($F$6))+(VLOOKUP(N19,CompCoef1,10,FALSE)*(VALUE($F$6)^2))+(VLOOKUP(N19,CompCoef1,11,FALSE)*(I38^3))+(VLOOKUP(N19,CompCoef1,12,FALSE)*VALUE($F$6)*(I38^2))+(VLOOKUP(N19,CompCoef1,13,FALSE)*I38*(VALUE($F$6)^2))+(VLOOKUP(N19,CompCoef1,14,FALSE)*(VALUE($F$6)^3)))*$BK$16 -> 468985.6874 | K38: =VLOOKUP(N19,CompCoef1,15,FALSE)+(VLOOKUP(N19,CompCoef1,16,FALSE)*I38)+(VLOOKUP(N19,CompCoef1,17,FALSE)*VALUE($F$6))+(VLOOKUP(N19,CompCoef1,18,FALSE)*(I38^2))+(VLOOKUP(N19,CompCoef1,19,FALSE)*I38*VALUE($F$6))+(VLOOKUP(N19,CompCoef1,20,FALSE)*(VALUE($F$6)^2))+(VLOOKUP(N19,CompCoef1,21,FALSE)*(I38^3))+(VLOOKUP(N19,CompCoef1,22,FALSE)*VALUE($F$6)*(I38^2))+(VLOOKUP(N19,CompCoef1,23,FALSE)*I38*(VALUE($F$6)^2))+(VLOOKUP(N19,CompCoef1,24,FALSE)*(VALUE($F$6)^3)) -> 38441.26196 | L38: =(J38+(K38*3.412))/1000 -> 600.1472732 | M38: =(($I$19*((($I$19-$J$19)*$B$5)+(($BS$125)*$J$19))/$I$19)+($I$18*((($I$18-$J$18)*$B$5)+(($I$37+9.5)*$J$18))/$I$18))/($I$18+$I$19) -> 70.11088191 | N38: =J38/(60/$F$41)/J19 -> 10.97702948 | O38: =$E$36-N38 -> 19.40885004 | P38: =VLOOKUP(O38,CG26:CK713,5) -> 47.99998856 | Q38: =VLOOKUP(O38,CG26:CK713,2) -> 48 | R38: =RHtoGRL(Q38,0.999,VALUE($B$9)) -> 50.88544078 | S38: =WETBULBL(Q38,R38,VALUE($B$9)) -> 47.98540878 | T38: =($E$36-O38)*(60/$F$41)*J19/1000 -> 468.9856874 | U38: =V38*$F$5/1000 -> 240.2447071 | V38: =IF((($E$34-R38)*J19)/($F$41*7000/60)<0,0,(($E$34-R38)*J19)/($F$41*7000/60)) -> 226.6459501 | W38: =V38/K38*1000 -> 5.895902958 | X38: =VALUE($K$3)*(F15*60*0.2449)*(VALUE($B$5)-VALUE($BS$125))/1000 -> 137.9899497 | Y38: =(BE19*VALUE($F$35)^2 + BF19*VALUE($F$35) + BG19)+(0.069*$F$6-8.32) -> 44.0654303 | Z38: =(VLOOKUP(N19,CompCoef1,5,FALSE)+VLOOKUP(N19,CompCoef1,6,FALSE)*Y38+VLOOKUP(N19,CompCoef1,7,FALSE)*VALUE($F$6)+VLOOKUP(N19,CompCoef1,8,FALSE)*(Y38^2)+VLOOKUP(N19,CompCoef1,9,FALSE)*Y38*VALUE($F$6)+VLOOKUP(N19,CompCoef1,10,FALSE)*(VALUE($F$6)^2)+VLOOKUP(N19,CompCoef1,11,FALSE)*(Y38^3)+VLOOKUP(N19,CompCoef1,12,FALSE)*VALUE($F$6)*(Y38^2)+VLOOKUP(N19,CompCoef1,13,FALSE)*Y38*(VALUE($F$6)^2)+VLOOKUP(N19,CompCoef1,14,FALSE)*(VALUE($F$6)^3))*$BK$16 -> 504640.9271 | AA38: =VLOOKUP(N19,CompCoef1,15,FALSE)+VLOOKUP(N19,CompCoef1,16,FALSE)*Y38+VLOOKUP(N19,CompCoef1,17,FALSE)*VALUE($F$6)+VLOOKUP(N19,CompCoef1,18,FALSE)*(Y38^2)+VLOOKUP(N19,CompCoef1,19,FALSE)*Y38*VALUE($F$6)+VLOOKUP(N19,CompCoef1,20,FALSE)*(VALUE($F$6)^2)+VLOOKUP(N19,CompCoef1,21,FALSE)*(Y38^3)+VLOOKUP(N19,CompCoef1,22,FALSE)*VALUE($F$6)*(Y38^2)+VLOOKUP(N19,CompCoef1,23,FALSE)*Y38*(VALUE($F$6)^2)+VLOOKUP(N19,CompCoef1,24,FALSE)*(VALUE($F$6)^3) -> 38612.85562 | AB38: =(Z38+AA38*3.412)/1000 -> 636.3879904 | AC38: =(($I$19*((($I$19-$J$19)*$B$5)+(($BS$125)*$J$19))/$I$19)+($I$18*((($I$18-$J$18)*$B$5)+((Y37+9.5)*$J$18))/$I$18))/($I$18+$I$19) -> 70.76471711 | AD38: =Z38/(60/$F$41)/J19 -> 11.81157225 | AE38: =$F$36-AD38 -> 21.8308838 | AF38: =VLOOKUP(AE38,CG26:CK713,5) -> 52.24998093 | AG38: =VLOOKUP(AE38,CG26:CK713,2) -> 52.25 | AH38: =RHtoGRL(AG38,0.999,VALUE($B$9)) -> 59.72223357 | AI38: =WETBULBL(AG38,AH38,VALUE($B$9)) -> 52.23420715 | AJ38: =($F$36-AE38)*(60/$F$41)*J19/1000 -> 504.6409271 | AK38: =AL38*$F$5/1000 -> 300.6412298 | AL38: =IF((($F$34-AH38)*J19)/($F$41*7000/60)<0,0,(($F$34-AH38)*J19)/($F$41*7000/60)) -> 283.6238017 | AM38: =AL38/AA38*1000 -> 7.345320546 | AN38: =VALUE($K$6)*(F26*60*0.2449)*(VALUE($B$5)-VALUE($BS$184))/1000 -> 190.79481 | BM38: 77 | BN38: 144.7193996 | BO38: 41.12213516 | BP38: 55.53861996 | BQ38: 493514.2615 | BR38: 11.71839536 | BS38: 29.4037398 | BT38: 63.49996185 | BU38: 63.5 | BV38: 71.892905 | BX38: 75.746208 | BY38: CF | BZ38: 75.746208 | CA38: 77 | CB38: CF | CC38: 71.892905 | CD38: 63.5 | CG38: 2.386076212 | CH38: 5.25 | CI38: 1 | CJ38: 7.413057083 | CK38: 5.25001955
A39: SP80 Unocc MRC in Reheat Mode | B39: =$B$20+$B$24 -> 356.9267014 | E39: Density R/A (Unocc) | F39: =DensityL(VALUE($BM$125),$E$34,VALUE($B$9)) -> 0.07168872417 | BM39: 78 | BN39: 149.7518934 | BO39: 42.15899658 | BP39: 56.51454373 | BQ39: 501933.9925 | BR39: 11.91832015 | BS39: 30.24067643 | BT39: 64.74996185 | BU39: 64.75 | BV39: 72.6311425 | BX39: 76.249488 | BY39: CF | BZ39: 76.249488 | CA39: 78 | CB39: CF | CC39: 72.6311425 | CD39: 64.75 | CG39: 2.460716963 | CH39: 5.5 | CI39: 1 | CJ39: 7.508655044 | CK39: 5.500020027
A40: SP80 Unocc MRC in ROC Mode | B40: =$B$21+$B$25 -> 364.4013811 | E40: 1/Density of R/A | F40: =1/$F$39 -> 13.9491951 | BM40: 79 | BN40: 154.9431516 | BO40: 43.22135162 | BP40: 57.49203153 | BQ40: 510461.1125 | BR40: 12.12079487 | BS40: 31.10055675 | BT40: 65.74996185 | BU40: 65.75 | BV40: 73.2217325 | BX40: 76.652112 | BY40: CF | BZ40: 76.652112 | CA40: 79 | CB40: CF | CC40: 73.2217325 | CD40: 65.75 | CG40: 2.535532475 | CH40: 5.75 | CI40: 1 | CJ40: 7.605382889 | CK40: 5.750020027
A41: SP80 Occ MRC in Reheat Mode | B41: =$B$22+$B$26 -> 450.5368563 | E41: Sp. Vol | F41: =SUM($F$40+$CH$18)/2 -> 13.48179518 | BM41: 80 | BN41: 160.2978489 | BO41: 44.30997086 | BP41: 58.47108336 | BQ41: 519096.6402 | BR41: 12.32584372 | BS41: 31.98412714 | BT41: 66.74996185 | BU41: 66.75 | BV41: 73.8123225 | BX41: 77.054736 | BY41: CF | BZ41: 77.054736 | CA41: 80 | CB41: =BY59 -> CF | CC41: 73.8123225 | CD41: 66.75 | CG41: 2.610524654 | CH41: 6 | CI41: 1 | CJ41: 7.703252728 | CK41: 6.000020027
A42: SP80 Occ MRC in ROC Mode | B42: =$B$23+$B$27 -> 463.6721347 | J42: Total Unit MBH | K42: Total Watts | L42: Total Unit THR MBH | T42: Total Unit MBH | U42: Total Latent | V42: MRC | W42: MRE | X42: Sensible | Z42: Total Unit MBH | AA42: Total Watts | AB42: Total Unit THR MBH | AJ42: Total Unit MBH | AK42: Total Unit Latent MBH | AL42: Total Unit MRC | AN42: Total Sens | BM42: 81 | BN42: 165.8208006 | BO42: 45.42563629 | BP42: 59.45169922 | BQ42: 527841.6005 | BR42: 12.53349101 | BS42: 32.89214528 | BT42: 67.99995422 | BU42: 68 | BV42: 74.55056 | BX42: 77.558016 | BY42: CF | BZ42: 77.558016 | CA42: 81 | CB42: =BY43 -> CF | CC42: 74.55056 | CD42: 68 | CG42: 2.685695171 | CH42: 6.25 | CI42: 1 | CJ42: 7.802276787 | CK42: 6.250019073
H43: 70 | J43: =SUM(J35+J36)/1000 -> 778.6611969 | K43: =K35+K36 -> 60694.57432 | L43: =L35+L36 -> 985.7510845 | T43: =T35+T36 -> 778.6611969 | U43: =U35+U36 -> 338.4210373 | V43: =V35+V36 -> 319.2651295 | W43: =V43/K43*1000 -> 5.260192251 | X43: =T43-U43 -> 440.2401596 | Z43: =SUM(Z35+Z36)/1000 -> 830.8130901 | AA43: =AA35+AA36 -> 61100.73838 | AB43: =AB35+AB36 -> 1039.288809 | AJ43: =AJ35+AJ36 -> 830.8130901 | AK43: =AK35+AK36 -> 437.9823365 | AL43: =AL35+AL36 -> 413.1908835 | AM43: =AL43/AA43*1000 -> 6.762453195 | AN43: =AJ43-AK43 -> 392.8307536 | BM43: 82 | BN43: 171.5169685 | BO43: 46.56915665 | BP43: 60.43387911 | BQ43: 536697.0243 | BR43: 12.74376124 | BS43: 33.8253954 | BT43: 68.99995422 | BU43: 69 | BV43: 75.14115 | BX43: 77.96064 | BY43: CF | BZ43: 77.96064 | CA43: 82 | CB43: CF | CC43: 75.14115 | CD43: 69 | CG43: 2.76104641 | CH43: 6.5 | CI43: 1 | CJ43: 7.90246741 | CK43: 6.500018597
A44: SP70 Occ TOT CAP in Reheat Mode | B44: =B29+B30 -> 780.746289 | H44: 80 | J44: =SUM(J38+J37)/1000 -> 847.2874761 | K44: =K37+K38 -> 68706.2647 | L44: =L37+L38 -> 1081.713251 | T44: =T37+T38 -> 847.2874761 | U44: =U37+U38 -> 386.265464 | V44: =V37+V38 -> 364.4013811 | W44: =V44/K44*1000 -> 5.303757709 | X44: =T44-U44 -> 461.0220122 | Z44: =SUM(Z38+Z37)/1000 -> 905.8818626 | AA44: =AA37+AA38 -> 69049.16155 | AB44: =AB37+AB38 -> 1141.477602 | AJ44: =AJ37+AJ38 -> 905.8818626 | AK44: =AK38+AK37 -> 491.4924628 | AL44: =AL38+AL37 -> 463.6721347 | AM44: =AL44/AA44*1000 -> 6.715101592 | AN44: =AJ44-AK44 -> 414.3893998 | BM44: 83 | BN44: 177.3914657 | BO44: 47.74136734 | BP44: 61.41762303 | BQ44: 545663.9488 | BR44: 12.95667903 | BS44: 34.78468831 | BT44: 70.24995422 | BU44: 70.25 | BV44: 75.8793875 | BX44: 78.46392 | BY44: CF | BZ44: 78.46392 | CA44: 83 | CB44: CF | CC44: 75.8793875 | CD44: 70.25 | CG44: 2.8365798 | CH44: 6.75 | CI44: 1 | CJ44: 8.003837058 | CK44: 6.750018597
A45: SP80 Occ TOT CAP in Reheat Mode | B45: =B31+B32 -> 826.3866521 | BM45: 84 | BN45: 183.4495626 | BO45: 48.94313431 | BP45: 62.40293098 | BQ45: 554743.4176 | BR45: 13.17226917 | BS45: 35.77086514 | BT45: 71.24995422 | BU45: 71.25 | BV45: 76.4699775 | BX45: 78.866544 | BY45: CF | BZ45: 78.866544 | CA45: 84 | CB45: CF | CC45: 76.4699775 | CD45: 71.25 | CG45: 2.912297726 | CH45: 7 | CI45: 1 | CJ45: 8.106398312 | CK45: 7.00001955
C46: ROC Mode | BM46: 85 | BN46: 189.6966926 | BO46: 50.17533493 | BP46: 63.38980296 | BQ46: 563936.4802 | BR46: 13.39055656 | BS46: 36.78477837 | BT46: 72.49995422 | BU46: 72.5 | BV46: 77.208215 | BX46: 79.369824 | BY46: CF | BZ46: 79.369824 | CA46: 85 | CB46: CF | CC46: 77.208215 | CD46: 72.5 | CG46: 2.988201857 | CH46: 7.25 | CI46: 1 | CJ46: 8.210163873 | CK46: 7.25001955
A47: SP70 Occ SENS in Cooling Mode | B47: =AN35+AN36 -> 376.1466148 | C47: =AN43 -> 392.8307536 | BM47: 86 | BN47: 196.1384581 | BO47: 51.43889236 | BP47: 64.37823896 | BQ47: 573244.1928 | BR47: 13.6115663 | BS47: 37.82732607 | BT47: 73.49995422 | BU47: 73.5 | BV47: 77.798805 | BX47: 79.772448 | BY47: CF | BZ47: 79.772448 | CA47: 86 | CB47: CF | CC47: 77.798805 | CD47: 73.5 | CG47: 3.064294338 | CH47: 7.5 | CI47: 1 | CJ47: 8.315146565 | CK47: 7.500018597
A48: SP80 Occ SENS in Cooling Mode | B48: =AN37+AN38 -> 392.5430438 | C48: =AN44 -> 414.3893998 | BM48: 87 | BN48: 202.7806375 | BO48: 52.73475266 | BP48: 65.368239 | BQ48: 582667.6175 | BR48: 13.83532359 | BS48: 38.89942906 | BT48: 74.74994659 | BU48: 74.75 | BV48: 78.5370425 | BX48: 80.275728 | BY48: CF | BZ48: 80.275728 | CA48: 87 | CB48: CF | CC48: 78.5370425 | CD48: 74.75 | CG48: 3.140577078 | CH48: 7.75 | CI48: 1 | CJ48: 8.421359332 | CK48: 7.750018597
BM49: 88 | BN49: 209.6291913 | BO49: 54.06388855 | BP49: 66.35980307 | BQ49: 592207.823 | BR49: 14.06185382 | BS49: 40.00203473 | BT49: 75.74995422 | BU49: 75.75 | BV49: 79.1276325 | BX49: 80.678352 | BY49: CF | BZ49: 80.678352 | CA49: 88 | CB49: CF | CC49: 79.1276325 | CD49: 75.75 | CG49: 3.21705246 | CH49: 8 | CI49: 1 | CJ49: 8.528815245 | CK49: 8.000019073
A50: SP70 Occ THR in Cooling Mode | B50: =(J35+(K35*3.41)+J36+(K36*3.41))/1000 -> 985.6296953 | BM50: 89 | BN50: 216.6902699 | BO50: 55.42730331 | BP50: 67.35293116 | BQ50: 601865.8843 | BR50: 14.29118252 | BS50: 41.1361208 | BT50: 76.99994659 | BU50: 77 | BV50: 79.86587 | BX50: 81.181632 | BY50: CF | BZ50: 81.181632 | CA50: 89 | CB50: CF | CC50: 79.86587 | CD50: 77 | CG50: 3.293722391 | CH50: 8.25 | CI50: 1 | CJ50: 8.637527496 | CK50: 8.250019073
A51: SP80 Occ THR in Cooling Mode | B51: =(J37+(K37*3.41)+J38+(K38*3.41))/1000 -> 1081.575839 | BM51: 90 | BN51: 223.9702206 | BO51: 56.82603455 | BP51: 68.34762329 | BQ51: 611642.8826 | BR51: 14.52333534 | BS51: 42.3026992 | BT51: 77.99994659 | BU51: 78 | BV51: 80.45646 | BX51: 81.584256 | BY51: CF | BZ51: 81.584256 | CA51: 90 | CB51: CF | CC51: 80.45646 | CD51: 78 | CG51: 3.370588541 | CH51: 8.5 | CI51: 1 | CJ51: 8.747509405 | CK51: 8.500017166
BM52: 91 | BN52: 231.4755957 | BO52: 58.26116562 | BP52: 69.34387944 | BQ52: 621539.9058 | BR52: 14.75833814 | BS52: 43.50282748 | BT52: 79.25000763 | BU52: 79.25 | BV52: 81.1946975 | BX52: 82.087536 | BY52: CF | BZ52: 82.087536 | CA52: 91 | CB52: CF | CC52: 81.1946975 | CD52: 79.25 | CG52: 3.44765377 | CH52: 8.75 | CI52: 1 | CJ52: 8.858774419 | CK52: 8.75001812
A53: Data Transfer to Schedule | B53: ='Performance TBL_(Reheat)'!I239 -> 70 | C53: ROC Mode | D53: Reheat Mode | BM53: 92 | BN53: 239.2131606 | BO53: 59.73379135 | BP53: 70.34169963 | BQ53: 631558.0478 | BR53: 14.99621687 | BS53: 44.73757448 | BT53: 80.25000763 | BU53: 80.25 | BV53: 81.7852875 | BX53: 82.49016 | BY53: CF | BZ53: 82.49016 | CA53: 92 | CB53: CF | CC53: 81.7852875 | CD53: 80.25 | CG53: 3.52491951 | CH53: 9 | CI53: 1 | CJ53: 8.97133611 | CK53: 9.000019073
A54: Selected Unit Total Cooling Capacity | B54: =+IF(B$53="70",B44,B45) -> 826.3866521 | C54: =+IF(B$53="70",AJ43,AJ44) -> 905.8818626 | D54: =+IF(B$53="70",N$88,N$89)/1000 -> 792.646875 | BM54: 93 | BN54: 247.1899028 | BO54: 61.24506378 | BP54: 71.34108384 | BQ54: 641698.4093 | BR54: 15.23699769 | BS54: 46.00806609 | BT54: 81.50000763 | BU54: 81.5 | BV54: 82.523525 | BX54: 82.99344 | BY54: CF | BZ54: 82.99344 | CA54: 93 | CB54: CF | CC54: 82.523525 | CD54: 81.5 | CG54: 3.602388382 | CH54: 9.25 | CI54: 1 | CJ54: 9.085208181 | CK54: 9.250017166
A55: Selected Unit THR | B55: =+IF(B$53="70",B50,B51) -> 1081.575839 | C55: =+IF(B$53="70",AB43,AB44) -> 1141.477602 | D55: =+IF(B$53="70",J$88,J$89)/1000 -> 1081.713251 | BM55: 94 | BN55: 255.4130406 | BO55: 62.79616547 | BP55: 72.34203209 | BQ55: 651962.0973 | BR55: 15.48070686 | BS55: 47.3154586 | BT55: 82.50000763 | BU55: 82.5 | BV55: 83.114115 | BX55: 83.396064 | BY55: CF | BZ55: 83.396064 | CA55: 94 | CB55: CF | CC55: 83.114115 | CD55: 82.5 | CG55: 3.680062294 | CH55: 9.5 | CI55: 1 | CJ55: 9.200404467 | CK55: 9.500017166
A56: Selected Unit MRC (Uncc) | B56: =+IF(B$53="70",B35,B39) -> 356.9267014 | C56: =+IF(B$53="70",V43,V44) -> 364.4013811 | D56: =+IF(B$53="70",Z88,Z89) -> 356.9267014 | BM56: 95 | BN56: 263.8900332 | BO56: 64.38832092 | BP56: 73.34454436 | BQ56: 662350.2253 | BR56: 15.72737084 | BS56: 48.66095008 | BT56: 83.75000763 | BU56: 83.75 | BV56: 83.8523525 | BX56: 83.899344 | BY56: CF | BZ56: 83.899344 | CA56: 95 | CB56: CF | CC56: 83.8523525 | CD56: 83.75 | CG56: 3.75794363 | CH56: 9.75 | CI56: 1 | CJ56: 9.316938929 | CK56: 9.75001812
A57: Selected Unit MRC (Occ) | B57: =+IF(B$53="70",B37,B41) -> 450.5368563 | C57: =+IF(B$53="70",AL43,AL44) -> 463.6721347 | D57: =+IF(B$53="70",AS88,AS89) -> 450.5368563 | H57: REHEAT CONDENSER BASE CALCULATIONS | BM57: 96 | BN57: 272.6285903 | BO57: 66.02278137 | BP57: 74.34862066 | BQ57: 672863.9133 | BR57: 15.97701622 | BS57: 50.04576516 | BT57: 84.75 | BU57: 84.75 | BV57: 84.4429425 | BX57: 84.301968 | BY57: CF | BZ57: 84.301968 | CA57: 96 | CB57: CF | CC57: 84.4429425 | CD57: 84.75 | CG57: 3.836034298 | CH57: 10 | CI57: 1 | CJ57: 9.434825665 | CK57: 10.00001812
A58: Selected Unit Sensible Cap. (Occ) | B58: =+IF(B$53="70",B47,B48) -> 392.5430438 | C58: =+IF(B$53="70",AN43,AN44) -> 414.3893998 | D58: =+IF(B$53="70",AU88,AU89) -> 348.8175844 | H58: UNIT | I58: TOTAL AIR FLOW (CFM) | J58: EVAP AIR FLOW (CFM) | AB58: ITD LINE EQUATION (y = m2^2 + m1x1 + b) | AK58: ITD AT SPECIFIED CONDITIONS (y = m2^2 + m1x1 + b) | AQ58: UNIT | BM58: 97 | BN58: 281.6366832 | BO58: 67.7008667 | BP58: 75.35426099 | BQ58: 683504.2878 | BR58: 16.22966973 | BS58: 51.47119696 | BT58: 86.00000763 | BU58: 86 | BV58: 85.18118 | BX58: 84.805248 | BY58: CF | BZ58: 84.805248 | CA58: 97 | CB58: CF | CC58: 85.18118 | CD58: 86 | CG58: 3.91433692 | CH58: 10.25 | CI58: 1 | CJ58: 9.554078905 | CK58: 10.25001812
A59: Total CFM | B59: =+IF(B$53="70",I3,I5) -> 30000 | C59: =B59 -> 30000 | D59: =B59 -> 30000 | K59: COND COIL | L59: QTY | M59: CFM | P59: HEAT OF REJECTION | S59: ITD - LOW H.O.R | V59: ITD - MED H.O.R | Y59: ITD - HIGH H.O.R | AB59: Line for all LOW H.O.R. VALUES | AE59: Line for all MED H.O.R. VALUES | AH59: Line for all HIGH H.O.R. VALUES | AK59: ITD at LOW H.O.R. | AL59: ITD at AVE. H.O.R | AM59: ITD at HIGH H.O.R. | AN59: Line for specified CFM at all HOR VALUES | AS59: LOW CFM | AY59: MED CFM | BE59: HIGH CFM | BY59: CF | CG59: 3.992853403 | CH59: 10.5 | CI59: 1 | CJ59: 9.674713012 | CK59: 10.50001717
A60: Heat Pipe CFM | B60: =+IF(B$53="70",K4,K6) -> 9600 | C60: =B60 -> 9600 | D60: =B60 -> 9600 | K60: ITEM # | M60: LOW | N60: MED | O60: HIGH | P60: LOW | Q60: MED | R60: HIGH | S60: LOW CFM | T60: MED CFM | U60: HIGH CFM | V60: LOW CFM | W60: MED CFM | X60: HIGH CFM | Y60: LOW CFM | Z60: MED CFM | AA60: HIGH CFM | AS60: LOW H.O.R. | AU60: MED H.O.R. | AW60: HIGH H.O.R. | AY60: LOW H.O.R. | BA60: MED H.O.R. | BC60: HIGH H.O.R. | BE60: LOW H.O.R. | BG60: MED H.O.R. | BI60: HIGH H.O.R. | BY60: Match this to entering grains | CG60: 4.071586132 | CH60: 10.75 | CI60: 1 | CJ60: 9.796742485 | CK60: 10.75001717
AB61: m2 | AC61: m1 | AD61: b | AE61: m2 | AF61: m1 | AG61: b | AH61: m2 | AI61: m1 | AJ61: b | AN61: m2 | AO61: m1 | AP61: b | AS61: SCT | AT61: Tin | AU61: SCT | AV61: Tin | AW61: SCT | AX61: Tin | AY61: SCT | AZ61: Tin | BA61: SCT | BB61: Tin | BC61: SCT | BD61: Tin | BE61: SCT | BF61: Tin | BG61: SCT | BH61: Tin | BI61: SCT | BJ61: Tin | CG61: 4.150537491 | CH61: 11 | CI61: 1 | CJ61: 9.920181962 | CK61: 11.00001717
H62: SP70A | I62: =$J$3 -> 12857.4 | J62: =$K$3 -> 6290 | K62: 630-228 | L62: 1 | M62: =$I$71*$L$70 -> 9100 | N62: =(M62+O62)/2 -> 13650 | O62: =$I$70*$L$70 -> 18200 | P62: 313725 | Q62: 448500 | R62: 583200 | S62: =AS62-AT62 -> 46.1 | T62: =AY62-AZ62 -> 38.7 | U62: =BE62-BF62 -> 35 | V62: =AU62-AV62 -> 61.38 | W62: =BA62-BB62 -> 50.4 | X62: =BG62-BH62 -> 45.1 | Y62: =AW62-AX62 -> 76.57 | Z62: =BC62-BD62 -> 62 | AA62: =BI62-BJ62 -> 54.84 | AB62: =LINEST(S62:U62,M62:O62^ROW($1:$2)) -> 8.936118826e-08 | AC62: -0.003659340659 | AD62: 72 | AE62: =LINEST(V62:X62,M62:O62^ROW($1:$2)) -> 1.371814998e-07 | AF62: -0.005534065934 | AG62: 100.38 | AH62: =LINEST(Y62:AA62,M62:O62^ROW($1:$2)) -> 1.789638932e-07 | AI62: -0.007273626374 | AJ62: 127.94 | AK62: =(AB62*($I62)^2)+AC62*$I62+AD62 -> 39.72293582 | AL62: =(AE62*($I62)^2)+AF62*$I62+AG62 -> 51.90414955 | AM62: =(AH62*($I62)^2)+AI62*$I62+AJ62 -> 64.00508688 | AN62: =LINEST(AK62:AM62,P62:R62^ROW($1:$2)) -> -2.024827684e-12 | AO62: 9.192522354e-05 | AP62: 11.08298544 | AQ62: SP70A | AS62: 101.1 | AT62: 55 | AU62: 116.38 | AV62: 55 | AW62: 131.57 | AX62: 55 | AY62: 93.7 | AZ62: 55 | BA62: 105.4 | BB62: 55 | BC62: 117 | BD62: 55 | BE62: 90 | BF62: 55 | BG62: 100.1 | BH62: 55 | BI62: 109.84 | BJ62: 55 | CG62: =EnthalpyL(CH62,CJ62) -> 4.229709625 | CH62: 11.25 | CI62: 1 | CJ62: =RHtoGRL(CH62,CI62,VALUE($B$9)) -> 10.04504622 | CK62: =DewpointL(CJ62,VALUE($B$9)) -> 11.25001621
A63: SP70 Cir A % MRC | B63: =+B12/B56 -> 0.3567768232 | H63: SP70B | I63: =$J$4 -> 17142.6 | J63: =$K$4 -> 9600 | K63: 630-229 | L63: 1 | M63: =$I$71*$L$71 -> 11950 | N63: =(M63+O63)/2 -> 17925 | O63: =$I$70*$L$71 -> 23900 | P63: 388605 | Q63: 593270 | R63: 798145 | S63: =AS63-AT63 -> 44.1 | T63: =AY63-AZ63 -> 40.9 | U63: =BE63-BF63 -> 33.7 | V63: =AU63-AV63 -> 61.8 | W63: =BA63-BB63 -> 55.9 | X63: =BG63-BH63 -> 45.34 | Y63: =AW63-AX63 -> 79.4 | Z63: =BC63-BD63 -> 70.3 | AA63: =BI63-BJ63 -> 56.7 | AB63: =LINEST(S63:U63,M63:O63^ROW($1:$2)) -> -5.60214282e-08 | AC63: 0.001138075314 | AD63: 38.5 | AE63: =LINEST(V63:X63,M63:O63^ROW($1:$2)) -> -6.526496385e-08 | AF63: 0.0009623430962 | AG63: 59.62 | AH63: =LINEST(Y63:AA63,M63:O63^ROW($1:$2)) -> -6.302410672e-08 | AI63: 0.000359832636 | AJ63: 84.1 | AK63: =(AB63*($I63)^2)+AC63*$I63+AD63 -> 41.54662365 | AL63: =(AE63*($I63)^2)+AF63*$I63+AG63 -> 56.93773041 | AM63: =(AH63*($I63)^2)+AI63*$I63+AJ63 -> 71.74765244 | AN63: =LINEST(AK63:AM63,P63:R63^ROW($1:$2)) -> -7.114957843e-12 | AO63: 8.218745898e-05 | AP63: 10.6826233 | AQ63: SP70B | AS63: 99.1 | AT63: 55 | AU63: 116.8 | AV63: 55 | AW63: 134.4 | AX63: 55 | AY63: 95.9 | AZ63: 55 | BA63: 110.9 | BB63: 55 | BC63: 125.3 | BD63: 55 | BE63: 88.7 | BF63: 55 | BG63: 100.34 | BH63: 55 | BI63: 111.7 | BJ63: 55 | BM63: SP70B - OCCUPIED | CG63: =EnthalpyL(CH63,CJ63) -> 4.309105396 | CH63: 11.5 | CI63: 1 | CJ63: =RHtoGRL(CH63,CI63,VALUE($B$9)) -> 10.17135016 | CK63: =DewpointL(CJ63,VALUE($B$9)) -> 11.50001717
A64: SP80 Cir A % MRC | B64: =+B20/B39 -> 0.3567768232 | H64: SP80A | I64: =$J$5 -> 12857.4 | J64: =$K$5 -> 6290 | K64: 630-230 | L64: 1 | M64: =$I$71*$L$70 -> 9100 | N64: =(M64+O64)/2 -> 13650 | O64: =$I$70*$L$70 -> 18200 | P64: 313725 | Q64: 448500 | R64: 583200 | S64: =AS64-AT64 -> 46.1 | T64: =AY64-AZ64 -> 38.7 | U64: =BE64-BF64 -> 35 | V64: =AU64-AV64 -> 61.38 | W64: =BA64-BB64 -> 50.4 | X64: =BG64-BH64 -> 45.1 | Y64: =AW64-AX64 -> 76.57 | Z64: =BC64-BD64 -> 62 | AA64: =BI64-BJ64 -> 54.84 | AB64: =LINEST(S64:U64,M64:O64^ROW($1:$2)) -> 8.936118826e-08 | AC64: -0.003659340659 | AD64: 72 | AE64: =LINEST(V64:X64,M64:O64^ROW($1:$2)) -> 1.371814998e-07 | AF64: -0.005534065934 | AG64: 100.38 | AH64: =LINEST(Y64:AA64,M64:O64^ROW($1:$2)) -> 1.789638932e-07 | AI64: -0.007273626374 | AJ64: 127.94 | AK64: =(AB64*($I64)^2)+AC64*$I64+AD64 -> 39.72293582 | AL64: =(AE64*($I64)^2)+AF64*$I64+AG64 -> 51.90414955 | AM64: =(AH64*($I64)^2)+AI64*$I64+AJ64 -> 64.00508688 | AN64: =LINEST(AK64:AM64,P64:R64^ROW($1:$2)) -> -2.024827684e-12 | AO64: 9.192522354e-05 | AP64: 11.08298544 | AQ64: SP80A | AS64: 101.1 | AT64: 55 | AU64: 116.38 | AV64: 55 | AW64: 131.57 | AX64: 55 | AY64: 93.7 | AZ64: 55 | BA64: 105.4 | BB64: 55 | BC64: 117 | BD64: 55 | BE64: 90 | BF64: 55 | BG64: 100.1 | BH64: 55 | BI64: 109.84 | BJ64: 55 | BM64: EVAPORATOR | BS64: HEATPIPE (HP) | BV64: LOOKUP TABLES | CG64: =EnthalpyL(CH64,CJ64) -> 4.388726234 | CH64: 11.75 | CI64: 1 | CJ64: =RHtoGRL(CH64,CI64,VALUE($B$9)) -> 10.29910885 | CK64: =DewpointL(CJ64,VALUE($B$9)) -> 11.75001621
A65: Selected Unit CirA% | B65: =+IF(B$50="70",B63,B64) -> 0.3567768232 | H65: SP80B | I65: =$J$6 -> 17142.6 | J65: =$K$6 -> 9600 | K65: 630-231 | L65: 1 | M65: =$I$71*$L$71 -> 11950 | N65: =(M65+O65)/2 -> 17925 | O65: =$I$70*$L$71 -> 23900 | P65: 388605 | Q65: 593270 | R65: 798145 | S65: =AS65-AT65 -> 44.1 | T65: =AY65-AZ65 -> 40.9 | U65: =BE65-BF65 -> 33.7 | V65: =AU65-AV65 -> 61.8 | W65: =BA65-BB65 -> 55.9 | X65: =BG65-BH65 -> 45.34 | Y65: =AW65-AX65 -> 79.4 | Z65: =BC65-BD65 -> 70.3 | AA65: =BI65-BJ65 -> 56.7 | AB65: =LINEST(S65:U65,M65:O65^ROW($1:$2)) -> -5.60214282e-08 | AC65: 0.001138075314 | AD65: 38.5 | AE65: =LINEST(V65:X65,M65:O65^ROW($1:$2)) -> -6.526496385e-08 | AF65: 0.0009623430962 | AG65: 59.62 | AH65: =LINEST(Y65:AA65,M65:O65^ROW($1:$2)) -> -6.302410672e-08 | AI65: 0.000359832636 | AJ65: 84.1 | AK65: =(AB65*($I65)^2)+AC65*$I65+AD65 -> 41.54662365 | AL65: =(AE65*($I65)^2)+AF65*$I65+AG65 -> 56.93773041 | AM65: =(AH65*($I65)^2)+AI65*$I65+AJ65 -> 71.74765244 | AN65: =LINEST(AK65:AM65,P65:R65^ROW($1:$2)) -> -7.114957843e-12 | AO65: 8.218745898e-05 | AP65: 10.6826233 | AQ65: SP80B | AS65: 99.1 | AT65: 55 | AU65: 116.8 | AV65: 55 | AW65: 134.4 | AX65: 55 | AY65: 95.9 | AZ65: 55 | BA65: 110.9 | BB65: 55 | BC65: 125.3 | BD65: 55 | BE65: 88.7 | BF65: 55 | BG65: 100.34 | BH65: 55 | BI65: 111.7 | BJ65: 55 | BM65: Final IN db | BN65: Final IN wb | BO65: Final IN RH | BQ65: Final OUT db | BR65: Final OUT wb | BS65: Final OUT db | BT65: Precool Eff | BU65: Reheat Eff | CG65: =EnthalpyL(CH65,CJ65) -> 4.468575478 | CH65: 12 | CI65: 1 | CJ65: =RHtoGRL(CH65,CI65,VALUE($B$9)) -> 10.42833749 | CK65: =DewpointL(CJ65,VALUE($B$9)) -> 12.00001621
A66: Cir B Heat Pipe LAT (reheat) | B66: =+BS7 -> 64.215235 | BM66: =IF(VLOOKUP($F$10,$BY$69:$CB$118,4)="CF","Consult Factory",VLOOKUP($F$10,$BY$69:$CB$118,2)) -> 72.223248 | BN66: =IF(VLOOKUP($F$10,$BY$69:$CB$118,4)="CF","Consult Factory",VLOOKUP($F$10,$BY$69:$CB$118,3)) -> 69 | BO66: =RHL($BM$66,$F$21,$B$9) -> 85.3968929 | BQ66: =VLOOKUP($F$10,$BY$68:$CD$117,6) -> 54.75 | BR66: =BQ66 -> 54.75 | BS66: =IF(VLOOKUP($F$10,$BY$68:$CC$117,4)="CF","Consult Factory",VLOOKUP($F$10,$BY$68:$CC$117,5)) -> 66.7252425 | BT66: =(0.00000004*(($J$17)^2))-(0.0019*$J$17)+54.816 -> 40.2624 | BU66: =(0.00000005*(($J$17)^2))-(0.0021*$J$17)+56.493 -> 40.941 | CG66: 4.548655033 | CH66: 12.25 | CI66: 1 | CJ66: 10.55905139 | CK66: 12.25001621
BM67: EVAPORATOR IN | BS67: EVAPORATOR OUT | BZ67: Evap Coil Inlet | CC67: Final HP OUT | CD67: Final DB Evap OUT | CG67: 4.628967285 | CH67: 12.5 | CI67: 1 | CJ67: 10.69126607 | CK67: 12.50001621
A68: SP70 Cir A Evap LAT (b/reheat) | B68: =+AN81 -> 55.25 | BM68: WB | BN68: WB to Grain (REF) | BO68: Enthalpy (H) | BP68: Suction Temp | BQ68: Capacity | BR68: D/X ∆H | BS68: Enthalpy (H) | BT68: Dpt | BU68: DB | BV68: Heat Pipe | BW68: EVAPORATOR IN | BZ68: Final db coil | CA68: Final WB Coil | CG68: 4.709514618 | CH68: 12.75 | CI68: 1 | CJ68: 10.82499712 | CK68: 12.75001621
A69: SP80 Cir A Evap LAT (b/reheat) | B69: =+AN83 -> 55.25 | H69: COND. FACE VELOCITY | K69: REHEAT SURFACE AREA | BV69: Final DB Out | BX69: EvapDB in | BY69: Evap Grains in | CB69: =BY70 -> 32.08262788 | CG69: 4.790299892 | CH69: 13 | CI69: 1 | CJ69: 10.96026034 | CK69: 13.00001621
A70: Selected Unit Cir A Evap LAT (b/reheat) | B70: =+IF(B$53="70",B68,B69) -> 55.25 | H70: HIGH | I70: 1000 | K70: CIRC A | L70: 18.2 | BM70: 50 | BN70: =WBtoGrL(BM70,BM70,$B$9) -> 54.94201268 | BO70: =EnthalpyL(BM70,BN70) -> 20.50188446 | BP70: =($BE$17*VALUE(BM70)^2 +$BF$17*VALUE( BM70) +$BG$17)+(0.069*$F$6-8.32) -> 29.77988127 | BQ70: =((VLOOKUP($N$17,CompCoef1,5,FALSE)+VLOOKUP($N$17,CompCoef1,6,FALSE)*BP70+VLOOKUP($N$17,CompCoef1,7,FALSE)*118+VLOOKUP($N$17,CompCoef1,8,FALSE)*(BP70^2)+VLOOKUP($N$17,CompCoef1,9,FALSE)*BP70*118)+VLOOKUP($N$17,CompCoef1,10,FALSE)*(118^2)+VLOOKUP($N$17,CompCoef1,11,FALSE)*(BP70^3)+VLOOKUP($N$17,CompCoef1,12,FALSE)*118*(BP70^2)+VLOOKUP($N$17,CompCoef1,13,FALSE)*BP70*(118^2)+VLOOKUP($N$17,CompCoef1,14,FALSE)*(118^3))*$BK$16 -> 303217.9438 | BR70: =BQ70/(60/$F$17)/$J$17 -> 7.199848154 | BS70: =BO70-BR70 -> 13.30203631 | BT70: =VLOOKUP(BS70,$CG$26:$CK$713,5) -> 35.25000763 | BU70: =VLOOKUP(BS70,$CG$26:$CK$713,2) -> 35.25 | BV70: =BU70+(($B$5-BU70)*($BU$66/100)) -> 55.2087375 | BX70: =$B$5-(($BT$66/100)*($B$5-BU70)) -> 64.37208 | BY70: =IF(WBtoGrL(BX70, BM70, $B$9)="N/A","CF",WBtoGrL(BX70, BM70, $B$9)) -> 32.08262788 | BZ70: =BX70 -> 64.37208 | CA70: =BM70 -> 50 | CB70: 35.11028348 | CC70: =BV70 -> 55.2087375 | CD70: =BU70 -> 35.25 | CG70: 4.871325493 | CH70: 13.25 | CI70: 1 | CJ70: 11.09707164 | CK70: 13.25001621
H71: LOW | I71: 500 | K71: CIRC B | L71: 23.9 | BM71: 51 | BN71: 57.04835487 | BO71: 21.07144356 | BP71: 30.71357624 | BQ71: 309101.2573 | BR71: 7.339546233 | BS71: 13.73189732 | BT71: 36.25000763 | BU71: 36.25 | BV71: 55.7993275 | BX71: 64.774704 | BY71: 35.11028348 | BZ71: 64.774704 | CA71: 51 | CB71: 38.21203793 | CC71: 55.7993275 | CD71: 36.25 | CG71: 4.952593327 | CH71: 13.5 | CI71: 1 | CJ71: 11.23544709 | CK71: 13.50001526
A72: SP70 Cir A Compr kW | B72: =+AH81/1000 -> 34.0143778 | BM72: 52 | BN72: 59.22673119 | BO72: 21.65242767 | BP72: 31.64883525 | BQ72: 315066.7106 | BR72: 7.481194704 | BS72: 14.17123297 | BT72: 37.25000381 | BU72: 37.25 | BV72: 56.3899175 | BX72: 65.177328 | BY72: 38.21203793 | BZ72: 65.177328 | CA72: 52 | CB72: 41.3901381 | CC72: 56.3899175 | CD72: 37.25 | CG72: 5.034107208 | CH72: 13.75 | CI72: 1 | CJ72: 11.37540291 | CK72: 13.75001431
A73: SP70 Cir B Compr kW | B73: =+AH82/1000 -> 32.64221796 | BM73: 53 | BN73: 61.47932944 | BO73: 22.24518585 | BP73: 32.58565828 | BQ73: 321115.1638 | BR73: 7.62481399 | BS73: 14.62037186 | BT73: 38.25000381 | BU73: 38.25 | BV73: 56.9805075 | BX73: 65.579952 | BY73: 41.3901381 | BZ73: 65.579952 | CA73: 53 | CB73: 44.64685709 | CC73: 56.9805075 | CD73: 38.25 | CG73: 5.115868568 | CH73: 14 | CI73: 1 | CJ73: 11.51695548 | CK73: 14.00001526
A74: SP80 Cir A Compr kW | B74: =+AH83/1000 -> 33.8377125 | BM74: 54 | BN74: 63.80839801 | BO74: 22.8500824 | BP74: 33.52404535 | BQ74: 327247.4827 | BR74: 7.770424648 | BS74: 15.07965775 | BT74: 39.25000381 | BU74: 39.25 | BV74: 57.5710975 | BX74: 65.982576 | BY74: 44.64685709 | BZ74: 65.982576 | CA74: 54 | CB74: 47.98456871 | CC74: 57.5710975 | CD74: 39.25 | CG74: 5.197880268 | CH74: 14.25 | CI74: 1 | CJ74: 11.66012131 | CK74: 14.25001526
A75: SP80 Cir B Compr kW | B75: =+AH84/1000 -> 43.96519995 | BM75: 55 | BN75: 66.21624755 | BO75: 23.46749115 | BP75: 34.46399644 | BQ75: 333464.5385 | BR75: 7.918047369 | BS75: 15.54944378 | BT75: 40.25 | BU75: 40.25 | BV75: 58.1616875 | BX75: 66.3852 | BY75: 47.98456871 | BZ75: 66.3852 | CA75: 55 | CB75: 51.40570089 | CC75: 58.1616875 | CD75: 40.25 | CG75: 5.280145168 | CH75: 14.5 | CI75: 1 | CJ75: 11.80491708 | CK75: 14.50001621
A76: Selected Unit Cir A kW | B76: =+IF(B$53="70",B72,B74) -> 33.8377125 | BM76: 56 | BN76: 68.70525277 | BO76: 24.09779358 | BP76: 35.40551156 | BQ76: 339767.2082 | BR76: 8.067702975 | BS76: 16.0300906 | BT76: 41.24999619 | BU76: 41.25 | BV76: 58.7522775 | BX76: 66.787824 | BY76: 51.40570089 | BZ76: 66.787824 | CA76: 56 | CB76: 54.91276192 | CC76: 58.7522775 | CD76: 41.25 | CG76: 5.36266613 | CH76: 14.75 | CI76: 1 | CJ76: 11.95135963 | CK76: 14.75001526
A77: Selected Unit Cir B kW | B77: =+IF(B$53="70",B73,B75) -> 43.96519995 | H77: REHEAT MODE TABLE | BM77: 57 | BN77: 71.2778543 | BO77: 24.74138641 | BP77: 36.34859072 | BQ77: 346156.3746 | BR77: 8.219412426 | BS77: 16.52197399 | BT77: 42.25000763 | BU77: 42.25 | BV77: 59.3428675 | BX77: 67.190448 | BY77: 54.91276192 | BZ77: 67.190448 | CA77: 57 | CB77: 58.50829364 | CC77: 59.3428675 | CD77: 42.25 | CG77: 5.445445061 | CH77: 15 | CI77: 1 | CJ77: 12.09946594 | CK77: 15.00001621
H78: UNIT | I78: UNOCC | AB78: OCC | AU78: UNIT | BM78: 58 | BN78: 73.93656057 | BO78: 25.3986721 | BP78: 37.2932339 | BQ78: 352632.9259 | BR78: 8.373196814 | BS78: 17.02547529 | BT78: 43.25000381 | BU78: 43.25 | BV78: 59.9334575 | BX78: 67.593072 | BY78: 58.50829364 | BZ78: 67.593072 | CA78: 58 | CB78: 62.19494667 | CC78: 59.9334575 | CD78: 43.25 | CG78: 5.528485298 | CH78: 15.25 | CI78: 1 | CJ78: 12.24925317 | CK78: 15.25001526
I79: Act. Suction | J79: Est. THR | K79: ITD | L79: Est MIX AIR TEMP | M79: SCT | N79: BTU | O79: WATTS | P79: ACT. THR | Q79: Off Reheat Coil | R79: Evap In D/X ∆H | S79: Air Enthalpy Evap Out | T79: Dpt Evap Out | U79: DB Evap Out | V79: Grain Evap Out | W79: WB Evap Out | X79: Total Cap. (MBH) | Y79: Total Latent (MBH) | Z79: MRC (lb/hr) | AA79: MRE | AB79: Act. Suction | AC79: Est. THR | AD79: ITD | AE79: MIX AIR TEMP | AF79: SCT | AG79: BTU | AH79: WATTS | AI79: ACT. THR | AJ79: Off Reheat Coil | AK79: Evap In D/X ∆H | AL79: Air Enthalpy Evap Out | AM79: Dpt Evap Out | AN79: DB Evap Out | AO79: Grain Evap Out | AP79: WB Evap Out | AQ79: Total Cap. (MBH) | AR79: Total Latent (MBH) | AS79: MRC (lb/hr) | AT79: MRE | AY79: CHK | AZ79: CHK | BA79: CHK | BM79: 59 | BN79: 76.68394982 | BO79: 26.07007027 | BP79: 38.23944111 | BQ79: 359197.7562 | BR79: 8.529077368 | BS79: 17.5409929 | BT79: 44.25 | BU79: 44.25 | BV79: 60.5240475 | BX79: 67.995696 | BY79: 62.19494667 | BZ79: 67.995696 | CA79: 59 | CB79: 65.97543383 | CC79: 60.5240475 | CD79: 44.25 | CG79: 5.611789227 | CH79: 15.5 | CI79: 1 | CJ79: 12.40073862 | CK79: 15.50001526
E80: nomina | AY80: (Occ.) | AZ80: (Unocc.) | BA80: FINAL | BM80: 60 | BN80: 79.52267214 | BO80: 26.75600624 | BP80: 39.18721235 | BQ80: 365851.7651 | BR80: 8.687075452 | BS80: 18.06893079 | BT80: 45.24999619 | BU80: 45.25 | BV80: 61.1146375 | BX80: 68.39832 | BY80: 65.97543383 | BZ80: 68.39832 | CA80: 60 | CB80: 69.69046778 | CC80: 61.1146375 | CD80: 45.25 | CG80: 5.695360184 | CH80: 15.75 | CI80: 1 | CJ80: 12.55393975 | CK80: 15.75001431
E81: =+N81/12500 -> 28.5260327 | F81: =+O81/E81 -> 1151.440758 | H81: SP70A | I81: =(BE16*VALUE($E$11)^2 + BF16*VALUE($E$11) + BG16)+(0.069*118-8.32) -> 40.91283453 | J81: =((VLOOKUP(N16,CompCoef1,5,FALSE)+(VLOOKUP(N16,CompCoef1,6,FALSE)*I81)+(VLOOKUP(N16,CompCoef1,7,FALSE)*118)+(VLOOKUP(N16,CompCoef1,8,FALSE)*(I81^2))+(VLOOKUP(N16,CompCoef1,9,FALSE)*I81*118)+(VLOOKUP(N16,CompCoef1,10,FALSE)*(118^2))+(VLOOKUP(N16,CompCoef1,11,FALSE)*(I81^3))+(VLOOKUP(N16,CompCoef1,12,FALSE)*118*(I81^2))+(VLOOKUP(N16,CompCoef1,13,FALSE)*I81*(118^2))+(VLOOKUP(N16,CompCoef1,14,FALSE)*(118^3)))*$BK$16)+((VLOOKUP(N16,CompCoef1,15,FALSE))+(VLOOKUP(N16,CompCoef1,16,FALSE)*I81)+(VLOOKUP(N16,CompCoef1,17,FALSE)*118)+(VLOOKUP(N16,CompCoef1,18,FALSE)*(I81^2))+(VLOOKUP(N16,CompCoef1,19,FALSE)*I81*118)+(VLOOKUP(N16,CompCoef1,20,FALSE)*(118^2))+(VLOOKUP(N16,CompCoef1,21,FALSE)*(I81^3))+(VLOOKUP(N16,CompCoef1,22,FALSE)*118*(I81^2))+(VLOOKUP(N16,CompCoef1,23,FALSE)*I81*(118^2))+(VLOOKUP(N16,CompCoef1,24,FALSE)*(118^3)))*3.412 -> 481430.7528 | K81: =AN62*VALUE(J81)^2 + AO62*VALUE(J81) + AP62 -> 54.86930942 | L81: =(($I$63*((($I$63-$J$63)*$B$5)+($BS$7*$J$63))/$I$63)+($I$62*((($I$62-$J$62)*$B$5)+(($I$81+9.5)*$J$62))/$I$62))/($I$62+$I$63) -> 70.62676617 | M81: =IF((K81+L81)>85,(K81+L81),85) -> 125.4960756 | N81: =((VLOOKUP(N16,CompCoef1,5,FALSE))+(VLOOKUP(N16,CompCoef1,6,FALSE)*I81)+(VLOOKUP(N16,CompCoef1,7,FALSE)*M81)+(VLOOKUP(N16,CompCoef1,8,FALSE)*(I81^2))+(VLOOKUP(N16,CompCoef1,9,FALSE)*I81*M81)+(VLOOKUP(N16,CompCoef1,10,FALSE)*(M81^2))+(VLOOKUP(N16,CompCoef1,11,FALSE)*(I81^3))+(VLOOKUP(N16,CompCoef1,12,FALSE)*M81*(I81^2))+(VLOOKUP(N16,CompCoef1,13,FALSE)*I81*(M81^2))+(VLOOKUP(N16,CompCoef1,14,FALSE)*(M81^3)))*$BK$16 -> 356575.4087 | O81: =(VLOOKUP(N16,CompCoef1,15,FALSE))+(VLOOKUP(N16,CompCoef1,16,FALSE)*I81)+(VLOOKUP(N16,CompCoef1,17,FALSE)*M81)+(VLOOKUP(N16,CompCoef1,18,FALSE)*(I81^2))+(VLOOKUP(N16,CompCoef1,19,FALSE)*I81*M81)+(VLOOKUP(N16,CompCoef1,20,FALSE)*(M81^2))+(VLOOKUP(N16,CompCoef1,21,FALSE)*(I81^3))+(VLOOKUP(N16,CompCoef1,22,FALSE)*M81*(I81^2))+(VLOOKUP(N16,CompCoef1,23,FALSE)*I81*(M81^2))+(VLOOKUP(N16,CompCoef1,24,FALSE)*(M81^3)) -> 32846.03671 | P81: =(N81+(O81*3.412)) -> 468646.086 | Q81: =L81+((P81/1.085)/I62) -> 104.2207958 | R81: =N81/(60/$F$17)/J62 -> 12.92231773 | S81: =$E$12-R81 -> 21.3323095 | T81: =VLOOKUP(S81,$CG$26:$CK$713,5) -> 51.24998093 | U81: =VLOOKUP(S81,$CG$26:$CK$713,2) -> 51.25 | V81: =RHtoGRL(U81,0.999,VALUE($B$9)) -> 57.52776506 | W81: =WETBULBL(U81,V81,VALUE($B$9)) -> 51.23448944 | X81: =($E$12-S81)*(60/$F$17)*J62/1000 -> 356.5754087 | Y81: =Z81*$F$5/1000 -> 134.9837651 | Z81: =IF((($E$10-V81)*J62)/($F$17*7000/60)<0,0,(($E$10-V81)*J62)/($F$17*7000/60)) -> 127.3431746 | AA81: =Z81/O81*1000 -> 3.876972304 | AB81: =(BE16*VALUE($F$11)^2 + BF16*VALUE($F$11) + BG16)+(0.069*118-8.32) -> 44.00553724 | AC81: =(VLOOKUP(N16,CompCoef1,5,FALSE)+VLOOKUP(N16,CompCoef1,6,FALSE)*AB81+VLOOKUP(N16,CompCoef1,7,FALSE)*118+VLOOKUP(N16,CompCoef1,8,FALSE)*(AB81^2)+VLOOKUP(N16,CompCoef1,9,FALSE)*AB81*118+VLOOKUP(N16,CompCoef1,10,FALSE)*(118^2)+VLOOKUP(N16,CompCoef1,11,FALSE)*(AB81^3)+VLOOKUP(N16,CompCoef1,12,FALSE)*118*(AB81^2)+VLOOKUP(N16,CompCoef1,13,FALSE)*AB81*(118^2)+VLOOKUP(N16,CompCoef1,14,FALSE)*(118^3))*$BK$16+(VLOOKUP(N16,CompCoef1,15,FALSE)+VLOOKUP(N16,CompCoef1,16,FALSE)*AB81+VLOOKUP(N16,CompCoef1,17,FALSE)*118+VLOOKUP(N16,CompCoef1,18,FALSE)*(AB81^2)+VLOOKUP(N16,CompCoef1,19,FALSE)*AB81*118+VLOOKUP(N16,CompCoef1,20,FALSE)*(118^2)+VLOOKUP(N16,CompCoef1,21,FALSE)*(AB81^3)+VLOOKUP(N16,CompCoef1,22,FALSE)*118*(AB81^2)+VLOOKUP(N16,CompCoef1,23,FALSE)*AB81*(118^2)+VLOOKUP(N16,CompCoef1,24,FALSE)*(118^3))*3.412 -> 504750.869 | AD81: =AN62*VALUE(AC81)^2 + AO62*VALUE(AC81) + AP62 -> 56.96644959 | AE81: =(($I$63*((($I$63-$J$63)*$B$5)+($BS$7*$J$63))/$I$63)+($I$62*((($I$62-$J$62)*$B$5)+(($AB$81+9.5)*$J$62))/$I$62))/($I$62+$I$63) -> 71.27520284 | AF81: =IF((AD81+AE81)>85,(AD81+AE81),85) -> 128.2416524 | AG81: =(VLOOKUP(N16,CompCoef1,5,FALSE)+VLOOKUP(N16,CompCoef1,6,FALSE)*AB81+VLOOKUP(N16,CompCoef1,7,FALSE)*AF81+VLOOKUP(N16,CompCoef1,8,FALSE)*(AB81^2)+VLOOKUP(N16,CompCoef1,9,FALSE)*AB81*AF81+VLOOKUP(N16,CompCoef1,10,FALSE)*(AF81^2)+VLOOKUP(N16,CompCoef1,11,FALSE)*(AB81^3)+VLOOKUP(N16,CompCoef1,12,FALSE)*AF81*(AB81^2)+VLOOKUP(N16,CompCoef1,13,FALSE)*AB81*(AF81^2)+VLOOKUP(N16,CompCoef1,14,FALSE)*(AF81^3))*$BK$16 -> 369623.5908 | AH81: =VLOOKUP(N16,CompCoef1,15,FALSE)+VLOOKUP(N16,CompCoef1,16,FALSE)*AB81+VLOOKUP(N16,CompCoef1,17,FALSE)*AF81+VLOOKUP(N16,CompCoef1,18,FALSE)*(AB81^2)+VLOOKUP(N16,CompCoef1,19,FALSE)*AB81*AF81+VLOOKUP(N16,CompCoef1,20,FALSE)*(AF81^2)+VLOOKUP(N16,CompCoef1,21,FALSE)*(AB81^3)+VLOOKUP(N16,CompCoef1,22,FALSE)*AF81*(AB81^2)+VLOOKUP(N16,CompCoef1,23,FALSE)*AB81*(AF81^2)+VLOOKUP(N16,CompCoef1,24,FALSE)*(AF81^3) -> 34014.3778 | AI81: =(AG81+AH81*3.412) -> 485680.6479 | AJ81: =(J62/I62*AN81)+((I62-J62)/I62*VALUE($B$5))+((AH81*3.412+AG81)/1.085/I62) -> 104.7502632 | AK81: =AG81/(60/$F$17)/J62 -> 13.39518476 | AL81: =$F$12-AK81 -> 23.74845385 | AM81: =VLOOKUP(AL81,$CG$26:$CK$713,5) -> 55.2499733 | AN81: =VLOOKUP(AL81,$CG$26:$CK$713,2) -> 55.25 | AO81: =RHtoGRL(AN81,0.999,VALUE($B$9)) -> 66.76294159 | AP81: =WETBULBL(AN81,AO81,VALUE($B$9)) -> 55.23335648 | AQ81: =($F$12-AL81)*(60/$F$17)*J62/1000 -> 369.6235908 | AR81: =AS81*$F$5/1000 -> 173.3337177 | AS81: =IF((($F$10-AO81)*J62)/($F$17*7000/60)<0,0,(($F$10-AO81)*J62)/($F$17*7000/60)) -> 163.5223752 | AT81: =AS81/AH81*1000 -> 4.807448665 | AU81: SP70A | AY81: =IF(AB81<32,"N/A",IF(AB81>55,"N/A",IF(AF81>135,"N/A","OK"))) -> OK | AZ81: =IF(I81<32,"N/A",IF(I81>55,"N/A",IF(M81>135,"N/A","OK"))) -> OK | BA81: =IF(AND(AY81="OK",AZ81="OK"),"OK","N/A") -> OK | BM81: 61 | BN81: 82.4554516 | BO81: 27.45692253 | BP81: 40.13654762 | BQ81: 372595.8583 | BR81: 8.847212567 | BS81: 18.60970996 | BT81: 46.49999237 | BU81: 46.5 | BV81: 61.852875 | BX81: 68.9016 | BY81: 69.69046778 | BZ81: 68.9016 | CA81: 61 | CB81: 73.66678984 | CC81: 61.852875 | CD81: 46.5 | CG81: 5.779200077 | CH81: 16 | CI81: 1 | CJ81: 12.7088742 | CK81: 16.00001335
E82: =+N82/12500 -> 31.33502172 | F82: =+O82/E82 -> 1002.414452 | H82: SP70B | I82: =(BE17*VALUE($E$22)^2 + BF17*VALUE($E$22) + BG17)+(0.069*118-8.32) -> 43.949529 | J82: =((VLOOKUP(N17,CompCoef1,5,FALSE)+(VLOOKUP(N17,CompCoef1,6,FALSE)*I82)+(VLOOKUP(N17,CompCoef1,7,FALSE)*118)+(VLOOKUP(N17,CompCoef1,8,FALSE)*(I82^2))+(VLOOKUP(N17,CompCoef1,9,FALSE)*I82*118)+(VLOOKUP(N17,CompCoef1,10,FALSE)*(118^2))+(VLOOKUP(N17,CompCoef1,11,FALSE)*(I82^3))+(VLOOKUP(N17,CompCoef1,12,FALSE)*118*(I82^2))+(VLOOKUP(N17,CompCoef1,13,FALSE)*I82*(118^2))+(VLOOKUP(N17,CompCoef1,14,FALSE)*(118^3)))*$BK$16)+((VLOOKUP(N17,CompCoef1,15,FALSE))+(VLOOKUP(N17,CompCoef1,16,FALSE)*I82)+(VLOOKUP(N17,CompCoef1,17,FALSE)*118)+(VLOOKUP(N17,CompCoef1,18,FALSE)*(I82^2))+(VLOOKUP(N17,CompCoef1,19,FALSE)*I82*118)+(VLOOKUP(N17,CompCoef1,20,FALSE)*(118^2))+(VLOOKUP(N17,CompCoef1,21,FALSE)*(I82^3))+(VLOOKUP(N17,CompCoef1,22,FALSE)*118*(I82^2))+(VLOOKUP(N17,CompCoef1,23,FALSE)*I82*(118^2))+(VLOOKUP(N17,CompCoef1,24,FALSE)*(118^3)))*3.412 -> 504320.3317 | K82: =AN63*VALUE(J82)^2 + AO63*VALUE(J82) + AP63 -> 50.32181864 | L82: =(($I$63*((($I$63-$J$63)*$B$5)+($BS$7*$J$63))/$I$63)+($I$62*((($I$62-$J$62)*$B$5)+(($I$81+9.5)*$J$62))/$I$62))/($I$62+$I$63) -> 70.62676617 | M82: =IF((K82+L82)>85,(K82+L82),85) -> 120.9485848 | N82: =((VLOOKUP(N17,CompCoef1,5,FALSE))+(VLOOKUP(N17,CompCoef1,6,FALSE)*I82)+(VLOOKUP(N17,CompCoef1,7,FALSE)*M82)+(VLOOKUP(N17,CompCoef1,8,FALSE)*(I82^2))+(VLOOKUP(N17,CompCoef1,9,FALSE)*I82*M82)+(VLOOKUP(N17,CompCoef1,10,FALSE)*(M82^2))+(VLOOKUP(N17,CompCoef1,11,FALSE)*(I82^3))+(VLOOKUP(N17,CompCoef1,12,FALSE)*M82*(I82^2))+(VLOOKUP(N17,CompCoef1,13,FALSE)*I82*(M82^2))+(VLOOKUP(N17,CompCoef1,14,FALSE)*(M82^3)))*$BK$16 -> 391687.7715 | O82: =(VLOOKUP(N17,CompCoef1,15,FALSE))+(VLOOKUP(N17,CompCoef1,16,FALSE)*I82)+(VLOOKUP(N17,CompCoef1,17,FALSE)*M82)+(VLOOKUP(N17,CompCoef1,18,FALSE)*(I82^2))+(VLOOKUP(N17,CompCoef1,19,FALSE)*I82*M82)+(VLOOKUP(N17,CompCoef1,20,FALSE)*(M82^2))+(VLOOKUP(N17,CompCoef1,21,FALSE)*(I82^3))+(VLOOKUP(N17,CompCoef1,22,FALSE)*M82*(I82^2))+(VLOOKUP(N17,CompCoef1,23,FALSE)*I82*(M82^2))+(VLOOKUP(N17,CompCoef1,24,FALSE)*(M82^3)) -> 31410.67863 | P82: =(N82+(O82*3.412)) -> 498861.007 | Q82: =L82+((P82/1.085)/I63) -> 97.44765273 | R82: =N82/(60/$F$28)/J63 -> 9.175799306 | S82: =$E$23-R82 -> 21.20160967 | T82: =VLOOKUP(S82,$CG$26:$CK$713,5) -> 50.99998856 | U82: =$BQ$7 -> 50.5 | V82: =RHtoGRL(U82,0.999,VALUE($B$9)) -> 55.92960915 | W82: =WETBULBL(U82,V82,VALUE($B$9)) -> 50.48470306 | X82: =($E$23-S82)*(60/$F$28)*J63/1000 -> 391.6877715 | Y82: =Z82*$F$5/1000 -> 195.8148695 | Z82: =IF((($E$21-V82)*J63)/($F$28*7000/60)<0,0,(($E$21-V82)*J63)/($F$28*7000/60)) -> 184.7310089 | AA82: =Z82/O82*1000 -> 5.881153066 | AB82: =(BE17*VALUE($F$22)^2 + BF17*VALUE($F$22) + BG17)+(0.069*118-8.32) -> 47.78753485 | AC82: =(VLOOKUP(N17,CompCoef1,5,FALSE)+VLOOKUP(N17,CompCoef1,6,FALSE)*AB82+VLOOKUP(N17,CompCoef1,7,FALSE)*118+VLOOKUP(N17,CompCoef1,8,FALSE)*(AB82^2)+VLOOKUP(N17,CompCoef1,9,FALSE)*AB82*118+VLOOKUP(N17,CompCoef1,10,FALSE)*(118^2)+VLOOKUP(N17,CompCoef1,11,FALSE)*(AB82^3)+VLOOKUP(N17,CompCoef1,12,FALSE)*118*(AB82^2)+VLOOKUP(N17,CompCoef1,13,FALSE)*AB82*(118^2)+VLOOKUP(N17,CompCoef1,14,FALSE)*(118^3))*$BK$16+(VLOOKUP(N17,CompCoef1,15,FALSE)+VLOOKUP(N17,CompCoef1,16,FALSE)*AB82+VLOOKUP(N17,CompCoef1,17,FALSE)*118+VLOOKUP(N17,CompCoef1,18,FALSE)*(AB82^2)+VLOOKUP(N17,CompCoef1,19,FALSE)*AB82*118+VLOOKUP(N17,CompCoef1,20,FALSE)*(118^2)+VLOOKUP(N17,CompCoef1,21,FALSE)*(AB82^3)+VLOOKUP(N17,CompCoef1,22,FALSE)*118*(AB82^2)+VLOOKUP(N17,CompCoef1,23,FALSE)*AB82*(118^2)+VLOOKUP(N17,CompCoef1,24,FALSE)*(118^3))*3.412 -> 534537.9405 | AD82: =AN63*VALUE(AC82)^2 + AO63*VALUE(AC82) + AP63 -> 52.58197569 | AE82: =(($I$63*((($I$63-$J$63)*$B$5)+($BS$7*$J$63))/$I$63)+($I$62*((($I$62-$J$62)*$B$5)+(($AB$81+9.5)*$J$62))/$I$62))/($I$62+$I$63) -> 71.27520284 | AF82: =IF((AD82+AE82)>85,(AD82+AE82),85) -> 123.8571785 | AG82: =(VLOOKUP(N17,CompCoef1,5,FALSE)+VLOOKUP(N17,CompCoef1,6,FALSE)*AB82+VLOOKUP(N17,CompCoef1,7,FALSE)*AF82+VLOOKUP(N17,CompCoef1,8,FALSE)*(AB82^2)+VLOOKUP(N17,CompCoef1,9,FALSE)*AB82*AF82+VLOOKUP(N17,CompCoef1,10,FALSE)*(AF82^2)+VLOOKUP(N17,CompCoef1,11,FALSE)*(AB82^3)+VLOOKUP(N17,CompCoef1,12,FALSE)*AF82*(AB82^2)+VLOOKUP(N17,CompCoef1,13,FALSE)*AB82*(AF82^2)+VLOOKUP(N17,CompCoef1,14,FALSE)*(AF82^3))*$BK$16 -> 411122.6982 | AH82: =VLOOKUP(N17,CompCoef1,15,FALSE)+VLOOKUP(N17,CompCoef1,16,FALSE)*AB82+VLOOKUP(N17,CompCoef1,17,FALSE)*AF82+VLOOKUP(N17,CompCoef1,18,FALSE)*(AB82^2)+VLOOKUP(N17,CompCoef1,19,FALSE)*AB82*AF82+VLOOKUP(N17,CompCoef1,20,FALSE)*(AF82^2)+VLOOKUP(N17,CompCoef1,21,FALSE)*(AB82^3)+VLOOKUP(N17,CompCoef1,22,FALSE)*AF82*(AB82^2)+VLOOKUP(N17,CompCoef1,23,FALSE)*AB82*(AF82^2)+VLOOKUP(N17,CompCoef1,24,FALSE)*(AF82^3) -> 32642.21796 | AI82: =(AG82+AH82*3.412) -> 522497.9458 | AJ82: =(J63/I63*AN82)+((I63-J63)/I63*VALUE(BM66))+((AH82*3.412+AG82)/1.085/I63) -> 90.52979113 | AK82: =AG82/(60/$F$28)/J63 -> 9.63108793 | AL82: =$F$23-AK82 -> 24.00179705 | AM82: =$BQ$66 -> 54.75 | AN82: =$BQ$66 -> 54.75 | AO82: =RHtoGRL(AN82,0.999,VALUE($B$9)) -> 65.54017718 | AP82: =WETBULBL(AN82,AO82,VALUE($B$9)) -> 54.73349762 | AQ82: =($F$23-AL82)*(60/$F$28)*J63/1000 -> 411.1226982 | AR82: =AS82*$F$5/1000 -> 251.0667266 | AS82: =IF((($F$21-AO82)*J63)/($F$28*7000/60)<0,0,(($F$21-AO82)*J63)/($F$28*7000/60)) -> 236.8554024 | AT82: =AS82/AH82*1000 -> 7.256106271 | AU82: SP70B | AY82: =IF(AB82<32,"N/A",IF(AB82>55,"N/A",IF(AF82>135,"N/A","OK"))) -> OK | AZ82: =IF(I82<32,"N/A",IF(I82>55,"N/A",IF(M82>135,"N/A","OK"))) -> OK | BA82: =IF(AND(AY82="OK",AZ82="OK"),"OK","N/A") -> OK | BM82: 62 | BN82: 85.48508849 | BO82: 28.17327309 | BP82: 41.08744692 | BQ82: 379430.9469 | BR82: 9.00951035 | BS82: 19.16376274 | BT82: 47.49998856 | BU82: 47.5 | BV82: 62.443465 | BX82: 69.304224 | BY82: 73.66678984 | BZ82: 69.304224 | CA82: 62 | CB82: 77.74553626 | CC82: 62.443465 | CD82: 47.5 | CG82: 5.863311768 | CH82: 16.25 | CI82: 1 | CJ82: 12.86555976 | CK82: 16.25001335
E83: =+N83/12500 -> 28.65474519 | F83: =+O83/E83 -> 1139.958341 | H83: SP80A | I83: =(BE18*VALUE($E$11)^2 + BF18*VALUE($E$11) + BG18)+(0.069*118-8.32) -> 40.93112515 | J83: =((VLOOKUP(N18,CompCoef1,5,FALSE)+(VLOOKUP(N18,CompCoef1,6,FALSE)*I83)+(VLOOKUP(N18,CompCoef1,7,FALSE)*118)+(VLOOKUP(N18,CompCoef1,8,FALSE)*(I83^2))+(VLOOKUP(N18,CompCoef1,9,FALSE)*I83*118)+(VLOOKUP(N18,CompCoef1,10,FALSE)*(118^2))+(VLOOKUP(N18,CompCoef1,11,FALSE)*(I83^3))+(VLOOKUP(N18,CompCoef1,12,FALSE)*118*(I83^2))+(VLOOKUP(N18,CompCoef1,13,FALSE)*I83*(118^2))+(VLOOKUP(N18,CompCoef1,14,FALSE)*(118^3)))*$BK$16)+((VLOOKUP(N18,CompCoef1,15,FALSE))+(VLOOKUP(N18,CompCoef1,16,FALSE)*I83)+(VLOOKUP(N18,CompCoef1,17,FALSE)*118)+(VLOOKUP(N18,CompCoef1,18,FALSE)*(I83^2))+(VLOOKUP(N18,CompCoef1,19,FALSE)*I83*118)+(VLOOKUP(N18,CompCoef1,20,FALSE)*(118^2))+(VLOOKUP(N18,CompCoef1,21,FALSE)*(I83^3))+(VLOOKUP(N18,CompCoef1,22,FALSE)*118*(I83^2))+(VLOOKUP(N18,CompCoef1,23,FALSE)*I83*(118^2))+(VLOOKUP(N18,CompCoef1,24,FALSE)*(118^3)))*3.412 -> 481565.9781 | K83: =AN64*VALUE(J83)^2 + AO64*VALUE(J83) + AP64 -> 54.88147636 | L83: =(($I$65*((($I$65-$J$65)*$B$5)+(($BS$125)*$J$65))/$I$65)+($I$64*((($I$64-$J$64)*$B$5)+(($I$83+9.5)*$J$64))/$I$64))/($I$64+$I$65) -> 70.11088191 | M83: =IF((K83+L83)>85,(K83+L83),85) -> 124.9923583 | N83: =((VLOOKUP(N18,CompCoef1,5,FALSE))+(VLOOKUP(N18,CompCoef1,6,FALSE)*I83)+(VLOOKUP(N18,CompCoef1,7,FALSE)*M83)+(VLOOKUP(N18,CompCoef1,8,FALSE)*(I83^2))+(VLOOKUP(N18,CompCoef1,9,FALSE)*I83*M83)+(VLOOKUP(N18,CompCoef1,10,FALSE)*(M83^2))+(VLOOKUP(N18,CompCoef1,11,FALSE)*(I83^3))+(VLOOKUP(N18,CompCoef1,12,FALSE)*M83*(I83^2))+(VLOOKUP(N18,CompCoef1,13,FALSE)*I83*(M83^2))+(VLOOKUP(N18,CompCoef1,14,FALSE)*(M83^3)))*$BK$16 -> 358184.3149 | O83: =(VLOOKUP(N18,CompCoef1,15,FALSE))+(VLOOKUP(N18,CompCoef1,16,FALSE)*I83)+(VLOOKUP(N18,CompCoef1,17,FALSE)*M83)+(VLOOKUP(N18,CompCoef1,18,FALSE)*(I83^2))+(VLOOKUP(N18,CompCoef1,19,FALSE)*I83*M83)+(VLOOKUP(N18,CompCoef1,20,FALSE)*(M83^2))+(VLOOKUP(N18,CompCoef1,21,FALSE)*(I83^3))+(VLOOKUP(N18,CompCoef1,22,FALSE)*M83*(I83^2))+(VLOOKUP(N18,CompCoef1,23,FALSE)*I83*(M83^2))+(VLOOKUP(N18,CompCoef1,24,FALSE)*(M83^3)) -> 32665.21578 | P83: =(N83+(O83*3.412)) -> 469638.0311 | Q83: =L83+((P83/1.085)/I64) -> 103.7760173 | R83: =N83/(60/$F$17)/J64 -> 12.9806246 | S83: =$E$12-R83 -> 21.27400262 | T83: =VLOOKUP(S83,$CG$26:$CK$713,5) -> 51.24998093 | U83: =VLOOKUP(S83,$CG$26:$CK$713,2) -> 51.25 | V83: =RHtoGRL(U83,0.999,VALUE($B$9)) -> 57.52776506 | W83: =WETBULBL(U83,V83,VALUE($B$9)) -> 51.23448944 | X83: =($E$12-S83)*(60/$F$17)*J64/1000 -> 358.1843149 | Y83: =Z83*$F$5/1000 -> 134.9837651 | Z83: =IF((($E$10-V83)*J64)/($F$17*7000/60)<0,0,(($E$10-V83)*J64)/($F$17*7000/60)) -> 127.3431746 | AA83: =Z83/O83*1000 -> 3.898433596 | AB83: =(BE18*VALUE($F$11)^2 + BF18*VALUE($F$11) + BG18)+(0.069*118-8.32) -> 44.04957602 | AC83: =(VLOOKUP(N18,CompCoef1,5,FALSE)+VLOOKUP(N18,CompCoef1,6,FALSE)*AB83+VLOOKUP(N18,CompCoef1,7,FALSE)*118+VLOOKUP(N18,CompCoef1,8,FALSE)*(AB83^2)+VLOOKUP(N18,CompCoef1,9,FALSE)*AB83*118+VLOOKUP(N18,CompCoef1,10,FALSE)*(118^2)+VLOOKUP(N18,CompCoef1,11,FALSE)*(AB83^3)+VLOOKUP(N18,CompCoef1,12,FALSE)*118*(AB83^2)+VLOOKUP(N18,CompCoef1,13,FALSE)*AB83*(118^2)+VLOOKUP(N18,CompCoef1,14,FALSE)*(118^3))*$BK$16+(VLOOKUP(N18,CompCoef1,15,FALSE)+VLOOKUP(N18,CompCoef1,16,FALSE)*AB83+VLOOKUP(N18,CompCoef1,17,FALSE)*118+VLOOKUP(N18,CompCoef1,18,FALSE)*(AB83^2)+VLOOKUP(N18,CompCoef1,19,FALSE)*AB83*118+VLOOKUP(N18,CompCoef1,20,FALSE)*(118^2)+VLOOKUP(N18,CompCoef1,21,FALSE)*(AB83^3)+VLOOKUP(N18,CompCoef1,22,FALSE)*118*(AB83^2)+VLOOKUP(N18,CompCoef1,23,FALSE)*AB83*(118^2)+VLOOKUP(N18,CompCoef1,24,FALSE)*(118^3))*3.412 -> 505089.6114 | AD83: =AN64*VALUE(AC83)^2 + AO64*VALUE(AC83) + AP64 -> 56.99689591 | AE83: =(($I$65*((($I$65-$J$65)*$B$5)+(($BS$125)*$J$65))/$I$65)+($I$64*((($I$64-$J$64)*$B$5)+(($AB$83+9.5)*$J$64))/$I$64))/($I$64+$I$65) -> 70.76471711 | AF83: =IF((AD83+AE83)>85,(AD83+AE83),85) -> 127.761613 | AG83: =(VLOOKUP(N18,CompCoef1,5,FALSE)+VLOOKUP(N18,CompCoef1,6,FALSE)*AB83+VLOOKUP(N18,CompCoef1,7,FALSE)*AF83+VLOOKUP(N18,CompCoef1,8,FALSE)*(AB83^2)+VLOOKUP(N18,CompCoef1,9,FALSE)*AB83*AF83+VLOOKUP(N18,CompCoef1,10,FALSE)*(AF83^2)+VLOOKUP(N18,CompCoef1,11,FALSE)*(AB83^3)+VLOOKUP(N18,CompCoef1,12,FALSE)*AF83*(AB83^2)+VLOOKUP(N18,CompCoef1,13,FALSE)*AB83*(AF83^2)+VLOOKUP(N18,CompCoef1,14,FALSE)*(AF83^3))*$BK$16 -> 371442.3947 | AH83: =VLOOKUP(N18,CompCoef1,15,FALSE)+VLOOKUP(N18,CompCoef1,16,FALSE)*AB83+VLOOKUP(N18,CompCoef1,17,FALSE)*AF83+VLOOKUP(N18,CompCoef1,18,FALSE)*(AB83^2)+VLOOKUP(N18,CompCoef1,19,FALSE)*AB83*AF83+VLOOKUP(N18,CompCoef1,20,FALSE)*(AF83^2)+VLOOKUP(N18,CompCoef1,21,FALSE)*(AB83^3)+VLOOKUP(N18,CompCoef1,22,FALSE)*AF83*(AB83^2)+VLOOKUP(N18,CompCoef1,23,FALSE)*AB83*(AF83^2)+VLOOKUP(N18,CompCoef1,24,FALSE)*(AF83^3) -> 33837.7125 | AI83: =(AG83+AH83*3.412) -> 486896.6698 | AJ83: =(J64/I64*AN83)+((I64-J64)/I64*VALUE($B$5))+((AH83*3.412+AG83)/1.085/I64) -> 104.8374314 | AK83: =AG83/(60/$F$17)/J64 -> 13.46109834 | AL83: =$F$12-AK83 -> 23.68254027 | AM83: =VLOOKUP(AL83,$CG$26:$CK$713,5) -> 55.2499733 | AN83: =VLOOKUP(AL83,$CG$26:$CK$713,2) -> 55.25 | AO83: =RHtoGRL(AN83,0.999,VALUE($B$9)) -> 66.76294159 | AP83: =WETBULBL(AN83,AO83,VALUE($B$9)) -> 55.23335648 | AQ83: =($F$12-AL83)*(60/$F$17)*J64/1000 -> 371.4423947 | AR83: =AS83*$F$5/1000 -> 173.3337177 | AS83: =IF((($F$10-AO83)*J64)/($F$17*7000/60)<0,0,(($F$10-AO83)*J64)/($F$17*7000/60)) -> 163.5223752 | AT83: =AS83/AH83*1000 -> 4.832548156 | AU83: SP80A | AY83: =IF(AB83<32,"N/A",IF(AB83>55,"N/A",IF(AF83>135,"N/A","OK"))) -> OK | AZ83: =IF(I83<32,"N/A",IF(I83>55,"N/A",IF(M83>135,"N/A","OK"))) -> OK | BA83: =IF(AND(AY83="OK",AZ83="OK"),"OK","N/A") -> OK | BM83: 63 | BN83: 88.61446161 | BO83: 28.90552521 | BP83: 42.03991025 | BQ83: 386357.9479 | BR83: 9.173990576 | BS83: 19.73153463 | BT83: 48.49998474 | BU83: 48.5 | BV83: 63.034055 | BX83: 69.706848 | BY83: 77.74553626 | BZ83: 69.706848 | CA83: 63 | CB83: 81.92975257 | CC83: 63.034055 | CD83: 48.5 | CG83: 5.94769907 | CH83: 16.5 | CI83: 1 | CJ83: 13.02401437 | CK83: 16.50001335
E84: =+N84/12500 -> 34.75700481 | F84: =+O84/E84 -> 1218.528311 | H84: SP80B | I84: =(BE19*VALUE($E$35)^2 + BF19*VALUE($E$35) + BG19)+(0.069*118-8.32) -> 40.36107871 | J84: =((VLOOKUP(N19,CompCoef1,5,FALSE)+(VLOOKUP(N19,CompCoef1,6,FALSE)*I84)+(VLOOKUP(N19,CompCoef1,7,FALSE)*118)+(VLOOKUP(N19,CompCoef1,8,FALSE)*(I84^2))+(VLOOKUP(N19,CompCoef1,9,FALSE)*I84*118)+(VLOOKUP(N19,CompCoef1,10,FALSE)*(118^2))+(VLOOKUP(N19,CompCoef1,11,FALSE)*(I84^3))+(VLOOKUP(N19,CompCoef1,12,FALSE)*118*(I84^2))+(VLOOKUP(N19,CompCoef1,13,FALSE)*I84*(118^2))+(VLOOKUP(N19,CompCoef1,14,FALSE)*(118^3)))*$BK$16)+((VLOOKUP(N19,CompCoef1,15,FALSE))+(VLOOKUP(N19,CompCoef1,16,FALSE)*I84)+(VLOOKUP(N19,CompCoef1,17,FALSE)*118)+(VLOOKUP(N19,CompCoef1,18,FALSE)*(I84^2))+(VLOOKUP(N19,CompCoef1,19,FALSE)*I84*118)+(VLOOKUP(N19,CompCoef1,20,FALSE)*(118^2))+(VLOOKUP(N19,CompCoef1,21,FALSE)*(I84^3))+(VLOOKUP(N19,CompCoef1,22,FALSE)*118*(I84^2))+(VLOOKUP(N19,CompCoef1,23,FALSE)*I84*(118^2))+(VLOOKUP(N19,CompCoef1,24,FALSE)*(118^3)))*3.412 -> 600147.2732 | K84: =AN65*VALUE(J84)^2 + AO65*VALUE(J84) + AP65 -> 57.44456031 | L84: =(($I$65*((($I$65-$J$65)*$B$5)+(($BS$125)*$J$65))/$I$65)+($I$64*((($I$64-$J$64)*$B$5)+(($I$83+9.5)*$J$64))/$I$64))/($I$64+$I$65) -> 70.11088191 | M84: =IF((K84+L84)>85,(K84+L84),85) -> 127.5554422 | N84: =((VLOOKUP(N19,CompCoef1,5,FALSE))+(VLOOKUP(N19,CompCoef1,6,FALSE)*I84)+(VLOOKUP(N19,CompCoef1,7,FALSE)*M84)+(VLOOKUP(N19,CompCoef1,8,FALSE)*(I84^2))+(VLOOKUP(N19,CompCoef1,9,FALSE)*I84*M84)+(VLOOKUP(N19,CompCoef1,10,FALSE)*(M84^2))+(VLOOKUP(N19,CompCoef1,11,FALSE)*(I84^3))+(VLOOKUP(N19,CompCoef1,12,FALSE)*M84*(I84^2))+(VLOOKUP(N19,CompCoef1,13,FALSE)*I84*(M84^2))+(VLOOKUP(N19,CompCoef1,14,FALSE)*(M84^3)))*$BK$16 -> 434462.5601 | O84: =(VLOOKUP(N19,CompCoef1,15,FALSE))+(VLOOKUP(N19,CompCoef1,16,FALSE)*I84)+(VLOOKUP(N19,CompCoef1,17,FALSE)*M84)+(VLOOKUP(N19,CompCoef1,18,FALSE)*(I84^2))+(VLOOKUP(N19,CompCoef1,19,FALSE)*I84*M84)+(VLOOKUP(N19,CompCoef1,20,FALSE)*(M84^2))+(VLOOKUP(N19,CompCoef1,21,FALSE)*(I84^3))+(VLOOKUP(N19,CompCoef1,22,FALSE)*M84*(I84^2))+(VLOOKUP(N19,CompCoef1,23,FALSE)*I84*(M84^2))+(VLOOKUP(N19,CompCoef1,24,FALSE)*(M84^3)) -> 42352.39438 | P84: =(N84+(O84*3.412)) -> 578968.9297 | Q84: =L84+((P84/1.085)/I65) -> 101.2387106 | R84: =N84/(60/$F$41)/J65 -> 10.1689848 | S84: =$E$36-R84 -> 20.21689471 | T84: =VLOOKUP(S84,$CG$26:$CK$713,5) -> 49.24998474 | U84: =$BQ$125 -> 47.75 | V84: =RHtoGRL(U84,0.999,VALUE($B$9)) -> 50.40414451 | W84: =WETBULBL(U84,V84,VALUE($B$9)) -> 47.73547745 | X84: =($E$36-S84)*(60/$F$41)*J65/1000 -> 434.4625601 | Y84: =Z84*$F$5/1000 -> 243.3585384 | Z84: =IF((($E$34-V84)*J65)/($F$41*7000/60)<0,0,(($E$34-V84)*J65)/($F$41*7000/60)) -> 229.5835268 | AA84: =Z84/O84*1000 -> 5.420792145 | AB84: =(BE19*VALUE($F$35)^2 + BF19*VALUE($F$35) + BG19)+(0.069*118-8.32) -> 44.0654303 | AC84: =(VLOOKUP(N19,CompCoef1,5,FALSE)+VLOOKUP(N19,CompCoef1,6,FALSE)*AB84+VLOOKUP(N19,CompCoef1,7,FALSE)*118+VLOOKUP(N19,CompCoef1,8,FALSE)*(AB84^2)+VLOOKUP(N19,CompCoef1,9,FALSE)*AB84*118+VLOOKUP(N19,CompCoef1,10,FALSE)*(118^2)+VLOOKUP(N19,CompCoef1,11,FALSE)*(AB84^3)+VLOOKUP(N19,CompCoef1,12,FALSE)*118*(AB84^2)+VLOOKUP(N19,CompCoef1,13,FALSE)*AB84*(118^2)+VLOOKUP(N19,CompCoef1,14,FALSE)*(118^3))*$BK$16+(VLOOKUP(N19,CompCoef1,15,FALSE)+VLOOKUP(N19,CompCoef1,16,FALSE)*AB84+VLOOKUP(N19,CompCoef1,17,FALSE)*118+VLOOKUP(N19,CompCoef1,18,FALSE)*(AB84^2)+VLOOKUP(N19,CompCoef1,19,FALSE)*AB84*118+VLOOKUP(N19,CompCoef1,20,FALSE)*(118^2)+VLOOKUP(N19,CompCoef1,21,FALSE)*(AB84^3)+VLOOKUP(N19,CompCoef1,22,FALSE)*118*(AB84^2)+VLOOKUP(N19,CompCoef1,23,FALSE)*AB84*(118^2)+VLOOKUP(N19,CompCoef1,24,FALSE)*(118^3))*3.412 -> 636387.9904 | AD84: =AN65*VALUE(AC84)^2 + AO65*VALUE(AC84) + AP65 -> 60.1042507 | AE84: =(($I$65*((($I$65-$J$65)*$B$5)+(($BS$125)*$J$65))/$I$65)+($I$64*((($I$64-$J$64)*$B$5)+(($AB$83+9.5)*$J$64))/$I$64))/($I$64+$I$65) -> 70.76471711 | AF84: =IF((AD84+AE84)>85,(AD84+AE84),85) -> 130.8689678 | AG84: =(VLOOKUP(N19,CompCoef1,5,FALSE)+VLOOKUP(N19,CompCoef1,6,FALSE)*AB84+VLOOKUP(N19,CompCoef1,7,FALSE)*AF84+VLOOKUP(N19,CompCoef1,8,FALSE)*(AB84^2)+VLOOKUP(N19,CompCoef1,9,FALSE)*AB84*AF84+VLOOKUP(N19,CompCoef1,10,FALSE)*(AF84^2)+VLOOKUP(N19,CompCoef1,11,FALSE)*(AB84^3)+VLOOKUP(N19,CompCoef1,12,FALSE)*AF84*(AB84^2)+VLOOKUP(N19,CompCoef1,13,FALSE)*AB84*(AF84^2)+VLOOKUP(N19,CompCoef1,14,FALSE)*(AF84^3))*$BK$16 -> 454944.2573 | AH84: =VLOOKUP(N19,CompCoef1,15,FALSE)+VLOOKUP(N19,CompCoef1,16,FALSE)*AB84+VLOOKUP(N19,CompCoef1,17,FALSE)*AF84+VLOOKUP(N19,CompCoef1,18,FALSE)*(AB84^2)+VLOOKUP(N19,CompCoef1,19,FALSE)*AB84*AF84+VLOOKUP(N19,CompCoef1,20,FALSE)*(AF84^2)+VLOOKUP(N19,CompCoef1,21,FALSE)*(AB84^3)+VLOOKUP(N19,CompCoef1,22,FALSE)*AF84*(AB84^2)+VLOOKUP(N19,CompCoef1,23,FALSE)*AB84*(AF84^2)+VLOOKUP(N19,CompCoef1,24,FALSE)*(AF84^3) -> 43965.19995 | AI84: =(AG84+AH84*3.412) -> 604953.5196 | AJ84: =(J65/I65*AN84)+((I65-J65)/I65*VALUE($BM$184))+((AH84*3.412+AG84)/1.085/I65) -> 92.93576415 | AK84: =AG84/(60/$F$41)/J65 -> 10.64837725 | AL84: =$F$36-AK84 -> 22.99407881 | AM84: =VLOOKUP(AL84,$CG$26:$CK$713,5) -> 53.99998474 | AN84: =$BQ$184 -> 52 | AO84: =RHtoGRL(AN84,0.999,VALUE($B$9)) -> 59.16670037 | AP84: =WETBULBL(AN84,AO84,VALUE($B$9)) -> 51.98427582 | AQ84: =($F$36-AL84)*(60/$F$41)*J65/1000 -> 454.9442573 | AR84: =AS84*$F$5/1000 -> 304.23535 | AS84: =IF((($F$34-AO84)*J65)/($F$41*7000/60)<0,0,(($F$34-AO84)*J65)/($F$41*7000/60)) -> 287.0144812 | AT84: =AS84/AH84*1000 -> 6.528219625 | AU84: SP80B | AY84: =IF(AB84<32,"N/A",IF(AB84>55,"N/A",IF(AF84>135,"N/A","OK"))) -> OK | AZ84: =IF(I84<32,"N/A",IF(I84>55,"N/A",IF(M84>135,"N/A","OK"))) -> OK | BA84: =IF(AND(AY84="OK",AZ84="OK"),"OK","N/A") -> OK | BM84: 64 | BN84: 91.84653065 | BO84: 29.65415382 | BP84: 42.99393761 | BQ84: 393377.7843 | BR84: 9.340675157 | BS84: 20.31347867 | BT84: 49.49998474 | BU84: 49.5 | BV84: 63.624645 | BX84: 70.109472 | BY84: 81.92975257 | BZ84: 70.109472 | CA84: 64 | CB84: 86.2225708 | CC84: 63.624645 | CD84: 49.5 | CG84: 6.032363892 | CH84: 16.75 | CI84: 1 | CJ84: 13.18425618 | CK84: 16.75001526
BM85: 65 | BN85: 95.18433869 | BO85: 30.41965866 | BP85: 43.949529 | BQ85: 400491.3847 | BR85: 9.509586145 | BS85: 20.91007252 | BT85: 50.49998093 | BU85: 50.5 | BV85: 64.215235 | BX85: 70.512096 | BY85: 86.2225708 | BZ85: 70.512096 | CA85: 65 | CB85: 90.46359927 | CC85: 64.215235 | CD85: 50.5 | CG85: 5.779200077 | CH85: 16 | CI85: 1 | CJ85: 12.7088742 | CK85: 16.00001335
BM86: 66 | BN86: 98.6310148 | BO86: 31.20254135 | BP86: 44.90668441 | BQ86: 407699.6836 | BR86: 9.68074573 | BS86: 21.52179562 | BT86: 51.74998856 | BU86: 51.75 | BV86: 64.9534725 | BX86: 71.015376 | BY86: 90.46359927 | BZ86: 71.015376 | CA86: 66 | CB86: 94.98298439 | CC86: 64.9534725 | CD86: 51.75 | CG86: 5.863311768 | CH86: 16.25 | CI86: 1 | CJ86: 12.86555976 | CK86: 16.25001335
AU87: Total Sensible | BM87: 67 | BN87: 102.1897767 | BO87: 32.00332642 | BP87: 45.86540386 | BQ87: 415003.6213 | BR87: 9.85417624 | BS87: 22.14915018 | BT87: 52.74997711 | BU87: 52.75 | BV87: 65.5440625 | BX87: 71.418 | BY87: 94.98298439 | BZ87: 71.418 | CA87: 67 | CB87: 99.62085837 | CC87: 65.5440625 | CD87: 52.75 | CG87: 5.94769907 | CH87: 16.5 | CI87: 1 | CJ87: 13.02401437 | CK87: 16.50001335
H88: 70 Total | J88: =J81+J82 -> 985751.0845 | N88: =N81+N82 -> 748263.1803 | O88: =O81+O82 -> 64256.71534 | P88: =P81+P82 -> 967507.093 | X88: =X81+X82 -> 748.2631803 | Y88: =Y81+Y82 -> 330.7986346 | Z88: =Z81+Z82 -> 312.0741836 | AA88: =Z88/O88*1000 -> 4.856678122 | AC88: =AC81+AC82 -> 1039288.809 | AG88: =AG81+AG82 -> 780746.289 | AH88: =AH81+AH82 -> 66656.59576 | AI88: =AI81+AI82 -> 1008178.594 | AQ88: =AQ81+AQ82 -> 780.746289 | AR88: =AR81+AR82 -> 424.4004442 | AS88: =AS81+AS82 -> 400.3777776 | AT88: =AS88/AH88*1000 -> 6.006574039 | AU88: =AQ88-AR88 -> 356.3458447 | BM88: 68 | BN88: 105.8639337 | BO88: 32.82255554 | BP88: 46.82568734 | BQ88: 422404.1442 | BR88: 10.02990015 | BS88: 22.7926554 | BT88: 53.74998856 | BU88: 53.75 | BV88: 66.1346525 | BX88: 71.820624 | BY88: 99.62085837 | BZ88: 71.820624 | CA88: 68 | CB88: 104.3807144 | CC88: 66.1346525 | CD88: 53.75 | CG88: 6.032363892 | CH88: 16.75 | CI88: 1 | CJ88: 13.18425618 | CK88: 16.75001526
H89: 80 Total | J89: =J83+J84 -> 1081713.251 | N89: =N83+N84 -> 792646.875 | O89: =O83+O84 -> 75017.61016 | P89: =P83+P84 -> 1048606.961 | X89: =X83+X84 -> 792.646875 | Y89: =Y83+Y84 -> 378.3423035 | Z89: =Z83+Z84 -> 356.9267014 | AA89: =Z89/O89*1000 -> 4.757905519 | AC89: =AC83+AC84 -> 1141477.602 | AG89: =AG83+AG84 -> 826386.6521 | AH89: =AH83+AH84 -> 77802.91246 | AI89: =AI83+AI84 -> 1091850.189 | AQ89: =AQ83+AQ84 -> 826.3866521 | AR89: =AR83+AR84 -> 477.5690677 | AS89: =AS83+AS84 -> 450.5368563 | AT89: =AS89/AH89*1000 -> 5.790745386 | AU89: =AQ89-AR89 -> 348.8175844 | BM89: 69 | BN89: 109.6568892 | BO89: 33.66077423 | BP89: 47.78753485 | BQ89: 429902.2045 | BR89: 10.20794006 | BS89: 23.45283418 | BT89: 54.74998474 | BU89: 54.75 | BV89: 66.7252425 | BX89: 72.223248 | BY89: 104.3807144 | BZ89: 72.223248 | CA89: 69 | CB89: 109.1012918 | CC89: 66.7252425 | CD89: 54.75 | CG89: 6.11730957 | CH89: 17 | CI89: 1 | CJ89: 13.34630345 | CK89: 17.00001335
BM90: 70 | BN90: 113.5721445 | BO90: 34.51855087 | BP90: 48.75094638 | BQ90: 437498.7602 | BR90: 10.38831872 | BS90: 24.13023215 | BT90: 55.9999733 | BU90: 56 | BV90: 67.46348 | BX90: 72.726528 | BY90: 109.1012918 | BZ90: 72.726528 | CA90: 70 | CB90: 114.1156578 | CC90: 67.46348 | CD90: 56 | CG90: =EnthalpyL(CH90,CJ90) -> 6.20253849 | CH90: 17.25 | CI90: 1 | CJ90: =RHtoGRL(CH90,CI90,VALUE($B$9)) -> 13.51017467 | CK90: =DewpointL(CJ90,VALUE($B$9)) -> 17.25001335
BM91: 71 | BN91: 117.6133011 | BO91: 35.39648056 | BP91: 49.71592195 | BQ91: 445194.7755 | BR91: 10.57105903 | BS91: 24.82542153 | BT91: 56.99998093 | BU91: 57 | BV91: 68.05407 | BX91: 73.129152 | BY91: 114.1156578 | BZ91: 73.129152 | CA91: 71 | CB91: 119.2630987 | CC91: 68.05407 | CD91: 57 | CG91: 6.288053989 | CH91: 17.5 | CI91: 1 | CJ91: 13.67588844 | CK91: 17.50001335
G92: LEGEND | V92: DB Evap Out | W92: WB Evap Out | X92: MRE | BM92: 72 | BN92: 121.7840645 | BO92: 36.29515457 | BP92: 50.68246154 | BQ92: 452991.2204 | BR92: 10.75618402 | BS92: 25.53897055 | BT92: 57.99997711 | BU92: 58 | BV92: 68.64466 | BX92: 73.531776 | BY92: 119.2630987 | BZ92: 73.531776 | CA92: 72 | CB92: 124.3816372 | CC92: 68.64466 | CD92: 58 | CG92: 6.373859406 | CH92: 17.75 | CI92: 1 | CJ92: 13.84346358 | CK92: 17.75001526
U93: Unocc | BM93: 73 | BN93: 126.0882477 | BO93: 37.21520233 | BP93: 51.65056517 | BQ93: 460889.0709 | BR93: 10.94371687 | BS93: 26.27148546 | BT93: 59.24996948 | BU93: 59.25 | BV93: 69.3828975 | BX93: 74.035056 | BY93: 124.3816372 | BZ93: 74.035056 | CA93: 73 | CB93: 129.8067353 | CC93: 69.3828975 | CD93: 59.25 | CG93: 6.459957123 | CH93: 18 | CI93: 1 | CJ93: 14.01291905 | CK93: 18.00001335
G94: DO NOT CHANGE VALUE/DATA IN THE CELLS AS HIGHLIGHTED BELOW | U94: SP70A | V94: 48.75 | W94: 48.73523712 | X94: 4.021266659 | BM94: 74 | BN94: 130.5297745 | BO94: 38.15725327 | BP94: 52.62023282 | BQ94: 468889.3091 | BR94: 11.13368089 | BS94: 27.02357237 | BT94: 60.24996567 | BU94: 60.25 | BV94: 69.9734875 | BX94: 74.43768 | BY94: 129.8067353 | BZ94: 74.43768 | CA94: 74 | CB94: CF | CC94: 69.9734875 | CD94: 60.25 | CG94: 6.546350002 | CH94: 18.25 | CI94: 1 | CJ94: 14.18427401 | CK94: 18.25001144
I95: UNIT LABEL | U95: SP70B | V95: 49.5 | W95: 49.4850235 | X95: 6.066089154 | BM95: 75 | BN95: 135.1126836 | BO95: 39.12197495 | BP95: 53.5914645 | BQ95: 476992.9232 | BR95: 11.32609955 | BS95: 27.79587539 | BT95: 61.2499733 | BU95: 61.25 | BV95: 70.5640775 | BX95: 74.840304 | BY95: CF | BZ95: 74.840304 | CA95: 75 | CB95: CF | CC95: 70.5640775 | CD95: 61.25 | CG95: 6.633041382 | CH95: 18.5 | CI95: 1 | CJ95: 14.35754778 | CK95: 18.50001335
I96: MANUALLY ENTERED CALCULATION DATA | U96: Occ | BM96: 76 | BN96: 139.8411319 | BO96: 40.11003494 | BP96: 54.56426021 | BQ96: 485200.9072 | BR96: 11.52099646 | BS96: 28.58903848 | BT96: 62.49996567 | BU96: 62.5 | BV96: 71.302315 | BX96: 75.343584 | BY96: CF | BZ96: 75.343584 | CA96: 76 | CB96: CF | CC96: 71.302315 | CD96: 62.5 | CG96: 6.720034599 | CH96: 18.75 | CI96: 1 | CJ96: 14.53275986 | CK96: 18.75001335
I97: AUTOMATICALLY CALCULATED DATA | U97: SP70A | V97: 52.5 | W97: 52.48417664 | X97: 5.043119129 | BM97: 77 | BN97: 144.7193996 | BO97: 41.12213516 | BP97: 55.53861996 | BQ97: 493514.2615 | BR97: 11.71839536 | BS97: 29.4037398 | BT97: 63.49996185 | BU97: 63.5 | BV97: 71.892905 | BX97: 75.746208 | BY97: CF | BZ97: 75.746208 | CA97: 77 | CB97: CF | CC97: 71.892905 | CD97: 63.5 | CG97: 6.807332516 | CH97: 19 | CI97: 1 | CJ97: 14.70992992 | CK97: 19.00001144
I98: SECTION TITLES | U98: SP70B | V98: 52.75 | W98: 52.73410416 | X98: 7.103439022 | BM98: 78 | BN98: 149.7518934 | BO98: 42.15899658 | BP98: 56.51454373 | BQ98: 501933.9925 | BR98: 11.91832015 | BS98: 30.24067643 | BT98: 64.74996185 | BU98: 64.75 | BV98: 72.6311425 | BX98: 76.249488 | BY98: CF | BZ98: 76.249488 | CA98: 78 | CB98: CF | CC98: 72.6311425 | CD98: 64.75 | CG98: 6.894938469 | CH98: 19.25 | CI98: 1 | CJ98: 14.88907784 | CK98: 19.25001144
BM99: 79 | BN99: 154.9431516 | BO99: 43.22135162 | BP99: 57.49203153 | BQ99: 510461.1125 | BR99: 12.12079487 | BS99: 31.10055675 | BT99: 65.74996185 | BU99: 65.75 | BV99: 73.2217325 | BX99: 76.652112 | BY99: CF | BZ99: 76.652112 | CA99: 79 | CB99: CF | CC99: 73.2217325 | CD99: 65.75 | CG99: 6.982854843 | CH99: 19.5 | CI99: 1 | CJ99: 15.07022365 | CK99: 19.50001335
G100: IF NEEDED, USER MAY CHANGED CELLS AS HIGHLIGHTED BELOW | BM100: 80 | BN100: 160.2978489 | BO100: 44.30997086 | BP100: 58.47108336 | BQ100: 519096.6402 | BR100: 12.32584372 | BS100: 31.98412714 | BT100: 66.74996185 | BU100: 66.75 | BV100: 73.8123225 | BX100: 77.054736 | BY100: CF | BZ100: 77.054736 | CA100: 80 | CB100: =BY118 -> CF | CC100: 73.8123225 | CD100: 66.75 | CG100: 7.07108593 | CH100: 19.75 | CI100: 1 | CJ100: 15.25338758 | CK100: 19.75001144
I101: IF NEEDED ONLY, ENTER DATA IN THIS COLOR CELL OR "INPUTS" (BELOW) WILL CARRY OVER FROM "INPUT" SHEET AND "OPTIONAL CFM" (RIGHT) WILL REMAIN AS DEFAULT VALUES. | BM101: 81 | BN101: 165.8208006 | BO101: 45.42563629 | BP101: 59.45169922 | BQ101: 527841.6005 | BR101: 12.53349101 | BS101: 32.89214528 | BT101: 67.99995422 | BU101: 68 | BV101: 74.55056 | BX101: 77.558016 | BY101: CF | BZ101: 77.558016 | CA101: 81 | CB101: =BY102 -> CF | CC101: 74.55056 | CD101: 68 | CG101: 7.159634113 | CH101: 20 | CI101: 1 | CJ101: 15.43859004 | CK101: 20.00001144
BM102: 82 | BN102: 171.5169685 | BO102: 46.56915665 | BP102: 60.43387911 | BQ102: 536697.0243 | BR102: 12.74376124 | BS102: 33.8253954 | BT102: 68.99995422 | BU102: 69 | BV102: 75.14115 | BX102: 77.96064 | BY102: CF | BZ102: 77.96064 | CA102: 82 | CB102: CF | CC102: 75.14115 | CD102: 69 | CG102: 7.248502731 | CH102: 20.25 | CI102: 1 | CJ102: 15.62585163 | CK102: 20.25001144
BM103: 83 | BN103: 177.3914657 | BO103: 47.74136734 | BP103: 61.41762303 | BQ103: 545663.9488 | BR103: 12.95667903 | BS103: 34.78468831 | BT103: 70.24995422 | BU103: 70.25 | BV103: 75.8793875 | BX103: 78.46392 | BY103: CF | BZ103: 78.46392 | CA103: 83 | CB103: CF | CC103: 75.8793875 | CD103: 70.25 | CG103: 7.337695599 | CH103: 20.5 | CI103: 1 | CJ103: 15.81519313 | CK103: 20.50001144
BM104: 84 | BN104: 183.4495626 | BO104: 48.94313431 | BP104: 62.40293098 | BQ104: 554743.4176 | BR104: 13.17226917 | BS104: 35.77086514 | BT104: 71.24995422 | BU104: 71.25 | BV104: 76.4699775 | BX104: 78.866544 | BY104: CF | BZ104: 78.866544 | CA104: 84 | CB104: CF | CC104: 76.4699775 | CD104: 71.25 | CG104: 7.427215576 | CH104: 20.75 | CI104: 1 | CJ104: 16.00663553 | CK104: 20.75001144
BM105: 85 | BN105: 189.6966926 | BO105: 50.17533493 | BP105: 63.38980296 | BQ105: 563936.4802 | BR105: 13.39055656 | BS105: 36.78477837 | BT105: 72.49995422 | BU105: 72.5 | BV105: 77.208215 | BX105: 79.369824 | BY105: CF | BZ105: 79.369824 | CA105: 85 | CB105: CF | CC105: 77.208215 | CD105: 72.5 | CG105: 7.517066002 | CH105: 21 | CI105: 1 | CJ105: 16.20019998 | CK105: 21.00000954
BM106: 86 | BN106: 196.1384581 | BO106: 51.43889236 | BP106: 64.37823896 | BQ106: 573244.1928 | BR106: 13.6115663 | BS106: 37.82732607 | BT106: 73.49995422 | BU106: 73.5 | BV106: 77.798805 | BX106: 79.772448 | BY106: CF | BZ106: 79.772448 | CA106: 86 | CB106: CF | CC106: 77.798805 | CD106: 73.5 | CG106: 7.60725069 | CH106: 21.25 | CI106: 1 | CJ106: 16.39590785 | CK106: 21.25001144
BM107: 87 | BN107: 202.7806375 | BO107: 52.73475266 | BP107: 65.368239 | BQ107: 582667.6175 | BR107: 13.83532359 | BS107: 38.89942906 | BT107: 74.74994659 | BU107: 74.75 | BV107: 78.5370425 | BX107: 80.275728 | BY107: CF | BZ107: 80.275728 | CA107: 87 | CB107: CF | CC107: 78.5370425 | CD107: 74.75 | CG107: 7.697772026 | CH107: 21.5 | CI107: 1 | CJ107: 16.59378068 | CK107: 21.50000954
BM108: 88 | BN108: 209.6291913 | BO108: 54.06388855 | BP108: 66.35980307 | BQ108: 592207.823 | BR108: 14.06185382 | BS108: 40.00203473 | BT108: 75.74995422 | BU108: 75.75 | BV108: 79.1276325 | BX108: 80.678352 | BY108: CF | BZ108: 80.678352 | CA108: 88 | CB108: CF | CC108: 79.1276325 | CD108: 75.75 | CG108: 7.788634777 | CH108: 21.75 | CI108: 1 | CJ108: 16.79384024 | CK108: 21.75000954
BM109: 89 | BN109: 216.6902699 | BO109: 55.42730331 | BP109: 67.35293116 | BQ109: 601865.8843 | BR109: 14.29118252 | BS109: 41.1361208 | BT109: 76.99994659 | BU109: 77 | BV109: 79.86587 | BX109: 81.181632 | BY109: CF | BZ109: 81.181632 | CA109: 89 | CB109: CF | CC109: 79.86587 | CD109: 77 | CG109: 7.879841328 | CH109: 22 | CI109: 1 | CJ109: 16.99610847 | CK109: 22.00000954
BM110: 90 | BN110: 223.9702206 | BO110: 56.82603455 | BP110: 68.34762329 | BQ110: 611642.8826 | BR110: 14.52333534 | BS110: 42.3026992 | BT110: 77.99994659 | BU110: 78 | BV110: 80.45646 | BX110: 81.584256 | BY110: CF | BZ110: 81.584256 | CA110: 90 | CB110: CF | CC110: 80.45646 | CD110: 78 | CG110: 7.971395493 | CH110: 22.25 | CI110: 1 | CJ110: 17.20060752 | CK110: 22.25001144
BM111: 91 | BN111: 231.4755957 | BO111: 58.26116562 | BP111: 69.34387944 | BQ111: 621539.9058 | BR111: 14.75833814 | BS111: 43.50282748 | BT111: 79.25000763 | BU111: 79.25 | BV111: 81.1946975 | BX111: 82.087536 | BY111: CF | BZ111: 82.087536 | CA111: 91 | CB111: CF | CC111: 81.1946975 | CD111: 79.25 | CG111: 8.063301086 | CH111: 22.5 | CI111: 1 | CJ111: 17.40735974 | CK111: 22.50000954
BM112: 92 | BN112: 239.2131606 | BO112: 59.73379135 | BP112: 70.34169963 | BQ112: 631558.0478 | BR112: 14.99621687 | BS112: 44.73757448 | BT112: 80.25000763 | BU112: 80.25 | BV112: 81.7852875 | BX112: 82.49016 | BY112: CF | BZ112: 82.49016 | CA112: 92 | CB112: CF | CC112: 81.7852875 | CD112: 80.25 | CG112: 8.155561447 | CH112: 22.75 | CI112: 1 | CJ112: 17.61638767 | CK112: 22.75001144
BM113: 93 | BN113: 247.1899028 | BO113: 61.24506378 | BP113: 71.34108384 | BQ113: 641698.4093 | BR113: 15.23699769 | BS113: 46.00806609 | BT113: 81.50000763 | BU113: 81.5 | BV113: 82.523525 | BX113: 82.99344 | BY113: CF | BZ113: 82.99344 | CA113: 93 | CB113: CF | CC113: 82.523525 | CD113: 81.5 | CG113: 8.248180389 | CH113: 23 | CI113: 1 | CJ113: 17.82771408 | CK113: 23.00000954
BM114: 94 | BN114: 255.4130406 | BO114: 62.79616547 | BP114: 72.34203209 | BQ114: 651962.0973 | BR114: 15.48070686 | BS114: 47.3154586 | BT114: 82.50000763 | BU114: 82.5 | BV114: 83.114115 | BX114: 83.396064 | BY114: CF | BZ114: 83.396064 | CA114: 94 | CB114: CF | CC114: 83.114115 | CD114: 82.5 | CG114: 8.341160774 | CH114: 23.25 | CI114: 1 | CJ114: 18.04136193 | CK114: 23.25001144
BM115: 95 | BN115: 263.8900332 | BO115: 64.38832092 | BP115: 73.34454436 | BQ115: 662350.2253 | BR115: 15.72737084 | BS115: 48.66095008 | BT115: 83.75000763 | BU115: 83.75 | BV115: 83.8523525 | BX115: 83.899344 | BY115: CF | BZ115: 83.899344 | CA115: 95 | CB115: CF | CC115: 83.8523525 | CD115: 83.75 | CG115: 8.43450737 | CH115: 23.5 | CI115: 1 | CJ115: 18.25735438 | CK115: 23.50000954
BM116: 96 | BN116: 272.6285903 | BO116: 66.02278137 | BP116: 74.34862066 | BQ116: 672863.9133 | BR116: 15.97701622 | BS116: 50.04576516 | BT116: 84.75 | BU116: 84.75 | BV116: 84.4429425 | BX116: 84.301968 | BY116: CF | BZ116: 84.301968 | CA116: 96 | CB116: CF | CC116: 84.4429425 | CD116: 84.75 | CG116: 8.528223038 | CH116: 23.75 | CI116: 1 | CJ116: 18.47571482 | CK116: 23.75000954
BM117: 97 | BN117: 281.6366832 | BO117: 67.7008667 | BP117: 75.35426099 | BQ117: 683504.2878 | BR117: 16.22966973 | BS117: 51.47119696 | BT117: 86.00000763 | BU117: 86 | BV117: 85.18118 | BX117: 84.805248 | BY117: CF | BZ117: 84.805248 | CA117: 97 | CB117: CF | CC117: 85.18118 | CD117: 86 | CG117: 8.622311592 | CH117: 24 | CI117: 1 | CJ117: 18.69646685 | CK117: 24.00000763
BY118: CF | CG118: 8.716776848 | CH118: 24.25 | CI118: 1 | CJ118: 18.91963425 | CK118: 24.25000763
BY119: Match this to entering grains | CG119: 8.811623573 | CH119: 24.5 | CI119: 1 | CJ119: 19.14524107 | CK119: 24.50000954
CG120: 8.906853676 | CH120: 24.75 | CI120: 1 | CJ120: 19.37331152 | CK120: 24.75000954
CG121: 9.002472878 | CH121: 25 | CI121: 1 | CJ121: 19.60387007 | CK121: 25.00000763
BM122: SP80B - UNOCCUPIED | CG122: 9.098484039 | CH122: 25.25 | CI122: 1 | CJ122: 19.83694139 | CK122: 25.25000763
BM123: EVAPORATOR | BS123: HEATPIPE (HP) | BV123: LOOKUP TABLES | CG123: 9.194890976 | CH123: 25.5 | CI123: 1 | CJ123: 20.07255039 | CK123: 25.50000763
BM124: Final IN db | BN124: Final IN wb | BO124: Final IN RH | BQ124: Final OUT db | BR124: Final OUT wb | BS124: Final OUT db | BT124: Precool Eff | BU124: Reheat Eff | CG124: 9.291698456 | CH124: 25.75 | CI124: 1 | CJ124: 20.31072217 | CK124: 25.75000763
BM125: =IF(VLOOKUP($E$10,$BY$127:$CB$176,4)="CF","Consult Factory",VLOOKUP($E$10,$BY$127:$CB$176,2)) -> 69.40488 | BN125: =IF(VLOOKUP($E$10,$BY$128:$CB$177,4)="CF","Consult Factory",VLOOKUP($E$10,$BY$128:$CB$177,3)) -> 65 | BO125: =RHL($BM$125,$E$34,$B$9) -> 79.54827738 | BQ125: =VLOOKUP($E$10,$BY$128:$CD$177,6) -> 47.75 | BR125: =BQ125 -> 47.75 | BS125: =IF(VLOOKUP($E$10,$BY$127:$CC$176,4)="CF","Consult Factory",VLOOKUP($E$10,$BY$127:$CC$176,5)) -> 62.5911125 | BT125: =(0.00000004*(($J$19)^2))-(0.0019*$J$19)+54.816 -> 40.2624 | BU125: =(0.00000005*(($J$19)^2))-(0.0021*$J$19)+56.493 -> 40.941 | CG125: 9.38890934 | CH125: 26 | CI125: 1 | CJ125: 20.5514821 | CK125: 26.00000763
BM126: EVAPORATOR IN | BS126: EVAPORATOR OUT | BZ126: Evap Coil Inlet | CC126: Final HP OUT | CD126: Final DB Evap OUT | CG126: 9.48652935 | CH126: 26.25 | CI126: 1 | CJ126: 20.79485575 | CK126: 26.25000572
BM127: WB | BN127: WB to Grain (REF) | BO127: Enthalpy (H) | BP127: Suction Temp | BQ127: Capacity | BR127: D/X ∆H | BS127: Enthalpy (H) | BT127: Dpt | BU127: DB | BV127: Heat Pipe | BW127: EVAPORATOR IN | BZ127: Final db coil | CA127: Final WB Coil | CG127: 9.584561348 | CH127: 26.5 | CI127: 1 | CJ127: 21.04086892 | CK127: 26.50000763
BV128: Final DB Out | BX128: EvapDB in | BY128: Evap Grains in | CB128: =BY129 -> 33.83401092 | CG128: 9.683009148 | CH128: 26.75 | CI128: 1 | CJ128: 21.28954766 | CK128: 26.75000572
BM129: 50 | BN129: =WBtoGrL(BM129,BM129,$B$9) -> 54.94201268 | BO129: =EnthalpyL(BM129,BN129) -> 20.50188446 | BP129: =($BE$19*VALUE(BM129)^2 +$BF$19*VALUE( BM129) +$BG$19)+(0.069*$F$6-8.32) -> 26.49582259 | BQ129: =(VLOOKUP($N$19,CompCoef1,5,FALSE)+VLOOKUP($N$19,CompCoef1,6,FALSE)*BP129+VLOOKUP($N$19,CompCoef1,7,FALSE)*118+VLOOKUP($N$19,CompCoef1,8,FALSE)*(BP129^2)+VLOOKUP($N$19,CompCoef1,9,FALSE)*BP129*118+VLOOKUP($N$19,CompCoef1,10,FALSE)*(118^2)+VLOOKUP($N$19,CompCoef1,11,FALSE)*(BP129^3)+VLOOKUP($N$19,CompCoef1,12,FALSE)*118*(BP129^2)+VLOOKUP($N$19,CompCoef1,13,FALSE)*BP129*(118^2)+VLOOKUP($N$19,CompCoef1,14,FALSE)*(118^3))*$BK$16 -> 353277.1531 | BR129: =BQ129/(60/$F$17)/$J$19 -> 8.388493858 | BS129: =BO129-BR129 -> 12.1133906 | BT129: =VLOOKUP(BS129,$CG$26:$CK$713,5) -> 32.50000763 | BU129: =VLOOKUP(BS129,$CG$26:$CK$713,2) -> 32.5 | BV129: =BU129+(($B$5-BU129)*($BU$125/100)) -> 53.584615 | BX129: =$B$5-(($BT$125/100)*($B$5-BU129)) -> 63.264864 | BY129: =IF(WBtoGrL(BX129, BM129, $B$9)="N/A","CF",WBtoGrL(BX129, BM129, $B$9)) -> 33.83401092 | BZ129: =BX129 -> 63.264864 | CA129: =BM129 -> 50 | CB129: 36.86440711 | CC129: =BV129 -> 53.584615 | CD129: =BU129 -> 32.5 | CG129: 9.781878471 | CH129: 27 | CI129: 1 | CJ129: 21.54091823 | CK129: 27.00000572
BM130: 51 | BN130: 57.04835487 | BO130: 21.07144356 | BP130: 27.41889274 | BQ130: 360168.0664 | BR130: 8.552117186 | BS130: 12.51932637 | BT130: 33.50000763 | BU130: 33.5 | BV130: 54.175205 | BX130: 63.667488 | BY130: 36.86440711 | BZ130: 63.667488 | CA130: 51 | CB130: 39.96893438 | CC130: 54.175205 | CD130: 33.5 | CG130: 9.881171227 | CH130: 27.25 | CI130: 1 | CJ130: 21.79500715 | CK130: 27.25000763
BM131: 52 | BN131: 59.22673119 | BO131: 21.65242767 | BP131: 28.34214578 | BQ131: 367170.2705 | BR131: 8.718383093 | BS131: 12.93404458 | BT131: 34.50000763 | BU131: 34.5 | BV131: 54.765795 | BX131: 64.070112 | BY131: 39.96893438 | BZ131: 64.070112 | CA131: 52 | CB131: 43.14984675 | CC131: 54.765795 | CD131: 34.5 | CG131: 9.980894089 | CH131: 27.5 | CI131: 1 | CJ131: 22.05184116 | CK131: 27.50000763
BM132: 53 | BN132: 61.47932944 | BO132: 22.24518585 | BP132: 29.26558172 | BQ132: 374285.2095 | BR132: 8.887325867 | BS132: 13.35785998 | BT132: 35.50000381 | BU132: 35.5 | BV132: 55.356385 | BX132: 64.472736 | BY132: 43.14984675 | BZ132: 64.472736 | CA132: 53 | CB132: 46.40941847 | CC132: 55.356385 | CD132: 35.5 | CG132: 10.08104897 | CH132: 27.75 | CI132: 1 | CJ132: 22.31144724 | CK132: 27.75000572
BM133: 54 | BN133: 63.80839801 | BO133: 22.8500824 | BP133: 30.18920056 | BQ133: 381514.3292 | BR133: 9.058979837 | BS133: 13.79110256 | BT133: 36.50000381 | BU133: 36.5 | BV133: 55.946975 | BX133: 64.87536 | BY133: 46.40941847 | BZ133: 64.87536 | CA133: 54 | CB133: 49.75002452 | CC133: 55.946975 | CD133: 36.5 | CG133: 10.18164253 | CH133: 28 | CI133: 1 | CJ133: 22.57385262 | CK133: 28.00000572
BM134: 55 | BN134: 66.21624755 | BO134: 23.46749115 | BP134: 31.11300228 | BQ134: 388859.0767 | BR134: 9.233379368 | BS134: 14.23411178 | BT134: 37.50000381 | BU134: 37.5 | BV134: 56.537565 | BX134: 65.277984 | BY134: 49.75002452 | BZ134: 65.277984 | CA134: 55 | CB134: 53.17409405 | CC134: 56.537565 | CD134: 37.5 | CG134: 10.2826767 | CH134: 28.25 | CI134: 1 | CJ134: 22.83908477 | CK134: 28.25000572
BM135: 56 | BN135: 68.70525277 | BO135: 24.09779358 | BP135: 32.0369869 | BQ135: 396320.9013 | BR135: 9.410558868 | BS135: 14.68723471 | BT135: 38.5 | BU135: 38.5 | BV135: 57.128155 | BX135: 65.680608 | BY135: 53.17409405 | BZ135: 65.680608 | CA135: 56 | CB135: 56.68413661 | CC135: 57.128155 | CD135: 38.5 | CG135: 10.38415813 | CH135: 28.5 | CI135: 1 | CJ135: 23.10717142 | CK135: 28.50000572
BM136: 57 | BN136: 71.2778543 | BO136: 24.74138641 | BP136: 32.96115442 | BQ136: 403901.2534 | BR136: 9.590552781 | BS136: 15.15083363 | BT136: 39.5 | BU136: 39.5 | BV136: 57.718745 | BX136: 66.083232 | BY136: 56.68413661 | BZ136: 66.083232 | CA136: 57 | CB136: 60.28269532 | CC136: 57.718745 | CD136: 39.5 | CG136: 10.48608971 | CH136: 28.75 | CI136: 1 | CJ136: 23.37814051 | CK136: 28.75000572
BM137: 58 | BN137: 73.93656057 | BO137: 25.3986721 | BP137: 33.88550483 | BQ137: 411601.5854 | BR137: 9.773395591 | BS137: 15.62527651 | BT137: 40.5 | BU137: 40.5 | BV137: 58.309335 | BX137: 66.485856 | BY137: 60.28269532 | BZ137: 66.485856 | CA137: 58 | CB137: 63.97242213 | CC137: 58.309335 | CD137: 40.5 | CG137: 10.69132328 | CH137: 29.25 | CI137: 1 | CJ137: 23.92883918 | CK137: 29.25000381
BM138: 59 | BN138: 76.68394982 | BO138: 26.07007027 | BP138: 34.81003813 | BQ138: 419423.3512 | BR138: 9.959121824 | BS138: 16.11094844 | BT138: 41.5 | BU138: 41.5 | BV138: 58.899925 | BX138: 66.88848 | BY138: 63.97242213 | BZ138: 66.88848 | CA138: 59 | CB138: 67.75603122 | CC138: 58.899925 | CD138: 41.5 | CG138: 10.89841366 | CH138: 29.75 | CI138: 1 | CJ138: 24.49140953 | CK138: 29.75000381
BM139: 60 | BN139: 79.52267214 | BO139: 26.75600624 | BP139: 35.73475433 | BQ139: 427368.0065 | BR139: 10.14776604 | BS139: 16.6082402 | BT139: 42.50000763 | BU139: 42.5 | BV139: 59.490515 | BX139: 67.291104 | BY139: 67.75603122 | BZ139: 67.291104 | CA139: 60 | CB139: 71.63632568 | CC139: 59.490515 | CD139: 42.5 | CG139: 11.21261024 | CH139: 30.5 | CI139: 1 | CJ139: 25.35803498 | CK139: 30.50000381
BM140: 61 | BN140: 82.4554516 | BO140: 27.45692253 | BP140: 36.65965341 | BQ140: 435437.0085 | BR140: 10.33936285 | BS140: 17.11755968 | BT140: 43.50000381 | BU140: 43.5 | BV140: 60.081105 | BX140: 67.693728 | BY140: 71.63632568 | BZ140: 67.693728 | CA140: 61 | CB140: 75.61615067 | CC140: 60.081105 | CD140: 43.5 | CG140: 11.31831169 | CH140: 30.75 | CI140: 1 | CJ140: 25.65310089 | CK140: 30.75000381
AU141: HEATPIPE PRE-COOL COIL EFFICIENCY EQUATION | BM141: 62 | BN141: 85.48508849 | BO141: 28.17327309 | BP141: 37.5847354 | BQ141: 443631.8162 | BR141: 10.53394688 | BS141: 17.6393262 | BT141: 44.5 | BU141: 44.5 | BV141: 60.671695 | BX141: 68.096352 | BY141: 75.61615067 | BZ141: 68.096352 | CA141: 62 | CB141: 79.69846955 | CC141: 60.671695 | CD141: 44.5 | CG141: 11.42450523 | CH141: 31 | CI141: 1 | CJ141: 25.95131244 | CK141: 31
BM142: 63 | BN142: 88.61446161 | BO142: 28.90552521 | BP142: 38.51000027 | BQ142: 451953.8901 | BR142: 10.73155283 | BS142: 18.17397238 | BT142: 45.49999619 | BU142: 45.5 | BV142: 61.262285 | BX142: 68.498976 | BY142: 79.69846955 | BZ142: 68.498976 | CA142: 63 | CB142: 83.88631724 | CC142: 61.262285 | CD142: 45.5 | CG142: 11.53050232 | CH142: 31.25 | CI142: 1 | CJ142: 26.24818387 | CK142: 31.25000191
BM143: 64 | BN143: 91.84653065 | BO143: 29.65415382 | BP143: 39.43544804 | BQ143: 460404.6926 | BR143: 10.93221541 | BS143: 18.72193842 | BT143: 46.49999237 | BU143: 46.5 | BV143: 61.852875 | BX143: 68.9016 | BY143: 83.88631724 | BZ143: 68.9016 | CA143: 64 | CB143: 88.01939901 | CC143: 61.852875 | CD143: 46.5 | CG143: 11.63768673 | CH143: 31.5 | CI143: 1 | CJ143: 26.5527264 | CK143: 31.50000191
BM144: 65 | BN144: 95.18433869 | BO144: 30.41965866 | BP144: 40.36107871 | BQ144: 468985.6874 | BR144: 11.13596938 | BS144: 19.28368929 | BT144: 47.74998856 | BU144: 47.75 | BV144: 62.5911125 | BX144: 69.40488 | BY144: 88.01939901 | BZ144: 69.40488 | CA144: 65 | CB144: 92.42744453 | CC144: 62.5911125 | CD144: 47.75 | CG144: 11.74537849 | CH144: 31.75 | CI144: 1 | CJ144: 26.86050653 | CK144: 31.75000191
BM145: 66 | BN145: 98.6310148 | BO145: 31.20254135 | BP145: 41.28689227 | BQ145: 477698.3402 | BR145: 11.34284954 | BS145: 19.85969181 | BT145: 48.74998856 | BU145: 48.75 | BV145: 63.1817025 | BX145: 69.807504 | BY145: 92.42744453 | BZ145: 69.807504 | CA145: 66 | CB145: 96.95064784 | CC145: 63.1817025 | CD145: 48.75 | CG145: 11.85399151 | CH145: 32 | CI145: 1 | CJ145: 27.17422009 | CK145: 32.00000763
BM146: 67 | BN146: 102.1897767 | BO146: 32.00332642 | BP146: 42.21288872 | BQ146: 486544.1182 | BR146: 11.55289073 | BS146: 20.45043569 | BT146: 49.74998474 | BU146: 49.75 | BV146: 63.7722925 | BX146: 70.210128 | BY146: 96.95064784 | BZ146: 70.210128 | CA146: 67 | CB146: 101.5924061 | CC146: 63.7722925 | CD146: 49.75 | CG146: 11.95699215 | CH146: 32.25 | CI146: 1 | CJ146: 27.45133916 | CK146: 32.25000763
AT147: CFM | AU147: Effi | BM147: 68 | BN147: 105.8639337 | BO147: 32.82255554 | BP147: 43.13906806 | BQ147: 495524.4903 | BR147: 11.76612783 | BS147: 21.05642771 | BT147: 50.74998093 | BU147: 50.75 | BV147: 64.3628825 | BX147: 70.612752 | BY147: 101.5924061 | BZ147: 70.612752 | CA147: 68 | CB147: 106.1915148 | CC147: 64.3628825 | CD147: 50.75 | CG147: 12.06038952 | CH147: 32.5 | CI147: 1 | CJ147: 27.73098188 | CK147: 32.50000763
AT148: 7000 | AU148: 43.55 | BM148: 69 | BN148: 109.6568892 | BO148: 33.66077423 | BP148: 44.0654303 | BQ148: 504640.9271 | BR148: 11.98259576 | BS148: 21.67817847 | BT148: 51.99998474 | BU148: 52 | BV148: 65.10112 | BX148: 71.116032 | BY148: 106.1915148 | BZ148: 71.116032 | CA148: 69 | CB148: 111.0806465 | CC148: 65.10112 | CD148: 52 | CG148: 12.16418743 | CH148: 32.75 | CI148: 1 | CJ148: 28.01316845 | CK148: 32.75001526
AT149: 9000 | AU149: 41.12 | BM149: 70 | BN149: 113.5721445 | BO149: 34.51855087 | BP149: 44.99197544 | BQ149: 513894.9007 | BR149: 12.20232948 | BS149: 22.3162214 | BT149: 52.99997711 | BU149: 53 | BV149: 65.69171 | BX149: 71.518656 | BY149: 111.0806465 | BZ149: 71.518656 | CA149: 70 | CB149: 116.0991064 | CC149: 65.69171 | CD149: 53 | CG149: 12.26838779 | CH149: 33 | CI149: 1 | CJ149: 28.29791923 | CK149: 33.00000381
AT150: 10000 | AU150: 40.05 | BM150: 71 | BN150: 117.6133011 | BO150: 35.39648056 | BP150: 45.91870346 | BQ150: 523287.8852 | BR150: 12.42536397 | BS150: 22.97111659 | BT150: 53.99998474 | BU150: 54 | BV150: 66.2823 | BX150: 71.92128 | BY150: 116.0991064 | BZ150: 71.92128 | CA150: 71 | CB150: 121.0850054 | CC150: 66.2823 | CD150: 54 | CG150: 12.37299442 | CH150: 33.25 | CI150: 1 | CJ150: 28.58525473 | CK150: 33.25000763
AT151: 12000 | AU151: 38.15 | BM151: 72 | BN151: 121.7840645 | BO151: 36.29515457 | BP151: 46.84561438 | BQ151: 532821.3559 | BR151: 12.65173429 | BS151: 23.64342028 | BT151: 55.2499733 | BU151: 55.25 | BV151: 67.0205375 | BX151: 72.42456 | BY151: 121.0850054 | BZ151: 72.42456 | CA151: 72 | CB151: CF | CC151: 67.0205375 | CD151: 55.25 | CG151: 12.47801018 | CH151: 33.5 | CI151: 1 | CJ151: 28.87519558 | CK151: 33.50000763
BM152: 73 | BN152: 126.0882477 | BO152: 37.21520233 | BP152: 47.7727082 | BQ152: 542496.7902 | BR152: 12.8814755 | BS152: 24.33372683 | BT152: 56.24998093 | BU152: 56.25 | BV152: 67.6111275 | BX152: 72.827184 | BY152: CF | BZ152: 72.827184 | CA152: 73 | CB152: CF | CC152: 67.6111275 | CD152: 56.25 | CG152: 12.58343887 | CH152: 33.75 | CI152: 1 | CJ152: 29.16776257 | CK152: 33.75000763
BM153: 74 | BN153: 130.5297745 | BO153: 38.15725327 | BP153: 48.6999849 | BQ153: 552315.667 | BR153: 13.11462272 | BS153: 25.04263054 | BT153: 57.24996948 | BU153: 57.25 | BV153: 68.2017175 | BX153: 73.229808 | BY153: CF | BZ153: 73.229808 | CA153: 74 | CB153: CF | CC153: 68.2017175 | CD153: 57.25 | CG153: 12.68928432 | CH153: 34 | CI153: 1 | CJ153: 29.46297663 | CK153: 34.00000381
BM154: 75 | BN154: 135.1126836 | BO154: 39.12197495 | BP154: 49.62744451 | BQ154: 562279.4667 | BR154: 13.35121111 | BS154: 25.77076383 | BT154: 58.49996948 | BU154: 58.5 | BV154: 68.939955 | BX154: 73.733088 | BY154: CF | BZ154: 73.733088 | CA154: 75 | CB154: CF | CC154: 68.939955 | CD154: 58.5 | CG154: =EnthalpyL(CH154,CJ154) -> 12.79554939 | CH154: 34.25 | CI154: 1 | CJ154: =RHtoGRL(CH154,CI154,VALUE($B$9)) -> 29.76085885 | CK154: =DewpointL(CJ154,VALUE($B$9)) -> 34.25000763
BM155: 76 | BN155: 139.8411319 | BO155: 40.11003494 | BP155: 50.555087 | BQ155: 572389.6717 | BR155: 13.59127587 | BS155: 26.51875908 | BT155: 59.49997711 | BU155: 59.5 | BV155: 69.530545 | BX155: 74.135712 | BY155: CF | BZ155: 74.135712 | CA155: 76 | CB155: CF | CC155: 69.530545 | CD155: 59.5 | CG155: 12.90223694 | CH155: 34.5 | CI155: 1 | CJ155: 30.06143043 | CK155: 34.50000763
BM156: 77 | BN156: 144.7193996 | BO156: 41.12213516 | BP156: 51.48291239 | BQ156: 582647.7658 | BR156: 13.83485222 | BS156: 27.28728295 | BT156: 60.74996567 | BU156: 60.75 | BV156: 70.2687825 | BX156: 74.638992 | BY156: CF | BZ156: 74.638992 | CA156: 77 | CB156: CF | CC156: 70.2687825 | CD156: 60.75 | CG156: 13.00935078 | CH156: 34.75 | CI156: 1 | CJ156: 30.36471276 | CK156: 34.75000763
BM157: 78 | BN157: 149.7518934 | BO157: 42.15899658 | BP157: 52.41092067 | BQ157: 593055.2346 | BR157: 14.08197544 | BS157: 28.07702114 | BT157: 61.74996567 | BU157: 61.75 | BV157: 70.8593725 | BX157: 75.041616 | BY157: CF | BZ157: 75.041616 | CA157: 78 | CB157: CF | CC157: 70.8593725 | CD157: 61.75 | CG157: 13.11689472 | CH157: 35 | CI157: 1 | CJ157: 30.67072736 | CK157: 35.00000763
BM158: 79 | BN158: 154.9431516 | BO158: 43.22135162 | BP158: 53.33911185 | BQ158: 603613.5653 | BR158: 14.33268085 | BS158: 28.88867078 | BT158: 62.7499733 | BU158: 62.75 | BV158: 71.4499625 | BX158: 75.44424 | BY158: CF | BZ158: 75.44424 | CA158: 79 | CB158: CF | CC158: 71.4499625 | CD158: 62.75 | CG158: 13.22487259 | CH158: 35.25 | CI158: 1 | CJ158: 30.9794959 | CK158: 35.25000763
BM159: 80 | BN159: 160.2978489 | BO159: 44.30997086 | BP159: 54.26748592 | BQ159: 614324.247 | BR159: 14.58700379 | BS159: 29.72296706 | BT159: 63.99996948 | BU159: 64 | BV159: 72.1882 | BX159: 75.94752 | BY159: CF | BZ159: 75.94752 | CA159: 80 | CB159: =BY177 -> CF | CC159: 72.1882 | CD159: 64 | CG159: 13.33328629 | CH159: 35.5 | CI159: 1 | CJ159: 31.29104019 | CK159: 35.50000381
BM160: 81 | BN160: 165.8208006 | BO160: 45.42563629 | BP160: 55.19604288 | BQ160: 625188.77 | BR160: 14.84497967 | BS160: 30.58065662 | BT160: 64.99996185 | BU160: 65 | BV160: 72.77879 | BX160: 76.350144 | BY160: CF | BZ160: 76.350144 | CA160: 81 | CB160: =BY161 -> CF | CC160: 72.77879 | CD160: 65 | CG160: 13.44214058 | CH160: 35.75 | CI160: 1 | CJ160: 31.60538221 | CK160: 35.75000763
BM161: 82 | BN161: 171.5169685 | BO161: 46.56915665 | BP161: 56.12478274 | BQ161: 636208.6268 | BR161: 15.10664392 | BS161: 31.46251272 | BT161: 66.24996185 | BU161: 66.25 | BV161: 73.5170275 | BX161: 76.853424 | BY161: CF | BZ161: 76.853424 | CA161: 82 | CB161: CF | CC161: 73.5170275 | CD161: 66.25 | CG161: 13.55143833 | CH161: 36 | CI161: 1 | CJ161: 31.92254409 | CK161: 36.00000381
BM162: 83 | BN162: 177.3914657 | BO162: 47.74136734 | BP162: 57.05370549 | BQ162: 647385.3112 | BR162: 15.37203201 | BS162: 32.36933533 | BT162: 67.24996185 | BU162: 67.25 | BV162: 74.1076175 | BX162: 77.256048 | BY162: CF | BZ162: 77.256048 | CA162: 83 | CB162: CF | CC162: 74.1076175 | CD162: 67.25 | CG162: 13.66118431 | CH162: 36.25 | CI162: 1 | CJ162: 32.24254811 | CK162: 36.25000763
BM163: 84 | BN163: 183.4495626 | BO163: 48.94313431 | BP163: 57.98281113 | BQ163: 658720.3188 | BR163: 15.64117945 | BS163: 33.30195485 | BT163: 68.49995422 | BU163: 68.5 | BV163: 74.845855 | BX163: 77.759328 | BY163: CF | BZ163: 77.759328 | CA163: 84 | CB163: CF | CC163: 74.845855 | CD163: 68.5 | CG163: 13.77138042 | CH163: 36.5 | CI163: 1 | CJ163: 32.56541669 | CK163: 36.50000381
AU164: HEATPIPE REHEATCOIL EFFICIENCY EQUATION | BM164: 85 | BN164: 189.6966926 | BO164: 50.17533493 | BP164: 58.91209967 | BQ164: 670215.147 | BR164: 15.9141218 | BS164: 34.26121313 | BT164: 69.49995422 | BU164: 69.5 | BV164: 75.436445 | BX164: 78.161952 | BY164: CF | BZ164: 78.161952 | CA164: 85 | CB164: CF | CC164: 75.436445 | CD164: 69.5 | CG164: 13.88203144 | CH164: 36.75 | CI164: 1 | CJ164: 32.89117244 | CK164: 36.75000381
BM165: 86 | BN165: 196.1384581 | BO165: 51.43889236 | BP165: 59.84157111 | BQ165: 681871.2948 | BR165: 16.19089465 | BS165: 35.24799772 | BT165: 70.74995422 | BU165: 70.75 | BV165: 76.1746825 | BX165: 78.665232 | BY165: CF | BZ165: 78.665232 | CA165: 86 | CB165: CF | CC165: 76.1746825 | CD165: 70.75 | CG165: 13.99314022 | CH165: 37 | CI165: 1 | CJ165: 33.21983809 | CK165: 37.00000381
BM166: 87 | BN166: 202.7806375 | BO166: 52.73475266 | BP166: 60.77122543 | BQ166: 693690.2627 | BR166: 16.47153363 | BS166: 36.26321903 | BT166: 71.74995422 | BU166: 71.75 | BV166: 76.7652725 | BX166: 79.067856 | BY166: CF | BZ166: 79.067856 | CA166: 87 | CB166: CF | CC166: 76.7652725 | CD166: 71.75 | CG166: 14.10471153 | CH166: 37.25 | CI166: 1 | CJ166: 33.55143655 | CK166: 37.25000381
BM167: 88 | BN167: 209.6291913 | BO167: 54.06388855 | BP167: 61.70106265 | BQ167: 705673.5531 | BR167: 16.75607441 | BS167: 37.30781414 | BT167: 72.99995422 | BU167: 73 | BV167: 77.50351 | BX167: 79.571136 | BY167: CF | BZ167: 79.571136 | CA167: 88 | CB167: CF | CC167: 77.50351 | CD167: 73 | CG167: 14.21674824 | CH167: 37.5 | CI167: 1 | CJ167: 33.88599088 | CK167: 37.50000381
BM168: 89 | BN168: 216.6902699 | BO168: 55.42730331 | BP168: 62.63108276 | BQ168: 717822.67 | BR168: 17.04455271 | BS168: 38.3827506 | BT168: 73.99994659 | BU168: 74 | BV168: 78.0941 | BX168: 79.97376 | BY168: CF | BZ168: 79.97376 | CA168: 89 | CB168: CF | CC168: 78.0941 | CD168: 74 | CG168: 14.32925415 | CH168: 37.75 | CI168: 1 | CJ168: 34.2235243 | CK168: 37.75000381
BM169: 90 | BN169: 223.9702206 | BO169: 56.82603455 | BP169: 63.56128577 | BQ169: 730139.1191 | BR169: 17.33700428 | BS169: 39.48903027 | BT169: 75.24995422 | BU169: 75.25 | BV169: 78.8323375 | BX169: 80.47704 | BY169: CF | BZ169: 80.47704 | CA169: 90 | CB169: CF | CC169: 78.8323375 | CD169: 75.25 | CG169: 14.44223309 | CH169: 38 | CI169: 1 | CJ169: 34.5640602 | CK169: 38.00000381
AT170: CFM | AU170: Effi | BM170: 91 | BN170: 231.4755957 | BO170: 58.26116562 | BP170: 64.49167167 | BQ170: 742624.4077 | BR170: 17.63346491 | BS170: 40.62770071 | BT170: 76.49994659 | BU170: 76.5 | BV170: 79.570575 | BX170: 80.98032 | BY170: CF | BZ170: 80.98032 | CA170: 91 | CB170: CF | CC170: 79.570575 | CD170: 76.5 | CG170: 14.55568886 | CH170: 38.25 | CI170: 1 | CJ170: 34.90762211 | CK170: 38.25000381
AT171: 7000 | AU171: 44.11 | BM171: 92 | BN171: 239.2131606 | BO171: 59.73379135 | BP171: 65.42224047 | BQ171: 755280.045 | BR171: 17.93397043 | BS171: 41.79982092 | BT171: 77.49994659 | BU171: 77.5 | BV171: 80.161165 | BX171: 81.382944 | BY171: CF | BZ171: 81.382944 | CA171: 92 | CB171: CF | CC171: 80.161165 | CD171: 77.5 | CG171: 14.66962528 | CH171: 38.5 | CI171: 1 | CJ171: 35.25423376 | CK171: 38.5
AT172: 9000 | AU172: 41.49 | BM172: 93 | BN172: 247.1899028 | BO172: 61.24506378 | BP172: 66.35299215 | BQ172: 768107.5416 | BR172: 18.23855672 | BS172: 43.00650706 | BT172: 78.74994659 | BU172: 78.75 | BV172: 80.8994025 | BX172: 81.886224 | BY172: CF | BZ172: 81.886224 | CA172: 93 | CB172: CF | CC172: 80.8994025 | CD172: 78.75 | CG172: 14.78404617 | CH172: 38.75 | CI172: 1 | CJ172: 35.603919 | CK172: 38.75000381
AT173: 10000 | AU173: 40.36 | BM173: 94 | BN173: 255.4130406 | BO173: 62.79616547 | BP173: 67.28392674 | BQ173: 781108.41 | BR173: 18.54725968 | BS173: 44.24890578 | BT173: 79.75000763 | BU173: 79.75 | BV173: 81.4899925 | BX173: 82.288848 | BY173: CF | BZ173: 82.288848 | CA173: 94 | CB173: CF | CC173: 81.4899925 | CD173: 79.75 | CG173: 14.89895535 | CH173: 39 | CI173: 1 | CJ173: 35.95670187 | CK173: 39.00000381
AT174: 12000 | AU174: 38.36 | BM174: 95 | BN174: 263.8900332 | BO174: 64.38832092 | BP174: 68.21504421 | BQ174: 794284.1642 | BR174: 18.86011528 | BS174: 45.52820564 | BT174: 81.00000763 | BU174: 81 | BV174: 82.22823 | BX174: 82.792128 | BY174: CF | BZ174: 82.792128 | CA174: 95 | CB174: CF | CC174: 82.22823 | CD174: 81 | CG174: 15.01435661 | CH174: 39.25 | CI174: 1 | CJ174: 36.31260659 | CK174: 39.25000381
BM175: 96 | BN175: 272.6285903 | BO175: 66.02278137 | BP175: 69.14634458 | BQ175: 807636.3201 | BR175: 19.17715949 | BS175: 46.84562188 | BT175: 82.00000763 | BU175: 82 | BV175: 82.81882 | BX175: 83.194752 | BY175: CF | BZ175: 83.194752 | CA175: 96 | CB175: CF | CC175: 82.81882 | CD175: 82 | CG175: 15.13025379 | CH175: 39.5 | CI175: 1 | CJ175: 36.6716575 | CK175: 39.5
BM176: 97 | BN176: 281.6366832 | BO176: 67.7008667 | BP176: 70.07782784 | BQ176: 821166.3952 | BR176: 19.49842836 | BS176: 48.20243834 | BT176: 83.25000763 | BU176: 83.25 | BV176: 83.5570575 | BX176: 83.698032 | BY176: CF | BZ176: 83.698032 | CA176: 97 | CB176: CF | CC176: 83.5570575 | CD176: 83.25 | CG176: 15.2466507 | CH176: 39.75 | CI176: 1 | CJ176: 37.03387916 | CK176: 39.75000381
BY177: CF | CG177: 15.36355209 | CH177: 40 | CI177: 1 | CJ177: 37.39929626 | CK177: 40
BY178: Match this to entering grains | CG178: 15.48096085 | CH178: 40.25 | CI178: 1 | CJ178: 37.76793368 | CK178: 40.25
CG179: 15.59888172 | CH179: 40.5 | CI179: 1 | CJ179: 38.13981648 | CK179: 40.5
CG180: 15.71731949 | CH180: 40.75 | CI180: 1 | CJ180: 38.51496987 | CK180: 40.75
BM181: SP80B - OCCUPIED | CG181: 15.83627605 | CH181: 41 | CI181: 1 | CJ181: 38.89341924 | CK181: 41
BM182: EVAPORATOR | BS182: HEATPIPE (HP) | BV182: LOOKUP TABLES | CG182: 15.95575714 | CH182: 41.25 | CI182: 1 | CJ182: 39.27519017 | CK182: 41.24999619
BM183: Final IN db | BN183: Final IN wb | BO183: Final IN RH | BQ183: Final OUT db | BR183: Final OUT wb | BS183: Final OUT db | BT183: Precool Eff | BU183: Reheat Eff | CG183: 16.07576752 | CH183: 41.5 | CI183: 1 | CJ183: 39.6603084 | CK183: 41.5
BM184: =IF(VLOOKUP($F$10,$BY$187:$CB$236,4)="CF","Consult Factory",VLOOKUP($F$10,$BY$187:$CB$236,2)) -> 71.116032 | BN184: =IF(VLOOKUP($F$10,$BY$187:$CB$236,4)="CF","Consult Factory",VLOOKUP($F$10,$BY$187:$CB$236,3)) -> 69 | BO184: =RHL($BM$184,$F$34,$B$9) -> 90.16371997 | BQ184: =VLOOKUP($F$10,$BY$187:$CD$236,6) -> 52 | BR184: =BQ184 -> 52 | BS184: =IF(VLOOKUP($F$10,$BY$186:$CC$235,4)="CF","Consult Factory",VLOOKUP($F10,$BY$186:$CC$235,5)) -> 65.10112 | BT184: =(0.00000004*(($J$19)^2))-(0.0019*$J$19)+54.816 -> 40.2624 | BU184: =(0.00000005*(($J$19)^2))-(0.0021*$J$19)+56.493 -> 40.941 | CG184: 16.19630814 | CH184: 41.75 | CI184: 1 | CJ184: 40.04879985 | CK184: 41.75
BZ185: Evap Coil Inlet | CC185: Final HP OUT | CD185: Final DB Evap OUT | CG185: 16.31738663 | CH185: 42 | CI185: 1 | CJ185: 40.44069061 | CK185: 41.99999619
BM186: WB | BN186: WB to Grain (REF) | BO186: Enthalpy (H) | BP186: Suction Temp | BQ186: Capacity | BR186: D/X ∆H | BS186: Enthalpy (H) | BT186: Dpt | BU186: DB | BV186: Heat Pipe | BW186: EVAPORATOR IN | BZ186: Final db coil | CA186: Final WB Coil | CG186: 16.43900681 | CH186: 42.25 | CI186: 1 | CJ186: 40.83600698 | CK186: 42.25000763
BV187: Final DB Out | BX187: EvapDB in | BY187: Evap Grains in | CB187: =BY188 -> 33.83401092 | CG187: 16.56117058 | CH187: 42.5 | CI187: 1 | CJ187: 41.23477541 | CK187: 42.50000763
BM188: 50 | BN188: =WBtoGrL(BM188,BM188,$B$9) -> 54.94201268 | BO188: =EnthalpyL(BM188,BN188) -> 20.50188446 | BP188: =($BE$19*VALUE(BM188)^2 +$BF$19*VALUE( BM188) +$BG$19)+(0.069*$F$6-8.32) -> 26.49582259 | BQ188: =(VLOOKUP($N$19,CompCoef1,5,FALSE)+VLOOKUP($N$19,CompCoef1,6,FALSE)*BP188+VLOOKUP($N$19,CompCoef1,7,FALSE)*118+VLOOKUP($N$19,CompCoef1,8,FALSE)*(BP188^2)+VLOOKUP($N$19,CompCoef1,9,FALSE)*BP188*118+VLOOKUP($N$19,CompCoef1,10,FALSE)*(118^2)+VLOOKUP($N$19,CompCoef1,11,FALSE)*(BP188^3)+VLOOKUP($N$19,CompCoef1,12,FALSE)*118*(BP188^2)+VLOOKUP($N$19,CompCoef1,13,FALSE)*BP188*(118^2)+VLOOKUP($N$19,CompCoef1,14,FALSE)*(118^3))*$BK$16 -> 353277.1531 | BR188: =BQ188/(60/$F$17)/$J$19 -> 8.388493858 | BS188: =BO188-BR188 -> 12.1133906 | BT188: =VLOOKUP(BS188,$CG$26:$CK$713,5) -> 32.50000763 | BU188: =VLOOKUP(BS188,$CG$26:$CK$713,2) -> 32.5 | BV188: =BU188+(($B$5-BU188)*($BU$184/100)) -> 53.584615 | BX188: =$B$5-(($BT$184/100)*($B$5-BU188)) -> 63.264864 | BY188: =IF(WBtoGrL(BX188, BM188, $B$9)="N/A","CF",WBtoGrL(BX188, BM188, $B$9)) -> 33.83401092 | BZ188: =BX188 -> 63.264864 | CA188: =BM188 -> 50 | CB188: 36.86440711 | CC188: =BV188 -> 53.584615 | CD188: =BU188 -> 32.5 | CG188: 16.68388557 | CH188: 42.75 | CI188: 1 | CJ188: 41.63702254 | CK188: 42.75000763
BM189: 51 | BN189: 57.04835487 | BO189: 21.07144356 | BP189: 27.41889274 | BQ189: 360168.0664 | BR189: 8.552117186 | BS189: 12.51932637 | BT189: 33.50000763 | BU189: 33.5 | BV189: 54.175205 | BX189: 63.667488 | BY189: 36.86440711 | BZ189: 63.667488 | CA189: 51 | CB189: 39.96893438 | CC189: 54.175205 | CD189: 33.5 | CG189: 16.80715179 | CH189: 43 | CI189: 1 | CJ189: 42.0427752 | CK189: 43.00000381
BM190: 52 | BN190: 59.22673119 | BO190: 21.65242767 | BP190: 28.34214578 | BQ190: 367170.2705 | BR190: 8.718383093 | BS190: 12.93404458 | BT190: 34.50000763 | BU190: 34.5 | BV190: 54.765795 | BX190: 64.070112 | BY190: 39.96893438 | BZ190: 64.070112 | CA190: 52 | CB190: 43.14984675 | CC190: 54.765795 | CD190: 34.5 | CG190: 16.93097687 | CH190: 43.25 | CI190: 1 | CJ190: 42.45206039 | CK190: 43.25000381
BM191: 53 | BN191: 61.47932944 | BO191: 22.24518585 | BP191: 29.26558172 | BQ191: 374285.2095 | BR191: 8.887325867 | BS191: 13.35785998 | BT191: 35.50000381 | BU191: 35.5 | BV191: 55.356385 | BX191: 64.472736 | BY191: 43.14984675 | BZ191: 64.472736 | CA191: 53 | CB191: 46.40941847 | CC191: 55.356385 | CD191: 35.5 | CG191: 17.05536461 | CH191: 43.5 | CI191: 1 | CJ191: 42.86490532 | CK191: 43.50000381
BM192: 54 | BN192: 63.80839801 | BO192: 22.8500824 | BP192: 30.18920056 | BQ192: 381514.3292 | BR192: 9.058979837 | BS192: 13.79110256 | BT192: 36.50000381 | BU192: 36.5 | BV192: 55.946975 | BX192: 64.87536 | BY192: 46.40941847 | BZ192: 64.87536 | CA192: 54 | CB192: 49.75002452 | CC192: 55.946975 | CD192: 36.5 | CG192: 17.18032074 | CH192: 43.75 | CI192: 1 | CJ192: 43.28133736 | CK192: 43.75
BM193: 55 | BN193: 66.21624755 | BO193: 23.46749115 | BP193: 31.11300228 | BQ193: 388859.0767 | BR193: 9.233379368 | BS193: 14.23411178 | BT193: 37.50000381 | BU193: 37.5 | BV193: 56.537565 | BX193: 65.277984 | BY193: 49.75002452 | BZ193: 65.277984 | CA193: 55 | CB193: 53.17409405 | CC193: 56.537565 | CD193: 37.5 | CG193: 17.30584526 | CH193: 44 | CI193: 1 | CJ193: 43.70138407 | CK193: 44.00000381
BM194: 56 | BN194: 68.70525277 | BO194: 24.09779358 | BP194: 32.0369869 | BQ194: 396320.9013 | BR194: 9.410558868 | BS194: 14.68723471 | BT194: 38.5 | BU194: 38.5 | BV194: 57.128155 | BX194: 65.680608 | BY194: 53.17409405 | BZ194: 65.680608 | CA194: 56 | CB194: 56.68413661 | CC194: 57.128155 | CD194: 38.5 | CG194: 17.4319458 | CH194: 44.25 | CI194: 1 | CJ194: 44.12507323 | CK194: 44.25
BM195: 57 | BN195: 71.2778543 | BO195: 24.74138641 | BP195: 32.96115442 | BQ195: 403901.2534 | BR195: 9.590552781 | BS195: 15.15083363 | BT195: 39.5 | BU195: 39.5 | BV195: 57.718745 | BX195: 66.083232 | BY195: 56.68413661 | BZ195: 66.083232 | CA195: 57 | CB195: 60.28269532 | CC195: 57.718745 | CD195: 39.5 | CG195: 17.55862808 | CH195: 44.5 | CI195: 1 | CJ195: 44.55243277 | CK195: 44.5
BM196: 58 | BN196: 73.93656057 | BO196: 25.3986721 | BP196: 33.88550483 | BQ196: 411601.5854 | BR196: 9.773395591 | BS196: 15.62527651 | BT196: 40.5 | BU196: 40.5 | BV196: 58.309335 | BX196: 66.485856 | BY196: 60.28269532 | BZ196: 66.485856 | CA196: 58 | CB196: 63.97242213 | CC196: 58.309335 | CD196: 40.5 | CG196: 17.68589401 | CH196: 44.75 | CI196: 1 | CJ196: 44.98349084 | CK196: 44.74999619
BM197: 59 | BN197: 76.68394982 | BO197: 26.07007027 | BP197: 34.81003813 | BQ197: 419423.3512 | BR197: 9.959121824 | BS197: 16.11094844 | BT197: 41.5 | BU197: 41.5 | BV197: 58.899925 | BX197: 66.88848 | BY197: 63.97242213 | BZ197: 66.88848 | CA197: 59 | CB197: 67.75603122 | CC197: 58.899925 | CD197: 41.5 | CG197: 17.81374931 | CH197: 45 | CI197: 1 | CJ197: 45.41827578 | CK197: 44.99999619
BM198: 60 | BN198: 79.52267214 | BO198: 26.75600624 | BP198: 35.73475433 | BQ198: 427368.0065 | BR198: 10.14776604 | BS198: 16.6082402 | BT198: 42.50000763 | BU198: 42.5 | BV198: 59.490515 | BX198: 67.291104 | BY198: 67.75603122 | BZ198: 67.291104 | CA198: 60 | CB198: 71.63632568 | CC198: 59.490515 | CD198: 42.5 | CG198: 17.9421978 | CH198: 45.25 | CI198: 1 | CJ198: 45.8568161 | CK198: 45.24999619
BM199: 61 | BN199: 82.4554516 | BO199: 27.45692253 | BP199: 36.65965341 | BQ199: 435437.0085 | BR199: 10.33936285 | BS199: 17.11755968 | BT199: 43.50000381 | BU199: 43.5 | BV199: 60.081105 | BX199: 67.693728 | BY199: 71.63632568 | BZ199: 67.693728 | CA199: 61 | CB199: 75.61615067 | CC199: 60.081105 | CD199: 43.5 | CG199: 18.0712471 | CH199: 45.5 | CI199: 1 | CJ199: 46.29914053 | CK199: 45.49999619
BM200: 62 | BN200: 85.48508849 | BO200: 28.17327309 | BP200: 37.5847354 | BQ200: 443631.8162 | BR200: 10.53394688 | BS200: 17.6393262 | BT200: 44.5 | BU200: 44.5 | BV200: 60.671695 | BX200: 68.096352 | BY200: 75.61615067 | BZ200: 68.096352 | CA200: 62 | CB200: 79.69846955 | CC200: 60.671695 | CD200: 44.5 | CG200: 18.20089722 | CH200: 45.75 | CI200: 1 | CJ200: 46.74527799 | CK200: 45.74999619
... 518 more rows

Sheet SPFan Notes (hidden)
E1: Data from RSM SelectAire Plus Tool
B4: Unit | C4: Max E/A cfm @ 0.5" WC | E4: DA # | F4: Qty | G4: Model | H4: Manf. | I4: SE | J4: BHP | K4: BHP w/ BELT | L4: Selected Motor Size (HP) | M4: MTR FLA | N4: Blwr RPM | O4: Fan Type | P4: Cost | Q4: Cost Difference | R4: Retail Price Adder | V4: Values listed below were developed using the SAPlus Performance Program
B5: SP70 | C5: 8000 | E5: 710-254-002 (2) | F5: 2 | G5: GR56C-ZID.GL.CR | H5: Ziehl-Abegg | I5: 0.6975780348 | J5: 5.579495772 | K5: 5.579495772 | L5: 10 | M5: 12.8 | N5: 1401.059925 | O5: Plenum Fan w/ EC Motor | P5: 2728.68 | Q5: 0 | R5: 0 | V5: SA80 Plus w/Hot water aux heat coil, 0.75" supply, 0.75" return, 0.5" OSA & 0.5"exhaust | AJ5: Exhaust Fan for SAPlus 70-80 ton unit @ 0.5" esp | AY5: Supply Fan for SAPlus 70-80 ton unit @ 2.5" esp Total Static
E6: 710-307-001 (2) | F6: 2 | G6: GR63C-6DM.K2.CR | H6: Ziehl-Abegg | I6: 0.6334522842 | J6: 6.144320247 | K6: 6.144320247 | L6: 20 | M6: 28.6 | N6: 1251.816792 | O6: Ventilation Fan w/ AC Motor | P6: 3163.78 | Q6: 435.1 | R6: 2300 | V6: Supply CFM | W6: SA Fan bhp | X6: OSA/Exhaust CFM | Y6: bhp | AA6: OSA Exhaust | AB6: 25000 | AC6: 30000 | AD6: 35000 | AE6: 40000 | AF6: Average bhp | AK6: Selected Fan Option: | AL6: =SAPlus!FR33 -> 2 | AM6: 1 = Standard 2 = Manual Entry of the bhp
E7: 710-307-002 (2) | F7: 2 | G7: GR63C-4DM.K2.CR | H7: Ziehl-Abegg | I7: 0.6274200273 | J7: 6.2033941 | K7: 6.2033941 | L7: 40 | M7: 47 | N7: 1246.640877 | O7: Ventilation Fan w/ AC Motor | P7: 3317.78 | Q7: 589.1 | R7: 3100 | V7: 25000 | W7: 20.62 | X7: 2000 | Y7: 3.05 | AA7: 2000 | AB7: =Y7 -> 3.05 | AC7: =Y14 -> 3.65 | AD7: =Y22 -> 3.83 | AE7: =Y31 -> 4.04 | AF7: =AVERAGE(AB7:AE7) -> 3.6425 | AU7: Code Ex Fan
X8: 4000 | Y8: 4.24 | AA8: 4000 | AB8: 4.24 | AC8: 4.4 | AD8: =Y23 -> 4.59 | AE8: =Y32 -> 4.82 | AF8: =AVERAGE(AB8:AE8) -> 4.5125 | AU8: Lookup Table
B9: SP70 | C9: 14000 | E9: 710-254-002 (2) | F9: 2 | G9: GR56C-ZID.GL.CR | H9: Ziehl-Abegg | I9: 0.7421899269 | J9: 9.800982899 | K9: 9.800982899 | L9: 10 | M9: 12.8 | N9: 1658.512083 | O9: Plenum Fan w/ EC Motor | P9: 2728.68 | Q9: 0 | R9: 0 | X9: 6000 | Y9: 5.1 | AA9: 6000 | AB9: 5.1 | AC9: 5.25 | AD9: 5.43 | AE9: 5.67 | AF9: 5.3625 | AJ9: =AL16^2 -> 4000000 | AK9: =AL18^2 -> 100000000 | AL9: =AL20^2 -> 400000000 | AM9: =AO16-AO18 -> -2.091743119 | AN9: =AO18-AO20 -> -4.904587156 | AO9: =AJ9-AK9 -> -96000000 | AP9: =AK9-AL9 -> -300000000 | AQ9: =AL16-AL18 -> -8000 | AR9: =AL18-AL20 -> -10000 | AY9: =BA16^2 -> 625000000 | AZ9: =BA18^2 -> 900000000 | BA9: =BA20^2 -> 1600000000 | BB9: =BD16-BD18 -> -6.51 | BC9: =BD18-BD20 -> -15.69 | BD9: =AY9-AZ9 -> -275000000 | BE9: =AZ9-BA9 -> -700000000 | BF9: =BA16-BA18 -> -5000 | BG9: =BA18-BA20 -> -10000 | BJ9: Supply Fan
E10: 710-307-001 (2) | F10: 2 | G10: GR63C-6DM.K2.CR | H10: Ziehl-Abegg | I10: 0.7395790901 | J10: 9.835581994 | K10: 9.835581994 | L10: 20 | M10: 28.6 | N10: 1392.866292 | O10: Ventilation Fan w/ AC Motor | P10: 3163.78 | Q10: 435.1 | R10: 2300 | X10: 8000 | Y10: 6.1 | AA10: 8000 | AB10: 6.1 | AC10: 6.21 | AD10: 6.37 | AE10: 6.62 | AF10: 6.325 | AJ10: =AR9/AQ9 -> 1.25 | AK10: =AO9*AJ10-AP9 -> 180000000 | AL10: =AM9*AJ10-AN9 -> 2.289908257 | AU10: =+'Pool Entry'!G35 -> 5782 | AV10: cfm | AY10: =BG9/BF9 -> 2 | AZ10: =BD9*AY10-BE9 -> 150000000 | BA10: =BB9*AY10-BC9 -> 2.67 | BJ10: Lookup Table
E11: 710-307-002 (2) | F11: 2 | G11: GR63C-4DM.K2.CR | H11: Ziehl-Abegg | I11: 0.7437596959 | J11: 9.78029708 | K11: 9.78029708 | L11: 40 | M11: 47 | N11: 1388.844315 | O11: Ventilation Fan w/ AC Motor | P11: 3317.78 | Q11: 589.1 | R11: 3100 | X11: 10000 | Y11: 7.28 | AA11: 10000 | AB11: 7.28 | AC11: 7.34 | AD11: 7.44 | AE11: 7.68 | AF11: 7.435 | AP11: Manual Fan BHP | AQ11: =SAPlus!GB21 -> 9 | AU11: =VLOOKUP(AU10,AU19:AV38,2) -> 2.597247706 | AV11: bhp | BE11: Manual Fan BHP | BF11: =SAPlus!FX21 -> 23.9
X12: 12000 | Y12: 9.04 | AA12: 12000 | AB12: 9.04 | AC12: 9 | AD12: 9.03 | AE12: 9.26 | AF12: 9.0825 | AL12: POLYNOMIAL | AP12: Auto Selected Fan | AQ12: =SAPlus!FW21 -> 2.597247706 | BA12: POLYNOMIAL | BE12: Auto Selected Fan | BF12: =SAPlus!FU21 -> 27.13 | BJ12: =EntryData!P42 -> 30000 | BK12: New CFM
B13: SP70 | C13: 20000 | E13: 710-307-001 (2) | F13: 2 | G13: GR63C-6DM.K2.CR | H13: Ziehl-Abegg | I13: 0.730455565 | J13: 15.1821841 | K13: 15.1821841 | L13: 20 | M13: 28.6 | N13: 1620.184529 | O13: Ventilation Fan w/ AC Motor | P13: 3163.78 | Q13: 0 | R13: 0 | X13: 14000 | Y13: 10.48 | AA13: 14000 | AB13: 10.48 | AC13: =Y20 -> 10.57 | AD13: 10.49 | AE13: 10.69 | AF13: 10.5575 | AL13: ***CURVE FITTING*** | AU13: Purge Fan | BA13: ***CURVE FITTING*** | BJ13: =VLOOKUP(BJ12,BJ16:BK31,2) -> 27.13 | BK13: bhp
E14: 710-307-002 (2) | F14: 2 | G14: GR63C-4DM.K2.CR | H14: Ziehl-Abegg | I14: 0.7346364536 | J14: 15.09578079 | K14: 15.09578079 | L14: 40 | M14: 47 | N14: 1617.34134 | O14: Ventilation Fan w/ AC Motor | P14: 3317.78 | Q14: 154 | R14: 800 | V14: 30000 | W14: 27.13 | X14: 2000 | Y14: 3.65 | AA14: 16000 | AB14: --- | AC14: =Y21 -> 12.4 | AD14: 12.17 | AE14: 12.32 | AF14: =AVERAGE(AC14:AE14) -> 12.29666667 | AN14: KNOWN VALUES | AU14: Lookup Table | BC14: KNOWN VALUES
X15: 4000 | Y15: 4.4 | AA15: 18000 | AB15: --- | AC15: --- | AD15: 14.11 | AE15: 14.2 | AF15: =AVERAGE(AD15:AE15) -> 14.155 | AJ15: X TITLE | AL15: KNOWN POINTS | AN15: Y TITLE | AP15: Std Values | AQ15: Manual Values | AY15: X TITLE | BA15: KNOWN POINTS | BC15: Y TITLE | BE15: Std Values | BF15: % Reduction from Max | BJ15: CFM | BK15: bhp
B16: SP70 | C16: 24000 | E16: 710-307-002 (2) | F16: 2 | G16: GR63C-4DM.K2.CR | H16: Ziehl-Abegg | I16: 0.6904820666 | J16: 19.27333624 | K16: 19.27333624 | L16: 40 | M16: 47 | N16: 1784.799947 | O16: Ventilation Fan w/ AC Motor | P16: 3317.78 | Q16: 0 | R16: 0 | X16: 6000 | Y16: 5.25 | AA16: 20000 | AB16: --- | AC16: --- | AD16: --- | AE16: 16.35 | AF16: 16.35 | AK16: X1 | AL16: 2000 | AN16: Y1 | AO16: =IF($AL$6=1,AP16,$AQ$11*AQ16) -> 2.003669725 | AP16: 3.64 | AQ16: =AP16/AP20 -> 0.2226299694 | AR16: 2000 | AS16: FIRST X | AU16: =EntryData!P43 -> 15000 | AV16: cfm | AZ16: X1 | BA16: =V7 -> 25000 | BC16: Y1 | BD16: 20.62 | BE16: 20.62 | BF16: =BE16/BE20 -> 0.4815506773 | BG16: 25000 | BH16: FIRST X | BJ16: =BG16 -> 25000 | BK16: =$BA$28+$BA$26*BJ16+$BA$24*BJ16^2 -> 20.62 | BL16: 20.62
X17: 8000 | Y17: 6.21 | AK17: _________ | AL17: _________ | AM17: _________ | AN17: _________ | AO17: _________ | AR17: 12000 | AS17: LAST X | AU17: =VLOOKUP(AU16,AU19:AV38,2) -> 6.229663609 | AV17: MAX bhp | AW17: Standard Values | AZ17: _________ | BA17: _________ | BB17: _________ | BC17: _________ | BD17: _________ | BG17: 40000 | BH17: LAST X | BJ17: =$BJ16+$BG$18 -> 26000 | BK17: =$BA$28+$BA$26*BJ17+$BA$24*BJ17^2 -> 21.8508 | BL17: 21.8508
B18: S870 | C18: 8000 | D18: A | E18: 710-254-002 (2) | F18: 2 | G18: GR56C-ZID.GL.CR | H18: Ziehl-Abegg | I18: 0.6857613049 | J18: 6.252740514 | K18: 6.252740514 | L18: 10 | M18: 12.8 | N18: 1462.715364 | O18: Plenum Fan w/ EC Motor | P18: 2728.68 | Q18: 0 | R18: 0 | X18: 10000 | Y18: 7.34 | AK18: X2 | AL18: 10000 | AN18: Y2 | AO18: =IF($AL$6=1,AP18,$AQ$11*AQ18) -> 4.095412844 | AP18: 7.44 | AQ18: =AP18/AP20 -> 0.4550458716 | AR18: 1000 | AS18: INCR | AU18: cfm | AV18: bhp | AZ18: X2 | BA18: =V14 -> 30000 | BC18: Y2 | BD18: 27.13 | BE18: 27.13 | BF18: =BE18/BE20 -> 0.6335824381 | BG18: 1000 | BH18: INCR | BJ18: =$BJ17+$BG$18 -> 27000 | BK18: 23.1172 | BL18: 23.1172
E19: 710-307-001 (2) | F19: 2 | G19: GR63C-6DM.K2.CR | H19: Ziehl-Abegg | I19: 0.6197979638 | J19: 6.918201969 | K19: 6.918201969 | L19: 20 | M19: 28.6 | N19: 1310.433385 | O19: Ventilation Fan w/ AC Motor | P19: 3163.78 | Q19: 435.1 | R19: 2300 | X19: 12000 | Y19: 9 | AK19: _________ | AL19: _________ | AM19: _________ | AN19: _________ | AO19: _________ | AR19: CFM | AS19: BHP | AU19: 1 | AV19: =$AL$28+$AL$26*AU19+$AL$24*AU19^2 -> 1.735277016 | AW19: 3.152419912 | AZ19: _________ | BA19: _________ | BB19: _________ | BC19: _________ | BD19: _________ | BG19: CFM | BH19: BHP | BJ19: 28000 | BK19: 24.4192 | BL19: 24.4192
E20: 710-307-002 (2) | F20: 2 | G20: GR63C-4DM.K2.CR | H20: Ziehl-Abegg | I20: 0.6126064941 | J20: 6.999415669 | K20: 6.999415669 | L20: 40 | M20: 47 | N20: 1305.034162 | O20: Ventilation Fan w/ AC Motor | P20: 3317.78 | Q20: 589.1 | R20: 3100 | X20: 14000 | Y20: 10.57 | AK20: X3 | AL20: =AA16 -> 20000 | AN20: Y3 | AO20: =IF(AL6=1,AP20,AQ11) -> 9 | AP20: 16.35 | AQ20: 1 | AR20: X | AS20: Y | AU20: 2000 | AV20: 2.003669725 | AW20: 3.64 | AZ20: X3 | BA20: 40000 | BC20: Y3 | BD20: 42.82 | BE20: 42.82 | BF20: 1 | BG20: X | BH20: Y | BJ20: 29000 | BK20: 25.7568 | BL20: 25.7568
X21: 16000 | Y21: 12.4 | AR21: =AR16 -> 2000 | AS21: =AL28+AL26*AR21+AL24*AR21^2 -> 2.003669725 | AU21: 3000 | AV21: 2.176085627 | AW21: 3.95 | BG21: =BG16 -> 25000 | BH21: =BA28+BA26*BG21+BA24*BG21^2 -> 20.62 | BJ21: 30000 | BK21: 27.13 | BL21: 27.13
B22: S870 | C22: 14000 | E22: 710-307-001 (2) | F22: 2 | G22: GR63C-6DM.K2.CR | H22: Ziehl-Abegg | I22: 0.7364812244 | J22: 10.54057775 | K22: 10.54057775 | L22: 20 | M22: 28.6 | N22: 1427.236401 | O22: Ventilation Fan w/ AC Motor | P22: 3163.78 | Q22: 0 | R22: 0 | V22: 35000 | W22: 34.1 | X22: 2000 | Y22: 3.83 | AR22: =AR16+AR18 -> 3000 | AS22: =AL28+AL26*AR22+AL24*AR22^2 -> 2.176085627 | AU22: 4000 | AV22: =$AL$28+$AL$26*AU22+$AL$24*AU22^2 -> 2.373944954 | AW22: 4.312666667 | BG22: =BG16+BG18 -> 26000 | BH22: =BA28+BA26*BG22+BA24*BG22^2 -> 21.8508 | BJ22: 31000 | BK22: 28.5388 | BL22: 28.5388
E23: 710-307-002 (2) | F23: 2 | G23: GR63C-4DM.K2.CR | H23: Ziehl-Abegg | I23: 0.740339202 | J23: 10.4856498 | K23: 10.4856498 | L23: 40 | M23: 47 | N23: 1422.933153 | O23: Ventilation Fan w/ AC Motor | P23: 3317.78 | Q23: 154 | R23: 800 | X23: 4000 | Y23: 4.59 | AR23: =AR22+AR18 -> 4000 | AS23: =AL28+AL26*AR23+AL24*AR23^2 -> 2.373944954 | AU23: 5000 | AV23: 2.597247706 | AW23: 4.31 | BG23: =BG22+BG18 -> 27000 | BH23: =BA28+BA26*BG23+BA24*BG23^2 -> 23.1172 | BJ23: 32000 | BK23: 29.9832 | BL23: 29.9832
X24: 6000 | Y24: 5.43 | AK24: A= | AL24: =AL10/AK10 -> 1.272171254e-08 | AR24: =AR23+AR18 -> 5000 | AS24: =AL28+AL26*AR24+AL24*AR24^2 -> 2.597247706 | AU24: 6000 | AV24: =$AL$28+$AL$26*AU24+$AL$24*AU24^2 -> 2.845993884 | AW24: 5.170222222 | AZ24: A= | BA24: =BA10/AZ10 -> 1.78e-08 | BG24: =BG23+BG18 -> 28000 | BH24: =BA28+BA26*BG24+BA24*BG24^2 -> 24.4192 | BJ24: 33000 | BK24: 31.4632 | BL24: 31.4632
B25: S870 | C25: 20000 | D25: B | E25: 710-307-001 (2) | F25: 2 | G25: GR63C-6DM.K2.CR | H25: Ziehl-Abegg | I25: 0.730455565 | J25: 15.1821841 | K25: 15.1821841 | L25: 20 | M25: 28.6 | N25: 1620.184529 | O25: Ventilation Fan w/ AC Motor | P25: 3163.78 | Q25: 0 | R25: 0 | X25: 8000 | Y25: 6.37 | AR25: =AR24+AR18 -> 6000 | AS25: =AL28+AL26*AR25+AL24*AR25^2 -> 2.845993884 | AU25: 7000 | AV25: 3.120183486 | AW25: 5.17 | BG25: =BG24+BG18 -> 29000 | BH25: =BA28+BA26*BG25+BA24*BG25^2 -> 25.7568 | BJ25: 34000 | BK25: 32.9788 | BL25: 32.9788
E26: 710-307-002 (2) | F26: 2 | G26: GR63C-4DM.K2.CR | H26: Ziehl-Abegg | I26: 0.7346364536 | J26: 15.09578079 | K26: 15.09578079 | L26: 40 | M26: 47 | N26: 1617.34134 | O26: Ventilation Fan w/ AC Motor | P26: 3317.78 | Q26: 154 | R26: 800 | X26: 10000 | Y26: 7.44 | AK26: B= | AL26: =(AM9-AL24*AO9)/AQ9 -> 0.0001088073394 | AN26: Y=AX^2+BX+C | AR26: =AR25+AR18 -> 7000 | AS26: =AL28+AL26*AR26+AL24*AR26^2 -> 3.120183486 | AU26: 8000 | AV26: =$AL$28+$AL$26*AU26+$AL$24*AU26^2 -> 3.419816514 | AW26: 6.212666667 | AZ26: B= | BA26: =(BB9-BA24*BD9)/BF9 -> 0.000323 | BC26: Y=AX^2+BX+C | BG26: =BG25+BG18 -> 30000 | BH26: =BA28+BA26*BG26+BA24*BG26^2 -> 27.13 | BJ26: 35000 | BK26: 34.53 | BL26: 34.53
X27: 12000 | Y27: 9.03 | AR27: =AR26+AR18 -> 8000 | AS27: =AL28+AL26*AR27+AL24*AR27^2 -> 3.419816514 | AU27: =AU26+$AR$18 -> 9000 | AV27: =$AL$28+$AL$26*AU27+$AL$24*AU27^2 -> 3.744892966 | AW27: 6.803222222 | BG27: =BG26+BG18 -> 31000 | BH27: =BA28+BA26*BG27+BA24*BG27^2 -> 28.5388 | BJ27: 36000 | BK27: 36.1168 | BL27: 36.1168
B28: SP80 | C28: 24000 | D28: C | E28: 710-307-002 (2) | F28: 2 | G28: GR63C-4DM.K2.CR | H28: Ziehl-Abegg | I28: 0.6904820666 | J28: 19.27333624 | K28: 19.27333624 | L28: 40 | M28: 47 | N28: 1784.799947 | O28: Ventilation Fan w/ AC Motor | P28: 3317.78 | Q28: 0 | R28: 0 | X28: 14000 | Y28: 10.49 | AK28: C= | AL28: =AO16-AL24*AL16^2-AL26*AL16 -> 1.735168196 | AN28: MAXIMUM (OR MIN.) AT X = | AQ28: =-AL26/2/AL24 -> -4276.442308 | AR28: =AR27+AR18 -> 9000 | AS28: =AL28+AL26*AR28+AL24*AR28^2 -> 3.744892966 | AU28: =AU27+$AR$18 -> 10000 | AV28: 4.095412844 | AW28: 7.44 | AZ28: C= | BA28: =BD16-BA24*BA16^2-BA26*BA16 -> 1.42 | BC28: MAXIMUM (OR MIN.) AT X = | BF28: =-BA26/2/BA24 -> -9073.033708 | BG28: =BG27+BG18 -> 32000 | BH28: =BA28+BA26*BG28+BA24*BG28^2 -> 29.9832 | BJ28: 37000 | BK28: 37.7392 | BL28: 37.7392
X29: 16000 | Y29: 12.17 | AL29: Answer | AO29: Enter New Value | AR29: =AR28+AR18 -> 10000 | AS29: =AL28+AL26*AR29+AL24*AR29^2 -> 4.095412844 | AU29: 11000 | AV29: 4.471376147 | AW29: 8.123 | BA29: Answer | BD29: Enter New Value | BG29: =BG28+BG18 -> 33000 | BH29: =BA28+BA26*BG29+BA24*BG29^2 -> 31.4632 | BJ29: 38000 | BK29: 39.3972 | BL29: 39.3972
X30: 18000 | Y30: 14.11 | AK30: Y= | AL30: =AL28+AL26*AO30+AL24*AO30^2 -> 5.987614679 | AN30: FOR X= | AO30: 14500 | AP30: (SAMPLE CALCULATION) | AR30: =AR29+AR18 -> 11000 | AS30: =AL28+AL26*AR30+AL24*AR30^2 -> 4.471376147 | AU30: 12000 | AV30: 4.872782875 | AW30: 8.852222222 | AZ30: Y= | BA30: =BA28+BA26*BD30+BA24*BD30^2 -> 29.9832 | BC30: FOR X= | BD30: 32000 | BE30: (SAMPLE CALCULATION) | BG30: =BG29+BG18 -> 34000 | BH30: =BA28+BA26*BG30+BA24*BG30^2 -> 32.9788 | BJ30: 39000 | BK30: 41.0908 | BL30: 41.0908
V31: 40000 | W31: 42.82 | X31: 2000 | Y31: 4.04 | AO31: _________ | AR31: =AR30+AR18 -> 12000 | AS31: =AL28+AL26*AR31+AL24*AR31^2 -> 4.872782875 | AU31: 13000 | AV31: 5.299633028 | AW31: 9.627666667 | BD31: _________ | BG31: =BG30+BG18 -> 35000 | BH31: =BA28+BA26*BG31+BA24*BG31^2 -> 34.53 | BJ31: 40000 | BK31: 42.82 | BL31: 42.82
X32: 4000 | Y32: 4.82 | AU32: 14000 | AV32: 5.751926606 | AW32: 10.44933333
X33: 6000 | Y33: 5.67 | AK33: Y= | AL33: =AL24 -> 1.272171254e-08 | AM33: X^2 | AN33: + | AO33: =AL26 -> 0.0001088073394 | AP33: X | AQ33: + | AR33: =AL28 -> 1.735168196 | AU33: 15000 | AV33: 6.229663609 | AW33: 11.31722222 | AZ33: Y= | BA33: =BA24 -> 1.78e-08 | BB33: X^2 | BC33: + | BD33: =BA26 -> 0.000323 | BE33: X | BF33: + | BG33: =BA28 -> 1.42
X34: 8000 | Y34: 6.62 | AU34: 16000 | AV34: 6.732844037 | AW34: 12.23133333
X35: 10000 | Y35: 7.68 | AU35: 17000 | AV35: 7.26146789 | AW35: 13.19166667
X36: 12000 | Y36: 9.26 | AU36: 18000 | AV36: 7.815535168 | AW36: 14.19822222
X37: 14000 | Y37: 10.69 | AU37: 19000 | AV37: 8.395045872 | AW37: 15.251
X38: 16000 | Y38: 12.32 | AU38: 20000 | AV38: 9 | AW38: 16.35
X39: 18000 | Y39: 14.2
X40: 20000 | Y40: 16.35

Sheet SA Fans (hidden)
B3: Selected Unit Exhaust Fan BHP per CFM
B4: SA Model | C4: Supply CFM | D4: MAX OSA | E4: 1 | F4: 1000 | G4: 2000 | H4: 3000 | I4: 4000 | J4: 5000 | K4: 6000 | L4: 7000 | M4: 8000 | N4: 9000 | O4: 10000 | P4: 11000 | Q4: 12000 | R4: 13000
B5: =SelectAire!B34 -> SA60 | C5: =VLOOKUP($B$5,$B$10:$R$18,2) -> 26400 | D5: =VLOOKUP($B$5,$B$10:$R$18,3) -> 13200 | E5: =VLOOKUP($B$5,$B$10:$R$18,4) -> 1.053191489 | F5: =VLOOKUP($B$5,$B$10:$R$18,5) -> 1.053191489 | G5: =VLOOKUP($B$5,$B$10:$R$18,6) -> 1.44964539 | H5: =VLOOKUP($B$5,$B$10:$R$18,7) -> 1.909574468 | I5: =VLOOKUP($B$5,$B$10:$R$18,8) -> 2.432978723 | J5: =VLOOKUP($B$5,$B$10:$R$18,9) -> 3.019858156 | K5: =VLOOKUP($B$5,$B$10:$R$18,10) -> 3.670212766 | L5: =VLOOKUP($B$5,$B$10:$R$18,11) -> 4.384042553 | M5: =VLOOKUP($B$5,$B$10:$R$18,12) -> 5.161347518 | N5: =VLOOKUP($B$5,$B$10:$R$18,13) -> 6.00212766 | O5: =VLOOKUP($B$5,$B$10:$R$18,14) -> 6.906382979 | P5: =VLOOKUP($B$5,$B$10:$R$18,15) -> 7.874113475 | Q5: =VLOOKUP($B$5,$B$10:$R$18,16) -> 8.905319149 | R5: =VLOOKUP($B$5,$B$10:$R$18,17) -> 10
B7: BHP Table by OSA CFM & Unit Model
B8: 1 | C8: 2 | D8: 3 | E8: 4 | F8: 5 | G8: 6 | H8: 7 | I8: 8 | J8: 9 | K8: 10 | L8: 11 | M8: 12 | N8: 13 | O8: 14 | P8: 15 | Q8: 16 | R8: 17
B9: SA Model | C9: Supply CFM | D9: MAX OSA | E9: 1 | F9: 1000 | G9: 2000 | H9: 3000 | I9: 4000 | J9: 5000 | K9: 6000 | L9: 7000 | M9: 8000 | N9: 9000 | O9: 10000 | P9: 11000 | Q9: 12000 | R9: 13000
B10: SA18 | C10: 8200 | D10: =C10*0.5 -> 4100 | E10: =F10 -> 0 | F10: =L35 -> 0 | G10: =L36 -> 0 | H10: =$L37 -> 0 | I10: =$L38 -> 0 | J10: =$L39 -> 0 | K10: =$L40 -> 0 | L10: =$L41 -> 0 | M10: =$L42 -> 0 | N10: =$L43 -> 0 | O10: =$L44 -> 0 | P10: =$L45 -> 0 | Q10: =$L46 -> 0 | R10: =$L47 -> 0
B11: SA20 | C11: 8200 | D11: =C11*0.5 -> 4100 | E11: 0 | F11: =X35 -> 0 | G11: =X36 -> 0 | H11: =$X37 -> 0 | I11: =$X38 -> 0 | J11: =$X39 -> 0 | K11: =$X40 -> 0 | L11: =$X41 -> 0 | M11: =$X42 -> 0 | N11: =$X43 -> 0 | O11: =$X44 -> 0 | P11: =$X45 -> 0 | Q11: =$X46 -> 0 | R11: =X47 -> 0
B12: SA24 | C12: 11000 | D12: 5500 | E12: 0 | F12: =AJ35 -> 0 | G12: =AJ36 -> 0 | H12: =AJ37 -> 0 | I12: =AJ38 -> 0 | J12: =AJ39 -> 0 | K12: =AJ40 -> 0 | L12: =AJ41 -> 0 | M12: =AJ42 -> 0 | N12: =AJ43 -> 0 | O12: =AJ44 -> 0 | P12: =AJ45 -> 0 | Q12: =AJ46 -> 0 | R12: =AJ47 -> 0
B13: SA30 | C13: 13800 | D13: 6900 | E13: 0 | F13: =$L67 -> 0 | G13: =$L68 -> 0 | H13: =$L69 -> 0 | I13: =$L70 -> 0 | J13: =$L71 -> 0 | K13: =$L72 -> 0 | L13: =$L73 -> 0 | M13: =$L74 -> 0 | N13: =$L75 -> 0 | O13: =$L76 -> 0 | P13: =$L77 -> 0 | Q13: =$L78 -> 0 | R13: =$L79 -> 0
B14: SA35 | C14: 15100 | D14: 7550 | E14: 0 | F14: =X67 -> 0 | G14: =X68 -> 0 | H14: =X69 -> 0 | I14: =X70 -> 0 | J14: =X71 -> 0 | K14: =X72 -> 0 | L14: =X73 -> 0 | M14: =X74 -> 0 | N14: =X75 -> 0 | O14: =X76 -> 0 | P14: =X77 -> 0 | Q14: =X78 -> 0 | R14: =X79 -> 0
B15: SA40 | C15: 17900 | D15: 8950 | E15: 0 | F15: =AJ67 -> 0 | G15: =AJ68 -> 0 | H15: =AJ69 -> 0 | I15: =AJ70 -> 0 | J15: =AJ71 -> 0 | K15: =AJ72 -> 0 | L15: =AJ73 -> 0 | M15: =AJ74 -> 0 | N15: =AJ75 -> 0 | O15: =AJ76 -> 0 | P15: =AJ77 -> 0 | Q15: =AJ78 -> 0 | R15: =AJ79 -> 0
B16: SA45 | C16: 19200 | D16: 9600 | E16: =F16 -> 0 | F16: =$L$98 -> 0 | G16: =$L$99 -> 0 | H16: =$L$100 -> 0 | I16: =$L$101 -> 0 | J16: =$L$102 -> 0 | K16: =$L$103 -> 0 | L16: =$L$104 -> 0 | M16: =$L$105 -> 0 | N16: =$L$106 -> 0 | O16: =$L$107 -> 0 | P16: =$L$108 -> 0 | Q16: =$L$109 -> 0 | R16: =$L$110 -> 0
B17: SA50 | C17: 22000 | D17: 11000 | E17: 0 | F17: =$X$98 -> 0 | G17: =$X$99 -> 0 | H17: =$X$100 -> 0 | I17: =$X$101 -> 0 | J17: =$X$102 -> 0 | K17: =$X$103 -> 0 | L17: =$X$104 -> 0 | M17: =$X$105 -> 0 | N17: =$X$106 -> 0 | O17: =$X$107 -> 0 | P17: =$X$108 -> 0 | Q17: =$X$109 -> 0 | R17: =$X$110 -> 0
B18: SA60 | C18: 26400 | D18: 13200 | E18: 1.053191489 | F18: =$AJ$98 -> 1.053191489 | G18: =$AJ$99 -> 1.44964539 | H18: =$AJ$100 -> 1.909574468 | I18: =$AJ$101 -> 2.432978723 | J18: =$AJ$102 -> 3.019858156 | K18: =$AJ$103 -> 3.670212766 | L18: =$AJ$104 -> 4.384042553 | M18: =$AJ$105 -> 5.161347518 | N18: =$AJ$106 -> 6.00212766 | O18: =$AJ$107 -> 6.906382979 | P18: =$AJ$108 -> 7.874113475 | Q18: =$AJ$109 -> 8.905319149 | R18: =$AJ$110 -> 10
D21: Selected Fan Option: | E21: =SelectAire!GC22 -> 3 | F21: 1 = Standard, 2 = Std High Eff Supply BI Fan & Standard Exhaust, 3 = Manual Entry of the bhp
F23: SA18 | R23: SA20 | AD23: SA24
C25: =E32^2 -> 1000000 | D25: =E34^2 -> 4000000 | E25: =E36^2 -> 16810000 | F25: =H32-H34 -> 0 | G25: =H34-H36 -> 0 | H25: =C25-D25 -> -3000000 | I25: =D25-E25 -> -12810000 | J25: =E32-E34 -> -1000 | K25: =E34-E36 -> -2100 | O25: =Q32^2 -> 1000000 | P25: =Q34^2 -> 4000000 | Q25: =Q36^2 -> 16810000 | R25: =T32-T34 -> 0 | S25: =T34-T36 -> 0 | T25: =O25-P25 -> -3000000 | U25: =P25-Q25 -> -12810000 | V25: =Q32-Q34 -> -1000 | W25: =Q34-Q36 -> -2100 | AA25: =AC32^2 -> 1000000 | AB25: =AC34^2 -> 9000000 | AC25: =AC36^2 -> 30250000 | AD25: =AF32-AF34 -> 0 | AE25: =AF34-AF36 -> 0 | AF25: =AA25-AB25 -> -8000000 | AG25: =AB25-AC25 -> -21250000 | AH25: =AC32-AC34 -> -2000 | AI25: =AC34-AC36 -> -2500
C26: =K25/J25 -> 2.1 | D26: =H25*C26-I25 -> 6510000 | E26: =F25*C26-G25 -> 0 | O26: =W25/V25 -> 2.1 | P26: =T25*O26-U25 -> 6510000 | Q26: =R25*O26-S25 -> 0 | AA26: =AI25/AH25 -> 1.25 | AB26: =AF25*AA26-AG25 -> 11250000 | AC26: =AD25*AA26-AE25 -> 0
I27: Manual Fan BHP | J27: =IF(AND($E$21=3,$B$5="SA18"),SelectAire!$GD$21,0) -> 0 | U27: Manual Fan BHP | V27: =IF(AND($E$21=3,$B$5="SA20"),SelectAire!$GD$21,0) -> 0 | AG27: Manual Fan BHP | AH27: =IF(AND($E$21=3,$B$5="SA24"),SelectAire!$GD$21,0) -> 0
E28: POLYNOMIAL | I28: Auto Selected Fan | J28: =IF(AND($E$22=3,$B$5="SA18"),0,SelectAire!$FY$18) -> 25 | Q28: POLYNOMIAL | U28: Auto Selected Fan | V28: =IF(AND($E$22=3,$B$5="SA20"),0,SelectAire!$FY$18) -> 25 | AC28: POLYNOMIAL | AG28: Auto Selected Fan | AH28: =IF(AND($E$22=3,$B$5="SA24"),0,SelectAire!$FY$18) -> 25
E29: ***CURVE FITTING*** | Q29: ***CURVE FITTING*** | AC29: ***CURVE FITTING***
E30: KNOWN POINTS | G30: KNOWN VALUES | J30: % reduction from 100% | K30: 1000 | L30: FIRST X | S30: KNOWN VALUES | V30: % reduction from 100% | W30: 1000 | X30: FIRST X | AE30: KNOWN VALUES | AH30: % reduction from 100% | AI30: 1000 | AJ30: FIRST X
C31: X TITLE | E31: CFM | G31: Y TITLE | H31: BHP | I31: Std Values | K31: 4100 | L31: LAST X | O31: X TITLE | Q31: KNOWN POINTS | S31: Y TITLE | U31: Std Values | W31: 4100 | X31: LAST X | AA31: X TITLE | AC31: KNOWN POINTS | AE31: Y TITLE | AG31: Std Values | AI31: 6000 | AJ31: LAST X
D32: X1 | E32: 1000 | G32: Y1 | H32: =IF($E$21=3,J$27*J32,I32) -> 0 | I32: 0.83 | J32: =I32/I$36 -> 0.2922535211 | K32: 1000 | L32: INCR | P32: X1 | Q32: 1000 | S32: Y1 | T32: =IF($E$21=3,V$27*V32,U32) -> 0 | U32: 0.83 | V32: =U32/U$36 -> 0.2922535211 | W32: 1000 | X32: INCR | AB32: X1 | AC32: 1000 | AE32: Y1 | AF32: =IF($E$21=3,AH$27*AH32,AG32) -> 0 | AG32: 0.97 | AH32: =AG32/AG$36 -> 0.2686980609 | AI32: 1000 | AJ32: INCR
D33: _________ | E33: _________ | F33: _________ | G33: _________ | H33: _________ | K33: CFM | L33: BHP | M33: Values from Fan Program | P33: _________ | Q33: _________ | R33: _________ | S33: _________ | T33: _________ | W33: CFM | X33: BHP | Y33: Values from Fan Program | AB33: _________ | AC33: _________ | AD33: _________ | AE33: _________ | AF33: _________ | AI33: CFM | AJ33: BHP | AK33: Values from Fan Program
D34: X2 | E34: 2000 | G34: Y2 | H34: =IF($E$21=3,$J$27*J34,I34) -> 0 | I34: 1.3 | J34: =I34/I36 -> 0.4577464789 | K34: X | L34: Y | P34: X2 | Q34: 2000 | S34: Y2 | T34: =IF($E$21=3,V$27*V34,U34) -> 0 | U34: 1.3 | V34: =U34/U36 -> 0.4577464789 | W34: X | X34: Y | AB34: X2 | AC34: 3000 | AE34: Y2 | AF34: =IF($E$21=3,AH$27*AH34,AG34) -> 0 | AG34: 2.05 | AH34: =AG34/AG36 -> 0.567867036 | AI34: X | AJ34: Y
D35: _________ | E35: _________ | F35: _________ | G35: _________ | H35: _________ | K35: =K30 -> 1000 | L35: =E44+E42*K35+E40*K35^2 -> 0 | P35: _________ | Q35: _________ | R35: _________ | S35: _________ | T35: _________ | W35: =W30 -> 1000 | X35: =Q44+Q42*W35+Q40*W35^2 -> 0 | AB35: _________ | AC35: _________ | AD35: _________ | AE35: _________ | AF35: _________ | AI35: =AI30 -> 1000 | AJ35: =AC44+AC42*AI35+AC40*AI35^2 -> 0
D36: X3 | E36: 4100 | G36: Y3 | H36: =IF($E$21=3,$J$27,I36) -> 0 | I36: 2.84 | J36: =I36/I36 -> 1 | K36: =K30+K32 -> 2000 | L36: =E44+E42*K36+E40*K36^2 -> 0 | P36: X3 | Q36: 4100 | S36: Y3 | T36: =IF($E$21=3,V$27,U36) -> 0 | U36: 2.84 | V36: =U36/U36 -> 1 | W36: =W30+W32 -> 2000 | X36: =Q44+Q42*W36+Q40*W36^2 -> 0 | AB36: X3 | AC36: =D12 -> 5500 | AE36: Y3 | AF36: =IF($E$21=3,AH$27,AG36) -> 0 | AG36: 3.61 | AH36: =AG36/AG36 -> 1 | AI36: =AI30+AI32 -> 2000 | AJ36: =AC44+AC42*AI36+AC40*AI36^2 -> 0
K37: =K36+K32 -> 3000 | L37: =E44+E42*K37+E40*K37^2 -> 0 | W37: =W36+W32 -> 3000 | X37: =Q44+Q42*W37+Q40*W37^2 -> 0 | AI37: =AI36+AI32 -> 3000 | AJ37: =AC44+AC42*AI37+AC40*AI37^2 -> 0
K38: =K37+$K$32 -> 4000 | L38: =IF(K38>$K$31,0,$E$44+$E$42*K38+$E$40*K38^2) -> 0 | W38: =W37+$K$32 -> 4000 | X38: =IF(W38>$W$31,0,$Q$44+$Q$42*W38+$Q$40*W38^2) -> 0 | AI38: =AI37+$K$32 -> 4000 | AJ38: =IF(AI38>$AI$31,0,$AC$44+$AC$42*AI38+$AC$40*AI38^2) -> 0
K39: 5000 | L39: 0 | W39: 5000 | X39: =IF(W39>$W$31,0,$Q$44+$Q$42*W39+$Q$40*W39^2) -> 0 | AI39: 5000 | AJ39: =IF(AI39>$AI$31,0,$AC$44+$AC$42*AI39+$AC$40*AI39^2) -> 0
D40: A= | E40: =E26/D26 -> 0 | K40: 6000 | L40: 0 | P40: A= | Q40: =Q26/P26 -> 0 | W40: 6000 | X40: 0 | AB40: A= | AC40: =AC26/AB26 -> 0 | AI40: 6000 | AJ40: 0
K41: 7000 | L41: 0 | W41: 7000 | X41: 0 | AI41: 7000 | AJ41: 0
D42: B= | E42: =(F25-E40*H25)/J25 -> 0 | G42: Y=AX^2+BX+C | K42: 8000 | L42: 0 | P42: B= | Q42: =(R25-Q40*T25)/V25 -> 0 | S42: Y=AX^2+BX+C | W42: 8000 | X42: 0 | AB42: B= | AC42: =(AD25-AC40*AF25)/AH25 -> 0 | AE42: Y=AX^2+BX+C | AI42: 8000 | AJ42: 0
K43: 9000 | L43: 0 | W43: 9000 | X43: 0 | AI43: 9000 | AJ43: 0
D44: C= | E44: =H32-E40*E32^2-E42*E32 -> 0 | G44: MAXIMUM (OR MIN.) AT X = | J44: =-E42/2/E40 ->  | K44: 10000 | L44: 0 | P44: C= | Q44: =T32-Q40*Q32^2-Q42*Q32 -> 0 | S44: MAXIMUM (OR MIN.) AT X = | V44: =-Q42/2/Q40 ->  | W44: 10000 | X44: 0 | AB44: C= | AC44: =AF32-AC40*AC32^2-AC42*AC32 -> 0 | AE44: MAXIMUM (OR MIN.) AT X = | AH44: =-AC42/2/AC40 ->  | AI44: 10000 | AJ44: 0
E45: Answer | H45: Enter New Value | K45: 11000 | L45: 0 | Q45: Answer | T45: Enter New Value | W45: 11000 | X45: 0 | AC45: Answer | AF45: Enter New Value | AI45: 11000 | AJ45: 0
D46: Y= | E46: =E44+E42*H46+E40*H46^2 -> 0 | G46: FOR X= | H46: 4100 | I46: (SAMPLE CALCULATION) | K46: 12000 | L46: 0 | P46: Y= | Q46: =Q44+Q42*T46+Q40*T46^2 -> 0 | S46: FOR X= | T46: 4100 | U46: (SAMPLE CALCULATION) | W46: 12000 | X46: 0 | AB46: Y= | AC46: =AC44+AC42*AF46+AC40*AF46^2 -> 0 | AE46: FOR X= | AF46: 7550 | AG46: (SAMPLE CALCULATION) | AI46: 12000 | AJ46: 0
H47: _________ | K47: 13000 | L47: 0 | T47: _________ | W47: 13000 | X47: 0 | AF47: _________ | AI47: 13000 | AJ47: 0
D49: Y= | E49: =E40 -> 0 | F49: X^2 | G49: + | H49: =E42 -> 0 | I49: X | J49: + | K49: =E44 -> 0 | P49: Y= | Q49: =Q40 -> 0 | R49: X^2 | S49: + | T49: =Q42 -> 0 | U49: X | V49: + | W49: =Q44 -> 0 | AB49: Y= | AC49: =AC40 -> 0 | AD49: X^2 | AE49: + | AF49: =AC42 -> 0 | AG49: X | AH49: + | AI49: =AC44 -> 0
F55: SA30 | R55: SA35 | AD55: SA40
C57: =E64^2 -> 1000000 | D57: =E66^2 -> 16000000 | E57: =E68^2 -> 47610000 | F57: =H64-H66 -> 0 | G57: =H66-H68 -> 0 | H57: =C57-D57 -> -15000000 | I57: =D57-E57 -> -31610000 | J57: =E64-E66 -> -3000 | K57: =E66-E68 -> -2900 | O57: =Q64^2 -> 1000000 | P57: =Q66^2 -> 16000000 | Q57: =Q68^2 -> 57002500 | R57: =T64-T66 -> 0 | S57: =T66-T68 -> 0 | T57: =O57-P57 -> -15000000 | U57: =P57-Q57 -> -41002500 | V57: =Q64-Q66 -> -3000 | W57: =Q66-Q68 -> -3550 | AA57: =AC64^2 -> 1000000 | AB57: =AC66^2 -> 16000000 | AC57: =AC68^2 -> 80102500 | AD57: =AF64-AF66 -> 0 | AE57: =AF66-AF68 -> 0 | AF57: =AA57-AB57 -> -15000000 | AG57: =AB57-AC57 -> -64102500 | AH57: =AC64-AC66 -> -3000 | AI57: =AC66-AC68 -> -4950
C58: =K57/J57 -> 0.9666666667 | D58: =H57*C58-I57 -> 17110000 | E58: =F57*C58-G57 -> 0 | O58: =W57/V57 -> 1.183333333 | P58: =T57*O58-U57 -> 23252500 | Q58: =R57*O58-S57 -> 0 | AA58: =AI57/AH57 -> 1.65 | AB58: =AF57*AA58-AG57 -> 39352500 | AC58: =AD57*AA58-AE57 -> 0
I59: Manual Fan BHP | J59: =IF(AND($E$21=3,$B$5="SA30"),SelectAire!$GD$21,0) -> 0 | U59: Manual Fan BHP | V59: =IF(AND($E$21=3,$B$5="SA35"),SelectAire!$GD$21,0) -> 0 | AG59: Manual Fan BHP | AH59: =IF(AND($E$21=3,$B$5="SA40"),SelectAire!$GD$21,0) -> 0
E60: POLYNOMIAL | I60: Auto Selected Fan | J60: =IF(AND($E$22=3,$B$5="SA30"),0,SelectAire!$FY$18) -> 25 | Q60: POLYNOMIAL | U60: Auto Selected Fan | V60: =IF(AND($E$22=3,$B$5="SA35"),0,SelectAire!$FY$18) -> 25 | AC60: POLYNOMIAL | AG60: Auto Selected Fan | AH60: =IF(AND($E$22=3,$B$5="SA40"),0,SelectAire!$FY$18) -> 25
E61: ***CURVE FITTING*** | Q61: ***CURVE FITTING*** | AC61: ***CURVE FITTING***
G62: KNOWN VALUES | J62: % reduction from 100% | K62: 1000 | L62: FIRST X | S62: KNOWN VALUES | V62: % reduction from 100% | W62: 1000 | X62: FIRST X | AE62: KNOWN VALUES | AH62: % reduction from 100% | AI62: 1000 | AJ62: FIRST X
C63: X TITLE | E63: KNOWN POINTS | G63: Y TITLE | I63: Std Values | K63: 7000 | L63: LAST X | O63: X TITLE | Q63: KNOWN POINTS | S63: Y TITLE | U63: Std Values | W63: 8000 | X63: LAST X | AA63: X TITLE | AC63: KNOWN POINTS | AE63: Y TITLE | AG63: Std Values | AI63: 9000 | AJ63: LAST X
D64: X1 | E64: 1000 | G64: Y1 | H64: =IF($E$21=3,J$59*J64,I64) -> 0 | I64: 0.97 | J64: =I64/I$68 -> 0.2146017699 | K64: 1000 | L64: INCR | P64: X1 | Q64: 1000 | S64: Y1 | T64: =IF($E$21=3,V$59*V64,U64) -> 0 | U64: 1.01 | V64: =U64/U$68 -> 0.1843065693 | W64: 1000 | X64: INCR | Y64: Values from Fan Program | AB64: X1 | AC64: 1000 | AE64: Y1 | AF64: =IF($E$21=3,AH$59*AH64,AG64) -> 0 | AG64: 1.74 | AH64: =AG64/AG$68 -> 0.2624434389 | AI64: 1000 | AJ64: INCR
D65: _________ | E65: _________ | F65: _________ | G65: _________ | H65: _________ | K65: CFM | L65: BHP | M65: Values from Fan Program | P65: _________ | Q65: _________ | R65: _________ | S65: _________ | T65: _________ | W65: CFM | X65: BHP | AB65: _________ | AC65: _________ | AD65: _________ | AE65: _________ | AF65: _________ | AI65: CFM | AJ65: BHP
D66: X2 | E66: 4000 | G66: Y2 | H66: =IF($E$21=3,J$59*J66,I66) -> 0 | I66: 2.54 | J66: =I66/I68 -> 0.5619469027 | K66: X | L66: Y | P66: X2 | Q66: 4000 | S66: Y2 | T66: =IF($E$21=3,V$59*V66,U66) -> 0 | U66: 2.78 | V66: =U66/U68 -> 0.5072992701 | W66: X | X66: Y | AB66: X2 | AC66: 4000 | AE66: Y2 | AF66: =IF($E$21=3,AH$59*AH66,AG66) -> 0 | AG66: 4.72 | AH66: =AG66/AG68 -> 0.7119155354 | AI66: X | AJ66: Y
D67: _________ | E67: _________ | F67: _________ | G67: _________ | H67: _________ | K67: =K62 -> 1000 | L67: =E76+E74*K67+E72*K67^2 -> 0 | P67: _________ | Q67: _________ | R67: _________ | S67: _________ | T67: _________ | W67: =W62 -> 1000 | X67: =Q76+Q74*W67+Q72*W67^2 -> 0 | Y67: 1.01 | AB67: _________ | AC67: _________ | AD67: _________ | AE67: _________ | AF67: _________ | AI67: =AI62 -> 1000 | AJ67: =AC76+AC74*AI67+AC72*AI67^2 -> 0
D68: X3 | E68: =D13 -> 6900 | G68: Y3 | H68: =IF($E$21=3,J$59,I68) -> 0 | I68: 4.52 | J68: =I68/I68 -> 1 | K68: =K62+K64 -> 2000 | L68: =E76+E74*K68+E72*K68^2 -> 0 | P68: X3 | Q68: =D14 -> 7550 | S68: Y3 | T68: =IF($E$21=3,V$59,U68) -> 0 | U68: 5.48 | V68: =U68/U68 -> 1 | W68: =W62+W64 -> 2000 | X68: =Q76+Q74*W68+Q72*W68^2 -> 0 | Y68: 1.42 | AB68: X3 | AC68: =D15 -> 8950 | AE68: Y3 | AF68: =IF($E$21=3,AH$59,AG68) -> 0 | AG68: 6.63 | AH68: =AG68/AG68 -> 1 | AI68: =AI62+AI64 -> 2000 | AJ68: =AC76+AC74*AI68+AC72*AI68^2 -> 0
K69: =K68+K64 -> 3000 | L69: =E76+E74*K69+E72*K69^2 -> 0 | W69: =W68+W64 -> 3000 | X69: =Q76+Q74*W69+Q72*W69^2 -> 0 | Y69: 1.87 | AI69: =AI68+AI64 -> 3000 | AJ69: =AC76+AC74*AI69+AC72*AI69^2 -> 0
K70: =K69+$K$32 -> 4000 | L70: =IF(K70>$K$63,0,$E$76+$E$74*K70+$E$72*K70^2) -> 0 | W70: =W69+$K$32 -> 4000 | X70: =IF(W70>$W$63,0,$Q$76+$Q$74*W70+$Q$72*W70^2) -> 0 | Y70: 2.78 | AI70: =AI69+$K$32 -> 4000 | AJ70: =IF(AI70>$AI$63,0,$AC$76+$AC$74*AI70+$AC$72*AI70^2) -> 0
K71: 5000 | L71: =IF(K71>$K$63,0,$E$76+$E$74*K71+$E$72*K71^2) -> 0 | W71: 5000 | X71: =IF(W71>$W$63,0,$Q$76+$Q$74*W71+$Q$72*W71^2) -> 0 | Y71: 3.39 | AI71: 5000 | AJ71: =IF(AI71>$AI$63,0,$AC$76+$AC$74*AI71+$AC$72*AI71^2) -> 0
D72: A= | E72: =E58/D58 -> 0 | K72: 6000 | L72: 0 | P72: A= | Q72: =Q58/P58 -> 0 | W72: 6000 | X72: 0 | Y72: 4.1 | AB72: A= | AC72: =AC58/AB58 -> 0 | AI72: 6000 | AJ72: 0
K73: 7000 | L73: 0 | W73: 7000 | X73: 0 | AI73: 7000 | AJ73: 0
D74: B= | E74: =(F57-E72*H57)/J57 -> 0 | G74: Y=AX^2+BX+C | K74: 8000 | L74: 0 | P74: B= | Q74: =(R57-Q72*T57)/V57 -> 0 | S74: Y=AX^2+BX+C | W74: 8000 | X74: 0 | AB74: B= | AC74: =(AD57-AC72*AF57)/AH57 -> 0 | AE74: Y=AX^2+BX+C | AI74: 8000 | AJ74: 0
K75: 9000 | L75: 0 | W75: 9000 | X75: 0 | AI75: 9000 | AJ75: 0
D76: C= | E76: =H64-E72*E64^2-E74*E64 -> 0 | G76: MAXIMUM (OR MIN.) AT X = | J76: =-E74/2/E72 ->  | K76: 10000 | L76: 0 | P76: C= | Q76: =T64-Q72*Q64^2-Q74*Q64 -> 0 | S76: MAXIMUM (OR MIN.) AT X = | V76: =-Q74/2/Q72 ->  | W76: 10000 | X76: 0 | AB76: C= | AC76: =AF64-AC72*AC64^2-AC74*AC64 -> 0 | AE76: MAXIMUM (OR MIN.) AT X = | AH76: =-AC74/2/AC72 ->  | AI76: 10000 | AJ76: 0
E77: Answer | H77: Enter New Value | K77: 11000 | L77: 0 | Q77: Answer | T77: Enter New Value | W77: 11000 | X77: 0 | AC77: Answer | AF77: Enter New Value | AI77: 11000 | AJ77: 0
D78: Y= | E78: =E76+E74*H78+E72*H78^2 -> 0 | G78: FOR X= | H78: 6900 | I78: (SAMPLE CALCULATION) | K78: 12000 | L78: 0 | P78: Y= | Q78: =Q76+Q74*T78+Q72*T78^2 -> 0 | S78: FOR X= | T78: 7550 | U78: (SAMPLE CALCULATION) | W78: 12000 | X78: 0 | AB78: Y= | AC78: =AC76+AC74*AF78+AC72*AF78^2 -> 0 | AE78: FOR X= | AF78: 4000 | AG78: (SAMPLE CALCULATION) | AI78: 12000 | AJ78: 0
H79: _________ | K79: 13000 | L79: 0 | T79: _________ | W79: 13000 | X79: 0 | AF79: _________ | AI79: 13000 | AJ79: 0
D81: Y= | E81: =E72 -> 0 | F81: X^2 | G81: + | H81: =E74 -> 0 | I81: X | J81: + | K81: =E76 -> 0 | P81: Y= | Q81: =Q72 -> 0 | R81: X^2 | S81: + | T81: =Q74 -> 0 | U81: X | V81: + | W81: =Q76 -> 0 | AB81: Y= | AC81: =AC72 -> 0 | AD81: X^2 | AE81: + | AF81: =AC74 -> 0 | AG81: X | AH81: + | AI81: =AC76 -> 0
F86: SA45 | R86: SA50 | AD86: SA60
C88: =E95^2 -> 1000000 | D88: =E97^2 -> 25000000 | E88: =E99^2 -> 92160000 | F88: =H95-H97 -> 0 | G88: =H97-H99 -> 0 | H88: =C88-D88 -> -24000000 | I88: =D88-E88 -> -67160000 | J88: =E95-E97 -> -4000 | K88: =E97-E99 -> -4600 | O88: =Q95^2 -> 1000000 | P88: =Q97^2 -> 36000000 | Q88: =Q99^2 -> 121000000 | R88: =T95-T97 -> 0 | S88: =T97-T99 -> 0 | T88: =O88-P88 -> -35000000 | U88: =P88-Q88 -> -85000000 | V88: =Q95-Q97 -> -5000 | W88: =Q97-Q99 -> -5000 | AA88: =AC95^2 -> 1000000 | AB88: =AC97^2 -> 36000000 | AC88: =AC99^2 -> 169000000 | AD88: =AF95-AF97 -> -2.617021277 | AE88: =AF97-AF99 -> -6.329787234 | AF88: =AA88-AB88 -> -35000000 | AG88: =AB88-AC88 -> -133000000 | AH88: =AC95-AC97 -> -5000 | AI88: =AC97-AC99 -> -7000
C89: =K88/J88 -> 1.15 | D89: =H88*C89-I88 -> 39560000 | E89: =F88*C89-G88 -> 0 | O89: =W88/V88 -> 1 | P89: =T88*O89-U88 -> 50000000 | Q89: =R88*O89-S88 -> 0 | AA89: =AI88/AH88 -> 1.4 | AB89: =AF88*AA89-AG88 -> 84000000 | AC89: =AD88*AA89-AE88 -> 2.665957447
I90: Manual Fan BHP | J90: =IF(AND($E$21=3,$B$5="SA45"),SelectAire!$GD$21,0) -> 0 | U90: Manual Fan BHP | V90: =IF(AND($E$21=3,$B$5="SA50"),SelectAire!$GD$21,0) -> 0 | AG90: Manual Fan BHP | AH90: =IF(AND($E$21=3,$B$5="SA60"),SelectAire!$GD$21,0) -> 10
E91: POLYNOMIAL | I91: Auto Selected Fan | J91: =IF(AND($E$22=3,$B$5="SA45"),0,SelectAire!$FY$18) -> 25 | Q91: POLYNOMIAL | U91: Auto Selected Fan | V91: =IF(AND($E$22=3,$B$5="SA50"),0,SelectAire!$FY$18) -> 25 | AC91: POLYNOMIAL | AG91: Auto Selected Fan | AH91: =IF(AND($E$22=3,$B$5="SA60"),0,SelectAire!$FY$18) -> 25
E92: ***CURVE FITTING*** | Q92: ***CURVE FITTING*** | AC92: ***CURVE FITTING***
G93: KNOWN VALUES | J93: % reduction from 100% | K93: 1000 | L93: FIRST X | S93: KNOWN VALUES | V93: % reduction from 100% | W93: 1000 | X93: FIRST X | AE93: KNOWN VALUES | AH93: % reduction from 100% | AI93: 1000 | AJ93: FIRST X
C94: X TITLE | E94: KNOWN POINTS | G94: Y TITLE | I94: Std Values | K94: 10000 | L94: LAST X | O94: X TITLE | Q94: KNOWN POINTS | S94: Y TITLE | U94: Std Values | W94: 11000 | X94: LAST X | AA94: X TITLE | AC94: KNOWN POINTS | AE94: Y TITLE | AG94: Std Values | AI94: 13000 | AJ94: LAST X
D95: X1 | E95: 1000 | G95: Y1 | H95: =IF($E$21=3,J$90*J95,I95) -> 0 | I95: 0.85 | J95: =I95/I$99 -> 0.1177285319 | K95: 1000 | L95: INCR | P95: X1 | Q95: 1000 | S95: Y1 | T95: =IF($E$21=3,V$90*V95,U95) -> 0 | U95: 0.88 | V95: =U95/U$99 -> 0.09691629956 | W95: 1000 | X95: INCR | AB95: X1 | AC95: 1000 | AE95: Y1 | AF95: =IF($E$21=3,AH$90*AH95,AG95) -> 1.053191489 | AG95: 0.99 | AH95: =AG95/AG$99 -> 0.1053191489 | AI95: 1000 | AJ95: INCR
D96: _________ | E96: _________ | F96: _________ | G96: _________ | H96: _________ | K96: CFM | L96: BHP | P96: _________ | Q96: _________ | R96: _________ | S96: _________ | T96: _________ | W96: CFM | X96: BHP | Y96: Values from Fan Program | AB96: _________ | AC96: _________ | AD96: _________ | AE96: _________ | AF96: _________ | AI96: CFM | AJ96: BHP | AK96: Values from Fan Program
D97: X2 | E97: 5000 | G97: Y2 | H97: =IF($E$21=3,J$90*J97,I97) -> 0 | I97: 3.49 | J97: =I97/I$99 -> 0.4833795014 | K97: X | L97: Y | P97: X2 | Q97: 6000 | S97: Y2 | T97: =IF($E$21=3,V$90*V97,U97) -> 0 | U97: 4.1 | V97: =U97/U$99 -> 0.4515418502 | W97: X | X97: Y | AB97: X2 | AC97: 6000 | AE97: Y2 | AF97: =IF($E$21=3,AH$90*AH97,AG97) -> 3.670212766 | AG97: 3.45 | AH97: =AG97/AG$99 -> 0.3670212766 | AI97: X | AJ97: Y
D98: _________ | E98: _________ | F98: _________ | G98: _________ | H98: _________ | K98: =K93 -> 1000 | L98: =E107+E105*K98+E103*K98^2 -> 0 | P98: _________ | Q98: _________ | R98: _________ | S98: _________ | T98: _________ | W98: =W93 -> 1000 | X98: =Q107+Q105*W98+Q103*W98^2 -> 0 | AB98: _________ | AC98: _________ | AD98: _________ | AE98: _________ | AF98: _________ | AI98: =AI93 -> 1000 | AJ98: =AC107+AC105*AI98+AC103*AI98^2 -> 1.053191489
D99: X3 | E99: =D16 -> 9600 | G99: Y3 | H99: =IF($E$21=3,J$90,I99) -> 0 | I99: 7.22 | J99: =I99/I$99 -> 1 | K99: =K93+K95 -> 2000 | L99: =E107+E105*K99+E103*K99^2 -> 0 | P99: X3 | Q99: =D17 -> 11000 | S99: Y3 | T99: =IF($E$21=3,V$90,U99) -> 0 | U99: 9.08 | V99: =U99/U$99 -> 1 | W99: =W93+W95 -> 2000 | X99: =Q107+Q105*W99+Q103*W99^2 -> 0 | AB99: X3 | AC99: 13000 | AE99: Y3 | AF99: =IF($E$21=3,AH$90,AG99) -> 10 | AG99: 9.4 | AH99: =AG99/AG$99 -> 1 | AI99: =AI93+AI95 -> 2000 | AJ99: =AC107+AC105*AI99+AC103*AI99^2 -> 1.44964539
K100: =K99+K95 -> 3000 | L100: =E107+E105*K100+E103*K100^2 -> 0 | W100: =W99+W95 -> 3000 | X100: =Q107+Q105*W100+Q103*W100^2 -> 0 | AI100: =AI99+AI95 -> 3000 | AJ100: =AC107+AC105*AI100+AC103*AI100^2 -> 1.909574468
K101: =K100+$K$32 -> 4000 | L101: =IF(K101>$K$94,0,$E$107+$E$105*K101+$E$103*K101^2) -> 0 | W101: =W100+$K$32 -> 4000 | X101: =IF(W101>$W$94,0,$Q$107+$Q$105*W101+$Q$103*W101^2) -> 0 | AI101: =AI100+$K$32 -> 4000 | AJ101: =IF(AI101>$AI$94,0,$AC$107+$AC$105*AI101+$AC$103*AI101^2) -> 2.432978723
K102: 5000 | L102: =IF(K102>$K$94,0,$E$107+$E$105*K102+$E$103*K102^2) -> 0 | W102: 5000 | X102: =IF(W102>$W$94,0,$Q$107+$Q$105*W102+$Q$103*W102^2) -> 0 | AI102: 5000 | AJ102: =IF(AI102>$AI$94,0,$AC$107+$AC$105*AI102+$AC$103*AI102^2) -> 3.019858156
D103: A= | E103: =E89/D89 -> 0 | K103: 6000 | L103: 0 | P103: A= | Q103: =Q89/P89 -> 0 | W103: 6000 | X103: 0 | AB103: A= | AC103: =AC89/AB89 -> 3.173758865e-08 | AI103: 6000 | AJ103: 3.670212766
K104: 7000 | L104: 0 | W104: 7000 | X104: 0 | AI104: 7000 | AJ104: 4.384042553
D105: B= | E105: =(F88-E103*H88)/J88 -> 0 | G105: Y=AX^2+BX+C | K105: 8000 | L105: 0 | P105: B= | Q105: =(R88-Q103*T88)/V88 -> 0 | S105: Y=AX^2+BX+C | W105: 8000 | X105: 0 | AB105: B= | AC105: =(AD88-AC103*AF88)/AH88 -> 0.0003012411348 | AE105: Y=AX^2+BX+C | AI105: 8000 | AJ105: 5.161347518
K106: 9000 | L106: 0 | W106: 9000 | X106: 0 | AI106: 9000 | AJ106: 6.00212766
D107: C= | E107: =H95-E103*E95^2-E105*E95 -> 0 | G107: MAXIMUM (OR MIN.) AT X = | J107: =-E105/2/E103 ->  | K107: 10000 | L107: 0 | P107: C= | Q107: =T95-Q103*Q95^2-Q105*Q95 -> 0 | S107: MAXIMUM (OR MIN.) AT X = | V107: =-Q105/2/Q103 ->  | W107: 10000 | X107: 0 | AB107: C= | AC107: =AF95-AC103*AC95^2-AC105*AC95 -> 0.720212766 | AE107: MAXIMUM (OR MIN.) AT X = | AH107: =-AC105/2/AC103 -> -4745.810056 | AI107: 10000 | AJ107: 6.906382979
E108: Answer | H108: Enter New Value | K108: 11000 | L108: 0 | Q108: Answer | T108: Enter New Value | W108: 11000 | X108: 0 | AC108: Answer | AF108: Enter New Value | AI108: 11000 | AJ108: 7.874113475
D109: Y= | E109: =E107+E105*H109+E103*H109^2 -> 0 | G109: FOR X= | H109: 7550 | I109: (SAMPLE CALCULATION) | K109: 12000 | L109: 0 | P109: Y= | Q109: =Q107+Q105*T109+Q103*T109^2 -> 0 | S109: FOR X= | T109: 7550 | U109: (SAMPLE CALCULATION) | W109: 12000 | X109: 0 | AB109: Y= | AC109: =AC107+AC105*AF109+AC103*AF109^2 -> 10.22655319 | AE109: FOR X= | AF109: 13200 | AG109: (SAMPLE CALCULATION) | AI109: 12000 | AJ109: 8.905319149
H110: _________ | K110: 13000 | L110: 0 | T110: _________ | W110: 13000 | X110: 0 | AF110: _________ | AI110: 13000 | AJ110: 10
D112: Y= | E112: =E103 -> 0 | F112: X^2 | G112: + | H112: =E105 -> 0 | I112: X | J112: + | K112: =E107 -> 0 | P112: Y= | Q112: =Q103 -> 0 | R112: X^2 | S112: + | T112: =Q105 -> 0 | U112: X | V112: + | W112: =Q107 -> 0 | AB112: Y= | AC112: =AC103 -> 3.173758865e-08 | AD112: X^2 | AE112: + | AF112: =AC105 -> 0.0003012411348 | AG112: X | AH112: + | AI112: =AC107 -> 0.720212766

Sheet Programing Notes (hidden)
B2: Programming Notes:
B4: 1. When updating the SAPlus Perform worksheet from the SelectAire Plus program you will need to copy all columns in the "SP Perf R1" worksheet. Paste this into the "SAPlus Perform" Enerlyzer worksheet. It will state that the "CompCoef file already exists. Click NO and rename "CompCoef1" | O4: DA | S4: Dectron | W4: PoolPak | AA4: For all Calcs | AD4: Dehu w/ Exch Push Pull Compr | AG4: Two Fan Econ | AJ4: SelectAire (Perf. TBL)
N5: Ton | O5: kW | P5: kW/ton | R5: Ton | S5: kW | T5: kW/ton | V5: Ton | W5: kW | X5: kW/ton | Z5: Ton | AA5: kW | AB5: kW/ton | AD5: Ton | AE5: kW-1 | AF5: kW-2 | AG5: Ton | AH5: kW-1 | AI5: kW-2 | AJ5: Ton | AK5: kW-1 | AL5: kW-2
B6: 2. Need to add formulas & descriptions in cells | N6: 2 | O6: 2.113403793 | P6: =+O6/N6 -> 1.056701897 | R6: 2 | V6: 2 | Z6: 1 | AA6: 1.1 | AB6: =+AA6/Z6 -> 1.1 | AD6: 12 | AE6: 12.4 | AF6: 0 | AG6: 15 | AH6: 16.4 | AI6: 0 | AJ6: LC01 | AK6: 1.1 | AL6: 0
C7: A63 to B77 | N7: 3 | O7: 3.603755935 | P7: 1.201251978 | R7: 3 | V7: 3 | Z7: 2 | AA7: 2.113403793 | AB7: =+AA7/Z7 -> 1.056701897 | AD7: 15 | AE7: 16.4 | AF7: 0 | AG7: 20 | AH7: 21.8 | AI7: 0 | AJ7: LC02 | AK7: 2.113403793 | AL7: 0
C8: C46 TO C48 | N8: 4 | O8: 5.060828782 | P8: 1.265207195 | R8: 4 | V8: 4 | Z8: 3 | AA8: 3.603755935 | AB8: 1.201251978 | AD8: 20 | AE8: 21.8 | AF8: 0 | AG8: 25 | AH8: 13 | AI8: 13 | AJ8: LC03 | AK8: 3.603755935 | AL8: 0
C9: C53 TO D60 | N9: 5 | O9: 6.107098756 | P9: 1.221419751 | R9: 5 | V9: 5 | Z9: 4 | AA9: 5.060828782 | AB9: 1.265207195 | AD9: 25 | AE9: 13 | AF9: 13 | AG9: 30 | AH9: 16.4 | AI9: 16.4 | AJ9: LC04 | AK9: 5.060828782 | AL9: 0
C10: H42 TO AN44 | N10: 6 | O10: 7.913799893 | P10: 1.318966649 | R10: 6 | V10: 6 | Z10: 5 | AA10: 6.107098756 | AB10: 1.221419751 | AD10: 30 | AE10: 16.4 | AF10: 16.4 | AG10: 35 | AH10: 19 | AI10: 19 | AJ10: LC05 | AK10: 6.107098756 | AL10: 0
C11: H88 TO AU89 | N11: 8 | O11: 8.823155447 | P11: 1.102894431 | R11: 8 | V11: 8 | Z11: 6 | AA11: 7.913799893 | AB11: 1.318966649 | AD11: 35 | AE11: 19 | AF11: 19 | AG11: 40 | AH11: 21.8 | AI11: 21.8 | AJ11: LC06 | AK11: 7.913799893 | AL11: 0
C12: Q2 TO R6 | N12: 9 | O12: 9.6 | P12: =+O12/N12 -> 1.066666667 | R12: 9 | T12: =+S12/R12 -> 0 | V12: 9 | Z12: 8 | AA12: 8.823155447 | AB12: 1.102894431 | AD12: 40 | AE12: 21.8 | AF12: 21.8 | AG12: 50 | AH12: 27.1 | AI12: 27.1 | AJ12: LC08 3 phase | AK12: 8.823155447 | AL12: 0
N13: 10 | O13: 10.1 | P13: 1.01 | R13: 10 | T13: 0 | V13: 10 | Z13: 9 | AA13: 9.6 | AB13: 1.066666667 | AD13: 45 | AE13: 24.5 | AF13: 24.5 | AG13: 60 | AH13: 32.7 | AI13: 32.7 | AJ13: LC08 1 phase | AK13: 8.823155447 | AL13: 0
